Workbook

Sheet Readme
C1: Retiree Portfolio Model | E1: Version 24.0 - Dec 26, 2023
E2: border & lines | G2: cell comments to Word
C5: What is the Retiree Portfolio Model (RPM)? | E5: A tutorial by Bogleheads member MrDrinkingWater
C6: This is a portfolio and financial forecasting model designed for retirees and pre-retirees. You provide your current portfolio details, forecast or actual Social Security benefits, other income, expenses, and your expected asset return rates and expected inflation rate and the model calculates the Federal and state taxes using current year actual rates and brackets, and from all of this the yearly balances of each investment, and the income and expense amounts over a 1 to 40 year period, are calculated and provided to you in various schedules. | E6: I would suggest that first-time RPM users should not sweat having negative numbers and red text error messages for the first few hours of using and entering data into RPM. For the first-time in using RPM, don't clear all the entries on the Setup Page. Don't try to make a perfect model that exactly fits your situation. You just won't be able to do that in fifteen minutes or even an hour. Just be content on learning how the inputs that you enter on the Setup Page are to be entered. Read through the entire Readme spreadsheet before starting to enter data on the Setup Page. You don't need to read the Readme page with 100% comprehension. Just read through it once so that you get some comprehension and at least a partial overview of what RPM does. Now proceed to start editing the Setup spreadsheet page. Remember you are just learning how to use RPM, not making a perfect fit model to your own situation on the first try. Fill in the blue cells with data that you know about yourself, and if you are married, your spouse. Ignore all the error messages and "warning negative balance" stuff for the next hour or so of entering data. For the Portfolio Balance section: Add up all your accounts to fit into the categories listed as inputs to RPM. For example, your 401k accounts and traditional IRA accounts all go together in IRA1, and your spouse's 401k accounts and traditional IRA accounts all go together in IRA2. Do the same sort of thing to combine your actual existing Roth IRAs together. All of your Roth IRAs are in Roth IRA1 and all of your spouse's Roth IRAs are in Roth IRA2. Combine your taxable accounts all together into the single taxable account category item. Now take those sums you've made from another spreadsheet or a piece of paper and enter them into the data fields. Until you complete editing the other sections of the Setup Page, you will most likely have red text error messages. Continue working your way down through the Setup Page. I prefer using the Class Asset Method in Section 3, the "Rates and Returns" section. For this first learning session, just use the rates that are (the default rates.) You can edit them later. Do edit the percentages of stocks, bonds, and tax-exempt to match the percentages that are present in your accounts. Notice that "Money Market and other" automatically completes the row of cells to add up to 100%, so you don't have to enter in percentages for what you have in cash in savings and checking accounts, or any other taxable accounts. Now enter in your expected pension income data and expected Social Security income data. Enter in any anticipated earned income, like a side job you have or expect to have. In Section 5, "Expenses", put in your first guess about a reasonable level of expenses into that cell. This will be your first chance to really drive the calculated model results to not have red text errors and negative balance warning messages. You can also see on the right end of that row of cells what your ending portfolio balance is calculated to be each time you edit your guess about what your anticipated expenses will be. Choose a yearly level of expenses that will keep your portfolio balance positive, and you'll like get rid of nearly all of the red text error messages. Maybe putting in what is a conservative "expenses" number is a good practice, just to clear away the error messages for a while. In Section 6, IRA Contributions and IRA Withdrawals, this is where you will have some work, editing, and tweaking to do. I recommend starting out by setting your annual withdrawals to zero in each section, but keep the default yearly percentage change adjustments, and go ahead and edit the start age and end age cells to your desired age ranges. Now, just for this training session, so that you'll get the hang of this feature of RPM, set the annual withdrawal to $10,000 for each of your traditional IRAs and $1000 for each of your Roth IRAs. This will help you see how the Traditional IRA withdrawals and Roth IRA withdrawals flow into your taxable account. It is your taxable account from which your annual expenses are subtracted from for each year of the model you are forecasting. In Section 7, enter in any one-time expense, like buying a house or yacht, if you have some one-time expenses like that. You'll be able to see how that depletes your Taxable Balance quite clearly when you later look at the Summary, Results, and Details spreadsheets. In Section 8, Taxes, just accept the default settings for the first hour or two of figuring out how the IRA Withdrawals, Expenses, and Income sections interact to add to or deplete the Taxable Balance. After you have some more insight and confidence in how your inputs affect your RPM model, you can then start fine-tuning the Taxes section for your particular situation. I wouldn't fool with Section 9 during the first few hours of using RPM. Some folks may never enter data and use Section 9 for any purpose. I would suggest that editing and putting data into Section 10, Optional Roth Conversions, should be done after a few hours of learning the data entered into all the other sections affect RPM. Before doing the Optional Roth Conversions, I went back to reset my annual IRA1 withdrawals to zero, and then I started using Method 2 to enter in a Roth conversion amount each of the early years of my forecasted model. These "Method 2" Roth conversion amounts are added to the Roth Conversion balance that is not entered data, but calculated data, that shows up in Section 2, Portfolio Balances, and "Roth Start of Year Balance" that is two columns to the right of the "Roth Conversion Amount" column. When you want to fund your Taxable Account with "Roth Conversion balance" dollars, enter in the amount you want to transfer in that column just to the right (the column labeled "Withdrawals") of the conversion amount that could be entered for that model year. The Optional Roth Conversions part of RPM is really useful for figuring out how much Roth Conversion to do each year of your forecasted model to aim for the top of a particular tax bracket. A lot of folks may not need or want to use this section of the Setup Page, but it is the key helpful feature for many RPM users. Well, I hope this helps some of you get started with using RPM. I recommend spending some time studying the graphs that populate the Setup Page, and the other three spreadsheets that I mentioned earlier: Summary, Results, and Details. Now that you've made your own personalized "test case" of RPM that is hopefully in a condition of having a modest amount of anticipated yearly expenses, a positive portfolio balance after two-to-three decades of forecasted time modeled, and no red error messages, you can REALLY start fine-tuning the entries and numbers in Setup Page Sections 3, 4, 6, 8, and 10 to exactly your own situation. Good luck!
C7: Most of the issues that retirees will face are included, such as doing Roth conversions, determining the impact of alternative Social Security benefits starting ages, dealing with Required Minimum Distributions, estimating Federal and State taxes based on actual current and forecast rates and brackets, and seeing the impact of inheritances and future living expense changes. The model also allows the user to set their current portfolio stock/bond allocation and plan for a future "glidepath" change, with the ability to set the expected return rates for different types of assets. The original version of this maintains account allocations, but not the overall portfolio. An addition in v21.2 Alloc Beta added a feature to maintain the portfolio allocation.
C8: Key Features 1. Calculates yearly and cumulative results for taxable, traditional IRA, and Roth IRA accounts, including the impact of earnings, SS benefits, living expenses, and Federal and state taxes. The model includes common retiree events, such as inheritances, asset sales, tax increases, expense changes late in life, and the death of a spouse. The modeling period is user selectable over period of 1 to 40 years. 2. Compares instantly the impact of Roth conversions and withdrawals and/or alternative Social Security starting choices on portfolio balances, income, taxes, and the impact on Required Minimum Distributions (RMD) of these options. The comparison is done by the use of two nearly identical spreadsheet calculations: The default shown on the Details page, also known as the "Full" portfolio, includes Roth conversions and the alternative Social Security benefits (either can be included or excluded). The Base portfolio excludes these two options.
C9: 3. Provides a detailed Federal tax calculation using simplified input factors that include actual current year rates, exemptions and deductions. The model also calculates yearly taxable SS benefits, a key element in many "what if" calculations. Future tax factors are based on historic escalation factors, and all factors are user adjustable. A simple percentage or tax brackets are used for state income taxes. Some tax provisions applicable to higher income taxpayers are not included.
C10: Limitations 1. Non-deductible (after-tax) contributions to your traditional IRAs are not considered in calculating taxes on withdrawals. All traditional IRAs are assumed to have been "tax-deductible" when funded. 2. The model does not calculate pre-59 1/2 traditional IRA or Roth withdrawal penalties, or the penalty on withdrawing Roth earnings within five years of opening the Roth if over age 59 1/2.
C11: 3. It does not include tax provisions applicable to high income taxpayers, such the phase-out of deductions, the lower qualified dividend, tax gain harvesting, AMT, or various tax credits. However yearly capital gains can be added and will be taxed accordingly.
C12: 4. Unlike some on-line models, RPM does not provide automatic optimized results, like the optimum amount of Roth conversions or living expenses.. All results are based on the user's provided entries.
C13: Quick Start Instructions and Model Overview 1. Go to the Setup page. Here you will enter the values for your personal data, portfolio balances, allocation to stocks and bonds, expected earnings rates, COLA inflation estimate, expenses and special events, such as inheritances and home sales. Be sure to replace all the Example data with your own, or use the macro button to automatically clear the example data. Hover over cells with red or black triangles to see comments, instructions and help. Ignore error messages when entering initial data.
C14: 2. Enter the optional Special items, such as alternative SS Benefits, tax rate changes, and Roth conversions and withdrawals data. To have these used in the Full default portfolio, set the "Model and Case Options" setting for the feature you want to include. Multiple options can be chosen, such as combining Roth conversions and tax rate changes. A portfolio without these items is also created and compared to the default results.
C15: 3. Go to the Summary page for a quick view of key amounts. The Results page has detailed results, with comparisons of the cash flows, portfolio balances, tax expenses and other key indicators. Each special Item, like Roth conversions and comparison of alternative SS benefits, has its own section with detailed, special analysis. 4. Go to the Details (aka Full) and Base pages to see detailed yearly amounts and calculations over the time period selected. If not using the automatic balancing feature, look for negative balances error messages and adjust input factors as necessary to eliminate them. The most common cause of negative balances are high expenses and inadequate IRA withdrawals.
C16: 5. The Base page also contains a comparison of the Full/Default and Base portfolios calculations.. 6. Refer to the Tax Tables page to see tax rates, brackets, deductions and exemptions for the current year, and escalations for future years. No input is required on this page, but all current year rates and brackets can be changed..
C17: 7. To print out a section that includes graphs etc. just click in the upper left corner of the area and holding down the mouse button move down to the lower right corner. Once that area is selected (shaded) find the program's menu for setting the Print Area and select it. In Excel 2013 that's in Page Layout - Print Area - Set Print Area. Then select the Print button to print it. You may see a view of what will be printed which will be helpful.
C18: Macros Macros were added in version 15. These macros are activated by clicking on the labeled light blue buttons. They perform various tasks, such jumping to a different location, copying and pasting results for saving, clearing all setup data, and showing or hiding gridlines and headers. The model can be used without activating or using the macros. Macro content can be viewed by selecting Tools > Macro > Macros > Edit. The macro security level can also be changed at Tools > Macro > Security to enable or disable macros. The macros in this model, if downloaded from the direct link on the Bogleheads' forum, are strictly limited to operations within RPM. They do not access other computer programs or drive folders. They do not access the Internet. They are strictly used to make the model easier to use.
C20: New in 2022 is a Microsoft warning for downloaded Excel files: “Microsoft has blocked macros from running because the source of this file is untrusted”
C21: Instructions on how to unblock the macros can be found here: https://exceloffthegrid.com/unblock-macros-downloaded-from-the-internet/
C23: Model Color Key and Features
C24: Blue font - Data entry section headings; first year formulas | E24: Topic info in cell comment
C25: Blue background - input fields: factors, numbers and data
C26: Black font - calculated results and text | E26: Red or black triangle in cell corner indicates help comments available
C27: Green font - the result from the amount entered or selection made. Shown for | E27: Red dot . in a cell indicates a hidden error or warning message is there
C28: user information. Also the heading for a calculator or data storage area.
C29: On yearly calculation pages indicates end of modeling period balances. | E29: Macro - click to run
C30: Also indicates spouse entries and editable text.
C31: Red font - error messages, alerts and new features
C33: Tip: Use the Setup-Load Entries macro at top of page or Excel menu item "View - View Side by Side" feature to easily transfer old Setup entries to a new version.
B35: Recommended Planning Models and Spreadsheet Programs
C36: Recommended forecasting tools:
C37: ORP - Optimal Retirement Planner
C38: FIRECalc®: How long will your money last?
C39: Vanguard Retirement Nest Egg Calculator
C41: Spreadsheet programs tested that run this Excel model, more or less, listed in order of how well they work
C42: Excel 2010-2019 - best program. Excel 2003 is no longer supported as of v22.0.
C43: Excel Web Application - cell comments viewable, macros don't work, graphs work, model must be set to be "editable" | G43: Excel Online
C44: LibreOffice Calc 7.6 - cell comments visible, graphs show (axis labels may not), most macros work | G44: LibreOffice Calc
C45: Google Docs Spreadsheets - working except for macros. Cell comments visible. | G45: Google Sheets
C46: Apple Macintosh users: best programs may be Excel and LibreOffice Calc (without macros)
C50: Useful Planning Information
C51: Portfolios
C52: Taylor Larimore's Three Fund Portfolio Discussion
C53: Lazy Portfolios - Bogleheads' Wiki
C55: Earnings Rates and Allocation
C56: Historical and Expected Returns - Bogleheads Wiki
C57: Simba's Backtesting Spreadsheet - Bogleheads
C58: Compound Annual Growth Rate (Annualized Return) vs Average Calculator - MoneyChimp
C60: Social Security
C61: Social Security - Bogleheads Wiki
C62: Social Security Strategies for Married Couples - Oblivious Investor
C64: Social Security Cost-of-Living Adjustments (COLAs) for 2024 - SSA
C65: Medicare Parts A & B Premiums and Deductibles 2024 - CMS
C66: IRMAA (income-related monthly adjustment amount) brackets 2022-2023
C67: Actuarial Life Table 2020 used for 2023 - SS Administration
C69: Annuities
C70: Single Premium Immediate Fixed Annuity - Bogleheads Wiki
C71: Immediate Annuities Online Quote - ImmediateAnnuities.com
C73: Spending
C74: Retirement spending - Bogleheads Wiki
C75: Safe Withdrawal Rates - Bogleheads Wiki
C76: Inflation Rates - InflationData
C77: Consumer Price Index (CPI-U) Rates - InflationData
C78: Medicare Income-Related Monthly Adjustment Amount (IRMAA) - Nerd's Eye View
C80: Required Minimum Distributions
C81: SECURE Act 2022 - Aug 2023 Update - Fidelity
C82: Required Minimum Distributions FAQ - IRS
C84: Taxes
C85: Federal Income Tax 1040 Excel Model - Glenn Reeves
C87: Federal Individual Taxes 2023 - Tax Foundation
C88: State Income Tax Rates and Brackets 2023 - Tax Foundation
C89: State Income Taxes on SS benefits 2021 - Tax Foundation
C90: Publication 915 - Social Security Benefits
C91: Publication 590-A - IRA Contributions
C92: Publication 590-B - Distributions from Individual Retirement Arrangements
C93: Publication 590-B - Tables I and III - Life Expectancies
C95: Roth Conversion
C96: Roth IRA Conversion - Bogleheads Wiki
C97: Tax Treatment Of Roth IRA Distributions - Investopedia
C98: Roth IRA and Roth Conversion Articles - Fairmark
C99: Understanding The Two 5-Year Rules For Roth IRA Conversions 2014 - Nerd's Eye View
C101: Qualified Charitable Distribution
C102: Qualified Charitable Distributions - Bogleheads Wiki
C103: Rules For Doing A Qualified Charitable Distribution (QCD) 2016 - Nerd's Eye View
C106: Disclaimer
C108: This is a retiree portfolio forecasting model created for personal use that is being made available to Boglehead forum members and visitors. The model's primary purpose is use a household's portfolio data and estimates of future income, expenses and expenditures, and calculate the yearly and long term financial results from that data, helping to determine the impact on those results from doing various common retiree choices, such as converting traditional IRA funds to a Roth IRA. While a reasonable effort has been made to insure that the model manipulates the various amounts and factors supplied by the user using mathematical standards and logically to achieve the designed result, it is not represented or guaranteed to do this correctly, and should only be relied upon for general information, education, and non-commercial purposes. The user bears the sole responsibility of evaluating the merits and risks associated with using this model, doing Roth conversions, selecting a Social Security benefits strategy, or making decisions based on the results.
C109: No guarantees are made as to the accuracy of the information in this spreadsheet or the appropriateness of any advice to your particular situation. Use results at your own risk. Remember, the data is not a future reality, just a mathematical construct.
B111: Who are the Bogleheads | E111: Bogleheads Website
B112: Bogleheads, a name chosen to honor Vanguard's founder and investor advocate John Bogle, are investing enthusiasts who participate in the Bogleheads Forum.
B113: The forum's regular posters discuss financial news and theory, while also helping less experienced investors manage their portfolios.
B115: Thanks for the help
B116: Many Boglehead forum members have used the model and offered suggestions for improving it, fixing problems and generally making it better. I particularly want to thank
B117: these BH for their help: SlowLane, bsteiner, BradFreeMan, jdjd2, zip605, LadyGeek, rogerdub, indexmeasp, J W Nearly Retired, cdbma, wjiwji, keith simpson, Mike Piper
B118: JohnFiscal, mjf55 (created transfer entries macro!), Boggedown, rennale, ohyeah, mkedst, Zephavest, Puke, Barsoom, FiveK, Diynofees, DHBS (AA fix), sdwaterman
B119: thor111, smxnhe23, Drownlearning, Larry, DebiTand many others.
B120: And a special thanks to James Welch who created the remarkable ORP retirement planner who helped reconcile this model to ORP, and for providing a link in his website to it.
B122: Click here | C122: for the current model link at the Bogleheads' forum. DO NOT download or run this model from any other link or website.
B124: Change Log
B128: 2023-12-26 | C128: Removed new macros causing issue on Setup page
B130: 2023-12-25 | C130: 24.0 - Updated Federal tax factors, Medicare rates, escalation factors, etc. to 2024 amounts. Inflation rates for Social Security, CPI-U, etc.
C131: Added macros to copy default allocation data, mainly for those using the 2021 "maintain allocation rates" feature which don't use Tax Exempt and Money Market rates.
C132: Added macro to show/hide the Asset Allocation Summary page. This page has all the details of the allocation but is likely to be rarely viewed. Default in "hidden".
C133: Expanded Life Expectancy Table III to start at age 30, ending at 109, for pre-pre-retirees using RPM.
C134: Tested macro links, checked cell comments, ran spellchecker, etc. etc.
B138: 2023-12-03 | C138: Corrected some macro coding errors. Thanks to RangeleyLake
B139: 2023-11-30 | C139: Updates from user suggestions: 1) Rearrange data on Results page to make it easier to study. Thanks thor. 2) IRMMA added to Results. Thanks smxnhe23
C140: 3) An additional 20 years added to Uniform Life Expectancy Table III for calculation of RMD. Thanks drownlearning.
C141: 4) Added Long Term Capital Gains to State Income Taxes. Settings in Tax Section. Thanks Larry
C142: 5) Expenses as percent of beginning of year account balances added to Results along with a graph chart. Thanks DebiT
C143: 6) Added macro-buttons to hide or show the extensive AASummary page that will likely not be referenced frequently
B144: 2023-07-18 | C144: Fixed formulas for IRA2 Beneficaries in Details/Base line 101 (summary line 102), causing double-counting.
B145: 2023-05-22 | C145: Fixed SS End Age calculation when current ages are identical.. Thanks to BH DHBS for noticing and providing the correction.
B146: 2023-04-23 | C146: Changed example data RMD age to 73.
B147: 2023-03-02 | C147: Corrected first two years of IRA distribution calculation when using Optional Table II. Thanks to BH Lee49.
B148: 2023-03-01 | C148: Corrected totals in Federal Taxes By Bracket schedule on Setup to include NIIT amounts. Thanks to sdwaterman for reporting it.
B149: 2023-01-25 | C149: Corrected yearly average Federal tax rate to include impact of LTCG. Thanks to BH sdwaterman for reporting it.
B150: 2023-01-11 | C150: Several corrections to NIIT calculations. Thanks to DHBS.
B151: 2023-01-09 | C151: Fixed Roth 1 & 2 yearly balance calculation. Balance was overstated.
B152: 2023-01-08 | C152: Minor goto fix
B153: 2023-01-01 | C153: 23.0 - Updated Federal tax factors, Medicare rates, escalation factors, etc. to 2023 amounts. Inflation rates for Social Security, CPI-U, etc.
C154: Correction of RMD for age 70 spouse thanks to DHBS Fixed NIIT state tax factor
C155: New in 2022 Microsoft warning: “Microsoft has blocked macros from running because the source of this file is untrusted”
C156: Instructions on how to unblock the macros can be found here: https://exceloffthegrid.com/unblock-macros-downloaded-from-the-internet/
B158: 22.6 10/15 | C158: Added alternative option for inherited IRA RMD using the single person life expectancy table.
B159: 22.5a 8/1 | C159: Fixed taxable SS calculation in Income Tax Calculator. (Single was being used for married)
B160: 22.5a 6/22-23 | C160: Updated Income Tax Calculator for reference error, to better use 2021 tax forms and calculate taxes.
C161: Corrected 2021 married Cap gains bracket. Fixed 2021 married brackets, etc. 6/23 thx DHBS
B162: 22.5 4/12 | C162: Fixed LTCG calculations for Single filers and updated NIIT calculations
C163: Added macro that changes example married settings to a single example.
B164: 22.4a 4/8 | C164: Fixed state income tax which was double counting IRA conversion withdrawals.
B165: 22.4a 4/5 | C165: Fixed duplicate entry in LTCG section
B166: 22.4 4/1/22 | C166: Added calculated capital gains to capital gains tax calculation , LTCG bracket 3, and Federal Net Investment Income Tax schedule and calculation. Thanks to DHBS
C167: Added Roth Conversion IRA withdrawals to State income tax calculation
C168: Fixed calculation of RMD for couples with one spouse 10 years younger or more
C169: Clarified the title and descriptions of the Taxable Account Adjustments section in Setup to focus on the LTCG factor.
C170: Added Federal income tax and capital gain data to AA Summary.
C171: Updated comments, error messages and macro jump-to links, etc.
C172: Updated 2021 Federal income tax calculator for line numbers
B174: 2022-01-13 | C174: Made additional refinements to LTCG calculation eliminating double counting of automatic LTCG amount
B175: 2022-01-11 | C175: Improvement of LTCG calculation to correctly determine amount subject to the tax regardless of other taxable income. Thanks to sdwaterman.
B176: 22.3 1/8/22 | C176: Changed Life Expectancy tables to 2022 versions, impacting RMD. Minor other edits and cell comment improvements.
C177: Fixed LTCG tax calculation for 15% rate. Thanks to BH sdwaterman.
B179: 2021-01-05 | C179: Minor text change on Setup
B180: 22.2 | C180: Fixed some formulas on Details/Base pages related to calculating LTCG taxes. Thanks to BH sdwaterman for reporting and providing fix!
B181: 22.1 | C181: Added LTCG income to calculation of taxable SS benefits. (Thanks to BH DHBS tip)
C182: Added cash flow from Long Term Cap Gains to Taxable account, etc.
B183: 22 | C183: Updated Federal tax factors, Medicare rates, escalation factors, etc. to 2022 amounts. Inflation rates for Social Security, CPI-U, etc.
B185: 2021-12-30 | C185: have updated for 2021 results to insure averages used in the model to predict future changes are reasonable. See Tax Tables - Other Data Tables.
C186: Added Long-Term Capital Gains section for user input of long term capital gains resulting in additional Federal taxes. Existing automatic estimate
C187: of capital gains is also now in the new section and removed from the existing Federal tax calculation. See Setup - Income Taxes.
C188: Added a Temporary Expense line item that is included in Expenses. This can be used for temporary expenses such as mortgages, car payments, etc.
C189: Does not have an annual escalation factor. See Setup - Expenses.
C190: The IRMMA forecast has been added to the list of expenditures as a memo item on the Summary page. It is also on line 285 of Details/Base pages.
C191: The 2021 Beta Allocation model created by BH DSBH has been adopted as the standard model. Use of the original allocation calculation which maintain
C192: s the portfolio allocation but not individual account allocations is still an option.
B194: 21.2 Beta 5 | C194: Nov 30 - Fixed the IRS Joint Life Table II for married couples with a spouse 10 years younger or more. Dec 1: Fix to Base page calculation.
B195: Beta 4 | C195: Sep 26 - Corrected AA Summary page reference to Details to Base. Improved Setup AA Summary selection instructions and cell comments.
C196: Added a Waterfall chart to AA Summary page showing changes to account due to Roth conversion. Improved asset allocation comments on Setup Sec 3.
B197: Beta 3 | C197: Sep 13 - Changed formulas using rounding by 1,000 rather t0 Round-to in AA Summary page and fixed Taxable account start-of-year allocation calculation.
C198: as reported by BH Exchme. Also fixed allocation calculations for Inherited IRAs that were missing first year balances.
B199: Beta 2 | C199: Aug 25 - Correct an over-allocation to the Traditional IRA account earning due to either Roth IRA conversions or withdrawals from Roth IRA Conversions
C200: Jul 27 - Correction of error reported by BH Exchme.
B201: 21.2 Alloc | C201: Jul 26 - Added asset allocation rebalancing system designed and created by BH DSBH. Issued as a Beta test.
C202: Apr 2 - Fixed Roth Conversion entries on Details page to show deductions in first year of Roth conversions. Thanks to BH sandramjet
B203: 21.1a | C203: Mar 14 - Changed earnings calculation for final year+1 on Results page "Inherited Portfolio Impact" section to be Setup page "Rates Being Used".
B204: 21.1 | C204: Feb 7 - Fixed problem with Roth 1 calculations if withdrawals exceed the balance and have no ending year
B205: 21 | C205: Jan 5 - fixed optional income tax calculator's taxable SS income calculation (missing taxable pension income) Thanks to BH Diynofees
C206: Updated Federal tax factors, Medicare rates, escalation factors, etc to 2021 amounts or adjusted averages thru 2020.
C207: State income tax factors and brackets now have their own escalation rate. No longer uses Federal. Thanks BH Diynofees.
C208: Improved Taxable Account Adjustment section to alert user if estimates are not entered.
C209: Maintaining portfolio allocation when using Asset Class Method remains to be implemented due to distractions during the year. Boglehead DSBH sent me a
C210: solution a few months ago with a recent update, which I am studying. While this needs to be fixed, I continue to believe the impact on results is fairly
C211: minor as account allocations are maintained.
B212: 20.3 | C212: Nov 7 - Minor comment corrections
C213: Nov 1 - Add an adjustment that can be made to state taxable income to exclude all or a portion of IRA withdrawals. Thanks to BH LadyGeek for this improvement.
C214: Added to Readme page a beginners tutorial created by Boglehead MrDrinkingWater.
B215: 20.2d | C215: Oct 10- Fixed formula reference for Social Security Deferred Retirement Years for Spouse Spousal benefits that was using "Your" age. Thanks to FiveK for find.
C216: Corrected number shown as "Net yearly growth taxed at marginal rate" taxable account adjustment section on Setup. No calc impact.
C217: Sep 14 - Macro improvements. Chg'd Options to "Break on Unhandled Errors" and added Mac option for "Copy-Setup macro". Thanks to BH Lacrocious
B218: 20.2c | C218: Sep 3 - Added automatic rounding of user input amounts on Details and Base pages to Setup rounding setting (eg $100). Rounded amounts included in section totals.
C219: Impacts User Expenses, Federal AGI Adjustment, State AGI and Excluded Foreign Income.
B220: 20.2b | C220: Jul 25 Added guidance message to SPIA; Jul 28 Fixed Setup Results cell references showing #REF
B221: 20.2b | C221: Jul 20 - BH SFM3 identified a problem with annuity (SPIA) modeling using IRAs. This has been fixed in 20.2b.
B222: 20.2a | C222: Jul 20 - Several programming errors fix per BH RangeleyLake July 19 post in the RPM thread. Fixes copy setting macro, Medicare RMAA info estimate and a Base case warning message.
B223: 20.2 | C223: Jul 19 - Fixed IRMAA display of applicable years. Year four was not being included. Thanks to BHdiy60 for noticing this, finding missing year 4 formula, and reporting it.
B224: 20.2 | C224: Jun 22 - Replaced volatile and obsolete functions with current/optimized versions (INDIRECT, HLOOKUP, VLOOKUP). Many thanks to BH Barsoom.
B225: 20.1 | C225: Mar 30 - Added option to set 2020 calculated RMD amounts to zero. Changed Base taxable account non-taxed earnings adjustment to be calculated off Base case amounts.
C226: Improved the Taxable Account Adjustment section in 8. Income Taxes to better explain it and to calculate Base case separately to improve comparisons.
B227: 20.0c | C227: Feb 2 - Corrected programming error that resulted in 2nd move state Fed tax exempt income settings being used in current state if no move year entered. Thanks to BH gts1952
B228: 20.0b | C228: Feb 1 - Replaced IFNA function with IFERROR in two lines on Details page to stay compatible with Excel 2007.
B229: 20.0a | C229: Jan 20 - Fixed the yearly expense inflation calculation which was including IRMAA surcharges which have their own yearly calculation. Thanks to BH sandramjet
B231: 20 | C231: Updated Federal tax factors, Medicare rates, escalation factors, etc to 2020 amounts or adjusted averages thru 2019.
B232: 2020-01-01 | C232: Added 10 year IRA distribution option and 72 RMD age per the 2020 SECURE Act. One 10 year schedule provided in 20.0.
C233: Added option to included estimated additional Medicare surcharges (IRMAA) in calculated yearly expenses.
C234: Reformatted Setup page to reduce clutter and added selected comments from cells to assist new users.
C235: Added to the Setup page a Clear Entries macro for clearing of any manually entered entries on the Details page for Expenses,
C236: Federal AGI adjustments, state AGI adjustments and MAGI foreign income adjustments.
C237: NOTE: Copying data for these fields from previous models via the Copy Entries macro is NOT provided.
C238: Updated IRA RMD cell comments to reflect new age 72 start year per SECURE.
C239: Added macro to all pages to export all cell comments on that page to a Word file.
C240: Updated i-ORP comparison page. Not for general user use. Misc. minor text/macro corrections. Models are in general agreement.
... 326 more rows

Sheet Setup
A1: Setup, Input Factors And Data | F1: Instructions | G1: Macros | J1: =Version -> Version 24.0 - Dec 26, 2023 | N1: clear entries | P1: border & lines | S1: readme page | W1: cell comments to Word | Y1: supporting data | AL1: << storage columns hidden
N2: load entries | S2: tax tables page | Z2: All pages | AA2: & borders
B3: sections | N3: single example | P3: =NOW() -> 2024-03-10T16:25:45.930 | S3: asset allocations pages | U3: hidden | AB3: Developer Notes: | AD3: ORP page | AF3: hidden
S4: asset allocations summary page | U4: hidden | V4: new 24.0 | AB4: Test against prior yr with taxes off
B5: your model description | AB5: Hide rows and columns. Protect pages. Set cursor on A1. Review file properties | AI5: ^^^must be showing ???
B6: Example Data: $70k expenses before tax. SS at 70 & 66. 23% possible SS reduction in 2038. $200k inherited. Sell house at 84. Wife widowed at 85. Roth conversions will leave $1.2M to heirs. | Q6: . | T6: Portfolio Cash Flow Diagram | AB6: Update change list; if rows added to Setup/Details -- fix Setup/Summary/Storage macros -- fix copy macros in storage section
R7: =IF(Sum_Rnd=1000,"($000)",IF(Sum_Rnd=100,"($00)")) -> ($000) | AB7: If adding rows to Details check copy and clear macros for all manual yearly entries | AJ7: =A504 -> 504 | AK7: =A845 -> 845
AB8: If rows are added above the Roth conv amts - check lookup refs in Income, Tax and Cash Flow table
C9: Results Summary | E9: copy | K9: enter notes in these areas
F10: SS at 70/66 | G10: SS at 70/66 | H10: SS at 70/66 | AA10: Reconciliation Check | AC10: Default-Full | AD10: Base | AF10: Error checks | AI10: Default-Full | AJ10: Base | AK10: Should Be
E11: current | F11: no Roth | G11: Roth | H11: no Roth | I11: Prior Year | AA11: Start Balance | AC11: =+Details!F19-IF(AND(Setup!$E$244=Base!$F$7,Setup!$E$241="y"),Setup!$E$242+Setup!$E$243,0) -> 1000000 | AD11: =+Base!F19-IF(AND(Setup!$E$244=Base!$F$7,Setup!$E$241="y"),Setup!$E$242+Setup!$E$243,0) -> 1000000 | AF11: Summary page
E12: results | F12: $70k exp | G12: $70k exp | H12: alloc t-r | I12: 23.5 | AA12: Inheritance/Asset Sale | AC12: =+Details!E85+Details!E107 -> 500000 | AD12: =+Base!E85+Base!E107 -> 500000 | AF12: Case check totals | AI12: =+Summary!E49 -> 0 | AJ12: =+Summary!E97 -> 0 | AK12: < 3
D13: ="Portfolio in " & Final_Year -> Portfolio in 2053 | E13: =+Details!$E$19 -> 2613900 | F13: 2613900 | G13: 2707400 | H13: 2987200 | I13: 2600100 | AA13: Income | AC13: =+Details!E28+Details!E31+Details!E63+Details!E34+Details!E37+Details!E64+Details!E38+Details!E62 -> 2656800 | AD13: =+Base!E28+Base!E31+Base!E63+Base!E34+Base!E37+Base!E64+Base!E38+Base!E62 -> 2656800 | AF13: Portfolio Account Activity | AI13: =+Results!D108 -> . | AJ13: =+Results!D287 -> . | AK13: 0
D14: =First_Year & " living expenses" -> 2024 living expenses | E14: =Living_Expenses -> 70000 | F14: 70000 | G14: 70000 | H14: 70000 | I14: 70000 | AA14: SS Income | AC14: =+Details!E61 -> 1468500 | AD14: =+Base!E61 -> 1468500 | AF14: Results page
D15: Total Federal taxes | E15: =+Details!$E$214 -> 246300 | F15: 246300 | G15: 177300 | H15: 268900 | I15: 255300 | AA15: Other Income | AC15: =+Details!E70 -> 549600 | AD15: =+Base!E70 -> 549600 | AF15: Reconciliation Error Check | AI15: =+Setup!AC23 -> 0 | AJ15: =+Setup!AD23 -> 0 | AK15: 0
D16: Total SS benefits | E16: =+Details!$E$61 -> 1468500 | F16: 1468500 | G16: 1468500 | H16: 1468500 | I16: 1468500 | AA16: SPIA Purchase | AC16: =+Details!E84+Details!E96+Details!E127 -> -100000 | AD16: =+Base!E84+Base!E96+Base!E127 -> -100000 | AF16: Cases
D17: Roth conversions | E17: =+Details!$E$133 -> 0 | F17: 0 | G17: 280000 | H17: 0 | I17: 0 | AA17: Living Expenses | AC17: =-Details!E144 -> -3129300 | AD17: =-Base!E144 -> -3129300 | AF17: Difference from Earnings section calculation: larger / (smaller) | AI17: =+Details!E514+Details!E518+Details!E530 -> 0 | AJ17: =+Base!E514+Base!E518+Base!E530 -> 0 | AK17: 0
D18: ="Roth Conv IRA in "&Final_Year -> Roth Conv IRA in 2053 | E18: =+Details!$E$18 -> 0 | F18: 0 | G18: 1219500 | H18: 0 | I18: 0 | AA18: Taxes | AC18: =-SUM(Details!F145:AS145) -> -331700 | AD18: =-SUM(Base!F145:AS145) -> -331700
D19: IRA 1 RMD | E19: =-Details!$E$94 -> 480700 | F19: 480700 | G19: 0 | H19: 474400 | I19: 480700
D20: ="Base portfolio in " & Final_Year -> Base portfolio in 2053 | E20: =+Base!$E$19 -> 2613900 | F20: 2613900 | G20: 2613900 | H20: 2987200 | I20: 2600100 | AA20: End Balance Per Above | AC20: =SUM(AC11:AC18) -> 2613900 | AD20: =SUM(AD11:AD19) -> 2613900
D21: Portfolios difference | E21: =+Quick_Start-E20 -> 0 | F21: 0 | G21: 93500 | H21: 0 | I21: 0
D22: Allocation method | E22: =IF(AA_Setting=0,"original ",IF(AA_Setting=1,"taxable-roth ","roth-taxable ")) -> original | F22: original | G22: original | H22: taxable-roth | I22: original | AA22: End Balance per Models | AC22: =+Details!E273 -> 2613900 | AD22: =+Base!E273 -> 2613900
AA23: Problem somewhere if | AC23: =+AC20-AC22 -> 0 | AD23: =+AD20-AD22 -> 0
A24: read | X24: Diagram not supported by LibreCalc | AA24: not near zero
D25: Modeling Options | E25: =IF(Error_Check>0,"An error has been detected. Look below for message.",".") -> . | L25: Selected cell comments are shown below. View each cell with a comment to get full instructions and help | AK25: Error
L26: Planning Options: Select which optional features you want included or excluded in your portfolio forecast. Default is "n". The Base case always excludes these options, | AA26: Cash Flow chart source data | AK26: Checks
D27: planning options | E27: Choice | H27: general settings | I27: Setting | L27: and is compared to the Full/default case which includes them to instantly show the impact of doing Roth conversions, alternative Social Security benefits and starting years,. | AA27: ="Taxable " & CHAR(10) & TEXT(Summary!F8,"$#,##0") -> Taxable $200 | AC27: ="IRAs " & CHAR(10) & TEXT(Summary!G8+Summary!H8,"$#,##0") -> IRAs $700 | AE27: ="Roth IRAs " & CHAR(10) & TEXT(Summary!I8+Summary!J8,"$#,##0") -> Roth IRAs $100 | AJ27: 0 = no errors, 1 = one or more errors | AK27: =IF(SUM(AK28:AK383)>=1,1,0) -> 0
D28: Include Roth conversions? | E28: n | F28: =IF(Include_Roth="y"," included",".") -> . | H28: Round results to nearest | I28: 100 | L28: and other model settings. If both options are set to 'n' the Full case will be the same as the Base case and the calculated differences will be zero. | AA28: ="Taxable " & CHAR(10) & TEXT(Summary!F48,"$#,##0") -> Taxable $1,722 | AC28: ="IRAs " & CHAR(10) & TEXT(Summary!G48+Summary!H48,"$#,##0") -> IRAs $871 | AE28: ="Roth IRAs " & CHAR(10) & TEXT(Summary!I48+Summary!J48,"$#,##0") -> Roth IRAs $21
D29: Use alternative SS benefits? | E29: n | F29: =IF(SS_Comparison="y"," using",".") -> . | H29: Min. taxable acct balance | I29: 10000 | L29: Roth conversions: enter a 'y' to include in your portfolio. Roth conversions and expenditures from the created Roth IRA are entered in section 10 - Roth Conversions. | AA29: ="Earnings " & TEXT(Summary!M48,"$#,##0") -> Earnings $734 | AC29: ="Earnings " & TEXT(Summary!N$48+Summary!O$48,"$#,##0") -> Earnings $1,553 | AE29: ="Earnings " & TEXT(Summary!P48+Summary!Q48,"$#,##0") -> Earnings $233
H30: Use auto withdrawals? | I30: n | L30: Alternative Social Security benefits: enter a 'y' to compare different starting ages and benefits to the Base case. Enter a 'n' to use the default amounts. | AA30: ="SS benefits " & TEXT(Summary!R48+Summary!S48,"$#,##0") -> SS benefits $1,469 | AC30: ="Inherited " & TEXT(-Summary!AF$48,"$#,##0") -> Inherited $100 | AE30: ="Roth Conv " & TEXT(Summary!AQ48,"$#,##0") -> Roth Conv $0
D31: other options | H31: Present value discount rate | I31: 0.03 | L31: SS benefits are entered in section 4. Income. | AA31: ="Other income " & TEXT(Summary!T48+Summary!U48+Summary!V48,"$#,##0") -> Other income $695 | AC31: ="Withdrawals " & TEXT(Summary!AE$48+Summary!AV$48-Summary!AZ$48+Summary!BA$48+Summary!BE$48+Summary!BI$48,"$#,##0") -> Withdrawals $354 | AE31: ="Withdrawals " & TEXT(Summary!BN$48+Summary!BO$48+Summary!BR$48 & " ","$#,##0") -> Withdrawals $316
D32: Exclude income taxes? | E32: n | F32: =IF(E32="y"," excluding",".") -> . | L32: Exclude federal and state income taxes: enter a 'y' to exclude from the results. Use to temporarily remove these expenses to compare the current year | AA32: ="Inherited " & TEXT(-Summary!AA$48,"$#,##0") -> Inherited $100 | AC32: ="RMD " & TEXT(Summary!AP$48+Summary!AW$48+Summary!BB$48+Summary!BF$48,"$#,##0") -> RMD $1,123
D33: Test future tax rate changes? | E33: n | F33: =IF(E33="y"," using",".") -> . | J33: =IF(OR(Base!$E$8<0,Base!$E$11<0,Base!$E$14<0,Base!$E$17<0,Base!$E$18<0,Details!$E$8<0,Details!$E$11<0,Details!$E$14<0,Details!$E$17<0,Details!$E$18<0),"ALERT: negative final account balances! adjust factors to eliminate","portfolio check: no negative final balances") -> portfolio check: no negative final balances | L33: model results to a prior year model, or to just see the portfolio results without the impact of taxes. | AA33: ="Expenses " & TEXT(Summary!Y48,"$#,##0") -> Expenses $3,130 | AC33: ="Roth Conv " & TEXT(Summary!AQ$48,"$#,##0") -> Roth Conv $0
J34: =IF(Negative_Full>0,"Alert! Portfolio has negative beginning year balances in one or more accounts for " & Negative_Full & " years ",".") -> . | L34: Alternative Federal tax rates: enter a 'y' to test the impact on portfolio values. Alternate tax rates are entered in section 9. Taxes. | AA34: ="Taxes " & TEXT(Summary!Z48,"$#,##0") -> Taxes $330 | AK34: =IF(IF(J34=".",0,1)>=1,1,"ok") -> ok
J35: =IF(negative_base>0,"Alert! Base case has negative balances for " & negative_base & " years ",".") -> . | AA35: ="Special evt " & TEXT(-Summary!AB$48-Summary!AC$48-Summary!AD$48,"$#,##0") -> Special evt $300 | AE35: ="Portfolio " & CHAR(10) & TEXT(Summary!K8,"$#,##0") -> Portfolio $1,000 | AK35: =IF(IF(J35=".",0,1)>=1,1,"ok") -> ok
D36: 1. Ages and Year Factors | J36: =IF(AND(Automate="y",Negative_Full>0),"REQUIRED: Increase IRA withrawals or reduce expenses ",".") -> . | M36: Calculators (green titles) are provided on the Setup page to help determine various setup factors. Values calculated are NOT used in the model. | Z36: -1- | AA36: ="RMD&With " & TEXT(Summary!BT$48,"$#,##0") -> RMD&With $1,893 | AE36: ="Portfolio " & CHAR(10) & TEXT(Summary!K48,"$#,##0") -> Portfolio $2,614 | AK36: -1-
J37: calculators | M37: First year: modeling period start. Use the current year to match the current year tax rates.
D38: ages and settings | E38: Starting | F38: Ending | J38: Life Expectancy | M38: Number of years to forecast in the model: 1-40
C39: =IF(First_Year<>Tax_Rates_Year,"Error: year <> tax year",".") -> . | D39: First year | E39: 2024 | F39: =+E39+E40-1 -> 2053 | H39: Ending | J39: 62 | K39: Age now | M39: Your age: Enter the age in the first year for a single person or the first person in a couple. Recommended: use age person will reach in the first year. | AK39: =IF(IF(C39=".",0,1)>=1,1,"ok") -> ok
D40: Years to forecast | E40: 30 | F40: End Age | G40: Model End | H40: Age | J40: =INDEX('Tax Tables'!$AD$317:$AD$436,MATCH($J$39,'Tax Tables'!$AC$317:$AC$436,1))+$J$39 -> 82.1 | K40: Male | M40: The 'Your' age is used throughout the model for events related to this person, like SS benefits and inheritances. and for determining
C41: =IF(AND(Spouse_Age=0,Your_End_Input>0),"Error: set End Age blank",".") -> . | D41: Your age | E41: 62 | F41: 85 | G41: =IF(E41=0,"",+E41+$E$40-1) -> 91 | H41: =IF(Your_End_Input=0,Your_Age_End,F41) -> 85 | J41: =INDEX('Tax Tables'!$AE$317:$AE$436,MATCH($J$39,'Tax Tables'!$AC$317:$AC$436,1))+$J$39 -> 84.92 | K41: Female | M41: some general events occur, like IRA withdrawals. If spouse is more than 10 years younger make the Your person an IRA owner. See Life Expectancy Tables. | Z41: lookup-tax | AK41: =IF(IF(C41=".",0,1)>=1,1,"ok") -> ok
A42: =IF(AND(OR(Your_Age-Spouse_Age>10,Spouse_Age-Your_Age>10),IRA_RMD_Age>0,Spouse_Age>0),"Ages>10 yrs. RMD Table II req",".") -> . | D42: Spouse age | E42: 61 | G42: =IF(E42=0,0,+E42+$E$40-1) -> 90 | H42: =IF(Spouse_End_Input=0,Spouse_Age_End,F42) -> 90 | J42: Actuaries Longevity Illustrator | M42: Spouse age: Used in the model for events related to this person, like IRA RMD, SS benefits and inheritances. Spouse entry titles are italicized. | Z42: lookup-tax
B43: =IF(Your_End_Input>=Your_Age_End,"be less than Model End",".") -> . | E43: =IF(AND(Spouse_Age=0,OR(IRA1_Owner="s",IRA2_Owner="s",Inheritor="s",Inheritor2="s")),"If no spouse - remove other example spouse data",".") -> . | F43: =IF(AND(Your_End_Input>0,Spouse_End_Input>0),"Error: only one End Age allowed",".") -> . | M43: End Age: leave blank to use the selected forecast years end age or enter the age of either person to model their passing away. | AK43: =IF(IF(F43=".",0,1)>=1,1,"ok") -> ok
D44: =IF(RMD_Table="o","Alert: Table II (10+ yr younger spouse) in use",".") -> . | G44: RMD | I44: First | M44: This same end age will be used in the Social Security section to end the smaller spousal benefit.
D45: IRA RMD ages and owners | E45: Starting Age | F45: Owner | G45: Method | H45: Balance | I45: Year RMD | J45: Required Minimum Distribution
A46: =IF(AND(OR(Your_Age-Spouse_Age>10,Spouse_Age-Your_Age>10),IRA_RMD_Age>0,Spouse_Age>0),"Ages>10 yrs",".") -> . | C46: =IF(OR(AND(tIRA_Begin>0,IRA1_Owner=0),AND(tIRA_Begin>0,IRA_RMD_Age=0)),"Error: enter data >>",".") -> . | D46: IRA 1 | E46: 73 | F46: y | G46: d | H46: =IF(IRA_RMD_Age>0,INDEX(Details!$F$9:$AS$9,MATCH(IRA_RMD_Age,IF(IRA1_Owner="y",Details!$F$4:$AS$4,Details!$F$5:$AS$5))),"") -> 416400 | I46: =IF(IRA_RMD_Age>0,-INDEX(Details!$F$94:$AS$94,MATCH(IRA_RMD_Age,IF(IRA1_Owner="y",Details!$F$4:$AS$4,Details!$F$5:$AS$5))),"") -> 15700 | J46: 100000 | K46: IRA balance | M46: IRA RMD starting age: Enter 73 or the currently required RMD starting age. Age entered must be equal to or greater than person's current age. | Z46: lookup-det | AA46: FIX First Year RMD lookup if lines are added to Detail | AK46: =IF(IF(C46=".",0,1)+IF(C46=".",0,1)>=1,1,"ok") -> ok
A47: =IF(AND(OR(Your_Age-Spouse_Age>10,Spouse_Age-Your_Age>10),IRA_RMD_Age>0,Spouse_Age>0),"IRA 1 must be y",".") -> . | C47: =IF(OR(AND(tIRA_Begin2>0,IRA2_Owner=0),AND(tIRA_Begin2>0,IRA_RMD_Age2=0)),"Error: enter data >>",".") -> . | D47: IRA 2 | E47: 73 | F47: s | G47: d | H47: =IF(IRA_RMD_Age2>0,INDEX(Details!$F$10:$AS$10,MATCH(IRA_RMD_Age2,IF(IRA2_Owner="y",Details!$F$4:$AS$4,Details!$F$5:$AS$5))),"") -> 488900 | I47: =IF(IRA_RMD_Age2>0,-INDEX(Details!$F$102:$AS$102,MATCH(IRA_RMD_Age2,IF(IRA2_Owner="y",Details!$F$4:$AS$4,Details!$F$5:$AS$5))),"") -> 18400 | J47: 72 | K47: Age at year end | M47: Enter the age in the year after the IRA will be inherited. Note: model uses either Your age and/or Spouse's age, depending on who owns each IRA. | Z47: lookup-det | AK47: =IF(IF(C47=".",0,1)+IF(C47=".",0,1)>=1,1,"ok") -> ok
B48: =IF(AND(Inheritor="y",iIRA_RMD_Age>0,iIRA_RMD_Age<Your_Age),"ERROR-too low",".") & IF(AND(Inheritor="s",iIRA_RMD_Age>0,iIRA_RMD_Age<Spouse_Age),"ERROR-too low",".") -> .. | D48: ="Inherited IRA 1" & IF(AND(Inherit_tIRA>0,Inheritance="y")," at age " & Inherit_Age & " ","") -> Inherited IRA 1 at age 77 | E48: 78 | F48: y | H48: =IF(Spouse_Age>0,INDEX(Details!$F$12:$AS$12,MATCH(iIRA_RMD_Age,IF(Inheritor="y",Details!$F$4:$AS$4,Details!$F$5:$AS$5))),"") -> 36000 | I48: =IF(iIRA_RMD_Age>0,-INDEX(IF(Inheritor="y",Details!$F$110:$AS$110,Details!$F$112:$AS$112),MATCH(iIRA_RMD_Age,IF(Inheritor="y",Details!$F$4:$AS$4,Details!$F$5:$AS$5))),"") -> 2900 | J48: =INDEX('Tax Tables'!$H$317:$H$367,MATCH($J$47,'Tax Tables'!$G$317:$G$367,1)) -> 27.4 | K48: Withdrawal Factor | M48: Owner: Enter either Your (y) or Spouse (s), depending on who owns existing IRAs or will inherit IRAs. | Z48: lookup-det
B49: =IF(AND(Inheritor2="y",iIRA_RMD_Age2>0,iIRA_RMD_Age2<Your_Age),"ERROR-too low",".") & IF(AND(Inheritor2="s",iIRA_RMD_Age2>0,iIRA_RMD_Age2<Spouse_Age),"ERROR-too low",".") -> .. | D49: ="Inherited IRA 2 " & IF(AND(Inherit_tIRA2>0,Inheritance2="y"),"at age " & Inherit_Age2 & " ","") -> Inherited IRA 2 at age 72 | E49: 73 | F49: s | H49: =IF(Spouse_Age>0,IF(iIRA_RMD_Age2>0,INDEX(Details!$F$13:$AS$13,MATCH(iIRA_RMD_Age2,IF(Inheritor2="y",Details!$F$4:$AS$4,Details!$F$5:$AS$5))),""),"") -> 60000 | I49: =IF(iIRA_RMD_Age2>0,-INDEX(IF(Inheritor2="y",Details!$F$111:$AS$111,Details!$F$112:$AS$112),MATCH(iIRA_RMD_Age2,IF(Inheritor2="y",Details!$F$4:$AS$4,Details!$F$5:$AS$5))),"") -> 6000 | J49: =J46/INDEX('Tax Tables'!$H$317:$H$367,MATCH($J$47,'Tax Tables'!$G$317:$G$367,1)) -> 3649.635036 | K49: RMD | M49: RMD Method: RMD method to use for the spouse inheriting the IRA. | Z49: lookup-det
E50: =IF(OR(AND(Inherit_tIRA>0,iIRA_RMD_Age=0),AND(Inherit_tIRA2>0,iIRA_RMD_Age2=0))," ","") & IF(OR(AND(Inherit_tIRA>0,iIRA_RMD_Age<=Inherit_Age),AND(Inherit_tIRA2>0,iIRA_RMD_Age2<=Inherit_Age2)),"ERROR: Inherited IRA RMD age not +1 year > inherited age",".") -> . | F50: =IF(AND(Spouse_Age=0,OR(IRA1_Owner="s",IRA2_Owner="s",Inheritor="s",Inheritor2="s")),"ERROR: no spouse age - y required above",".") -> . | J50: =+J49/J46 -> 0.03649635036 | K50: Percent | M50: d - default: continue to use the method the owner was using, usually IRS Table III for married couples or Table II for spouses more than 10 years younger | AK50: =IF(IF(E50=".",0,1)+IF(F50=".",0,1)>=1,1,"ok") -> ok
C51: =IF(OR(AND(Inheritance="y",Inherit_tIRA>0,iIRA_RMD_Age=0),AND(Inheritance2="y",Inherit_tIRA2>0,iIRA_RMD_Age2=0)),"Beneficiary age missing","") & IF(OR(AND(Inheritance="y",Inherit_tIRA>0,iIRA_RMD_Age<=Inherit_Age),AND(Inheritance2="y",Inherit_tIRA2>0,iIRA_RMD_Age2<=Inherit_Age2))," ",".") -> . | D51: =IF(AND(Spouse_Age<>0,Your_Age-Spouse_Age>10,RMD_Table="d",OR(IRA_RMD_Age>0,IRA_RMD_Age2>0)),"10 yr age diff. Go to Tax Tables - Data Tables to get instructions.",".") -> . | H51: notes | M51: a - alternative: use IRS Table I: Single Life | AK51: =IF(IF(D51=".",0,1)+IF(D51=".",0,1)>=1,1,"ok") -> ok
M52: Inherited IRAs: These are entered in Section 7: Special Events.
M53: Balance: IRA balances as of the beginning of year at IRA owner's RMD start age.
D60: 2. Portfolio Balances | F60: =IF(AND(Spouse_Age>0,Filing_Status="s"),"Alert: Single tax filing status selected with Spouse Age entered. OK if for SS spousal benefit.",".") -> . | Z60: -2- | AK60: -2-
D62: current portfolio balances | E62: Beginning | F62: Ending | N62: Portfolio Accounts: Enter beginning balances of all your portfolio accounts. Combine same account types if necessary.
D63: by account type | E63: Balances | F63: Balances | N63: Taxable account: includes brokerage, savings, credit union, etc. accounts.
D64: Taxable | E64: 200000 | F64: =+Details!E8 -> 1721600 | N64: Traditional IRA 1 & 2: includes IRAs, 401k, 403b, 457, Keogh, SEP, and other tax-deferred accounts.
D65: IRA 1 | E65: 500000 | F65: =+Details!E9 -> 399900 | N65: All withdrawals from IRAs will be subject to income tax, as after-tax contributions are not provided for in RPM.
D66: IRA 2 | E66: 200000 | F66: =+Details!E10 -> 471300 | N66: Note: All Roth conversions come out of IRA 1.
D67: Roth IRA 1 | E67: 75000 | F67: =+Details!E15 -> 0 | N67: Roth IRA 1 & 2: includes Roths and 529 accounts. Withdrawals are not subject to income tax.
D68: Roth IRA 2 | E68: 25000 | F68: =+Details!E16 -> 21100 | N68: Roth Conversion and Inherited IRAs: if included in future years the balances are shown | AA68: 3 | AB68: =CHOOSE(AA68,"y","s"," ") ->  | AC68: choose test | AD68: new 24.0 | AE68: >> | AF68: Load example rates | AH68: Load example maintain allocation rates
D69: Roth Conversion | E69: 0 | F69: =+Details!E18 -> 0 | N69: A Single Premium Immediate Annuity can be included in the model using funds from Taxable, IRA 1 or Roth IRA 1. See Income section. | AA69: Reverse Mortgage test
D70: Inherited IRAs | E70: 0 | F70: =+Details!E14 -> 0 | N70: =IF(OR(Details!$E$8<0,Details!$E$11<0,Details!$E$14<0,Details!$E$17<0),"Full: ending balance " & Details!$E$8,".") -> . | AA70: Include? | AB70: y | AD70: storage of macro samples | AK70: =IF(IF(N70=".",0,1)>=1,1,"ok") -> ok
D71: Total | E71: =SUM(E64:E70) -> 1000000 | F71: =SUM(F64:F70) -> 2613900 | H71: Account Balance Monitor | N71: =IF(Negative_Full>0,"Full: Negative for " & Negative_Full & " years",".") -> . | AA71: Annual pmt | AB71: 40000 | AK71: =IF(IF(N71=".",0,1)>=1,1,"ok") -> ok
H72: =IF(OR(Base!$E$8<0,Base!$E$11<0,Base!$E$14<0,Base!$E$17<0,Base!$E$18<0,Details!$E$8<0,Details!$E$11<0,Details!$E$14<0,Details!$E$17<0,Details!$E$18<0),"Negative final account balances - adjust factors","No negative final balances") -> No negative final balances | K72: =IF(OR(negative_base>0,Negative_Full>0),"Negative yearly balance detected","No negative yearly balances") -> No negative yearly balances | N72: =IF(OR(Base!$E$8<0,Base!$E$11<0,Base!$E$14<0,Base!$E$17<0),"Base: ending balance " & Base!$E$8,".") -> . | AA72: Lump sum | AB72: 60000 | AK72: =IF(IF(N72=".",0,1)>=1,1,"ok") -> ok
N73: =IF(negative_base>0,"Base: Negative for " & negative_base & " years",".") -> . | AA73: Start age | AB73: 72 | AK73: =IF(IF(N73=".",0,1)>=1,1,"ok") -> ok
D74: 3. Return Rates and Allocation
P75: Method to Use: Enter method to use in estimating returns (yield plus capital appreciation) in account balances. There are | Z75: -3- | AD75: macros no longer used v18.0 | AG75: blue/red | AI75: Radio Button Test | AK75: -3-
D76: method to use | E76: c | F76: =IF(Use_Class="a"," using account method"," using asset class method") -> using asset class method | I76: how to set asset allocations so that method is not important | P76: two choices: a - account method or c - asset class method. The asset class method is recommended. | AD76: SS details | AG76: Comment Colors
D77: asset allocation method | E77: o | F77: =IF(AA_Setting=0," using original method that maintains account asset allocation but not portfolio AA"," using annual rebalancing of accounts and assigning stocks to "&IF(AA_Setting=1,"Taxable before Roth","Roth before Taxable")&" ") -> using original method that maintains account asset allocation but not portfolio AA | M77: clear unused % > | P77: Maintaining Asset Allocation Targets: Select one of three methods to maintain allocations. o: orginal method maintains | AG77: blue-green
E78: =IF(OR(Keep_AA="o", Keep_AA=""), 0, IF(Keep_AA="t-r", 1, 2)) -> 0 | F78: Allocation Summary | H78: << | I78: new 24.0 | P78: each accounts allocation but not the portfolio's. t-r: maintains each accounts allocations, taxable then roth, r-t: roth then
I79: Rates Being Used | L79: calculator: average returns | P79: taxable. | AA79: Old graphs storage: | AE79: Default Rate Storage
D80: nominal return rates: by account | E80: Average | F80: by class | G80: Rate | I80: Beginning | J80: =IF(OR(Use_Class="c",Change_Age>=0),"Change " & IF(Change_Age>0,Change_Age-Your_Age+First_Year,First_Year),"No Change") -> Change 2042 | L80: Allocation | M80: Rates | P80: Account Method: Uses an overall return rate for each account. This is simple and a good way to test expected return rates. | AE80: Average | AF80: by class | AG80: Rate
D81: Taxable | E81: 0.07 | F81: Stocks | G81: 0.075 | H81: Taxable | I81: =IF(Use_Class="a",E81,I91) -> 0.05 | J81: =IF(AND(Use_Class="c",$E$102>0),I104,I81) -> 0.041 | L81: 0.6 | M81: 0.08 | N81: Stock | P81: Asset Class Method: Separates each account into four asset classes. This allows a better assignment of return rates as | AE81: 0.07 | AF81: Stocks | AG81: 0.075
D82: IRA 1 | E82: 0.055 | F82: Bonds | G82: 0.045 | H82: IRA 1 | I82: 0.065 | J82: 0.056 | L82: 0.39 | M82: 0.04 | N82: Bond | P82: historic returns on stocks, bonds, tax-exempt, and money market/other can be used as a guide. This method also | AE82: 0.055 | AF82: Bonds | AG82: 0.045
D83: IRA 2 | E83: 0.05 | F83: Tax Exempt | G83: 0.03 | H83: IRA 2 | I83: 0.059 | J83: 0.053 | L83: 0 | M83: 0.04 | N83: Tax Exempt | P83: provides the option for a future change in the asset allocation. Reducing stock allocation is a strategy to reduce risk during | AE83: 0.05 | AF83: Tax Exempt | AG83: 0.03
C84: =IF(AND(Include_Roth="y",Roth_Return=0),"Alert: 0% earnings rate for Roth conversion account",".") -> . | D84: Roth IRA 1 | E84: 0.05 | F84: MM/Other | G84: 0.015 | H84: Roth IRA 1 | I84: 0.062 | J84: 0.053 | L84: 0.01 | M84: 0.008 | N84: Money Mkt | P84: retirement. | AE84: 0.05 | AF84: MM/Other | AG84: 0.015
D85: Roth IRA 2 | E85: 0.045 | G85: =IF(Use_Class="a","not using","using") -> using | H85: Roth IRA 2 | I85: 0.057 | J85: 0.053 | L85: 0 | M85: 0 | N85: Other | P85: Return Rates by Account: Enter the average annual return rate you expect or want to forecast for each account based | AE85: 0.045 | AG85: =IF(Use_Class="a","not using","using") -> using
D86: Roth Conversion | E86: 0.05 | H86: Roth Convr | I86: 0.063 | J86: 0.053 | L86: =SUM(L81:L85) -> 1 | M86: =+(100*L81*M81+100*L82*M82+100*L83*M83+100*L84*M84+100*L85*M85)/100 -> 0.06368 | N86: Average | P86: on its stock, bond and other investment content. These rates used in this manner corresponds to the Compound | AE86: 0.05
E87: =IF(Use_Class="a","using","not using") -> not using | G87: =IF(AND(Keep_AA<>"o",TaxEx_Taxable>0),"tax exempt must be 0%",".") -> . | P87: Annual Growth Rate (CAGR) calculation used to document historic results.
G88: =IF(AND(Keep_AA<>"o",Cash_Rate>0),"MM/Other rate not used",".") -> . | J88: =IF(Keep_AA="o","Alert: portfolio allocation not maintained after first year"," ") -> Alert: portfolio allocation not maintained after first year | P88: Return Rates by Asset Class: Enter the expected average annual return rates of stocks, bonds, tax exempt (taxable | AF88: copy stored data | AI88: copy stored data
D89: class method: asset | H89: Money Mkt | I89: Calculated | J89: Beginning Allocation Balances | P89: account only) and money market/other assets. | AE89: Original ---------------------------| | AH89: Maintain AA --------------------------|
D90: allocation for each account | E90: Stocks | F90: Bonds | G90: Tax Exempt | H90: & Other | I90: Rates | J90: Total | K90: Stocks | L90: Bonds | M90: Tax Exempt | N90: MM & Other | P90: Asset Allocation: Enter the percentage of stocks, bonds, tax exempt (taxable account only) and | AE90: Stocks | AF90: Bonds | AG90: Tax Exempt | AH90: Stocks | AI90: Bonds | AJ90: Tax Exempt
B91: =IF(AND(Keep_AA<>"o",TaxEx_Taxable>0),"tax exempt must be 0%",".") -> . | D91: Taxable | E91: 0.45 | F91: 0 | G91: 0.5 | H91: =ROUND((1-E91-F91-G91),3) -> 0.05 | I91: =ROUND(+G$81*E91+G$82*F91+G$83*G91+G$84*H91,3) -> 0.05 | J91: =+Taxable_Begin -> 200000 | K91: =ROUND((+E91*$J91)/Round_To,0)*Round_To -> 90000 | L91: 0 | M91: 100000 | N91: =+J91-K91-L91-M91 -> 10000 | P91: money market/other assets for each account. The result should approximate the beginning asset allocation in | AD91: Taxable | AE91: 0.45 | AF91: 0 | AG91: 0.5 | AH91: 0.45 | AI91: 0.55 | AJ91: 0
D92: IRA 1 | E92: 0.65 | F92: 0.35 | H92: 0 | I92: =ROUND(+G$81*E92+G$82*F92+G$84*H92,3) -> 0.065 | J92: =+tIRA_Begin -> 500000 | K92: 325000 | L92: 175000 | M92: 0 | N92: 0 | P92: each account. Used with the asset class rates to determine the average return rate for each account. | AA92: =IF(I99<>1,"must be 100%",".") -> . | AD92: IRA 1 | AE92: 0.65 | AF92: 0.35 | AH92: 0.65 | AI92: 0.35
D93: IRA 2 | E93: 0.5 | F93: 0.45 | H93: 0.05 | I93: =ROUND(+G$81*E93+G$82*F93+G$84*H93,3) -> 0.059 | J93: =+tIRA_Begin2 -> 200000 | K93: 100000 | L93: 90000 | M93: 0 | N93: 10000 | P93: The remaining balance of allocation percentages is automatically assigned to Money Market/Other funds. | AD93: IRA 2 | AE93: 0.5 | AF93: 0.45 | AH93: 0.5 | AI93: 0.5
D94: Roth IRA 1 | E94: 0.6 | F94: 0.35 | H94: 0.05 | I94: =ROUND(+G$81*E94+G$82*F94+G$84*H94,3) -> 0.062 | J94: =Roth_Begin -> 75000 | K94: 45000 | L94: 26300 | M94: 0 | N94: 3700 | AD94: Roth IRA 1 | AE94: 0.6 | AF94: 0.35 | AH94: 0.6 | AI94: 0.4
D95: Roth IRA 2 | E95: 0.55 | F95: 0.3 | H95: 0.15 | I95: =ROUND(+G$81*E95+G$82*F95+G$84*H95,3) -> 0.057 | J95: =Roth2_Begin -> 25000 | K95: =ROUND((+E95*$J95)/Round_To,0)*Round_To -> 13800 | L95: 7500 | M95: 0 | N95: 3700 | P95: Nominal (inflated) vs real rates: nominal rates are typically used in the model for forecasting earnings. Real rates that | AD95: Roth IRA 2 | AE95: 0.55 | AF95: 0.3 | AH95: 0.55 | AI95: 0.45
D96: Roth Conversion | E96: 0.6 | F96: 0.4 | H96: 0 | I96: =ROUND(+G$81*E96+G$82*F96+G$84*H96,3) -> 0.063 | J96: 0 | K96: 0 | L96: 0 | M96: 0 | N96: 0 | P96: exclude inflation can be used but many other model settings will have to be changed. Expense escalation, SS benefits | AD96: Roth Conversion | AE96: 0.6 | AF96: 0.4 | AH96: 0.6 | AI96: 0.4
C97: =IF(OR(H91<0,H92<0,H93<0,H94<0),"error: some % > 100",".") -> . | D97: Total | E97: =$J91*E91+$J92*E92+$J93*E93+$J94*E94+$J95*E95+$J96*E96 -> 573750 | F97: =$J91*F91+$J92*F92+$J93*F93+$J94*F94+$J95*F95+$J96*F96 -> 298750 | G97: =$J91*G91 -> 100000 | H97: =$J91*H91+$J92*H92+$J93*H93+$J94*H94+$J95*H95+$J96*H96 -> 27500 | J97: =SUM(J91:J96) -> 1000000 | K97: =SUM(K91:K96) -> 573800 | L97: =SUM(L91:L96) -> 298800 | M97: =SUM(M91:M96) -> 100000 | N97: =SUM(N91:N96) -> 27400 | P97: COLA, and tax standard deduction and brackets escalator are among those settings that would have to be set to zero. | AD97: Total | AE97: =$J91*AE91+$J92*AE92+$J93*AE93+$J94*AE94+$J95*AE95+$J96*AE96 -> 573750 | AF97: =$J91*AF91+$J92*AF92+$J93*AF93+$J94*AF94+$J95*AF95+$J96*AF96 -> 298750 | AG97: =$J91*AG91 -> 100000 | AH97: =$J91*AH91+$J92*AH92+$J93*AH93+$J94*AH94+$J95*AH95+$J96*AH96 -> 573750 | AI97: =$J91*AI91+$J92*AI92+$J93*AI93+$J94*AI94+$J95*AI95+$J96*AI96 -> 426250 | AJ97: =$J91*AJ91 -> 0
B98: =IF(Keep_AA="o"," not fixed yr to yr"," ") -> not fixed yr to yr | D98: Portfolio asset allocation | E98: =ROUND(+E97/IF($E$71>0,$E$71,1),3) -> 0.574 | F98: =ROUND(+F97/IF($E$71>0,$E$71,1),3) -> 0.299 | G98: =ROUND(+G97/IF($E$71>0,$E$71,1),3) -> 0.1 | H98: =1-Stock_Alloc_Beg-Bond_Alloc_Beg-TaxEx_Alloc_Beg -> 0.027 | I98: =+E98+F98+G98+H98 -> 1 | P98: Using real return rates is not a supported feature. Use at your own risk. | AD98: Portfolio asset allocation | AE98: =ROUND(+AE97/IF($E$71>0,$E$71,1),3) -> 0.574 | AF98: 0.299 | AG98: 0.1 | AH98: 0.574 | AI98: 0.426 | AJ98: 0
A99: =IF(AND(Taxable_Begin>0,Your_Age<>0,Stock_Alloc_BegTar=0,Bond_Alloc_BegTar=0),"Error- allocations required",".") -> . | D99: Asset Allocations | E99: 0.6 | F99: 0.3 | G99: 0.1 | H99: =1-Stock_Alloc_BegTar-Bond_Alloc_BegTar-TaxEx_Alloc_BegTar -> 0 | I99: =+E99+F99+G99+H99 -> 1 | AD99: Asset Allocations | AE99: 0.6 | AF99: 0.3 | AG99: 0.1 | AH99: 0.6 | AI99: 0.4 | AJ99: 0
G100: =IF(AND(AA_Setting<>0,OR(G97<>0,H97<>0))," ^^^ ^^^ tax-exempt and money market accounts allocations must be 0%",".") -> . | AG100: =IF(AND(AA_Setting<>0,OR(AG97<>0,AH97<>0))," ^^^ ^^^ tax-exempt and money market accounts allocations must be 0%",".") -> .
D102: optional: change asset | E102: 80 | F102: ="in " & IF(Change_Age>0,Change_Age-Your_Age+First_Year,First_Year) -> in 2042 | G102: =IF(Change_Age=0,"not using","using") -> using | H102: Money Mkt | I102: Calculated | J102: =" " & IF(Change_Age>0,Change_Age-Your_Age+First_Year,First_Year) & " Re-Allocation Balances" -> 2042 Re-Allocation Balances | P102: Future Age Allocation Change: use this feature if you plan to change your portfolio asset allocation in a future year, | AA102: chg_age_idx=> | AB102: =MATCH(Change_Age,Details!$F$4:$AS$4,0) -> 19 | AD102: optional: change asset | AE102: 80 | AF102: ="in " & IF(Change_Age>0,Change_Age-Your_Age+First_Year,First_Year) -> in 2042 | AG102: =IF(Change_Age=0,"not using","using") -> using
D103: allocation in a future age | E103: Stocks | F103: Bonds | G103: Tax Exempt | H103: & Other | I103: Rates | J103: Total | K103: Stocks | L103: Bonds | M103: Tax Exempt | N103: MM & Other | P103: commonly known as setting a glidepath. | AD103: allocation in a future age | AE103: Stocks | AF103: Bonds | AG103: Tax Exempt | AH103: Stocks | AI103: Bonds | AJ103: Tax Exempt
B104: =IF(AND(Keep_AA<>"o",TaxEx_Taxable2>0),"tax exempt must be 0%",".") -> . | D104: Taxable | E104: 0.25 | F104: 0 | G104: 0.7 | H104: =ROUND((1-E104-F104-G104),3) -> 0.05 | I104: =ROUND(+$G$81*E104+$G$82*F104+$G$83*G104+$G$84*H104,3) -> 0.041 | J104: =IF(E102>0,INDEX(Details!$F$8:$AS$8,$AB$102),F64) -> 382800 | K104: =ROUND((+E104*$J104)/Round_To,0)*Round_To -> 95700 | L104: 0 | M104: 268000 | N104: =+J104-K104-L104-M104 -> 19100 | P104: Enter Your age to start using the future asset allocation, replacing the starting allocation. | Z104: lookup-det 5 | AD104: Taxable | AE104: 0.25 | AF104: 0 | AG104: 0.7 | AH104: 0.25 | AI104: 0.75 | AJ104: 0
D105: IRA 1 | E105: 0.35 | F105: 0.65 | H105: 0 | I105: =ROUND(+$G$81*E105+$G$82*F105+$G$84*H105,3) -> 0.056 | J105: =IF(E102>0,INDEX(Details!$F$12:$AS$12,$AB$102)+INDEX(Details!$F$9:$AS$9,$AB$102),F65) -> 486400 | K105: 170200 | L105: 316200 | M105: 0 | N105: 0 | P105: Enter the future allocation of stocks, bonds, tax exempt and market/other assets for each account. If the asset | Z105: lookup-det | AD105: IRA 1 | AE105: 0.35 | AF105: 0.65 | AH105: 0.35 | AI105: 0.65
D106: IRA 2 | E106: 0.3 | F106: 0.65 | H106: 0.05 | I106: =ROUND(+$G$81*E106+$G$82*F106+$G$84*H106,3) -> 0.053 | J106: =IF(E102>0,INDEX(Details!$F$10:$AS$10,$AB$102)+INDEX(Details!$F$13:$AS$13,$AB$102),F66) -> 571800 | K106: 171500 | L106: 371700 | M106: 0 | N106: 28600 | P106: class method is chosen and an age is entered, the calculated earnings rates based on the revised | Z106: lookup-det | AD106: IRA 2 | AE106: 0.3 | AF106: 0.65 | AH106: 0.3 | AI106: 0.7
D107: Roth IRA 1 | E107: 0.3 | F107: 0.65 | H107: 0.05 | I107: =ROUND(+$G$81*E107+$G$82*F107+$G$84*H107,3) -> 0.053 | J107: =IF(E102>0,INDEX(Details!$F$15:$AS$15,$AB$102),F67) -> 233200 | K107: 70000 | L107: 151600 | M107: 0 | N107: 11600 | P107: allocation will be used starting at that age. | Z107: lookup-det | AD107: Roth IRA 1 | AE107: 0.3 | AF107: 0.65 | AH107: 0.3 | AI107: 0.7
D108: Roth IRA 2 | E108: 0.3 | F108: 0.65 | H108: 0.05 | I108: =ROUND(+$G$81*E108+$G$82*F108+$G$84*H108,3) -> 0.053 | J108: =IF(E102>0,INDEX(Details!$F$16:$AS$16,$AB$102),F68) -> 11300 | K108: =ROUND((+E108*$J108)/Round_To,0)*Round_To -> 3400 | L108: 7300 | M108: 0 | N108: 600 | Z108: lookup-det | AD108: Roth IRA 2 | AE108: 0.3 | AF108: 0.65 | AH108: 0.3 | AI108: 0.7
D109: Roth Conversion | E109: 0.3 | F109: 0.65 | H109: 0.05 | I109: =ROUND(+$G$81*E109+$G$82*F109+$G$84*H109,3) -> 0.053 | J109: =IF(E102>0,INDEX(Details!$F$18:$AS$18,$AB$102),F69) -> 0 | K109: 0 | L109: 0 | M109: 0 | N109: 0 | Z109: lookup-det 13 | AD109: Roth Conversion | AE109: 0.3 | AF109: 0.65 | AH109: 0.3 | AI109: 0.7
C110: =IF(OR(H104<0,H105<0,H106<0,H107<0),"error: some % > 100",".") -> . | D110: Total | E110: =$J104*E104+$J105*E105+$J106*E106+$J107*E107+$J108*E108+$J109*E109 -> 510830 | F110: =$J104*F104+$J105*F105+$J106*F106+$J107*F107+$J108*F108+$J109*F109 -> 846755 | G110: =$J104*G104 -> 267960 | H110: =$J104*H104+$J105*H105+$J106*H106+$J107*H107+$J108*H108+$J109*H109 -> 59955 | J110: =SUM(J104:J109) -> 1685500 | K110: =SUM(K104:K109) -> 510800 | L110: =SUM(L104:L109) -> 846800 | M110: =SUM(M104:M109) -> 268000 | N110: =SUM(N104:N109) -> 59900 | AD110: Total | AE110: =$J104*AE104+$J105*AE105+$J106*AE106+$J107*AE107+$J108*AE108+$J109*AE109 -> 510830 | AF110: =$J104*AF104+$J105*AF105+$J106*AF106+$J107*AF107+$J108*AF108+$J109*AF109 -> 846755 | AG110: =$J104*AG104 -> 267960 | AH110: =$J104*AH104+$J105*AH105+$J106*AH106+$J107*AH107+$J108*AH108+$J109*AH109 -> 510830 | AI110: =$J104*AI104+$J105*AI105+$J106*AI106+$J107*AI107+$J108*AI108+$J109*AI109 -> 1174670 | AJ110: =$J104*AJ104 -> 0
B111: =IF(Keep_AA="o"," not fixed yr to yr"," ") -> not fixed yr to yr | D111: Portfolio asset allocation | E111: =ROUND(+E110/IF($J$110>0,$J$110,1),3) -> 0.303 | F111: =ROUND(+F110/IF($J$110>0,$J$110,1),3) -> 0.502 | G111: =ROUND(+G110/IF($J$110>0,$J$110,1),3) -> 0.159 | H111: =1-Stock_Alloc_Chg-Bond_Alloc_Chg-TaxEx_Alloc_Chg -> 0.036 | I111: =+E111+F111+G111+H111 -> 1 | AD111: Portfolio asset allocation | AE111: =ROUND(+AE110/IF($J$110>0,$J$110,1),3) -> 0.303 | AF111: 0.502 | AG111: 0.159 | AH111: 0.303 | AI111: 0.697 | AJ111: 0
D112: Asset Allocations | E112: 0.3 | F112: 0.45 | G112: 0.2 | H112: =1-Stock_Alloc_ChgTar-Bond_Alloc_ChgTar-TaxEx_Alloc_ChgTar -> 0.05 | I112: =+E112+F112+G112+H112 -> 1 | J112: =IF(I112<>1,"must be 100%",".") -> . | AD112: Asset Allocations | AE112: 0.3 | AF112: 0.45 | AG112: 0.2 | AH112: 0.3 | AI112: 0.7 | AJ112: 0
G113: =IF(AND(AA_Setting<>0,OR(G110<>0,H110<>0))," ^^^ ^^^ tax-exempt and money market accounts allocations must be 0%",".") -> .
D116: 4. Income | Z116: -4- | AK116: -4-
D118: income sources | E118: Annual | F118: Change | G118: Start Age | H118: End Age | I118: Total | J118: Years | M118: Income sources: enter income from pensions and employment during modeling period, and forecast Social Security benefits.
D119: Pensions 1 | E119: 8000 | F119: 0.03 | G119: 50 | I119: =Details!E66 -> 381200 | J119: =IF(AND(G119=0,H119=0),First_Year & " - " & Final_Year,IF(G119=0,"",G119-Your_Age+First_Year) & " - " & IF(H119=0,Final_Year,H119-Your_Age+First_Year)) -> 2012 - 2053 | M119: Typical income sources are pensions, annuities, wages, rental income, alimony, reverse mortgages, etc. All four income
D120: Pensions 2 | E120: 2000 | F120: 0 | G120: 50 | H120: 85 | I120: =Details!E67 -> 48000 | J120: =IF(AND(G120=0,H120=0),First_Year & " - " & Final_Year,IF(G120=0,"",G120-Your_Age+First_Year) & " - " & IF(H120=0,Final_Year,H120-Your_Age+First_Year)) -> 2012 - 2047 | M120: items are calculated and considered identical in the model. All of these are Federal and state taxable income, but Pension 1
D121: Other income 1 | E121: 10000 | F121: 0.04 | G121: 50 | H121: 70 | I121: =Details!E68 -> 105400 | J121: =IF(AND(G121=0,H121=0),First_Year & " - " & Final_Year,IF(G121=0,"",G121-Your_Age+First_Year) & " - " & IF(H121=0,Final_Year,H121-Your_Age+First_Year)) -> 2012 - 2032 | M121: can be excluded (0%-100%) from state income tax.
D122: Other income 2 | E122: 15000 | F122: 0 | G122: 63 | H122: 63 | I122: =Details!E69 -> 15000 | J122: =IF(AND(G122=0,H122=0),First_Year & " - " & Final_Year,IF(G122=0,"",G122-Your_Age+First_Year) & " - " & IF(H122=0,Final_Year,H122-Your_Age+First_Year)) -> 2025 - 2025 | M122: Change rate: enter a positive or negative percentage to increase or decrease annual income.
G123: =IF(OR(AND(E121>0,G121=0),AND(E119>0,G119=0)),"Error: start age required",".") -> . | I123: =+I119+I120+I121+I122 -> 549600 | M123: Start and End ages: Enter Your age to start and end the income. Delete end age to automatically use the forecast model end year. | AB123: Social Security benefits calculation tables | AK123: =IF(G123=".","ok",1) -> ok
H124: =IF(OR(AND(H119<G119,H119<>0),AND(H121<G121,H121<>0)),"Error: end age < start age",".") -> . | Y124: SS calculations hidden >> | AK124: =IF(IF(H124=".",0,1)>=1,1,"ok") -> ok
K125: Benefit | M125: Social Security Calculator | AC125: Self Benefits | AE125: Spousal Benefits | AG125: Additional Benefits
D126: Social Security benefits | E126: Annual | F126: FRA Age | G126: Start Age | H126: End Age | I126: Starting | J126: Total | K126: Type & Year | M126: Social Security benefits: enter starting ages and | Q126: Social Security benefits calculator | V126: Kiplinger article on calculating SS benefits | AB126: Default | AC126: You | AD126: Spouse | AE126: You | AF126: Spouse | AG126: You | AH126: Spouse
B127: =IF(AND(Your_End_Input<>0,Your_SS_Start<Your_Age),"age error",".") -> . | C127: =IF(Your_SS=0,".",IF(AND(Your_End_Input<>0,Your_SS_Start<Your_Age,Spouse_SS_Start<Spouse_Age)," error: actual ages > start ages",IF(Your_SS_Start<Your_Age,"error: your actual age > start age",IF(Spouse_SS_Start<Spouse_Age,"error: spouse age > start age",".")))) -> . | D127: You | E127: 30000 | F127: 66 | G127: 70 | H127: =IF(AND(Spouse_End_Input>0,Spouse_SS_CA>=Your_SS_CA),Spouse_End_Input,IF(AND(Your_End_Input>0,Spouse_SS_CA>Your_SS_CA),Your_End_Input+Spouse_Age-Your_Age,"--")) -> -- | I127: =ROUND(IF(Auto_Spousal="n",Your_SS_Calc,IF(Spousal_SS="you",Your_Spousal,Your_SS_Calc))/Round_To,0)*Round_To -> 46400 | J127: =+Base!E49 -> 1031800 | K127: =IF(OR(Your_SS>0,Your_SS_Start>0),IF(OR(Auto_Spousal="n"),"self",IF(AND(Your_Age>0,Your_SS_Calc>=Your_Spousal),"self","spousal")))& " - " & IF(AND(Your_Age>0,OR(Your_SS>0,Auto_Spousal="y")),Your_SS_Year,".") -> self - 2032 | M127: options. Use the optional alternative benefits section | R127: Age | S127: FRA Age | T127: PIA | U127: COLA | AB127: PIA | AC127: =+Your_SS -> 30000 | AD127: =IF(Spouse_Age>0,+Spouse_SS,0) -> 20000 | AE127: =IF(Spouse_Age>0,Spouse_SS*0.5,0) -> 10000 | AF127: =IF(Your_Age>0,Your_SS*0.5) -> 15000 | AG127: =SS_Add -> 0 | AH127: =SS_Add_Sp -> 0 | AK127: =IF(IF(B127=".",0,1)>=1,1,"ok") -> ok
B128: =IF(Spouse_SS_Start<Spouse_Age,"age error",".") -> . | C128: =IF(AND(Spouse_Age=0,Spouse_SS>0),"no spouse age - delete data",".") -> . | D128: Spouse | E128: 20000 | F128: 66 | G128: 66 | H128: =IF(AND(Your_End_Input>0,Your_SS_CA>=Spouse_SS_CA),Your_End_Input,IF(AND(Spouse_End_Input>0,Your_SS_CA>Spouse_SS_CA),Spouse_End_Input+Your_Age-Spouse_Age,"--")) -> 85 | I128: =ROUND(IF(Auto_Spousal="n",Spouse_SS_Calc,IF(Spousal_SS="spouse",Spouse_Spousal,Spouse_SS_Calc))/Round_To,0)*Round_To -> 22100 | J128: =+Base!E60 -> 436700 | K128: =IF(Spouse_Age=0,".",IF(OR(Spouse_SS>0,Spouse_SS_Start>0),IF(OR(Auto_Spousal="n"),"self",IF(AND(Spouse_Age>0,Spouse_SS>=Your_SS*0.5),"self","spousal")))) & " - " & IF(AND(Spouse_Age>0,OR(Spouse_SS>0,Auto_Spousal="y")),Spouse_SS_Year,".") -> self - 2029 | M128: to compare two different claiming methods. | Q128: You | R128: 62 | S128: 66 | T128: 30000 | U128: 0.02 | AB128: FRA age | AC128: =+FRA_You -> 66 | AD128: =+FRA_Spouse -> 66 | AK128: =IF(IF(B128=".",0,1)>=1,1,"ok") -> ok
B129: =IF(SS_Started="y",IF(OR(Your_SS_Start=Your_Age,Spouse_SS_Start=Spouse_Age),".","error: start age must = age"),".") -> . | D129: COLA | E129: 0.02 | H129: Total | I129: =+Your_SS_CA+Spouse_SS_CA -> 68500 | J129: =+J127+J128 -> 1468500 | M129: Enter each person's Full Retirement Age (FRA) | Q129: Spouse | R129: 61 | S129: 66 | T129: 20000 | AB129: Current age | AC129: =Your_Age -> 62 | AD129: =Spouse_Age -> 61 | AE129: =Your_Age -> 62 | AF129: =Spouse_Age -> 61 | AG129: =Your_Age -> 62 | AH129: =Spouse_Age -> 61 | AK129: =IF(IF(B129=".",0,1)>=1,1,"ok") -> ok
D130: Benefits have started | E130: n | F130: =IF(AND(Auto_Spousal="y"),IF(AND(Spouse_SS_Year<FRA_You,Spousal_SS="spouse"),"Auto error: spouse start year before your start year",IF(AND(Your_SS_Year<FRA_Spouse,Spousal_SS="you"),"Auto error: you start year before spouse start year",".")),".") -> . | M130: Personal Insurance Amount (PIA) benefit amount | AB130: Start age | AC130: =Your_SS_Start -> 70 | AD130: =+Spouse_SS_Start -> 66 | AE130: =Your_SS_Start -> 70 | AF130: =+Spouse_SS_Start -> 66 | AG130: =SS_Add_Start -> 0 | AH130: =SS_Add_Start_Sp -> 0
D131: Automatic spousal benefits | E131: n | G131: =IF(Auto_Spousal="y",IF(Spouse_Age=0,"must be n","."),".") -> . | H131: Spousal | I131: =ROUND(IF(OR(Spousal_SS="none",AND(Your_SB="self",Spouse_SB="self")),0,IF(Your_Spousal>Spouse_Spousal,Your_Spousal,Spouse_Spousal))/Round_To,0)*Round_To -> 0 | J131: =IF(Your_SB="spousal",Base!E$40,IF(Spouse_SB="spousal",Base!E$51,0)) -> 0 | K131: =IF(AND(Your_SB="spousal",Spousal_CA>0,OR(Your_SS>0,Auto_Spousal="y")),"you",IF(AND(OR(Spouse_SB="spousal",Spousal_SS="spouse"),Spousal_CA>0,OR(Spouse_SS>0,Auto_Spousal="y")),"spouse","-")) -> - | M131: and either a 66 or 67 FRA. Months not supported. | Q131: Benefits | R131: Estimated Benefits | T131: Benefits Before COLA | V131: DRC & Pre-FRA Adj | X131: COLA Adjustment | AB131: COLA years | AC131: =+AC130-AC129 -> 8 | AD131: 5 | AE131: 8 | AF131: 5 | AG131: -62 | AH131: -61
B132: =IF(AND(SS_Add>0,SS_Add_End=0),"ending age req'd",".") -> . | D132: Additional benefits: You | I132: =ROUND(Your_SS_Add/Round_To,0)*Round_To -> 0 | J132: =+Base!E42 -> 0 | K132: =IF(SS_Add=0,"-",INDEX($E$438:$BE$438,MATCH(SS_Add_Start,$E$436:$BE$436,1))) -> - | M132: If benefits have started enter the current year amount | Q132: Start Age | R132: You | S132: Spouse | T132: You | U132: Spouse | V132: You | W132: Spouse | X132: You | Y132: Spouse | Z132: lookup-set | AB132: COLA | AC132: =(1+SS_COLA)^AC131-1 -> 0.171659381 | AD132: =(1+SS_COLA)^AD131-1 -> 0.1040808032 | AE132: =IF(AE127=0,0,(1+SS_COLA)^AE131-1) -> 0.171659381 | AF132: =IF(AF127=0,0,(1+SS_COLA)^AF131-1) -> 0.1040808032 | AG132: =IF(AG127=0,0,(1+SS_COLA)^AG131-1) -> 0 | AH132: =IF(AH127=0,0,(1+SS_COLA)^AH131-1) -> 0
B133: =IF(AND(SS_Add_Sp>0,SS_Add_End_Sp=0),"ending age req'd",".") -> . | D133: Spouse | I133: =ROUND(Spouse_SS_Add/Round_To,0)*Round_To -> 0 | J133: =+Base!E53 -> 0 | K133: =IF(SS_Add_Sp=0,"-",INDEX($E$438:$BE$438,MATCH(SS_Add_Start_Sp,$E$437:$BE$437,1))) -> - | M133: and the person's current as an Start Age. | Q133: =+Q134-1 -> 62 | R133: =+T133*(1+$X133) -> 22500 | S133: =+U133*(1+$Y133) -> 15300 | T133: =+T$137*$V133 -> 22500 | U133: =+U$137*$W133 -> 15000 | V133: =IF(Test_FRA_Y=66,0.75,0.7) -> 0.75 | W133: =IF(Test_FRA_S=66,0.75,0.7) -> 0.75 | X133: =(1+Test_COLA)^($Q133-Test_Age_Y)-1 -> 0 | Y133: =(1+Test_COLA)^($Q133-Test_Age_S)-1 -> 0.02 | Z133: lookup-set | AB133: DRC years | AC133: =IF(AND(SS_Started="y",AC129=AC130),0,+AC130-FRA_You) -> 4 | AD133: =IF(AND(SS_Started="y",AD129=AD130),0,+AD130-FRA_Spouse) -> 0 | AE133: =IF(AE130=0,0,IF(+AE130-FRA_You<0,AE130-FRA_You,0)) -> 0 | AF133: =IF(AF130=0,0,IF(+AF130-FRA_You<0,AF130-FRA_Spouse,0)) -> 0
D134: Reduction of future benefits | E134: 0.24 | F134: 2038 | G134: =IF(OR(SS_re_pc=0,SS_re_yr=0),"< not using","< using") -> < using | M134: Use Additional benefits for benefits not in model. | Q134: 63 | R134: 24480 | S134: 16646.4 | T134: =+T$137*$V134 -> 24000 | U134: =+U$137*$W134 -> 16000 | V134: =IF(Test_FRA_Y=66,0.8,0.75) -> 0.8 | W134: =IF(Test_FRA_S=66,0.8,0.75) -> 0.8 | X134: 0.02 | Y134: 0.0404 | AB134: DRC & spousal | AC134: =IF(OR(AC130=0,AC130<62,AND(SS_Started="y",AC129=AC130)),0,INDEX($AF$173:$AF$181,MATCH(AC130,$AB$173:$AB$181,1))-1) -> 0.32 | AD134: =IF(OR(AD130=0,AD130<62,AND(SS_Started="y",AD129=AD130)),0,INDEX($AG$173:$AG$181,MATCH(AD130,$AB$173:$AB$181,1))-1) -> 0 | AE134: =IF(OR(AE130=0,AE130<62,AND(SS_Started="y",AE129=AE130)),0,IF(OR(AE130=0,AE133=0),0,-INDEX($AH$173:$AH$181,MATCH(AE130,$AB$173:$AB$181,1)))) -> 0 | AF134: =IF(OR(AF130=0,AF130<62,AND(SS_Started="y",AF129=AF130)),0,IF(OR(AF130=0,AF133=0),0,-INDEX($AI$173:$AI$181,MATCH(AF130,$AB$173:$AB$181,1)))) -> 0 | AI134: lookup-set
G135: =IF(SS_Started="n",IF(OR(Your_SS_Start>70,Spouse_SS_Start>70),"Error: an age is over 70 - set benefits started to y","."),".") -> . | M135: Optional: enter rate/year to reduce future benefits. | Q135: 64 | R135: 27060.804 | S135: 18401.34672 | T135: =+T$137*$V135 -> 26010 | U135: =+U$137*$W135 -> 17340 | V135: =IF(Test_FRA_Y=66,0.867,0.8) -> 0.867 | W135: =IF(Test_FRA_S=66,0.867,0.8) -> 0.867 | X135: 0.0404 | Y135: 0.061208 | AB135: Starting benefit | AC135: =+AC127*(1+AC132)*(1+AC134) -> 46397.71149 | AD135: =+AD127*(1+AD132)*(1+AD134) -> 22081.61606 | AE135: =+AE127*(1+AE132)*IF(AND(AE134>-0.5,AE134<>0),-AE134*2,(1+AE134)) -> 11716.59381 | AF135: =+AF127*(1+AF132)*IF(AND(AF134>-0.5,AF134<>0),-AF134*2,(1+AF134)) -> 16561.21205 | AG135: =+AG127*(1+AG132)*IF(AND(AG134>-0.5,AG134<>0),-AG134*2,(1+AG134)) -> 0 | AH135: =+AH127*(1+AH132)*IF(AND(AH134>-0.5,AH134<>0),-AH134*2,(1+AH134)) -> 0
G136: =IF(Auto_Spousal="y",IF(OR(Your_SS_Start<62,Spouse_SS_Start<62),"Error: age below 62","."),".") -> . | M136: Reduction of future benefits - the Trust Fund will be | Q136: 65 | R136: 29703.21192 | S136: 20198.18411 | T136: =+T$137*$V136 -> 27990 | U136: =+U$137*$W136 -> 18660 | V136: =IF(Test_FRA_Y=66,0.933,0.867) -> 0.933 | W136: =IF(Test_FRA_S=66,0.933,0.867) -> 0.933 | X136: 0.061208 | Y136: 0.08243216 | AB136: Starting year | AC136: =IF(Your_SS_Start>0,INDEX($E$438:$BE$438,MATCH(Your_SS_Start,$E$436:$BE$436,1)),0) -> 2032 | AD136: =IF(Spouse_SS_Start>0,INDEX($E$438:$BE$438,MATCH(Spouse_SS_Start,$E$437:$BE$437,1)),0) -> 2029 | AE136: spousal: | AF136: =IF(AND(Your_SS*0.5>Spouse_SS),"spouse",IF(AND(Your_SS_Year>=Spouse_SS_Year,Spouse_SS*0.5>Your_SS),"you","none")) -> none | AI136: lookup-set
D137: optional: alternative benefits | E137: =IF(SS_Comparison="y","< using","not using") -> not using | M137: depleted in the future. Estimate impact here. | Q137: 66 | R137: 32472.9648 | S137: 22081.61606 | T137: =IF($T128>0,IF(Test_FRA_Y=66,$T$128,$T$128*$V137),IF(Test_FRA_Y,Test_PIA_Y,Test_PIA_Y*$V137)) -> 30000 | U137: =IF($T129>0,IF(Test_FRA_S=66,$T$129,$T$129*$W137),IF(Test_FRA_S,Test_PIA_S,Test_PIA_S*$W137)) -> 20000 | V137: =IF(Test_FRA_Y=66,1,0.933) -> 1 | W137: =IF(Test_FRA_S=66,1,0.933) -> 1 | X137: 0.08243216 | Y137: 0.1040808032
C138: =IF(Your_SS_Alt=0,".",IF(AND(Your_SS_Start_Alt<Your_Age,Spouse_SS_Start_Alt<Spouse_Age)," error: actual ages > start ages",IF(Your_SS_Start_Alt<Your_Age,"error: your actual age > start age",IF(Spouse_SS_Start_Alt<Spouse_Age,"error: spouse age > start age",".")))) -> . | D138: You | E138: 30000 | F138: =FRA_You -> 66 | G138: 62 | H138: =IF(AND(Spouse_End_Input>0,Spouse_SS_CA_Alt>=Your_SS_CA_Alt),Spouse_End_Input,IF(AND(Your_End_Input>0,Spouse_SS_CA_Alt>Your_SS_CA_Alt),Your_End_Input+Spouse_Age-Your_Age,"--")) -> -- | I138: =ROUND(IF(Auto_Spousal_Alt="n",Your_SS_Calc_Alt,IF(Spousal_SS_Alt="you",Your_Spousal_Alt,Your_SS_Calc_Alt))/Round_To,0)*Round_To -> 22500 | J138: =+Details!E48 -> 828600 | K138: =IF(Your_SS_Start_Alt>0,IF(OR(Your_SS_Alt>0,Your_SS_Start_Alt>0),IF(OR(Auto_Spousal_Alt="n"),"self",IF(AND(Your_Age>0,Your_SS_Alt>=Spouse_SS_Alt*0.5),"self","spousal"))) & " - " & IF(AND(Your_Age>0,OR(Your_SS_Alt>0,Auto_Spousal_Alt="y")),Your_SSAlt_Year,"."),0) -> self - 2024 | M138: Year selected MUST be year after last person's | Q138: 67 | R138: 35772.21802 | S138: 24325.10826 | T138: =IF($T128>0,IF(Test_FRA_Y=67,$T$128,T$137*$V138),IF(Test_FRA_Y=67,Test_PIA_Y,T$137*$V138)) -> 32400 | U138: =IF($T129>0,IF(Test_FRA_S=67,$T$129,U$137*$W138),IF(Test_FRA_S=67,Test_PIA_S,U$137*$W138)) -> 21600 | V138: =IF(Test_FRA_Y=66,1.08,1) -> 1.08 | W138: =IF(Test_FRA_S=66,1.08,1) -> 1.08 | X138: 0.1040808032 | Y138: 0.1261624193
C139: =IF(AND(Spouse_Age=0,Spouse_SS_Alt>0),"no spouse age - delete data",".") -> . | D139: Spouse | E139: 20000 | F139: =+FRA_Spouse -> 66 | G139: 62 | H139: =IF(AND(Your_End_Input>0,Your_SS_CA_Alt>=Spouse_SS_CA_Alt),Your_End_Input,IF(AND(Spouse_End_Input>0,Your_SS_CA_Alt>Spouse_SS_CA_Alt),Spouse_End_Input+Your_Age-Spouse_Age,"--")) -> 85 | I139: =ROUND(IF(Auto_Spousal_Alt="n",Spouse_SS_Calc_Alt,IF(Spousal_SS_Alt="spouse",Spouse_Spousal_Alt,Spouse_SS_Calc_Alt))/Round_To,0)*Round_To -> 15300 | J139: =+Details!E59 -> 386800 | K139: =IF(Spouse_SS_Start_Alt>0,IF(Spouse_Age=0,".",IF(OR(Spouse_SS_Alt>0,Spouse_SS_Start_Alt>0),IF(OR(Auto_Spousal_Alt="n"),"self",IF(AND(Spouse_Age>0,Spouse_SS_Alt>=Your_SS_Alt*0.5),"self","spousal")))) & " - " & IF(AND(Spouse_Age>0,OR(Spouse_SS_Alt>0,Auto_Spousal_Alt="y")),Spouse_SSAlt_Year,"."),0) -> self - 2025 | M139: benefits start. | Q139: 68 | R139: 39190.45219 | S139: 26649.50749 | T139: =IF(Test_FRA_Y=66,T$137*V139,T$138*V139) -> 34800 | U139: =IF(Test_FRA_S=66,U$137*W139,U$138*W139) -> 23200 | V139: =IF(Test_FRA_Y=66,1.16,1.08) -> 1.16 | W139: =IF(Test_FRA_S=66,1.16,1.08) -> 1.16 | X139: 0.1261624193 | Y139: 0.1486856676 | AC139: Self Benefits | AE139: Spousal Benefits | AG139: Additional Benefits
B140: =IF(SS_Started_Alt="y",IF(OR(Your_SS_Start_Alt=Your_Age,Spouse_SS_Start_Alt=Spouse_Age),".","error: start age must = age"),".") -> . | D140: COLA | E140: 0.02 | H140: Total | I140: =+Your_SS_CA_Alt+Spouse_SS_CA_Alt -> 37800 | J140: =+J138+J139 -> 1215400 | M140: Alternative benefits: use to calculate the impact of | Q140: 69 | R140: 42731.10684 | S140: 29057.15265 | T140: =IF(Test_FRA_Y=66,T$137*V140,T$138*V140) -> 37200 | U140: =IF(Test_FRA_S=66,U$137*W140,U$138*W140) -> 24800 | V140: =IF(Test_FRA_Y=66,1.24,1.16) -> 1.24 | W140: =IF(Test_FRA_S=66,1.24,1.16) -> 1.24 | X140: 0.1486856676 | Y140: 0.171659381 | AB140: Optional | AC140: You | AD140: Spouse | AE140: You | AF140: Spouse | AG140: You | AH140: Spouse | AK140: =IF(IF(B140=".",0,1)>=1,1,"ok") -> ok
D141: Benefits have started | E141: n | F141: =IF(AND(Auto_Spousal_Alt="y"),IF(AND(Spouse_SSAlt_Year<FRA_You,Spousal_SS_Alt="spouse"),"Auto error: spouse start year before you start year",IF(AND(Your_SSAlt_Year<FRA_Spouse,Spousal_SS_Alt="you"),"Auto error: you start year before spouse start year",".")),".") -> . | M141: benefits starting in different ages on your portfolio. | Q141: 70 | R141: 46397.71149 | S141: 31550.44381 | T141: =IF(Test_FRA_Y=66,T$137*V141,T$138*V141) -> 39600 | U141: =IF(Test_FRA_S=66,U$137*W141,U$138*W141) -> 26400 | V141: =IF(Test_FRA_Y=66,1.32,1.24) -> 1.32 | W141: =IF(Test_FRA_S=66,1.32,1.24) -> 1.32 | X141: 0.171659381 | Y141: 0.1950925686 | AB141: PIA | AC141: =+Your_SS_Alt -> 30000 | AD141: =IF(Spouse_Age>0,+Spouse_SS_Alt,0) -> 20000 | AE141: =IF(Spouse_Age>0,Spouse_SS_Alt*0.5,0) -> 10000 | AF141: =IF(Your_Age>0,Your_SS_Alt*0.5) -> 15000 | AG141: =SS_Add_Alt -> 5000 | AH141: =SS_Add_Alt_Sp -> 0
D142: Automatic spousal benefits | E142: n | G142: =IF(Auto_Spousal_Alt="y",IF(Spouse_Age=0,"must be n","."),".") -> . | H142: Spousal | I142: =ROUND(IF(OR(Spousal_SS_Alt="none",AND(Your_SB_Alt="self",Spouse_SB_Alt="self")),0,IF(Your_Spousal_Alt>Spouse_Spousal_Alt,Your_Spousal_Alt,Spouse_Spousal_Alt))/Round_To,0)*Round_To -> 0 | J142: =IF(Your_SB_Alt="spousal",Details!E$46,IF(Spouse_SB_Alt="spousal",Details!E$57,0)) -> 0 | K142: =IF(AND(Your_SB_Alt="spousal",Spousal_CA_Alt>0,OR(Your_SS_Alt>0,Auto_Spousal_Alt="y")),"you",IF(AND(OR(Spouse_SB_Alt="spousal",Spousal_SS_Alt="spouse"),Spousal_CA_Alt>0,OR(Spouse_SS_Alt>0,Auto_Spousal_Alt="y")),"spouse","-")) -> - | M142: The Base case will include the above default benefits | AB142: FRA age | AC142: =+FRA_You -> 66 | AD142: =+FRA_Spouse -> 66
B143: =IF(AND(SS_Add_Alt>0,SS_Add_End_Alt=0),"ending age req'd",".") -> . | D143: Additional benefits: You | E143: 5000 | G143: 62 | H143: 69 | I143: =ROUND(Your_SS_Add_Alt/Round_To,0)*Round_To -> 5000 | J143: =+Details!E47 -> 42800 | K143: =IF(OR(SS_Add_Alt=0,SS_Add_Start_Alt<Your_Age),"-",INDEX($E$438:$BE$438,MATCH(SS_Add_Start_Alt,$E$436:$BE$436,1))) -> 2024 | M143: and the alternative benefits will be in the Full case. | Z143: lookup-set | AB143: Current age | AC143: =Your_Age -> 62 | AD143: =Spouse_Age -> 61 | AE143: =Your_Age -> 62 | AF143: =Spouse_Age -> 61 | AG143: =Your_Age -> 62 | AH143: =Spouse_Age -> 61 | AK143: =IF(IF(B143=".",0,1)>=1,1,"ok") -> ok
B144: =IF(AND(SS_Add_Alt_Sp>0,SS_Add_End_Alt_Sp=0),"ending age req'd",".") -> . | D144: Spouse | I144: =ROUND(Spouse_SS_Add_Alt/Round_To,0)*Round_To -> 0 | J144: =+Details!E58 -> 0 | K144: =IF(OR(SS_Add_Alt_Sp=0,SS_Add_Alt_Sp<Spouse_Age),"-",INDEX($E$438:$BE$438,MATCH(SS_Add_Start_Alt_Sp,$E$437:$BE$437,1))) -> - | M144: Using these benefits is selected at the top of the page. | Z144: lookup-set | AB144: Start age | AC144: =Your_SS_Start_Alt -> 62 | AD144: =+Spouse_SS_Start_Alt -> 62 | AE144: =Your_SS_Start_Alt -> 62 | AF144: =+Spouse_SS_Start_Alt -> 62 | AG144: =SS_Add_Start_Alt -> 62 | AH144: =SS_Add_Start_Alt_Sp -> 0 | AK144: ok
D145: Reduction of future benefits | E145: 0.24 | F145: 2038 | G145: =IF(OR(SS_re_pc_alt=0,SS_re_yr_alt=0),"< not using","< using") -> < using | AB145: COLA years | AC145: =+AC144-AC143 -> 0 | AD145: 1 | AE145: 0 | AF145: 1 | AG145: 0 | AH145: -61
AB146: COLA | AC146: =(1+SS_COLA_Alt)^AC145-1 -> 0 | AD146: =(1+SS_COLA_Alt)^AD145-1 -> 0.02 | AE146: =IF(AE141=0,0,(1+SS_COLA_Alt)^AE145-1) -> 0 | AF146: =IF(AF141=0,0,(1+SS_COLA_Alt)^AF145-1) -> 0.02 | AG146: =IF(AG141=0,0,(1+SS_COLA)^AG145-1) -> 0 | AH146: =IF(AH141=0,0,(1+SS_COLA)^AH145-1) -> 0
E147: =IF(Auto_Spousal_Alt="y",IF(OR(Your_SS_Start_Alt<62,Spouse_SS_Start_Alt<62),"Error: age below 62","."),".") -> . | H147: =IF(SS_Started_Alt="n",IF(OR(Your_SS_Start_Alt>70,Spouse_SS_Start_Alt>70),"Error: an age is over 70 - set benefits started to y","."),".") -> . | AB147: DRC years | AC147: =IF(AND(SS_Started_Alt="y",AC143=AC144),0,+AC144-FRA_You) -> -4 | AD147: =IF(AND(SS_Started_Alt="y",AD143=AD144),0,+AD144-FRA_Spouse) -> -4 | AE147: =IF(AE144=0,0,IF(+AE144-FRA_You<0,AE144-FRA_You,0)) -> -4 | AF147: =IF(AF144=0,0,IF(+AF144-FRA_You<0,AF144-FRA_Spouse,0)) -> -4 | AK147: =IF(IF(E147=".",0,1)>=1,1,"ok") -> ok
D148: single premium | E148: =IF(SPIA_Amt>0,"using","not using") -> using | G148: =IF(AND(SPIA_Age>0,SPIA_Start=0),"Error: start age required",".") -> . | J148: =" Funds Available at Age " & SPIA_Age -> Funds Available at Age 76 | N148: SPIA feature: use to see the impact of purchasing a SPIA on your income, taxes and portfolio. The purchase of the annuity can be made from one | AB148: DRC & spousal | AC148: =IF(OR(AC144=0,AC144<62,AND(SS_Started_Alt="y",AC143=AC144)),0,INDEX($AF$200:$AF$208,MATCH(AC144,$AB$200:$AB$208,1))-1) -> -0.25 | AD148: =IF(OR(AD144=0,AD144<62,AND(SS_Started_Alt="y",AD143=AD144)),0,INDEX($AG$200:$AG$208,MATCH(AD144,$AB$200:$AB$208,1))-1) -> -0.25 | AE148: =IF(OR(AE144=0,AE144<62,AND(SS_Started_Alt="y",AE143=AE144)),0,IF(OR(AE144=0,AE147=0),0,-INDEX($AH$200:$AH$208,MATCH(AE144,$AB$200:$AB$208,1)))) -> -0.35 | AF148: =IF(OR(AF144=0,AF144<62,AND(SS_Started_Alt="y",AF143=AF144)),0,IF(OR(AF144=0,AF147=0),0,-INDEX($AI$200:$AI$208,MATCH(AF144,$AB$200:$AB$208,1)))) -> -0.35 | AK148: =IF(IF(G148=".",0,1)>=1,1,"ok") -> ok
D149: immediate annuity (SPIA) | E149: Amount | G149: Ages | H149: Income | J149: Source | K149: Portfolio | L149: Base | N149: of three accounts, each having different Federal tax consequences. If bought in an earlier year, enter the income here and use your age when bought. | AB149: Starting benefit | AC149: =+AC141*(1+AC146)*(1+AC148) -> 22500 | AD149: =+AD141*(1+AD146)*(1+AD148) -> 15300 | AE149: =+AE141*(1+AE146)*IF(AND(AE148>-0.5,AE148<>0),-AE148*2,(1+AE148)) -> 7000 | AF149: =+AF141*(1+AF146)*IF(AND(AF148>-0.5,AF148<>0),-AF148*2,(1+AF148)) -> 10710 | AG149: =+AG141*(1+AG146)*IF(AND(AG148>-0.5,AG148<>0),-AG148*2,(1+AG148)) -> 5000 | AH149: =+AH141*(1+AH146)*IF(AND(AH148>-0.5,AH148<>0),-AH148*2,(1+AH148)) -> 0 | AK149: =IF(OR(AND(SPIA_From="t",SPIA_Amt>$K$150),AND(SPIA_From="i",SPIA_Amt>$K$151),AND(SPIA_From="r",SPIA_Amt>$K$152)),1,"ok") -> ok
D150: Purchase price | E150: 100000 | F150: Buying age | G150: 76 | H150: Income | I150: 9000 | J150: Taxable - t | K150: =IF(SPIA_Age>Your_Age,INDEX(Details!$F$8:$AS$8,$AB$153),"") -> 281300 | L150: =IF(SPIA_Age>Your_Age,INDEX(Base!$F$8:$AS$8,$AB$153),"") -> 281300 | M150: =IF(AND(SPIA_Amt>0,SPIA_From="t"),"using",".") -> using | N150: Taxable account: The annuity income is taxable but reduced by the Exclusion Factor. | Z150: index | AB150: Starting year | AC150: =IF(AND(Your_SS_Start_Alt>0,Your_SS_Start_Alt>=Your_Age),INDEX($E$438:$BE$438,MATCH(Your_SS_Start_Alt,$E$436:$BE$436,1)),0) -> 2024 | AD150: =IF(AND(Spouse_SS_Start_Alt>0,Spouse_SS_Start_Alt>=Spouse_Age),INDEX($E$438:$BE$438,MATCH(Spouse_SS_Start_Alt,$E$437:$BE$437,1)),0) -> 2025 | AE150: spousal: | AF150: =IF(AND(Your_SS_Alt*0.5>Spouse_SS_Alt),"spouse",IF(AND(Your_SSAlt_Year>=Spouse_SSAlt_Year,Spouse_SS_Alt*0.5>Your_SS_Alt),"you","none")) -> none
D151: Portfolio account to use | E151: t | F151: Start age | G151: 76 | H151: COLA | I151: 0 | J151: IRA 1 - i | K151: =IF(SPIA_Age>Your_Age,INDEX(Details!$F$9:$AS$9,$AB$153),"") -> 426800 | L151: =IF(SPIA_Age>Your_Age,INDEX(Base!$F$9:$AS$9,$AB$153),"") -> 426800 | M151: =IF(AND(SPIA_Amt>0,SPIA_From="i")," using",".") -> . | N151: Traditional IRA: The entire annuity income is taxable. | Z151: index
D152: Total Income | E152: =+Base!E65 -> 144000 | F152: End age | H152: Excl Ratio | I152: 0.75 | J152: Roth 1 - r | K152: =IF(SPIA_Age>Your_Age,INDEX(Details!$F$15:$AS$15,$AB$153),"") -> 183300 | L152: =IF(SPIA_Age>Your_Age,INDEX(Base!$F$15:$AS$15,$AB$153),"") -> 183300 | M152: =IF(AND(SPIA_Amt>0,SPIA_From="r")," using",".") -> . | N152: Roth IRA: The annuity income is non-taxable. | Z152: index | AK152: =IF(AND(SPIA_Age>0,SPIA_Start=0),1,"ok") -> ok
H153: Non-taxable | I153: =+SPIA_Income*SPIA_Excl -> 6750 | N153: =IF(OR(Details!$E$8<0,Details!$E$11<0,Details!$E$14<0,Details!$E$18<0),"Portfolio: Ending balance " & Details!$E$8,".") -> . | AA153: SPIA_Age_Idx | AB153: =MATCH(SPIA_Age,Details!$F$4:$AS$4,1) -> 15 | AK153: =IF(IF(B154=".",0,1)+IF(B154=".",0,1)>=1,1,"ok") -> ok
B154: =IF(OR(AND(SPIA_From="t",SPIA_Amt>$K$150,SPIA_Amt>0),AND(SPIA_From="i",SPIA_Amt>$K$151,SPIA_Amt>0),AND(SPIA_From="r",SPIA_Amt>$K$152,SPIA_Amt>0)),"Error: Selected account balance too low for purchase in age selected: purchase set to $0.",".") -> . | N154: =IF(Negative_Full>0,"Portfolio: negative balances for " & Negative_Full & " years",".") -> . | AK154: =IF(IF(B155=".",0,1)+IF(B155=".",0,1)>=1,1,"ok") -> ok
B155: =IF(OR(AND(SPIA_From="t",SPIA_Amt>$L$150,SPIA_Amt>0),AND(SPIA_From="i",SPIA_Amt>$L$151,SPIA_Amt>0),AND(SPIA_From="r",SPIA_Amt>$L$152,SPIA_Amt>0)),"Error: Base case account balance too low for purchase in age selected: purchase set to $0. Cases may be different.",".") -> . | N155: =IF(OR(Base!$E$8<0,Base!$E$11<0,Base!$E$14<0,Base!$E$18<0),"Base portfolio: Ending balance " & Base!$E$8,".") -> . | AJ155: diff line | AK155: =IF(IF(N153=".",0,1)+IF(N153=".",0,1)>=1,1,"ok") -> ok
AJ156: diff line | AK156: =IF(IF(N154=".",0,1)+IF(N154=".",0,1)>=1,1,"ok") -> ok
AJ157: diff line | AK157: ok
N168: =IF(negative_base>0,"Base portfolio: negative balances for " & negative_base & " years",".") -> . | P168: Account Balance Monitor
P169: =IF(OR(Base!$E$8<0,Base!$E$11<0,Base!$E$14<0,Base!$E$17<0,Base!$E$18<0,Details!$E$8<0,Details!$E$11<0,Details!$E$14<0,Details!$E$17<0,Details!$E$18<0),"Negative final account balances - adjust factors","No negative final balances") -> No negative final balances
D170: 5. Expenses | G170: =IF(Expense_Chg_Year>Your_Age_End,"Error: change age > model end age",".") -> . | P170: =IF(OR(negative_base>0,Negative_Full>0),"Negative yearly balance detected","No negative yearly balances") -> No negative yearly balances | Z170: -5- | AK170: -5-
G171: =IF(Expense_Chg_Year="","",IF(Expense_Change>0,"increase in "&(First_Year+Expense_Chg_Year-Your_Age),IF(Expense_Change<0,"decrease in "&(First_Year+Expense_Chg_Year-Your_Age),""))) -> increase in 2042 | J171: Ending | AB171: FRA age: | AC171: =+FRA_You -> 66 | AD171: =+FRA_Spouse -> 66 | AF171: DRC & Pre-FRA Adj | AH171: Spousal | AJ171: COLA | AK171: =IF(IF(G170=".",0,1)+IF(G170=".",0,1)>=1,1,"ok") -> ok
D172: living expenses | E172: Annual | F172: Inflation | G172: Change Age and Percent | I172: Total | J172: Portfolio | L172: calculator: list of annual expenses | P172: Expenses: Enter your first year living expenses, excluding Federal and state taxes, and an annual inflation/escalation rate. | AB172: Start Age | AC172: You | AD172: Spouse | AE172: Spousal | AF172: You | AG172: Spouse | AH172: You | AI172: Spouse | AJ172: Factor
D173: excluding income taxes | E173: 70000 | F173: 0.02 | G173: 80 | H173: 0.2 | I173: =+Details!E144 -> 3129300 | J173: =+Details!$E$19 -> 2613900 | L173: Mortgage, rent | N173: 5000 | P173: Inflation: Annual escalation rate for living expenses, aka COLA. Using a rate based on historic CPI-U averages is | AB173: =+AB174-1 -> 62 | AC173: =+AC$177*$AF173 -> 22500 | AD173: =+AD$177*$AG173 -> 15000 | AE173: =IF(AC$177>+AD$177,AC$177*AH173,AD$177*AH173) -> 10500 | AF173: =IF(FRA_You=66,0.75,0.7) -> 0.75 | AG173: =IF(FRA_Spouse=66,0.75,0.7) -> 0.75 | AH173: =IF(FRA_You=66,0.35,0.325) -> 0.35 | AI173: =IF(FRA_Spouse=66,0.35,0.325) -> 0.35 | AJ173: =(1+SS_COLA)^($AB173-Your_Age)-1 -> 0
H174: user adjustments | I174: =+Details!E143 -> 0 | L174: Property taxes | N174: 5000 | P174: recommended. Annual average CPI-U inflation thru 2018: 30 years: 2.6%, 20 years: 2.2%, 10 years: 1.6% | AB174: 63 | AC174: =+AC$177*$AF174 -> 24000 | AD174: =+AD$177*$AG174 -> 16000 | AE174: =IF(AC$177>+AD$177,AC$177*AH174,AD$177*AH174) -> 11250 | AF174: =IF(FRA_You=66,0.8,0.75) -> 0.8 | AG174: =IF(FRA_Spouse=66,0.8,0.75) -> 0.8 | AH174: =IF(FRA_You=66,0.375,0.35) -> 0.375 | AI174: =IF(FRA_Spouse=66,0.375,0.35) -> 0.375 | AJ174: 0.02
L175: Utilities | N175: 3000 | P175: Change Age: Enter a percent to increase or decrease expenses in a future year using Your age. | AB175: 64 | AC175: =+AC$177*$AF175 -> 26010 | AD175: =+AD$177*$AG175 -> 17340 | AE175: =IF(AC$177>+AD$177,AC$177*AH175,AD$177*AH175) -> 12510 | AF175: =IF(FRA_You=66,0.867,0.8) -> 0.867 | AG175: =IF(FRA_Spouse=66,0.867,0.8) -> 0.867 | AH175: =IF(FRA_You=66,0.417,0.375) -> 0.417 | AI175: =IF(FRA_Spouse=66,0.417,0.375) -> 0.417 | AJ175: 0.0404
D176: temporary expenses | E176: Annual | F176: Start Age | G176: End Age | L176: Home insurance | N176: 1000 | P176: User Adjustments: If the automatic expense amounts are not providing a reasonable expense estimate result in one or | AB176: 65 | AC176: =+AC$177*$AF176 -> 27990 | AD176: =+AD$177*$AG176 -> 18660 | AE176: =IF(AC$177>+AD$177,AC$177*AH176,AD$177*AH176) -> 13740 | AF176: =IF(FRA_You=66,0.933,0.867) -> 0.933 | AG176: =IF(FRA_Spouse=66,0.933,0.867) -> 0.933 | AH176: =IF(FRA_You=66,0.458,0.417) -> 0.458 | AI176: =IF(FRA_Spouse=66,0.458,0.417) -> 0.458 | AJ176: 0.061208
E177: 5000 | F177: 62 | G177: 66 | H177: =" " & Temp_Expense_End-Temp_Expense_Start+1 & " years" -> 5 years | I177: =+Details!E141 -> 25000 | L177: Home maintenance | N177: 2000 | P177: more years, manually-entered yearly expenses can be added on the Details page. | AB177: 66 | AC177: =IF(FRA_You=66,Your_SS,Your_SS*$AF177) -> 30000 | AD177: =IF(FRA_Spouse=66,Spouse_SS,Spouse_SS*$AG177) -> 20000 | AE177: =IF(AC$177>+AD$177,AC$177*AH177,AD$177*AH177) -> 15000 | AF177: =IF(FRA_You=66,1,0.933) -> 1 | AG177: =IF(FRA_Spouse=66,1,0.933) -> 1 | AH177: =IF(FRA_You=66,0.5,0.458) -> 0.5 | AI177: =IF(FRA_Spouse=66,0.5,0.458) -> 0.5 | AJ177: 0.08243216
F178: =IF(AND(Temp_Expense>0,OR(Temp_Expense_Start=0,Temp_Expense_End=0)),"Error - start and end age required",".") -> . | H178: Total | I178: =+Expense_Total+I174+I177 -> 3154300 | L178: Medical | N178: 10000 | P178: Temporary Expenses: Annual fixed expenses not subject to inflation or changes, such as a mortgage. | AB178: 67 | AC178: =IF(FRA_You=67,Your_SS,AC$177*$AF178) -> 32400 | AD178: =IF(FRA_Spouse=67,Spouse_SS,AD$177*$AG178) -> 21600 | AE178: =IF(FRA_You=66,+AE177,IF(AC$178>+AD$178,AC$178*AH178,AD$178*AH178)) -> 15000 | AF178: =IF(FRA_You=66,1.08,1) -> 1.08 | AG178: =IF(FRA_Spouse=66,1.08,1) -> 1.08 | AH178: 0.5 | AI178: 0.5 | AJ178: 0.1040808032
D179: IRMAA surcharges | L179: Health insurance | N179: 4000 | P179: Starting and ending years (Your age) are required. | AB179: 68 | AC179: =IF(FRA_You=66,AC$177*AF179,AC$178*AF179) -> 34800 | AD179: 23200 | AE179: =+AE178 -> 15000 | AF179: =IF(FRA_You=66,1.16,1.08) -> 1.16 | AG179: =IF(FRA_Spouse=66,1.16,1.08) -> 1.16 | AH179: 0.5 | AI179: 0.5 | AJ179: 0.1261624193
D180: Medicare Part B premium per person | E180: 165 | F180: 2023 rates | L180: Vehicles | N180: 10000 | AB180: 69 | AC180: 37200 | AD180: 24800 | AE180: =+AE179 -> 15000 | AF180: =IF(FRA_You=66,1.24,1.16) -> 1.24 | AG180: =IF(FRA_Spouse=66,1.24,1.16) -> 1.24 | AH180: 0.5 | AI180: 0.5 | AJ180: 0.1486856676
D181: Part D premium per person | E181: 0 | L181: Misc | N181: 1000 | P181: IRMAA Surcharges: This feature calculates an estimate of additional Medicare premiums resulting from high income | AB181: 70 | AC181: 39600 | AD181: 26400 | AE181: =+AE180 -> 15000 | AF181: =IF(FRA_You=66,1.32,1.24) -> 1.32 | AG181: =IF(FRA_Spouse=66,1.32,1.24) -> 1.32 | AH181: 0.5 | AI181: 0.5 | AJ181: 0.171659381
D182: Previous 2 years MAGI | L182: Fuel | N182: 2000 | P182: income levels, aka: the income-related monthly adjustment amount (IRMAA). | W182: Medicare website | Z182: -5- | AK182: -5-
L183: Groceries | N183: 7500 | P183: The yearly calculated amounts are NOT automatically included in yearly expenses. If significant you can enter "y"
D184: Total estimated surcharges | E184: =+Details!E286 -> 0 | F184: ="over " & +Details!D286 & 'Tax Tables'!D64 -> over 0 years | G184: =+'Tax Tables'!D64 ->  | L184: Restaurants | N184: 4000 | P184: to include them in yearly expenses. See Details page for the amounts included in each year.
D185: Include in expenses? | E185: n | F185: =IF(IRMAA_Incl="y","Included","Excluded") -> Excluded | L185: Clothing | N185: 500 | P185: If surcharges are expected in the years enter the previous two years MAGI to calculate the first two years.
D186: ACA premium subsidies | E186: =" " & Details!E287 & " years qualify" -> 2 years qualify | L186: Vacation | N186: 15000 | P186: Affordable Care Act subsidies: This is a rough estimate of the number of years before Your or Spouse's age of 65 that
L187: Travel | N187: 5000 | P187: might meet this subsidy level. The actual subsidy is not estimated. Go to the Details page to see which years may qualify.
C188: notes | L188: Total | N188: =SUM(N173:N187) -> 75000
D197: 6. IRA Contributions & Withdrawals | F197: Yearly | Z197: -6- | AK197: -6-
D198: IRA contributions | E198: Annual | F198: Change | G198: Start Age | H198: End Age | I198: Total | J198: Years | M198: IRA contributions and withdrawals: enter contributions to selected IRAs and withdrawals from existing and inherited IRAs necessary | AB198: Optional | AC198: =+AC171 -> 66 | AD198: =+AD171 -> 66 | AF198: DRC & Pre-FRA Adj | AH198: Spousal
D199: IRA 1 | F199: 0 | I199: =Details!E87 -> 0 | J199: =IF(AND(E199>0,G199=0),"Age Error",IF(AND(G199=0,H199=0),"_" & "-" & Final_Year,IF(G199=0,"",G199-Your_Age+First_Year) & "-" & IF(H199=0,Final_Year,H199-Your_Age+First_Year))) -> _-2053 | M199: to fund living expenses or other needs. These withdrawals are in addition to any RMD amounts. | AB199: Start Age | AC199: You | AD199: Spouse | AE199: Spousal | AF199: Self | AG199: Spouse | AH199: You | AI199: Spouse | AJ199: Factor
D200: IRA 2 | E200: 6500 | F200: 0 | G200: 62 | H200: 70 | I200: =Details!E98 -> 58500 | J200: =IF(AND(E200>0,G200=0),"Age Error",IF(AND(G200=0,H200=0),"_" & " - " & Final_Year,IF(G200=0,"",G200-Your_Age+First_Year) & " - " & IF(H200=0,Final_Year,H200-Your_Age+First_Year))) -> 2024 - 2032 | M200: Annual amount: enter amount to contribute and/or withdraw. | AB200: =+AB201-1 -> 62 | AC200: =AC$204*$AF200 -> 22500 | AD200: =+AD$204*$AF200 -> 15000 | AE200: =IF(AC$205>+AD$205,AC$205*AH200,AD$205*AH200) -> 11340 | AF200: =IF(FRA_You_Alt=66,0.75,0.7) -> 0.75 | AG200: =IF(FRA_Spouse_Alt=66,0.75,0.7) -> 0.75 | AH200: =IF(FRA_You_Alt=66,0.35,0.325) -> 0.35 | AI200: =IF(FRA_Spouse_Alt=66,0.35,0.325) -> 0.35 | AJ200: =(1+SS_COLA)^($AB200-Your_Age)-1 -> 0
D201: Roth 1 | E201: 1000 | F201: 0.1 | G201: 62 | H201: 65 | I201: =Details!E120 -> 4600 | J201: =IF(AND(E201>0,G201=0),"Age Error",IF(AND(G201=0,H201=0),"_" & " - " & Final_Year,IF(G201=0,"",G201-Your_Age+First_Year) & " - " & IF(H201=0,Final_Year,H201-Your_Age+First_Year))) -> 2024 - 2027 | M201: Yearly Change: enter a positive or negative percentage to increase or decrease annual contributions and withdrawals. | AB201: 63 | AC201: =AC$204*$AF201 -> 24000 | AD201: =+AD$204*$AF201 -> 16000 | AE201: 12150 | AF201: =IF(FRA_You_Alt=66,0.8,0.75) -> 0.8 | AG201: =IF(FRA_Spouse_Alt=66,0.8,0.75) -> 0.8 | AH201: =IF(FRA_You_Alt=66,0.375,0.35) -> 0.375 | AI201: =IF(FRA_Spouse_Alt=66,0.375,0.35) -> 0.375 | AJ201: 0.02
E202: =IF(Negative_Full>0,"Alert! Portfolio has negative beginning balance in one or more accounts for " & Negative_Full & " years",".") -> . | M202: Start Age: enter Your age to start contributions and withdrawals. This is required if an amount is entered. | AB202: 64 | AC202: =AC$204*$AF202 -> 26010 | AD202: =+AD$204*$AF202 -> 17340 | AE202: 13510.8 | AF202: =IF(FRA_You_Alt=66,0.867,0.8) -> 0.867 | AG202: =IF(FRA_Spouse_Alt=66,0.867,0.8) -> 0.867 | AH202: =IF(FRA_You_Alt=66,0.417,0.375) -> 0.417 | AI202: =IF(FRA_Spouse_Alt=66,0.417,0.375) -> 0.417 | AJ202: 0.0404
D203: IRA withdrawals | J203: Ending | M203: End Age: enter Your age for the last year of contributions and withdrawals, including any IRA inherited by spouse. | AB203: 65 | AC203: =AC$204*$AF203 -> 27990 | AD203: =+AD$204*$AF203 -> 18660 | AE203: 14839.2 | AF203: =IF(FRA_You_Alt=66,0.933,0.867) -> 0.933 | AG203: =IF(FRA_Spouse_Alt=66,0.933,0.867) -> 0.933 | AH203: =IF(FRA_You_Alt=66,0.458,0.417) -> 0.458 | AI203: =IF(FRA_Spouse_Alt=66,0.458,0.417) -> 0.458 | AJ203: 0.061208
D204: IRA 1 | E204: =IF(AND(tIRA_Begin=0,OR(tIRA_Withdr_Compare1>0,tIRA_Withdr_Compare2>0)),"IRA 1 beginning balance is 0",".") -> . | I204: Total | J204: Balance | K204: Years | M204: Leave blank to automatically select the last model year. | AB204: 66 | AC204: =IF(FRA_You=66,Your_SS_Alt,Your_SS_Alt*$AF204) -> 30000 | AD204: =IF(FRA_Spouse=66,Spouse_SS_Alt,Spouse_SS_Alt*$AH204) -> 20000 | AE204: 16200 | AF204: =IF(FRA_You_Alt=66,1,0.933) -> 1 | AG204: =IF(FRA_Spouse_Alt=66,1,0.933) -> 1 | AH204: =IF(FRA_You_Alt=66,0.5,0.458) -> 0.5 | AI204: =IF(FRA_Spouse_Alt=66,0.5,0.458) -> 0.5 | AJ204: 0.08243216
C205: =IF(E205>0,IF(OR(OR(G205<Your_Age,G205>Your_Age_End),H205>Your_Age_End),"Error: S/E age <> Your Age","."),".") -> . | D205: withdrawal 1 | E205: 40000 | F205: 0.03 | G205: 62 | H205: 69 | I205: =-Details!E88 -> 355700 | J205: =+Details!E9 -> 399900 | K205: =IF(AND(E205>0,G205=0),"Age Error",IF(AND(G205=0,H205=0),"_"&" - "&Final_Year,IF(G205=0,"",G205-Your_Age+First_Year)&" - "&IF(H205=0,Final_Year,H205-Your_Age+First_Year))) -> 2024 - 2031 | AB205: 67 | AC205: =IF(FRA_You=67,Your_SS_Alt,AC$204*$AF205) -> 32400 | AD205: =IF(FRA_Spouse=67,Spouse_SS_Alt,AD$204*$AG205) -> 21600 | AE205: 16200 | AF205: =IF(FRA_You_Alt=66,1.08,1) -> 1.08 | AG205: =IF(FRA_Spouse_Alt=66,1.08,1) -> 1.08 | AH205: 0.5 | AI205: 0.5 | AJ205: 0.1040808032 | AK205: =IF(IF(C205=".",0,1)+IF(C205=".",0,1)>=1,1,"ok") -> ok
C206: =IF(E206>0,IF(OR(OR(G206<Your_Age,G206>Your_Age_End),H206>Your_Age_End),"Error: S/E age <> Your Age","."),".") -> . | D206: withdrawal 2 | E206: 10000 | F206: -0.1 | G206: 70 | H206: 75 | I206: =-Details!E89 -> 46900 | K206: =IF(AND(E206>0,G206=0),"Age Error",IF(AND(G206=0,H206=0),"_"&" - "&Final_Year,IF(G206=0,"",G206-Your_Age+First_Year)&" - "&IF(H206=0,Final_Year,H206-Your_Age+First_Year))) -> 2032 - 2037 | M206: Tax Note: Taxes on traditional IRA withdrawals are not adjusted (reduced) for these after-tax contributions in the model. This will result in | AB206: 68 | AC206: =IF(FRA_You=66,AC$204*$AF206,AC$205*$AF206) -> 34800 | AD206: =IF(FRA_Spouse=66,+AD$204*$AG206,+AD$205*$AG206) -> 23200 | AE206: =+AE205 -> 16200 | AF206: =IF(FRA_You_Alt=66,1.16,1.08) -> 1.16 | AG206: =IF(FRA_Spouse_Alt=66,1.16,1.08) -> 1.16 | AH206: 0.5 | AI206: 0.5 | AJ206: 0.1261624193 | AK206: =IF(IF(C206=".",0,1)+IF(C206=".",0,1)>=1,1,"ok") -> ok
D207: IRA 2 | E207: =IF(OR(AND(tIRA_Begin2=0,E208>0),AND(tIRA_Begin2=0,E224>0)),"IRA 2 beginning balance is 0",".") -> . | G207: =IF(OR(AND(E205>0,G205=0),AND(E206>0,G206=0),AND(E205>0,G205=0),AND(E206>0,G206=0)),"Error: start age required",".") -> . | H207: =IF(OR(AND(H205<G205,H205<>0),AND(H221<G221,H221<>0),AND(H206<G206,H206<>0),AND(H222<G222,H222<>0)),"Error: end age < start age",".") -> . | M207: higher forecast taxes than will actually be incurred. Use the AGI User Input adjustment line on the Details page to adjust for this | AB207: 69 | AC207: =IF(FRA_You=66,AC$204*$AF207,AC$205*$AF207) -> 37200 | AD207: =IF(FRA_Spouse=66,+AD$204*$AG207,+AD$205*$AG207) -> 24800 | AE207: =+AE206 -> 16200 | AF207: =IF(FRA_You_Alt=66,1.24,1.16) -> 1.24 | AG207: =IF(FRA_Spouse_Alt=66,1.24,1.16) -> 1.24 | AH207: 0.5 | AI207: 0.5 | AJ207: 0.1486856676 | AK207: =IF(IF(G207=".",0,1)+IF(H207=".",0,1)>=1,1,"ok") -> ok
C208: =IF(E208>0,IF(OR(OR(G208<Your_Age,G208>Your_Age_End),H208>Your_Age_End),"Error: S/E age <> Your Age","."),".") -> . | D208: withdrawal | F208: 0 | I208: =-Details!E99 -> 0 | J208: =+Details!E10 -> 471300 | K208: =IF(AND(E208>0,G208=0),"Age Error",IF(AND(G208=0,H208=0),"_"&"-"&Final_Year,IF(G208=0,"",G208-Your_Age+First_Year)&" - "&IF(H208=0,Final_Year,H208-Your_Age+First_Year))) -> _-2053 | M208: if necessary. There is a limit on traditional IRA contributions based on age and earnings. | AB208: 70 | AC208: =IF(FRA_You=66,AC$204*$AF208,AC$205*$AF208) -> 39600 | AD208: =IF(FRA_Spouse=66,+AD$204*$AG208,+AD$205*$AG208) -> 26400 | AE208: =+AE207 -> 16200 | AF208: =IF(FRA_You_Alt=66,1.32,1.24) -> 1.32 | AG208: =IF(FRA_Spouse_Alt=66,1.32,1.24) -> 1.32 | AH208: 0.5 | AI208: 0.5 | AJ208: 0.171659381 | AK208: =IF(IF(C208=".",0,1)+IF(C208=".",0,1)>=1,1,"ok") -> ok
G209: =IF(AND($E$208>0,$G$208=0,Roth_Begin>0),"Error: start age required",".") -> . | H209: =IF(AND(OR(H208<G208),H208<>0),"Error: end age < start age",".") -> . | AK209: =IF(IF(G209=".",0,1)+IF(H209=".",0,1)>=1,1,"ok") -> ok
C210: Existing Roth IRAs | D210: Roth 1
C211: =IF(E211>0,IF(OR(OR(G211<Your_Age,G211>Your_Age_End),H211>Your_Age_End),"Error: S/E age <> Your Age","."),".") -> . | D211: withdrawal 1 | E211: 30000 | F211: 0 | G211: 80 | I211: =-Details!E121 -> 210000 | J211: =+Details!E15 -> 0 | K211: =IF(AND(E211>0,G211=0),"Age Error",IF(AND(G211=0,H211=0),"_"&" - "&Final_Year,IF(G211=0,"",G211-Your_Age+First_Year)&" - "&IF(H211=0,Final_Year,H211-Your_Age+First_Year))) -> 2042 - 2053 | M211: Roth withdrawals: These are non-taxable. | AK211: =IF(IF(C211=".",0,1)+IF(C211=".",0,1)>=1,1,"ok") -> ok
D212: withdrawal 2 | E212: 10000 | F212: 0 | G212: 80 | I212: =-Details!E122 -> 66500 | K212: =IF(AND(E212>0,G212=0),"Age Error",IF(AND(G212=0,H212=0),"_"&" - "&Final_Year,IF(G212=0,"",G212-Your_Age+First_Year)&" - "&IF(H212=0,Final_Year,H212-Your_Age+First_Year))) -> 2042 - 2053 | AD212: Percent Change
C213: =IF(E213>0,IF(OR(OR(G213<Your_Age,G213>Your_Age_End),H213>Your_Age_End),"Error: S/E age <> Your Age","."),".") -> . | D213: Roth 2 | E213: 5000 | F213: 0.1 | G213: 70 | H213: 75 | I213: =-Details!E124 -> 38800 | J213: =+Details!E16 -> 21100 | K213: =IF(AND(E213>0,G213=0),"Age Error",IF(AND(G213=0,H213=0),"_"&" - "&Final_Year,IF(G213=0,"",G213-Your_Age+First_Year)&" - "&IF(H213=0,Final_Year,H213-Your_Age+First_Year))) -> 2032 - 2037 | AA213: Birth Year | AB213: FRA | AD213: 62 | AE213: 63 | AF213: 64 | AG213: 65 | AH213: 66 | AI213: 67 | AJ213: 68 | AK213: =IF(IF(C213=".",0,1)+IF(C213=".",0,1)>=1,1,"ok") -> ok
C214: =IF(AND(Roth_Begin=0,E211>0),"no Roth 1 balance",".") & " " & IF(AND(Roth2_Begin=0,E213>0),"no Roth 2 balance",".") -> . . | G214: =IF(OR(AND($E$211>0,$G$211=0,Roth_Begin>0),AND($E$213>0,$G$213=0,Roth_Begin>0)),"Error: start age required",".") -> . | H214: =IF(OR(AND(OR(H211<G211),H211<>0),AND(OR(H213<G213),H213<>0)),"Error: end age < start age",".") -> . | AA214: 1943-54 | AB214: 66 | AD214: 75 | AE214: 80 | AF214: 86 2⁄3 | AG214: 93 1⁄3 | AH214: 100 | AI214: 108 | AJ214: 132 | AK214: =IF(IF(G214=".",0,1)+IF(H214=".",0,1)>=1,1,"ok") -> ok
D215: Inherited IRAs | E215: =IF(AND(AND(OR(Inherit_tIRA=0,Inheritance="n"),E216>0),AND(OR(Inherit_tIRA2=0,Inheritance2="n"),E217>0))," no inherited IRA",".") -> . | M215: Inherited IRAs Start and End Ages: Use Your age for Start/End for any IRA inherited by spouse. | AA215: 1955 | AB215: 66, 2 mo. | AD215: 74 1⁄6 | AE215: 79 1⁄6 | AF215: 85 5⁄9 | AG215: 92 2⁄9 | AH215: 98 8⁄9 | AI215: 106 2⁄3 | AJ215: 130 2⁄3
C216: =IF(E216>0,IF(OR(OR(G216<Your_Age,G216>Your_Age_End),H216>Your_Age_End),"Error: S/E age <> Your Age","."),".") -> . | D216: IRA 1 | E216: 4000 | F216: 0 | G216: 77 | H216: 79 | I216: =-Details!E113 -> 12000 | J216: =+Details!E12 -> 0 | K216: =IF(AND(E216>0,G216=0),"Age Error",IF(AND(G216=0,H216=0),"_"&"-"&Final_Year,IF(G216=0,"",G216-Your_Age+First_Year)&" - "&IF(H216=0,Final_Year,H216-Your_Age+First_Year))) -> 2039 - 2041 | M216: These withdrawals are in addition to RMD amounts. | AA216: 1956 | AB216: 66, 4 mo. | AD216: 73 1⁄3 | AE216: 78 1⁄3 | AF216: 84 4⁄9 | AG216: 91 1⁄9 | AH216: 97 7⁄9 | AI216: 105 1⁄3 | AJ216: 129 1⁄3 | AK216: =IF(IF(C216=".",0,1)+IF(C216=".",0,1)>=1,1,"ok") -> ok
C217: =IF(E217>0,IF(OR(OR(G217<Your_Age,G217>Your_Age_End),H217>Your_Age_End),"Error: S/E age <> Your Age","."),".") -> . | D217: IRA 2 | E217: 1000 | F217: 0.1 | G217: 78 | H217: 80 | I217: =-Details!E114 -> 3300 | J217: =+Details!E13 -> 0 | K217: =IF(AND(E217>0,G217=0),"Age Error",IF(AND(G217=0,H217=0),"_"&"-"&Final_Year,IF(G217=0,"",G217-Your_Age+First_Year)&" - "&IF(H217=0,Final_Year,H217-Your_Age+First_Year))) -> 2040 - 2042 | AA217: 1957 | AB217: 66, 6 mo. | AD217: 72 1⁄2 | AE217: 77 1⁄2 | AF217: 83 1⁄3 | AG217: 90 | AH217: 96 2⁄3 | AI217: 104 | AJ217: 128 | AK217: =IF(IF(C217=".",0,1)+IF(C217=".",0,1)>=1,1,"ok") -> ok
G218: =IF(OR(AND(E216>0,G216=0),AND(E217>0,G217=0)),"Error: start age required",".") -> . | H218: =IF(OR(AND(H216<G216,H216<>0),AND(H217<G217,H217<>0)),"Error: end age < start age",".") -> . | AA218: 1958 | AB218: 66, 8 mo. | AD218: 71 2⁄3 | AE218: 76 2⁄3 | AF218: 82 2⁄9 | AG218: 88 8⁄9 | AH218: 95 5⁄9 | AI218: 102 2⁄3 | AJ218: 126 2⁄3 | AK218: =IF(IF(G218=".",0,1)+IF(H218=".",0,1)>=1,1,"ok") -> ok
D219: optional base case withdrawals | M219: Optional Base Case Adjustment: Making Roth conversions may require additional IRA withdrawals to fund Federal taxes. Use these optional adjustments to | AA219: 1959 | AB219: 66, 10 mo. | AD219: 70 5⁄6 | AE219: 75 5⁄6 | AF219: 81 1⁄9 | AG219: 87 7⁄9 | AH219: 94 4⁄9 | AI219: 101 1⁄3 | AJ219: 125 1⁄3
D220: IRA 1 | M220: reduce the withdrawals in the comparison (base) case for these extra withdrawals. This will provide a more accurate comparison in evaluating the benefit of | AA220: 1960 on | AB220: 67 | AD220: 70 | AE220: 75 | AF220: 80 | AG220: 86 2⁄3 | AH220: 93 1⁄3 | AI220: 100 | AJ220: 124
C221: =IF(AND(tIRA_Withdr_Compare1=0,tIRA_Withdr_Base1<>0),"Error - must be zero",".") -> . | D221: adjust 1 | E221: 0 | F221: =+Esc_Compare1 -> 0.03 | G221: =+Start_Compare1 -> 62 | H221: =+End_Compare1 -> 69 | J221: =+Base!E9 -> 399900 | M221: Roth conversions as those higher withdrawals are not needed if conversions are not being made. | AA221: SSA: Effect of Early or Delayed Retirement on Retirement Benefits
C222: =IF(AND(tIRA_Withdr_Compare2=0,tIRA_Withdr_Base2<>0),"Error - must be zero",".") -> . | D222: adjust 2 | E222: 0 | F222: =+Esc_Compare2 -> -0.1 | G222: =+Start_Compare2 -> 70 | H222: =+End_Compare2 -> 75 | M222: This is a rarely used feature.
D223: IRA 2
C224: =IF(AND(tIRA_Withdr_Compare3=0,tIRA_Withdr_Base3<>0),"Error - must be zero",".") -> . | D224: adjust | E224: 0 | F224: =+Esc_Compare3 -> 0 | G224: =Start_Compare3 -> 0 | H224: =+End_Compare3 -> 0 | J224: =+Base!E10 -> 471300
D237: 7. Special Events | Z237: -7- | AK237: -7-
O238: Inherited IRA
D239: future events | E239: Inheritances | G239: Asset Sales | I239: Expenditures | L239: Estimate Future Values | O239: Ten Years or Less | Q239: Special Events: these are events that typically occur during retirement, such receiving an inheritance,
E240: 1 | F240: 2 | G240: 1- Any | H240: 2 - Home | I240: 1 | J240: 2 | K240: Total | L240: 260000 | M240: Current amt | N240: Year | O240: Distributions | Q240: selling a house or purchasing an RV. Two events are available for each category. All events are
D241: Include in portfolio? | E241: y | F241: y | G241: y | H241: y | I241: y | J241: y | L241: 0.02 | M241: Esc rate | N241: 1 | O241: 0.1 | Q241: considered non-taxable. Expenditures are entered by using negative numbers
... 583 more rows

Sheet Summary
B1: Summary of Results | K1: Instructions | Q1: border & lines | U1: cell comments to Word | Z1: hidden> | AA1: x | AB1: x | AC1: x | AD1: x | AE1: x | AF1: x | AG1: x | AH1: x | AQ1: hidden> | AR1: x | AS1: x | AX1: x | AY1: x | BC1: x | BD1: x | BG1: x | BH1: x | BJ1: x | BK1: x | BP1: x | BQ1: x
K2: =IF(AND(OR(E49>1,E49<-1),OR(K4231<>K49,K96<>K97)),"Alert: check totals for difference",".") -> . | Q2: hidden columns | T2: hidden | V2: Display Units | W2: 1000
B4: =IF(Sum_Rnd=1000,"($000)",IF(Sum_Rnd=100,"($00)")) -> ($000) | AN4: Portfolio
F5: Account Balances - Start of Year | M5: Earnings and Income | Y5: Expenditures and (Receipts) | AL5: memo | AN5: Balance | AP5: Withdrawals and Contributions | BV5: Account Balances - End of Year
C6: Ages | H6: Inherit | J6: Roth | O6: Inherit | Q6: Roth | R6: SS Benefits | AA6: Inherit | AB6: Asset | AC6: Spec | AD6: SPIA | AE6: SPIA | AF6: Inhrt | AG6: SPIA | AJ6: Total | AL6: IRMMA | AN6: End of | AP6: IRA 1 | AW6: IRA 2 | BB6: Inhrtd IRA 1 | BF6: Inhrtd IRA 2 | BJ6: Roth IRA 1 | BM6: Roth 1 | BO6: Roth 2 | BP6: Roth Conver | BR6: Convr | BT6: To | BX6: Inherit | BZ6: Roth
C7: You | D7: Sp | E7: Year | F7: Taxable | G7: IRA | H7: IRA | I7: Roth | J7: Convr | K7: Total | M7: Taxable | N7: IRA | O7: IRA | P7: Roth | Q7: Convr | R7: You | S7: Spouse | T7: SPIA | U7: Pension | V7: Other | W7: Total | Y7: Living | Z7: Taxes | AA7: Taxbl | AB7: Sale | AC7: Expend | AD7: Taxbl | AE7: IRA | AF7: IRA | AG7: Roth | AH7: QCD | AJ7: Other | AK7: Total | AL7: =IF(IRMAA_Incl="y","Incl'f","Excl") -> Excl | AN7: Year | AP7: RMD | AQ7: Convr | AR7: Wdr1&2 | AS7: With-A | AT7: SPIA | AU7: Contrb | AV7: Withdr | AW7: RMD | AX7: Withdr | AY7: With-A | AZ7: Contrb | BA7: Withdr | BB7: RMD | BC7: Withdr | BD7: With-A | BE7: Withdr | BF7: RMD | BG7: Withdr | BH7: With-A | BI7: Withdr | BJ7: Withdr | BK7: With-A | BL7: Contrb | BM7: SPIA | BN7: Withdr | BO7: Withdr | BP7: Withdr | BQ7: With-A | BR7: Withdr | BS7: QCD | BT7: Taxbl | BV7: Taxable | BW7: IRAs | BX7: IRAs | BY7: Roths | BZ7: Convr | CA7: Total
B8: 1 | C8: =+Details!F$4 -> 62 | D8: =+Details!F$5 -> 61 | E8: =+Details!$F$7 -> 2024 | F8: =ROUND(+Details!$F$8/$W$2,1) -> 200 | G8: =ROUND(+Details!$F$11/$W$2,0) -> 700 | H8: =ROUND(+Details!$F$14/$W$2,0) -> 0 | I8: =ROUND(+Details!$F$17/$W$2,0) -> 100 | J8: =ROUND(+Details!$F$18/$W$2,0) -> 0 | K8: =SUM(F8:J8) -> 1000 | M8: =ROUND(+Details!$F$28/$W$2,0) -> 9 | N8: =ROUND(+Details!$F$31/$W$2,0) -> 43 | O8: =ROUND(+Details!$F$34/$W$2,0) -> 0 | P8: =ROUND(+Details!$F$37/$W$2,0) -> 6 | Q8: =ROUND(+Details!$F$38/$W$2,0) -> 0 | R8: =ROUND(+Details!$F$49/$W$2,0) -> 0 | S8: =ROUND(+Details!$F$60/$W$2,0) -> 0 | T8: =ROUND(+Details!$F$65/$W$2,0) -> 0 | U8: =ROUND((Details!$F$66+Details!$F$67)/$W$2,0) -> 10 | V8: =ROUND((Details!$F$68+Details!$F$69)/$W$2,0) -> 10 | W8: =SUM(M8:V8) -> 78 | Y8: =ROUND(Details!$F$144/$W$2,0) -> 75 | Z8: =ROUND(Details!$F$145/$W$2,0) -> 5 | AA8: =ROUND(-Details!$F$248/$W$2,0) -> 0 | AB8: =ROUND(-Details!$F$250/$W$2,0) -> 0 | AC8: =ROUND(-Details!$F$251/$W$2,0) -> 0 | AD8: =ROUND(-Details!$F$252/$W$2,0) -> 0 | AE8: =ROUND(-Details!$F$96/$W$2,0) -> 0 | AF8: =ROUND(-Details!$F$107/$W$2,0) -> 0 | AG8: =ROUND(-Details!$F$127/$W$2,0) -> 0 | AH8: =-ROUND(-Details!$F$137/$W$2,0) -> 0 | AJ8: =-ROUND(Details!$F$254/$W$2,0) -> 0 | AK8: =+Y8+Z8+AJ8 -> 80 | AL8: =-ROUND(-Details!$F$286/$W$2,0) -> 0 | AN8: =+K8+W8-AK8 -> 998 | AP8: =-ROUND(+Details!$F$94/$W$2,0) -> 0 | AQ8: =ROUND(+Details!$F$133/$W$2,0) -> 0 | AR8: =-ROUND(+Details!$F$91/$W$2,0) -> 40 | AS8: =-ROUND(+Details!$F$95/$W$2,0) -> 0 | AT8: =-ROUND(+Details!$F$96/$W$2,0) -> 0 | AU8: =-ROUND(+Details!$F$74/$W$2,0) -> 0 | AV8: =+AR8+AS8 -> 40 | AW8: =-ROUND(+Details!$F$102/$W$2,0) -> 0 | AX8: =-ROUND(+Details!$F$99/$W$2,0) -> 0 | AY8: =-ROUND(+Details!$F$103/$W$2,0) -> 0 | AZ8: =-ROUND(+Details!$F$75/$W$2,0) -> 7 | BA8: =+AX8+AY8 -> 0 | BB8: =-ROUND(+Details!$F$110/$W$2,0) -> 0 | BC8: =-ROUND(+Details!$F$113/$W$2,0) -> 0 | BD8: =-ROUND(+Details!$F$116/$W$2,0) -> 0 | BE8: =+BC8+BD8 -> 0 | BF8: =-ROUND(+Details!$F$111/$W$2,0) -> 0 | BG8: =-ROUND(+Details!$F$114/$W$2,0) -> 0 | BH8: =-ROUND(+Details!$F$117/$W$2,0) -> 0 | BI8: =+BG8+BH8 -> 0 | BJ8: =-ROUND(+Details!$F$123/$W$2,0) -> 0 | BK8: =-ROUND(+Details!$F$126/$W$2,0) -> 0 | BL8: =-ROUND(+Details!$F$76/$W$2,0) -> 1 | BM8: =-ROUND(+Details!$F$127/$W$2,0) -> 0 | BN8: =+BJ8+BK8 -> 0 | BO8: =-ROUND(+Details!$F$124/$W$2,0) -> 0 | BP8: =-ROUND(+Details!$F$134/$W$2,0) -> 0 | BQ8: =-ROUND(+Details!$F$135/$W$2,0) -> 0 | BR8: =+BP8+BQ8 -> 0 | BS8: =-AH8 -> 0 | BT8: =+AP8+AT8-AU8+AV8+AW8+BA8+BB8+BE8+BF8+BI8+BM8+BN8+BO8+BR8+BS8-AZ8 -> 33 | BV8: =ROUND(+Details!$F$262/$W$2,1) -> 182.1 | BW8: =ROUND(+Details!$F$265/$W$2,1) -> 709.7 | BX8: =ROUND(+Details!$F$268/$W$2,1) -> 0 | BY8: =ROUND(+Details!$F$271/$W$2,1) -> 107.1 | BZ8: =ROUND(+Details!$F$272/$W$2,1) -> 0 | CA8: =SUM(BV8:BZ8) -> 998.9
B9: =+B8+1 -> 2 | C9: =+Details!G$4 -> 63 | D9: =+Details!G$5 -> 62 | E9: =+Details!$G$7 -> 2025 | F9: =ROUND(+Details!$G$8/$W$2,0) -> 182 | G9: =ROUND(+Details!$G$11/$W$2,0) -> 710 | H9: =ROUND(+Details!$G$14/$W$2,0) -> 0 | I9: =ROUND(+Details!$G$17/$W$2,0) -> 107 | J9: =ROUND(+Details!$G$18/$W$2,0) -> 0 | K9: 999 | M9: =ROUND(+Details!$G$28/$W$2,0) -> 9 | N9: =ROUND(+Details!$G$31/$W$2,0) -> 44 | O9: =ROUND(+Details!$G$34/$W$2,0) -> 0 | P9: =ROUND(+Details!$G$37/$W$2,0) -> 7 | Q9: =ROUND(+Details!$G$38/$W$2,0) -> 0 | R9: =ROUND(+Details!$G$49/$W$2,0) -> 0 | S9: =ROUND(+Details!$G$60/$W$2,0) -> 0 | T9: =ROUND(+Details!$G$65/$W$2,0) -> 0 | U9: =ROUND((Details!$G$66+Details!$G$67)/$W$2,0) -> 10 | V9: =ROUND((Details!$G$68+Details!$G$69)/$W$2,0) -> 25 | W9: 95 | Y9: =ROUND(Details!$G$144/$W$2,0) -> 76 | Z9: =ROUND(Details!$G$145/$W$2,0) -> 7 | AA9: =ROUND(-Details!$G$248/$W$2,0) -> 0 | AB9: =ROUND(-Details!$G$250/$W$2,0) -> 0 | AC9: =ROUND(-Details!$G$251/$W$2,0) -> 0 | AD9: =ROUND(-Details!$G$252/$W$2,0) -> 0 | AE9: =ROUND(-Details!$G$96/$W$2,0) -> 0 | AF9: =ROUND(-Details!$G$107/$W$2,0) -> 0 | AG9: =ROUND(-Details!$G$127/$W$2,0) -> 0 | AH9: =-ROUND(-Details!$G$137/$W$2,0) -> 0 | AJ9: =-ROUND(Details!$G$254/$W$2,0) -> 0 | AK9: 83 | AL9: =-ROUND(-Details!$G$286/$W$2,0) -> 0 | AN9: 1011 | AP9: =-ROUND(+Details!$G$94/$W$2,0) -> 0 | AQ9: =ROUND(+Details!$G$133/$W$2,0) -> 0 | AR9: =-ROUND(+Details!$G$91/$W$2,0) -> 41 | AS9: =-ROUND(+Details!$G$95/$W$2,0) -> 0 | AT9: =-ROUND(+Details!$G$96/$W$2,0) -> 0 | AU9: =-ROUND(+Details!$G$74/$W$2,0) -> 0 | AV9: =+AR9+AS9 -> 41 | AW9: =-ROUND(+Details!$G$102/$W$2,0) -> 0 | AX9: =-ROUND(+Details!$G$99/$W$2,0) -> 0 | AY9: =-ROUND(+Details!$G$103/$W$2,0) -> 0 | AZ9: =-ROUND(+Details!$G$75/$W$2,0) -> 7 | BA9: =+AX9+AY9 -> 0 | BB9: =-ROUND(+Details!$G$110/$W$2,0) -> 0 | BC9: =-ROUND(+Details!$G$113/$W$2,0) -> 0 | BD9: =-ROUND(+Details!$G$116/$W$2,0) -> 0 | BE9: =+BC9+BD9 -> 0 | BF9: =-ROUND(+Details!$G$111/$W$2,0) -> 0 | BG9: =-ROUND(+Details!$G$114/$W$2,0) -> 0 | BH9: =-ROUND(+Details!$G$117/$W$2,0) -> 0 | BI9: =+BG9+BH9 -> 0 | BJ9: =-ROUND(+Details!$G$123/$W$2,0) -> 0 | BK9: =-ROUND(+Details!$G$126/$W$2,0) -> 0 | BL9: =-ROUND(+Details!$G$76/$W$2,0) -> 1 | BM9: =-ROUND(+Details!$G$127/$W$2,0) -> 0 | BN9: =+BJ9+BK9 -> 0 | BO9: =-ROUND(+Details!$G$124/$W$2,0) -> 0 | BP9: =-ROUND(+Details!$G$134/$W$2,0) -> 0 | BQ9: =-ROUND(+Details!$G$135/$W$2,0) -> 0 | BR9: =+BP9+BQ9 -> 0 | BS9: 0 | BT9: =+AP9+AT9-AU9+AV9+AW9+BA9+BB9+BE9+BF9+BI9+BM9+BN9+BO9+BR9+BS9-AZ9 -> 34 | BV9: =ROUND(+Details!$G$262/$W$2,0) -> 177 | BW9: =ROUND(+Details!$G$265/$W$2,0) -> 719 | BX9: =ROUND(+Details!$G$268/$W$2,0) -> 0 | BY9: =ROUND(+Details!$G$271/$W$2,0) -> 115 | BZ9: =ROUND(+Details!$G$272/$W$2,0) -> 0 | CA9: 1011
B10: =+B9+1 -> 3 | C10: =+Details!H$4 -> 64 | D10: =+Details!H$5 -> 63 | E10: =+Details!$H$7 -> 2026 | F10: =ROUND(+Details!$H$8/$W$2,0) -> 177 | G10: =ROUND(+Details!$H$11/$W$2,0) -> 719 | H10: =ROUND(+Details!$H$14/$W$2,0) -> 0 | I10: =ROUND(+Details!$H$17/$W$2,0) -> 115 | J10: =ROUND(+Details!$H$18/$W$2,0) -> 0 | K10: 1011 | M10: =ROUND(+Details!$H$28/$W$2,0) -> 8 | N10: =ROUND(+Details!$H$31/$W$2,0) -> 44 | O10: =ROUND(+Details!$H$34/$W$2,0) -> 0 | P10: =ROUND(+Details!$H$37/$W$2,0) -> 7 | Q10: =ROUND(+Details!$H$38/$W$2,0) -> 0 | R10: =ROUND(+Details!$H$49/$W$2,0) -> 0 | S10: =ROUND(+Details!$H$60/$W$2,0) -> 0 | T10: =ROUND(+Details!$H$65/$W$2,0) -> 0 | U10: =ROUND((Details!$H$66+Details!$H$67)/$W$2,0) -> 10 | V10: =ROUND((Details!$H$68+Details!$H$69)/$W$2,0) -> 11 | W10: 80 | Y10: =ROUND(Details!$H$144/$W$2,0) -> 78 | Z10: =ROUND(Details!$H$145/$W$2,0) -> 5 | AA10: =ROUND(-Details!$H$248/$W$2,0) -> 0 | AB10: =ROUND(-Details!$H$250/$W$2,0) -> 0 | AC10: =ROUND(-Details!$H$251/$W$2,0) -> 0 | AD10: =ROUND(-Details!$H$252/$W$2,0) -> 0 | AE10: =ROUND(-Details!$H$96/$W$2,0) -> 0 | AF10: =ROUND(-Details!$H$107/$W$2,0) -> 0 | AG10: =ROUND(-Details!$H$127/$W$2,0) -> 0 | AH10: =-ROUND(-Details!$H$137/$W$2,0) -> 0 | AJ10: =-ROUND(Details!$H$254/$W$2,0) -> 0 | AK10: 83 | AL10: =-ROUND(-Details!$H$286/$W$2,0) -> 0 | AN10: 1008 | AP10: =-ROUND(+Details!$H$94/$W$2,0) -> 0 | AQ10: =ROUND(+Details!$H$133/$W$2,0) -> 0 | AR10: =-ROUND(+Details!$H$91/$W$2,0) -> 42 | AS10: =-ROUND(+Details!$H$95/$W$2,0) -> 0 | AT10: =-ROUND(+Details!$H$96/$W$2,0) -> 0 | AU10: =-ROUND(+Details!$H$74/$W$2,0) -> 0 | AV10: 42 | AW10: =-ROUND(+Details!$H$102/$W$2,0) -> 0 | AX10: =-ROUND(+Details!$H$99/$W$2,0) -> 0 | AY10: =-ROUND(+Details!$H$103/$W$2,0) -> 0 | AZ10: =-ROUND(+Details!$H$75/$W$2,0) -> 7 | BA10: 0 | BB10: =-ROUND(+Details!$H$110/$W$2,0) -> 0 | BC10: =-ROUND(+Details!$H$113/$W$2,0) -> 0 | BD10: =-ROUND(+Details!$H$116/$W$2,0) -> 0 | BE10: 0 | BF10: =-ROUND(+Details!$H$111/$W$2,0) -> 0 | BG10: =-ROUND(+Details!$H$114/$W$2,0) -> 0 | BH10: =-ROUND(+Details!$H$117/$W$2,0) -> 0 | BI10: 0 | BJ10: =-ROUND(+Details!$H$123/$W$2,0) -> 0 | BK10: =-ROUND(+Details!$H$126/$W$2,0) -> 0 | BL10: =-ROUND(+Details!$H$76/$W$2,0) -> 1 | BM10: =-ROUND(+Details!$H$127/$W$2,0) -> 0 | BN10: 0 | BO10: =-ROUND(+Details!$H$124/$W$2,0) -> 0 | BP10: =-ROUND(+Details!$H$134/$W$2,0) -> 0 | BQ10: =-ROUND(+Details!$H$135/$W$2,0) -> 0 | BR10: 0 | BS10: 0 | BT10: 35 | BV10: =ROUND(+Details!$H$262/$W$2,0) -> 158 | BW10: =ROUND(+Details!$H$265/$W$2,0) -> 727 | BX10: =ROUND(+Details!$H$268/$W$2,0) -> 0 | BY10: =ROUND(+Details!$H$271/$W$2,0) -> 123 | BZ10: =ROUND(+Details!$H$272/$W$2,0) -> 0 | CA10: 1008
B11: 4 | C11: =+Details!I$4 -> 65 | D11: =+Details!I$5 -> 64 | E11: =+Details!$I$7 -> 2027 | F11: =ROUND(+Details!$I$8/$W$2,0) -> 158 | G11: =ROUND(+Details!$I$11/$W$2,0) -> 727 | H11: =ROUND(+Details!$I$14/$W$2,0) -> 0 | I11: =ROUND(+Details!$I$17/$W$2,0) -> 123 | J11: =ROUND(+Details!$I$18/$W$2,0) -> 0 | K11: 1008 | M11: =ROUND(+Details!$I$28/$W$2,0) -> 7 | N11: =ROUND(+Details!$I$31/$W$2,0) -> 45 | O11: =ROUND(+Details!$I$34/$W$2,0) -> 0 | P11: =ROUND(+Details!$I$37/$W$2,0) -> 8 | Q11: =ROUND(+Details!$I$38/$W$2,0) -> 0 | R11: =ROUND(+Details!$I$49/$W$2,0) -> 0 | S11: =ROUND(+Details!$I$60/$W$2,0) -> 0 | T11: =ROUND(+Details!$I$65/$W$2,0) -> 0 | U11: =ROUND((Details!$I$66+Details!$I$67)/$W$2,0) -> 11 | V11: =ROUND((Details!$I$68+Details!$I$69)/$W$2,0) -> 11 | W11: 82 | Y11: =ROUND(Details!$I$144/$W$2,0) -> 79 | Z11: =ROUND(Details!$I$145/$W$2,0) -> 5 | AA11: =ROUND(-Details!$I$248/$W$2,0) -> 0 | AB11: =ROUND(-Details!$I$250/$W$2,0) -> 0 | AC11: =ROUND(-Details!$I$251/$W$2,0) -> 0 | AD11: =ROUND(-Details!$I$252/$W$2,0) -> 0 | AE11: =ROUND(-Details!$I$96/$W$2,0) -> 0 | AF11: =ROUND(-Details!$I$107/$W$2,0) -> 0 | AG11: =ROUND(-Details!$I$127/$W$2,0) -> 0 | AH11: =-ROUND(-Details!$I$137/$W$2,0) -> 0 | AJ11: =-ROUND(Details!$I$254/$W$2,0) -> 0 | AK11: 84 | AL11: =-ROUND(-Details!$I$286/$W$2,0) -> 0 | AN11: 1006 | AP11: =-ROUND(+Details!$I$94/$W$2,0) -> 0 | AQ11: =ROUND(+Details!$I$133/$W$2,0) -> 0 | AR11: =-ROUND(+Details!$I$91/$W$2,0) -> 44 | AS11: =-ROUND(+Details!$I$95/$W$2,0) -> 0 | AT11: =-ROUND(+Details!$I$96/$W$2,0) -> 0 | AU11: =-ROUND(+Details!$I$74/$W$2,0) -> 0 | AV11: 44 | AW11: =-ROUND(+Details!$I$102/$W$2,0) -> 0 | AX11: =-ROUND(+Details!$I$99/$W$2,0) -> 0 | AY11: =-ROUND(+Details!$I$103/$W$2,0) -> 0 | AZ11: =-ROUND(+Details!$I$75/$W$2,0) -> 7 | BA11: 0 | BB11: =-ROUND(+Details!$I$110/$W$2,0) -> 0 | BC11: =-ROUND(+Details!$I$113/$W$2,0) -> 0 | BD11: =-ROUND(+Details!$I$116/$W$2,0) -> 0 | BE11: 0 | BF11: =-ROUND(+Details!$I$111/$W$2,0) -> 0 | BG11: =-ROUND(+Details!$I$114/$W$2,0) -> 0 | BH11: =-ROUND(+Details!$I$117/$W$2,0) -> 0 | BI11: 0 | BJ11: =-ROUND(+Details!$I$123/$W$2,0) -> 0 | BK11: =-ROUND(+Details!$I$126/$W$2,0) -> 0 | BL11: =-ROUND(+Details!$I$76/$W$2,0) -> 1 | BM11: =-ROUND(+Details!$I$127/$W$2,0) -> 0 | BN11: 0 | BO11: =-ROUND(+Details!$I$124/$W$2,0) -> 0 | BP11: =-ROUND(+Details!$I$134/$W$2,0) -> 0 | BQ11: =-ROUND(+Details!$I$135/$W$2,0) -> 0 | BR11: 0 | BS11: 0 | BT11: 37 | BV11: =ROUND(+Details!$I$262/$W$2,0) -> 139 | BW11: =ROUND(+Details!$I$265/$W$2,0) -> 734 | BX11: =ROUND(+Details!$I$268/$W$2,0) -> 0 | BY11: =ROUND(+Details!$I$271/$W$2,0) -> 132 | BZ11: =ROUND(+Details!$I$272/$W$2,0) -> 0 | CA11: 1005
B12: 5 | C12: =+Details!J$4 -> 66 | D12: =+Details!J$5 -> 65 | E12: =+Details!$J$7 -> 2028 | F12: =ROUND(+Details!$J$8/$W$2,0) -> 139 | G12: =ROUND(+Details!$J$11/$W$2,0) -> 734 | H12: =ROUND(+Details!$J$14/$W$2,0) -> 0 | I12: =ROUND(+Details!$J$17/$W$2,0) -> 132 | J12: =ROUND(+Details!$J$18/$W$2,0) -> 0 | K12: 1005 | M12: =ROUND(+Details!$J$28/$W$2,0) -> 7 | N12: =ROUND(+Details!$J$31/$W$2,0) -> 45 | O12: =ROUND(+Details!$J$34/$W$2,0) -> 0 | P12: =ROUND(+Details!$J$37/$W$2,0) -> 8 | Q12: =ROUND(+Details!$J$38/$W$2,0) -> 0 | R12: =ROUND(+Details!$J$49/$W$2,0) -> 0 | S12: =ROUND(+Details!$J$60/$W$2,0) -> 0 | T12: =ROUND(+Details!$J$65/$W$2,0) -> 0 | U12: =ROUND((Details!$J$66+Details!$J$67)/$W$2,0) -> 11 | V12: =ROUND((Details!$J$68+Details!$J$69)/$W$2,0) -> 12 | W12: 83 | Y12: =ROUND(Details!$J$144/$W$2,0) -> 81 | Z12: =ROUND(Details!$J$145/$W$2,0) -> 5 | AA12: =ROUND(-Details!$J$248/$W$2,0) -> 0 | AB12: =ROUND(-Details!$J$250/$W$2,0) -> 0 | AC12: =ROUND(-Details!$J$251/$W$2,0) -> 0 | AD12: =ROUND(-Details!$J$252/$W$2,0) -> 0 | AE12: =ROUND(-Details!$J$96/$W$2,0) -> 0 | AF12: =ROUND(-Details!$J$107/$W$2,0) -> 0 | AG12: =ROUND(-Details!$J$127/$W$2,0) -> 0 | AH12: =-ROUND(-Details!$J$137/$W$2,0) -> 0 | AJ12: =-ROUND(Details!$J$254/$W$2,0) -> 0 | AK12: 86 | AL12: =-ROUND(-Details!$J$286/$W$2,0) -> 0 | AN12: 1002 | AP12: =-ROUND(+Details!$J$94/$W$2,0) -> 0 | AQ12: =ROUND(+Details!$J$133/$W$2,0) -> 0 | AR12: =-ROUND(+Details!$J$91/$W$2,0) -> 45 | AS12: =-ROUND(+Details!$J$95/$W$2,0) -> 0 | AT12: =-ROUND(+Details!$J$96/$W$2,0) -> 0 | AU12: =-ROUND(+Details!$J$74/$W$2,0) -> 0 | AV12: 45 | AW12: =-ROUND(+Details!$J$102/$W$2,0) -> 0 | AX12: =-ROUND(+Details!$J$99/$W$2,0) -> 0 | AY12: =-ROUND(+Details!$J$103/$W$2,0) -> 0 | AZ12: =-ROUND(+Details!$J$75/$W$2,0) -> 7 | BA12: 0 | BB12: =-ROUND(+Details!$J$110/$W$2,0) -> 0 | BC12: =-ROUND(+Details!$J$113/$W$2,0) -> 0 | BD12: =-ROUND(+Details!$J$116/$W$2,0) -> 0 | BE12: 0 | BF12: =-ROUND(+Details!$J$111/$W$2,0) -> 0 | BG12: =-ROUND(+Details!$J$114/$W$2,0) -> 0 | BH12: =-ROUND(+Details!$J$117/$W$2,0) -> 0 | BI12: 0 | BJ12: =-ROUND(+Details!$J$123/$W$2,0) -> 0 | BK12: =-ROUND(+Details!$J$126/$W$2,0) -> 0 | BL12: =-ROUND(+Details!$J$76/$W$2,0) -> 0 | BM12: =-ROUND(+Details!$J$127/$W$2,0) -> 0 | BN12: 0 | BO12: =-ROUND(+Details!$J$124/$W$2,0) -> 0 | BP12: =-ROUND(+Details!$J$134/$W$2,0) -> 0 | BQ12: =-ROUND(+Details!$J$135/$W$2,0) -> 0 | BR12: 0 | BS12: 0 | BT12: 38 | BV12: =ROUND(+Details!$J$262/$W$2,0) -> 121 | BW12: =ROUND(+Details!$J$265/$W$2,0) -> 741 | BX12: =ROUND(+Details!$J$268/$W$2,0) -> 0 | BY12: =ROUND(+Details!$J$271/$W$2,0) -> 140 | BZ12: =ROUND(+Details!$J$272/$W$2,0) -> 0 | CA12: 1002
B13: 6 | C13: =+Details!K$4 -> 67 | D13: =+Details!K$5 -> 66 | E13: =+Details!$K$7 -> 2029 | F13: =ROUND(+Details!$K$8/$W$2,0) -> 121 | G13: =ROUND(+Details!$K$11/$W$2,0) -> 741 | H13: =ROUND(+Details!$K$14/$W$2,0) -> 0 | I13: =ROUND(+Details!$K$17/$W$2,0) -> 140 | J13: =ROUND(+Details!$K$18/$W$2,0) -> 0 | K13: 1002 | M13: =ROUND(+Details!$K$28/$W$2,0) -> 6 | N13: =ROUND(+Details!$K$31/$W$2,0) -> 45 | O13: =ROUND(+Details!$K$34/$W$2,0) -> 0 | P13: =ROUND(+Details!$K$37/$W$2,0) -> 9 | Q13: =ROUND(+Details!$K$38/$W$2,0) -> 0 | R13: =ROUND(+Details!$K$49/$W$2,0) -> 0 | S13: =ROUND(+Details!$K$60/$W$2,0) -> 22 | T13: =ROUND(+Details!$K$65/$W$2,0) -> 0 | U13: =ROUND((Details!$K$66+Details!$K$67)/$W$2,0) -> 11 | V13: =ROUND((Details!$K$68+Details!$K$69)/$W$2,0) -> 12 | W13: 105 | Y13: =ROUND(Details!$K$144/$W$2,0) -> 77 | Z13: =ROUND(Details!$K$145/$W$2,0) -> 7 | AA13: =ROUND(-Details!$K$248/$W$2,0) -> 0 | AB13: =ROUND(-Details!$K$250/$W$2,0) -> 0 | AC13: =ROUND(-Details!$K$251/$W$2,0) -> 0 | AD13: =ROUND(-Details!$K$252/$W$2,0) -> 0 | AE13: =ROUND(-Details!$K$96/$W$2,0) -> 0 | AF13: =ROUND(-Details!$K$107/$W$2,0) -> 0 | AG13: =ROUND(-Details!$K$127/$W$2,0) -> 0 | AH13: =-ROUND(-Details!$K$137/$W$2,0) -> 0 | AJ13: =-ROUND(Details!$K$254/$W$2,0) -> 0 | AK13: 84 | AL13: =-ROUND(-Details!$K$286/$W$2,0) -> 0 | AN13: 1023 | AP13: =-ROUND(+Details!$K$94/$W$2,0) -> 0 | AQ13: =ROUND(+Details!$K$133/$W$2,0) -> 0 | AR13: =-ROUND(+Details!$K$91/$W$2,0) -> 46 | AS13: =-ROUND(+Details!$K$95/$W$2,0) -> 0 | AT13: =-ROUND(+Details!$K$96/$W$2,0) -> 0 | AU13: =-ROUND(+Details!$K$74/$W$2,0) -> 0 | AV13: 46 | AW13: =-ROUND(+Details!$K$102/$W$2,0) -> 0 | AX13: =-ROUND(+Details!$K$99/$W$2,0) -> 0 | AY13: =-ROUND(+Details!$K$103/$W$2,0) -> 0 | AZ13: =-ROUND(+Details!$K$75/$W$2,0) -> 7 | BA13: 0 | BB13: =-ROUND(+Details!$K$110/$W$2,0) -> 0 | BC13: =-ROUND(+Details!$K$113/$W$2,0) -> 0 | BD13: =-ROUND(+Details!$K$116/$W$2,0) -> 0 | BE13: 0 | BF13: =-ROUND(+Details!$K$111/$W$2,0) -> 0 | BG13: =-ROUND(+Details!$K$114/$W$2,0) -> 0 | BH13: =-ROUND(+Details!$K$117/$W$2,0) -> 0 | BI13: 0 | BJ13: =-ROUND(+Details!$K$123/$W$2,0) -> 0 | BK13: =-ROUND(+Details!$K$126/$W$2,0) -> 0 | BL13: =-ROUND(+Details!$K$76/$W$2,0) -> 0 | BM13: =-ROUND(+Details!$K$127/$W$2,0) -> 0 | BN13: 0 | BO13: =-ROUND(+Details!$K$124/$W$2,0) -> 0 | BP13: =-ROUND(+Details!$K$134/$W$2,0) -> 0 | BQ13: =-ROUND(+Details!$K$135/$W$2,0) -> 0 | BR13: 0 | BS13: 0 | BT13: 39 | BV13: =ROUND(+Details!$K$262/$W$2,0) -> 128 | BW13: =ROUND(+Details!$K$265/$W$2,0) -> 746 | BX13: =ROUND(+Details!$K$268/$W$2,0) -> 0 | BY13: =ROUND(+Details!$K$271/$W$2,0) -> 148 | BZ13: =ROUND(+Details!$K$272/$W$2,0) -> 0 | CA13: 1022
B14: 7 | C14: =+Details!L$4 -> 68 | D14: =+Details!L$5 -> 67 | E14: =+Details!$L$7 -> 2030 | F14: =ROUND(+Details!$L$8/$W$2,0) -> 128 | G14: =ROUND(+Details!$L$11/$W$2,0) -> 746 | H14: =ROUND(+Details!$L$14/$W$2,0) -> 0 | I14: =ROUND(+Details!$L$17/$W$2,0) -> 148 | J14: =ROUND(+Details!$L$18/$W$2,0) -> 0 | K14: 1022 | M14: =ROUND(+Details!$L$28/$W$2,0) -> 7 | N14: =ROUND(+Details!$L$31/$W$2,0) -> 45 | O14: =ROUND(+Details!$L$34/$W$2,0) -> 0 | P14: =ROUND(+Details!$L$37/$W$2,0) -> 9 | Q14: =ROUND(+Details!$L$38/$W$2,0) -> 0 | R14: =ROUND(+Details!$L$49/$W$2,0) -> 0 | S14: =ROUND(+Details!$L$60/$W$2,0) -> 23 | T14: =ROUND(+Details!$L$65/$W$2,0) -> 0 | U14: =ROUND((Details!$L$66+Details!$L$67)/$W$2,0) -> 12 | V14: =ROUND((Details!$L$68+Details!$L$69)/$W$2,0) -> 13 | W14: =SUM(M14:V14) -> 109 | Y14: =ROUND(Details!$L$144/$W$2,0) -> 79 | Z14: =ROUND(Details!$L$145/$W$2,0) -> 7 | AA14: =ROUND(-Details!$L$248/$W$2,0) -> 0 | AB14: =ROUND(-Details!$L$250/$W$2,0) -> 0 | AC14: =ROUND(-Details!$L$251/$W$2,0) -> 0 | AD14: =ROUND(-Details!$L$252/$W$2,0) -> 0 | AE14: =ROUND(-Details!$L$96/$W$2,0) -> 0 | AF14: =ROUND(-Details!$L$107/$W$2,0) -> 0 | AG14: =ROUND(-Details!$L$127/$W$2,0) -> 0 | AH14: =-ROUND(-Details!$L$137/$W$2,0) -> 0 | AJ14: =-ROUND(Details!$L$254/$W$2,0) -> 0 | AK14: 86 | AL14: =-ROUND(-Details!$L$286/$W$2,0) -> 0 | AN14: 1045 | AP14: =-ROUND(+Details!$L$94/$W$2,0) -> 0 | AQ14: =ROUND(+Details!$L$133/$W$2,0) -> 0 | AR14: =-ROUND(+Details!$L$91/$W$2,0) -> 48 | AS14: =-ROUND(+Details!$L$95/$W$2,0) -> 0 | AT14: =-ROUND(+Details!$L$96/$W$2,0) -> 0 | AU14: =-ROUND(+Details!$L$74/$W$2,0) -> 0 | AV14: 48 | AW14: =-ROUND(+Details!$L$102/$W$2,0) -> 0 | AX14: =-ROUND(+Details!$L$99/$W$2,0) -> 0 | AY14: =-ROUND(+Details!$L$103/$W$2,0) -> 0 | AZ14: =-ROUND(+Details!$L$75/$W$2,0) -> 7 | BA14: 0 | BB14: =-ROUND(+Details!$L$110/$W$2,0) -> 0 | BC14: =-ROUND(+Details!$L$113/$W$2,0) -> 0 | BD14: =-ROUND(+Details!$L$116/$W$2,0) -> 0 | BE14: 0 | BF14: =-ROUND(+Details!$L$111/$W$2,0) -> 0 | BG14: =-ROUND(+Details!$L$114/$W$2,0) -> 0 | BH14: =-ROUND(+Details!$L$117/$W$2,0) -> 0 | BI14: 0 | BJ14: =-ROUND(+Details!$L$123/$W$2,0) -> 0 | BK14: =-ROUND(+Details!$L$126/$W$2,0) -> 0 | BL14: =-ROUND(+Details!$L$76/$W$2,0) -> 0 | BM14: =-ROUND(+Details!$L$127/$W$2,0) -> 0 | BN14: 0 | BO14: =-ROUND(+Details!$L$124/$W$2,0) -> 0 | BP14: =-ROUND(+Details!$L$134/$W$2,0) -> 0 | BQ14: =-ROUND(+Details!$L$135/$W$2,0) -> 0 | BR14: 0 | BS14: 0 | BT14: 41 | BV14: =ROUND(+Details!$L$262/$W$2,0) -> 136 | BW14: =ROUND(+Details!$L$265/$W$2,0) -> 749 | BX14: =ROUND(+Details!$L$268/$W$2,0) -> 0 | BY14: =ROUND(+Details!$L$271/$W$2,0) -> 157 | BZ14: =ROUND(+Details!$L$272/$W$2,0) -> 0 | CA14: 1042
B15: 8 | C15: =+Details!M$4 -> 69 | D15: =+Details!M$5 -> 68 | E15: =+Details!$M$7 -> 2031 | F15: =ROUND(+Details!$M$8/$W$2,0) -> 136 | G15: =ROUND(+Details!$M$11/$W$2,0) -> 749 | H15: =ROUND(+Details!$M$14/$W$2,0) -> 0 | I15: =ROUND(+Details!$M$17/$W$2,0) -> 157 | J15: =ROUND(+Details!$M$18/$W$2,0) -> 0 | K15: 1042 | M15: =ROUND(+Details!$M$28/$W$2,0) -> 7 | N15: =ROUND(+Details!$M$31/$W$2,0) -> 45 | O15: =ROUND(+Details!$M$34/$W$2,0) -> 0 | P15: =ROUND(+Details!$M$37/$W$2,0) -> 10 | Q15: =ROUND(+Details!$M$38/$W$2,0) -> 0 | R15: =ROUND(+Details!$M$49/$W$2,0) -> 0 | S15: =ROUND(+Details!$M$60/$W$2,0) -> 23 | T15: =ROUND(+Details!$M$65/$W$2,0) -> 0 | U15: =ROUND((Details!$M$66+Details!$M$67)/$W$2,0) -> 12 | V15: =ROUND((Details!$M$68+Details!$M$69)/$W$2,0) -> 13 | W15: 110 | Y15: =ROUND(Details!$M$144/$W$2,0) -> 80 | Z15: =ROUND(Details!$M$145/$W$2,0) -> 8 | AA15: =ROUND(-Details!$M$248/$W$2,0) -> 0 | AB15: =ROUND(-Details!$M$250/$W$2,0) -> 0 | AC15: =ROUND(-Details!$M$251/$W$2,0) -> 0 | AD15: =ROUND(-Details!$M$252/$W$2,0) -> 0 | AE15: =ROUND(-Details!$M$96/$W$2,0) -> 0 | AF15: =ROUND(-Details!$M$107/$W$2,0) -> 0 | AG15: =ROUND(-Details!$M$127/$W$2,0) -> 0 | AH15: =-ROUND(-Details!$M$137/$W$2,0) -> 0 | AJ15: =-ROUND(Details!$M$254/$W$2,0) -> 0 | AK15: 88 | AL15: =-ROUND(-Details!$M$286/$W$2,0) -> 0 | AN15: 1064 | AP15: =-ROUND(+Details!$M$94/$W$2,0) -> 0 | AQ15: =ROUND(+Details!$M$133/$W$2,0) -> 0 | AR15: =-ROUND(+Details!$M$91/$W$2,0) -> 49 | AS15: =-ROUND(+Details!$M$95/$W$2,0) -> 0 | AT15: =-ROUND(+Details!$M$96/$W$2,0) -> 0 | AU15: =-ROUND(+Details!$M$74/$W$2,0) -> 0 | AV15: 49 | AW15: =-ROUND(+Details!$M$102/$W$2,0) -> 0 | AX15: =-ROUND(+Details!$M$99/$W$2,0) -> 0 | AY15: =-ROUND(+Details!$M$103/$W$2,0) -> 0 | AZ15: =-ROUND(+Details!$M$75/$W$2,0) -> 7 | BA15: 0 | BB15: =-ROUND(+Details!$M$110/$W$2,0) -> 0 | BC15: =-ROUND(+Details!$M$113/$W$2,0) -> 0 | BD15: =-ROUND(+Details!$M$116/$W$2,0) -> 0 | BE15: 0 | BF15: =-ROUND(+Details!$M$111/$W$2,0) -> 0 | BG15: =-ROUND(+Details!$M$114/$W$2,0) -> 0 | BH15: =-ROUND(+Details!$M$117/$W$2,0) -> 0 | BI15: 0 | BJ15: =-ROUND(+Details!$M$123/$W$2,0) -> 0 | BK15: =-ROUND(+Details!$M$126/$W$2,0) -> 0 | BL15: =-ROUND(+Details!$M$76/$W$2,0) -> 0 | BM15: =-ROUND(+Details!$M$127/$W$2,0) -> 0 | BN15: 0 | BO15: =-ROUND(+Details!$M$124/$W$2,0) -> 0 | BP15: =-ROUND(+Details!$M$134/$W$2,0) -> 0 | BQ15: =-ROUND(+Details!$M$135/$W$2,0) -> 0 | BR15: 0 | BS15: 0 | BT15: 42 | BV15: =ROUND(+Details!$M$262/$W$2,0) -> 145 | BW15: =ROUND(+Details!$M$265/$W$2,0) -> 752 | BX15: =ROUND(+Details!$M$268/$W$2,0) -> 0 | BY15: =ROUND(+Details!$M$271/$W$2,0) -> 167 | BZ15: =ROUND(+Details!$M$272/$W$2,0) -> 0 | CA15: 1064
B16: 9 | C16: =+Details!N$4 -> 70 | D16: =+Details!N$5 -> 69 | E16: =+Details!$N$7 -> 2032 | F16: =ROUND(+Details!$N$8/$W$2,0) -> 145 | G16: =ROUND(+Details!$N$11/$W$2,0) -> 752 | H16: =ROUND(+Details!$N$14/$W$2,0) -> 0 | I16: =ROUND(+Details!$N$17/$W$2,0) -> 167 | J16: =ROUND(+Details!$N$18/$W$2,0) -> 0 | K16: 1064 | M16: =ROUND(+Details!$N$28/$W$2,0) -> 8 | N16: =ROUND(+Details!$N$31/$W$2,0) -> 47 | O16: =ROUND(+Details!$N$34/$W$2,0) -> 0 | P16: =ROUND(+Details!$N$37/$W$2,0) -> 10 | Q16: =ROUND(+Details!$N$38/$W$2,0) -> 0 | R16: =ROUND(+Details!$N$49/$W$2,0) -> 46 | S16: =ROUND(+Details!$N$60/$W$2,0) -> 24 | T16: =ROUND(+Details!$N$65/$W$2,0) -> 0 | U16: =ROUND((Details!$N$66+Details!$N$67)/$W$2,0) -> 12 | V16: =ROUND((Details!$N$68+Details!$N$69)/$W$2,0) -> 14 | W16: 161 | Y16: =ROUND(Details!$N$144/$W$2,0) -> 82 | Z16: =ROUND(Details!$N$145/$W$2,0) -> 4 | AA16: =ROUND(-Details!$N$248/$W$2,0) -> 0 | AB16: =ROUND(-Details!$N$250/$W$2,0) -> 0 | AC16: =ROUND(-Details!$N$251/$W$2,0) -> 0 | AD16: =ROUND(-Details!$N$252/$W$2,0) -> 0 | AE16: =ROUND(-Details!$N$96/$W$2,0) -> 0 | AF16: =ROUND(-Details!$N$107/$W$2,0) -> 0 | AG16: =ROUND(-Details!$N$127/$W$2,0) -> 0 | AH16: =-ROUND(-Details!$N$137/$W$2,0) -> 0 | AJ16: =-ROUND(Details!$N$254/$W$2,0) -> 0 | AK16: 86 | AL16: =-ROUND(-Details!$N$286/$W$2,0) -> 0 | AN16: 1139 | AP16: =-ROUND(+Details!$N$94/$W$2,0) -> 0 | AQ16: =ROUND(+Details!$N$133/$W$2,0) -> 0 | AR16: =-ROUND(+Details!$N$91/$W$2,0) -> 10 | AS16: =-ROUND(+Details!$N$95/$W$2,0) -> 0 | AT16: =-ROUND(+Details!$N$96/$W$2,0) -> 0 | AU16: =-ROUND(+Details!$N$74/$W$2,0) -> 0 | AV16: 10 | AW16: =-ROUND(+Details!$N$102/$W$2,0) -> 0 | AX16: =-ROUND(+Details!$N$99/$W$2,0) -> 0 | AY16: =-ROUND(+Details!$N$103/$W$2,0) -> 0 | AZ16: =-ROUND(+Details!$N$75/$W$2,0) -> 7 | BA16: 0 | BB16: =-ROUND(+Details!$N$110/$W$2,0) -> 0 | BC16: =-ROUND(+Details!$N$113/$W$2,0) -> 0 | BD16: =-ROUND(+Details!$N$116/$W$2,0) -> 0 | BE16: 0 | BF16: =-ROUND(+Details!$N$111/$W$2,0) -> 0 | BG16: =-ROUND(+Details!$N$114/$W$2,0) -> 0 | BH16: =-ROUND(+Details!$N$117/$W$2,0) -> 0 | BI16: 0 | BJ16: =-ROUND(+Details!$N$123/$W$2,0) -> 0 | BK16: =-ROUND(+Details!$N$126/$W$2,0) -> 0 | BL16: =-ROUND(+Details!$N$76/$W$2,0) -> 0 | BM16: =-ROUND(+Details!$N$127/$W$2,0) -> 0 | BN16: 0 | BO16: =-ROUND(+Details!$N$124/$W$2,0) -> 5 | BP16: =-ROUND(+Details!$N$134/$W$2,0) -> 0 | BQ16: =-ROUND(+Details!$N$135/$W$2,0) -> 0 | BR16: 0 | BS16: 0 | BT16: 8 | BV16: =ROUND(+Details!$N$262/$W$2,0) -> 172 | BW16: =ROUND(+Details!$N$265/$W$2,0) -> 795 | BX16: =ROUND(+Details!$N$268/$W$2,0) -> 0 | BY16: =ROUND(+Details!$N$271/$W$2,0) -> 172 | BZ16: =ROUND(+Details!$N$272/$W$2,0) -> 0 | CA16: 1139
B17: 10 | C17: =+Details!O$4 -> 71 | D17: =+Details!O$5 -> 70 | E17: =+Details!$O$7 -> 2033 | F17: =ROUND(+Details!$O$8/$W$2,0) -> 172 | G17: =ROUND(+Details!$O$11/$W$2,0) -> 795 | H17: =ROUND(+Details!$O$14/$W$2,0) -> 0 | I17: =ROUND(+Details!$O$17/$W$2,0) -> 172 | J17: =ROUND(+Details!$O$18/$W$2,0) -> 0 | K17: 1139 | M17: =ROUND(+Details!$O$28/$W$2,0) -> 9 | N17: =ROUND(+Details!$O$31/$W$2,0) -> 49 | O17: =ROUND(+Details!$O$34/$W$2,0) -> 0 | P17: =ROUND(+Details!$O$37/$W$2,0) -> 10 | Q17: =ROUND(+Details!$O$38/$W$2,0) -> 0 | R17: =ROUND(+Details!$O$49/$W$2,0) -> 47 | S17: =ROUND(+Details!$O$60/$W$2,0) -> 24 | T17: =ROUND(+Details!$O$65/$W$2,0) -> 0 | U17: =ROUND((Details!$O$66+Details!$O$67)/$W$2,0) -> 13 | V17: =ROUND((Details!$O$68+Details!$O$69)/$W$2,0) -> 0 | W17: 152 | Y17: =ROUND(Details!$O$144/$W$2,0) -> 84 | Z17: =ROUND(Details!$O$145/$W$2,0) -> 1 | AA17: =ROUND(-Details!$O$248/$W$2,0) -> 0 | AB17: =ROUND(-Details!$O$250/$W$2,0) -> 0 | AC17: =ROUND(-Details!$O$251/$W$2,0) -> 0 | AD17: =ROUND(-Details!$O$252/$W$2,0) -> 0 | AE17: =ROUND(-Details!$O$96/$W$2,0) -> 0 | AF17: =ROUND(-Details!$O$107/$W$2,0) -> 0 | AG17: =ROUND(-Details!$O$127/$W$2,0) -> 0 | AH17: =-ROUND(-Details!$O$137/$W$2,0) -> 0 | AJ17: =-ROUND(Details!$O$254/$W$2,0) -> 0 | AK17: 85 | AL17: =-ROUND(-Details!$O$286/$W$2,0) -> 0 | AN17: 1206 | AP17: =-ROUND(+Details!$O$94/$W$2,0) -> 0 | AQ17: =ROUND(+Details!$O$133/$W$2,0) -> 0 | AR17: =-ROUND(+Details!$O$91/$W$2,0) -> 9 | AS17: =-ROUND(+Details!$O$95/$W$2,0) -> 0 | AT17: =-ROUND(+Details!$O$96/$W$2,0) -> 0 | AU17: =-ROUND(+Details!$O$74/$W$2,0) -> 0 | AV17: 9 | AW17: =-ROUND(+Details!$O$102/$W$2,0) -> 0 | AX17: =-ROUND(+Details!$O$99/$W$2,0) -> 0 | AY17: =-ROUND(+Details!$O$103/$W$2,0) -> 0 | AZ17: =-ROUND(+Details!$O$75/$W$2,0) -> 0 | BA17: 0 | BB17: =-ROUND(+Details!$O$110/$W$2,0) -> 0 | BC17: =-ROUND(+Details!$O$113/$W$2,0) -> 0 | BD17: =-ROUND(+Details!$O$116/$W$2,0) -> 0 | BE17: 0 | BF17: =-ROUND(+Details!$O$111/$W$2,0) -> 0 | BG17: =-ROUND(+Details!$O$114/$W$2,0) -> 0 | BH17: =-ROUND(+Details!$O$117/$W$2,0) -> 0 | BI17: 0 | BJ17: =-ROUND(+Details!$O$123/$W$2,0) -> 0 | BK17: =-ROUND(+Details!$O$126/$W$2,0) -> 0 | BL17: =-ROUND(+Details!$O$76/$W$2,0) -> 0 | BM17: =-ROUND(+Details!$O$127/$W$2,0) -> 0 | BN17: 0 | BO17: =-ROUND(+Details!$O$124/$W$2,0) -> 6 | BP17: =-ROUND(+Details!$O$134/$W$2,0) -> 0 | BQ17: =-ROUND(+Details!$O$135/$W$2,0) -> 0 | BR17: 0 | BS17: 0 | BT17: 15 | BV17: =ROUND(+Details!$O$262/$W$2,0) -> 195 | BW17: =ROUND(+Details!$O$265/$W$2,0) -> 835 | BX17: =ROUND(+Details!$O$268/$W$2,0) -> 0 | BY17: =ROUND(+Details!$O$271/$W$2,0) -> 177 | BZ17: =ROUND(+Details!$O$272/$W$2,0) -> 0 | CA17: 1207
B18: 11 | C18: =+Details!P$4 -> 72 | D18: =+Details!P$5 -> 71 | E18: =+Details!$P$7 -> 2034 | F18: =ROUND(+Details!$P$8/$W$2,0) -> 195 | G18: =ROUND(+Details!$P$11/$W$2,0) -> 835 | H18: =ROUND(+Details!$P$14/$W$2,0) -> 0 | I18: =ROUND(+Details!$P$17/$W$2,0) -> 177 | J18: =ROUND(+Details!$P$18/$W$2,0) -> 0 | K18: 1207 | M18: =ROUND(+Details!$P$28/$W$2,0) -> 8 | N18: =ROUND(+Details!$P$31/$W$2,0) -> 51 | O18: =ROUND(+Details!$P$34/$W$2,0) -> 0 | P18: =ROUND(+Details!$P$37/$W$2,0) -> 11 | Q18: =ROUND(+Details!$P$38/$W$2,0) -> 0 | R18: =ROUND(+Details!$P$49/$W$2,0) -> 48 | S18: =ROUND(+Details!$P$60/$W$2,0) -> 25 | T18: =ROUND(+Details!$P$65/$W$2,0) -> 0 | U18: =ROUND((Details!$P$66+Details!$P$67)/$W$2,0) -> 13 | V18: =ROUND((Details!$P$68+Details!$P$69)/$W$2,0) -> 0 | W18: 156 | Y18: =ROUND(Details!$P$144/$W$2,0) -> 85 | Z18: =ROUND(Details!$P$145/$W$2,0) -> 1 | AA18: =ROUND(-Details!$P$248/$W$2,0) -> 0 | AB18: =ROUND(-Details!$P$250/$W$2,0) -> 0 | AC18: =ROUND(-Details!$P$251/$W$2,0) -> 80 | AD18: =ROUND(-Details!$P$252/$W$2,0) -> 0 | AE18: =ROUND(-Details!$P$96/$W$2,0) -> 0 | AF18: =ROUND(-Details!$P$107/$W$2,0) -> 0 | AG18: =ROUND(-Details!$P$127/$W$2,0) -> 0 | AH18: =-ROUND(-Details!$P$137/$W$2,0) -> 0 | AJ18: =-ROUND(Details!$P$254/$W$2,0) -> 80 | AK18: 166 | AL18: =-ROUND(-Details!$P$286/$W$2,0) -> 0 | AN18: 1197 | AP18: =-ROUND(+Details!$P$94/$W$2,0) -> 0 | AQ18: =ROUND(+Details!$P$133/$W$2,0) -> 0 | AR18: =-ROUND(+Details!$P$91/$W$2,0) -> 8 | AS18: =-ROUND(+Details!$P$95/$W$2,0) -> 0 | AT18: =-ROUND(+Details!$P$96/$W$2,0) -> 0 | AU18: =-ROUND(+Details!$P$74/$W$2,0) -> 0 | AV18: 8 | AW18: =-ROUND(+Details!$P$102/$W$2,0) -> 0 | AX18: =-ROUND(+Details!$P$99/$W$2,0) -> 0 | AY18: =-ROUND(+Details!$P$103/$W$2,0) -> 0 | AZ18: =-ROUND(+Details!$P$75/$W$2,0) -> 0 | BA18: 0 | BB18: =-ROUND(+Details!$P$110/$W$2,0) -> 0 | BC18: =-ROUND(+Details!$P$113/$W$2,0) -> 0 | BD18: =-ROUND(+Details!$P$116/$W$2,0) -> 0 | BE18: 0 | BF18: =-ROUND(+Details!$P$111/$W$2,0) -> 0 | BG18: =-ROUND(+Details!$P$114/$W$2,0) -> 0 | BH18: =-ROUND(+Details!$P$117/$W$2,0) -> 0 | BI18: 0 | BJ18: =-ROUND(+Details!$P$123/$W$2,0) -> 0 | BK18: =-ROUND(+Details!$P$126/$W$2,0) -> 0 | BL18: =-ROUND(+Details!$P$76/$W$2,0) -> 0 | BM18: =-ROUND(+Details!$P$127/$W$2,0) -> 0 | BN18: 0 | BO18: =-ROUND(+Details!$P$124/$W$2,0) -> 6 | BP18: =-ROUND(+Details!$P$134/$W$2,0) -> 0 | BQ18: =-ROUND(+Details!$P$135/$W$2,0) -> 0 | BR18: 0 | BS18: 0 | BT18: 14 | BV18: =ROUND(+Details!$P$262/$W$2,0) -> 137 | BW18: =ROUND(+Details!$P$265/$W$2,0) -> 878 | BX18: =ROUND(+Details!$P$268/$W$2,0) -> 0 | BY18: =ROUND(+Details!$P$271/$W$2,0) -> 181 | BZ18: =ROUND(+Details!$P$272/$W$2,0) -> 0 | CA18: 1196
B19: 12 | C19: =+Details!Q$4 -> 73 | D19: =+Details!Q$5 -> 72 | E19: =+Details!$Q$7 -> 2035 | F19: =ROUND(+Details!$Q$8/$W$2,0) -> 137 | G19: =ROUND(+Details!$Q$11/$W$2,0) -> 878 | H19: =ROUND(+Details!$Q$14/$W$2,0) -> 0 | I19: =ROUND(+Details!$Q$17/$W$2,0) -> 181 | J19: =ROUND(+Details!$Q$18/$W$2,0) -> 0 | K19: 1196 | M19: =ROUND(+Details!$Q$28/$W$2,0) -> 9 | N19: =ROUND(+Details!$Q$31/$W$2,0) -> 54 | O19: =ROUND(+Details!$Q$34/$W$2,0) -> 0 | P19: =ROUND(+Details!$Q$37/$W$2,0) -> 11 | Q19: =ROUND(+Details!$Q$38/$W$2,0) -> 0 | R19: =ROUND(+Details!$Q$49/$W$2,0) -> 49 | S19: =ROUND(+Details!$Q$60/$W$2,0) -> 25 | T19: =ROUND(+Details!$Q$65/$W$2,0) -> 0 | U19: =ROUND((Details!$Q$66+Details!$Q$67)/$W$2,0) -> 13 | V19: =ROUND((Details!$Q$68+Details!$Q$69)/$W$2,0) -> 0 | W19: 161 | Y19: =ROUND(Details!$Q$144/$W$2,0) -> 87 | Z19: =ROUND(Details!$Q$145/$W$2,0) -> 4 | AA19: =ROUND(-Details!$Q$248/$W$2,0) -> -40 | AB19: =ROUND(-Details!$Q$250/$W$2,0) -> 0 | AC19: =ROUND(-Details!$Q$251/$W$2,0) -> 0 | AD19: =ROUND(-Details!$Q$252/$W$2,0) -> 0 | AE19: =ROUND(-Details!$Q$96/$W$2,0) -> 0 | AF19: =ROUND(-Details!$Q$107/$W$2,0) -> -60 | AG19: =ROUND(-Details!$Q$127/$W$2,0) -> 0 | AH19: =-ROUND(-Details!$Q$137/$W$2,0) -> 0 | AJ19: =-ROUND(Details!$Q$254/$W$2,0) -> -100 | AK19: -9 | AL19: =-ROUND(-Details!$Q$286/$W$2,0) -> 0 | AN19: 1366 | AP19: =-ROUND(+Details!$Q$94/$W$2,0) -> 16 | AQ19: =ROUND(+Details!$Q$133/$W$2,0) -> 0 | AR19: =-ROUND(+Details!$Q$91/$W$2,0) -> 7 | AS19: =-ROUND(+Details!$Q$95/$W$2,0) -> 0 | AT19: =-ROUND(+Details!$Q$96/$W$2,0) -> 0 | AU19: =-ROUND(+Details!$Q$74/$W$2,0) -> 0 | AV19: 7 | AW19: =-ROUND(+Details!$Q$102/$W$2,0) -> 0 | AX19: =-ROUND(+Details!$Q$99/$W$2,0) -> 0 | AY19: =-ROUND(+Details!$Q$103/$W$2,0) -> 0 | AZ19: =-ROUND(+Details!$Q$75/$W$2,0) -> 0 | BA19: 0 | BB19: =-ROUND(+Details!$Q$110/$W$2,0) -> 0 | BC19: =-ROUND(+Details!$Q$113/$W$2,0) -> 0 | BD19: =-ROUND(+Details!$Q$116/$W$2,0) -> 0 | BE19: 0 | BF19: =-ROUND(+Details!$Q$111/$W$2,0) -> 0 | BG19: =-ROUND(+Details!$Q$114/$W$2,0) -> 0 | BH19: =-ROUND(+Details!$Q$117/$W$2,0) -> 0 | BI19: 0 | BJ19: =-ROUND(+Details!$Q$123/$W$2,0) -> 0 | BK19: =-ROUND(+Details!$Q$126/$W$2,0) -> 0 | BL19: =-ROUND(+Details!$Q$76/$W$2,0) -> 0 | BM19: =-ROUND(+Details!$Q$127/$W$2,0) -> 0 | BN19: 0 | BO19: =-ROUND(+Details!$Q$124/$W$2,0) -> 7 | BP19: =-ROUND(+Details!$Q$134/$W$2,0) -> 0 | BQ19: =-ROUND(+Details!$Q$135/$W$2,0) -> 0 | BR19: 0 | BS19: 0 | BT19: 30 | BV19: =ROUND(+Details!$Q$262/$W$2,0) -> 212 | BW19: =ROUND(+Details!$Q$265/$W$2,0) -> 909 | BX19: =ROUND(+Details!$Q$268/$W$2,0) -> 60 | BY19: =ROUND(+Details!$Q$271/$W$2,0) -> 185 | BZ19: =ROUND(+Details!$Q$272/$W$2,0) -> 0 | CA19: 1366
B20: 13 | C20: =+Details!R$4 -> 74 | D20: =+Details!R$5 -> 73 | E20: =+Details!$R$7 -> 2036 | F20: =ROUND(+Details!$R$8/$W$2,0) -> 212 | G20: =ROUND(+Details!$R$11/$W$2,0) -> 909 | H20: =ROUND(+Details!$R$14/$W$2,0) -> 60 | I20: =ROUND(+Details!$R$17/$W$2,0) -> 185 | J20: =ROUND(+Details!$R$18/$W$2,0) -> 0 | K20: 1366 | M20: =ROUND(+Details!$R$28/$W$2,0) -> 11 | N20: =ROUND(+Details!$R$31/$W$2,0) -> 55 | O20: =ROUND(+Details!$R$34/$W$2,0) -> 3 | P20: =ROUND(+Details!$R$37/$W$2,0) -> 11 | Q20: =ROUND(+Details!$R$38/$W$2,0) -> 0 | R20: =ROUND(+Details!$R$49/$W$2,0) -> 50 | S20: =ROUND(+Details!$R$60/$W$2,0) -> 26 | T20: =ROUND(+Details!$R$65/$W$2,0) -> 0 | U20: =ROUND((Details!$R$66+Details!$R$67)/$W$2,0) -> 13 | V20: =ROUND((Details!$R$68+Details!$R$69)/$W$2,0) -> 0 | W20: 169 | Y20: =ROUND(Details!$R$144/$W$2,0) -> 89 | Z20: =ROUND(Details!$R$145/$W$2,0) -> 6 | AA20: =ROUND(-Details!$R$248/$W$2,0) -> 0 | AB20: =ROUND(-Details!$R$250/$W$2,0) -> 0 | AC20: =ROUND(-Details!$R$251/$W$2,0) -> 20 | AD20: =ROUND(-Details!$R$252/$W$2,0) -> 0 | AE20: =ROUND(-Details!$R$96/$W$2,0) -> 0 | AF20: =ROUND(-Details!$R$107/$W$2,0) -> 0 | AG20: =ROUND(-Details!$R$127/$W$2,0) -> 0 | AH20: =-ROUND(-Details!$R$137/$W$2,0) -> -15 | AJ20: =-ROUND(Details!$R$254/$W$2,0) -> 35 | AK20: 130 | AL20: =-ROUND(-Details!$R$286/$W$2,0) -> 0 | AN20: 1405 | AP20: =-ROUND(+Details!$R$94/$W$2,0) -> 17 | AQ20: =ROUND(+Details!$R$133/$W$2,0) -> 0 | AR20: =-ROUND(+Details!$R$91/$W$2,0) -> 7 | AS20: =-ROUND(+Details!$R$95/$W$2,0) -> 0 | AT20: =-ROUND(+Details!$R$96/$W$2,0) -> 0 | AU20: =-ROUND(+Details!$R$74/$W$2,0) -> 0 | AV20: 7 | AW20: =-ROUND(+Details!$R$102/$W$2,0) -> 18 | AX20: =-ROUND(+Details!$R$99/$W$2,0) -> 0 | AY20: =-ROUND(+Details!$R$103/$W$2,0) -> 0 | AZ20: =-ROUND(+Details!$R$75/$W$2,0) -> 0 | BA20: 0 | BB20: =-ROUND(+Details!$R$110/$W$2,0) -> 0 | BC20: =-ROUND(+Details!$R$113/$W$2,0) -> 0 | BD20: =-ROUND(+Details!$R$116/$W$2,0) -> 0 | BE20: 0 | BF20: =-ROUND(+Details!$R$111/$W$2,0) -> 6 | BG20: =-ROUND(+Details!$R$114/$W$2,0) -> 0 | BH20: =-ROUND(+Details!$R$117/$W$2,0) -> 0 | BI20: 0 | BJ20: =-ROUND(+Details!$R$123/$W$2,0) -> 0 | BK20: =-ROUND(+Details!$R$126/$W$2,0) -> 0 | BL20: =-ROUND(+Details!$R$76/$W$2,0) -> 0 | BM20: =-ROUND(+Details!$R$127/$W$2,0) -> 0 | BN20: 0 | BO20: =-ROUND(+Details!$R$124/$W$2,0) -> 7 | BP20: =-ROUND(+Details!$R$134/$W$2,0) -> 0 | BQ20: =-ROUND(+Details!$R$135/$W$2,0) -> 0 | BR20: 0 | BS20: 15 | BT20: 70 | BV20: =ROUND(+Details!$R$262/$W$2,0) -> 237 | BW20: =ROUND(+Details!$R$265/$W$2,0) -> 922 | BX20: =ROUND(+Details!$R$268/$W$2,0) -> 57 | BY20: =ROUND(+Details!$R$271/$W$2,0) -> 189 | BZ20: =ROUND(+Details!$R$272/$W$2,0) -> 0 | CA20: 1405
B21: 14 | C21: =+Details!S$4 -> 75 | D21: =+Details!S$5 -> 74 | E21: =+Details!$S$7 -> 2037 | F21: =ROUND(+Details!$S$8/$W$2,0) -> 237 | G21: =ROUND(+Details!$S$11/$W$2,0) -> 922 | H21: =ROUND(+Details!$S$14/$W$2,0) -> 57 | I21: =ROUND(+Details!$S$17/$W$2,0) -> 189 | J21: =ROUND(+Details!$S$18/$W$2,0) -> 0 | K21: 1405 | M21: =ROUND(+Details!$S$28/$W$2,0) -> 13 | N21: =ROUND(+Details!$S$31/$W$2,0) -> 56 | O21: =ROUND(+Details!$S$34/$W$2,0) -> 3 | P21: =ROUND(+Details!$S$37/$W$2,0) -> 11 | Q21: =ROUND(+Details!$S$38/$W$2,0) -> 0 | R21: =ROUND(+Details!$S$49/$W$2,0) -> 51 | S21: =ROUND(+Details!$S$60/$W$2,0) -> 26 | T21: =ROUND(+Details!$S$65/$W$2,0) -> 0 | U21: =ROUND((Details!$S$66+Details!$S$67)/$W$2,0) -> 14 | V21: =ROUND((Details!$S$68+Details!$S$69)/$W$2,0) -> 0 | W21: 174 | Y21: =ROUND(Details!$S$144/$W$2,0) -> 91 | Z21: =ROUND(Details!$S$145/$W$2,0) -> 6 | AA21: =ROUND(-Details!$S$248/$W$2,0) -> 0 | AB21: =ROUND(-Details!$S$250/$W$2,0) -> 0 | AC21: =ROUND(-Details!$S$251/$W$2,0) -> 0 | AD21: =ROUND(-Details!$S$252/$W$2,0) -> 0 | AE21: =ROUND(-Details!$S$96/$W$2,0) -> 0 | AF21: =ROUND(-Details!$S$107/$W$2,0) -> 0 | AG21: =ROUND(-Details!$S$127/$W$2,0) -> 0 | AH21: =-ROUND(-Details!$S$137/$W$2,0) -> -20 | AJ21: =-ROUND(Details!$S$254/$W$2,0) -> 20 | AK21: 117 | AL21: =-ROUND(-Details!$S$286/$W$2,0) -> 0 | AN21: 1462 | AP21: =-ROUND(+Details!$S$94/$W$2,0) -> 17 | AQ21: =ROUND(+Details!$S$133/$W$2,0) -> 0 | AR21: =-ROUND(+Details!$S$91/$W$2,0) -> 6 | AS21: =-ROUND(+Details!$S$95/$W$2,0) -> 0 | AT21: =-ROUND(+Details!$S$96/$W$2,0) -> 0 | AU21: =-ROUND(+Details!$S$74/$W$2,0) -> 0 | AV21: 6 | AW21: =-ROUND(+Details!$S$102/$W$2,0) -> 20 | AX21: =-ROUND(+Details!$S$99/$W$2,0) -> 0 | AY21: =-ROUND(+Details!$S$103/$W$2,0) -> 0 | AZ21: =-ROUND(+Details!$S$75/$W$2,0) -> 0 | BA21: 0 | BB21: =-ROUND(+Details!$S$110/$W$2,0) -> 0 | BC21: =-ROUND(+Details!$S$113/$W$2,0) -> 0 | BD21: =-ROUND(+Details!$S$116/$W$2,0) -> 0 | BE21: 0 | BF21: =-ROUND(+Details!$S$111/$W$2,0) -> 6 | BG21: =-ROUND(+Details!$S$114/$W$2,0) -> 0 | BH21: =-ROUND(+Details!$S$117/$W$2,0) -> 0 | BI21: 0 | BJ21: =-ROUND(+Details!$S$123/$W$2,0) -> 0 | BK21: =-ROUND(+Details!$S$126/$W$2,0) -> 0 | BL21: =-ROUND(+Details!$S$76/$W$2,0) -> 0 | BM21: =-ROUND(+Details!$S$127/$W$2,0) -> 0 | BN21: 0 | BO21: =-ROUND(+Details!$S$124/$W$2,0) -> 8 | BP21: =-ROUND(+Details!$S$134/$W$2,0) -> 0 | BQ21: =-ROUND(+Details!$S$135/$W$2,0) -> 0 | BR21: 0 | BS21: 20 | BT21: 77 | BV21: =ROUND(+Details!$S$262/$W$2,0) -> 281 | BW21: =ROUND(+Details!$S$265/$W$2,0) -> 935 | BX21: =ROUND(+Details!$S$268/$W$2,0) -> 54 | BY21: =ROUND(+Details!$S$271/$W$2,0) -> 192 | BZ21: =ROUND(+Details!$S$272/$W$2,0) -> 0 | CA21: 1462
B22: 15 | C22: =+Details!T$4 -> 76 | D22: =+Details!T$5 -> 75 | E22: =+Details!$T$7 -> 2038 | F22: =ROUND(+Details!$T$8/$W$2,0) -> 281 | G22: =ROUND(+Details!$T$11/$W$2,0) -> 935 | H22: =ROUND(+Details!$T$14/$W$2,0) -> 54 | I22: =ROUND(+Details!$T$17/$W$2,0) -> 192 | J22: =ROUND(+Details!$T$18/$W$2,0) -> 0 | K22: 1462 | M22: =ROUND(+Details!$T$28/$W$2,0) -> 12 | N22: =ROUND(+Details!$T$31/$W$2,0) -> 57 | O22: =ROUND(+Details!$T$34/$W$2,0) -> 3 | P22: =ROUND(+Details!$T$37/$W$2,0) -> 12 | Q22: =ROUND(+Details!$T$38/$W$2,0) -> 0 | R22: =ROUND(+Details!$T$49/$W$2,0) -> 40 | S22: =ROUND(+Details!$T$60/$W$2,0) -> 20 | T22: =ROUND(+Details!$T$65/$W$2,0) -> 9 | U22: =ROUND((Details!$T$66+Details!$T$67)/$W$2,0) -> 14 | V22: =ROUND((Details!$T$68+Details!$T$69)/$W$2,0) -> 0 | W22: 167 | Y22: =ROUND(Details!$T$144/$W$2,0) -> 92 | Z22: =ROUND(Details!$T$145/$W$2,0) -> 4 | AA22: =ROUND(-Details!$T$248/$W$2,0) -> 0 | AB22: =ROUND(-Details!$T$250/$W$2,0) -> 0 | AC22: =ROUND(-Details!$T$251/$W$2,0) -> 0 | AD22: =ROUND(-Details!$T$252/$W$2,0) -> 100 | AE22: =ROUND(-Details!$T$96/$W$2,0) -> 0 | AF22: =ROUND(-Details!$T$107/$W$2,0) -> 0 | AG22: =ROUND(-Details!$T$127/$W$2,0) -> 0 | AH22: =-ROUND(-Details!$T$137/$W$2,0) -> -20 | AJ22: =-ROUND(Details!$T$254/$W$2,0) -> 120 | AK22: 216 | AL22: =-ROUND(-Details!$T$286/$W$2,0) -> 0 | AN22: 1413 | AP22: =-ROUND(+Details!$T$94/$W$2,0) -> 18 | AQ22: =ROUND(+Details!$T$133/$W$2,0) -> 0 | AR22: =-ROUND(+Details!$T$91/$W$2,0) -> 0 | AS22: =-ROUND(+Details!$T$95/$W$2,0) -> 0 | AT22: =-ROUND(+Details!$T$96/$W$2,0) -> 0 | AU22: =-ROUND(+Details!$T$74/$W$2,0) -> 0 | AV22: 0 | AW22: =-ROUND(+Details!$T$102/$W$2,0) -> 21 | AX22: =-ROUND(+Details!$T$99/$W$2,0) -> 0 | AY22: =-ROUND(+Details!$T$103/$W$2,0) -> 0 | AZ22: =-ROUND(+Details!$T$75/$W$2,0) -> 0 | BA22: 0 | BB22: =-ROUND(+Details!$T$110/$W$2,0) -> 0 | BC22: =-ROUND(+Details!$T$113/$W$2,0) -> 0 | BD22: =-ROUND(+Details!$T$116/$W$2,0) -> 0 | BE22: 0 | BF22: =-ROUND(+Details!$T$111/$W$2,0) -> 7 | BG22: =-ROUND(+Details!$T$114/$W$2,0) -> 0 | BH22: =-ROUND(+Details!$T$117/$W$2,0) -> 0 | BI22: 0 | BJ22: =-ROUND(+Details!$T$123/$W$2,0) -> 0 | BK22: =-ROUND(+Details!$T$126/$W$2,0) -> 0 | BL22: =-ROUND(+Details!$T$76/$W$2,0) -> 0 | BM22: =-ROUND(+Details!$T$127/$W$2,0) -> 0 | BN22: 0 | BO22: =-ROUND(+Details!$T$124/$W$2,0) -> 0 | BP22: =-ROUND(+Details!$T$134/$W$2,0) -> 0 | BQ22: =-ROUND(+Details!$T$135/$W$2,0) -> 0 | BR22: 0 | BS22: 20 | BT22: 66 | BV22: =ROUND(+Details!$T$262/$W$2,0) -> 205 | BW22: =ROUND(+Details!$T$265/$W$2,0) -> 953 | BX22: =ROUND(+Details!$T$268/$W$2,0) -> 51 | BY22: =ROUND(+Details!$T$271/$W$2,0) -> 204 | BZ22: =ROUND(+Details!$T$272/$W$2,0) -> 0 | CA22: 1413
B23: 16 | C23: =+Details!U$4 -> 77 | D23: =+Details!U$5 -> 76 | E23: =+Details!$U$7 -> 2039 | F23: =ROUND(+Details!$U$8/$W$2,0) -> 205 | G23: =ROUND(+Details!$U$11/$W$2,0) -> 953 | H23: =ROUND(+Details!$U$14/$W$2,0) -> 51 | I23: =ROUND(+Details!$U$17/$W$2,0) -> 204 | J23: =ROUND(+Details!$U$18/$W$2,0) -> 0 | K23: 1413 | M23: =ROUND(+Details!$U$28/$W$2,0) -> 12 | N23: =ROUND(+Details!$U$31/$W$2,0) -> 58 | O23: =ROUND(+Details!$U$34/$W$2,0) -> 3 | P23: =ROUND(+Details!$U$37/$W$2,0) -> 13 | Q23: =ROUND(+Details!$U$38/$W$2,0) -> 0 | R23: =ROUND(+Details!$U$49/$W$2,0) -> 41 | S23: =ROUND(+Details!$U$60/$W$2,0) -> 21 | T23: =ROUND(+Details!$U$65/$W$2,0) -> 9 | U23: =ROUND((Details!$U$66+Details!$U$67)/$W$2,0) -> 15 | V23: =ROUND((Details!$U$68+Details!$U$69)/$W$2,0) -> 0 | W23: 172 | Y23: =ROUND(Details!$U$144/$W$2,0) -> 94 | Z23: =ROUND(Details!$U$145/$W$2,0) -> 6 | AA23: =ROUND(-Details!$U$248/$W$2,0) -> -60 | AB23: =ROUND(-Details!$U$250/$W$2,0) -> 0 | AC23: =ROUND(-Details!$U$251/$W$2,0) -> 0 | AD23: =ROUND(-Details!$U$252/$W$2,0) -> 0 | AE23: =ROUND(-Details!$U$96/$W$2,0) -> 0 | AF23: =ROUND(-Details!$U$107/$W$2,0) -> -40 | AG23: =ROUND(-Details!$U$127/$W$2,0) -> 0 | AH23: =-ROUND(-Details!$U$137/$W$2,0) -> -20 | AJ23: =-ROUND(Details!$U$254/$W$2,0) -> -80 | AK23: 20 | AL23: =-ROUND(-Details!$U$286/$W$2,0) -> 0 | AN23: 1565 | AP23: =-ROUND(+Details!$U$94/$W$2,0) -> 19 | AQ23: =ROUND(+Details!$U$133/$W$2,0) -> 0 | AR23: =-ROUND(+Details!$U$91/$W$2,0) -> 0 | AS23: =-ROUND(+Details!$U$95/$W$2,0) -> 0 | AT23: =-ROUND(+Details!$U$96/$W$2,0) -> 0 | AU23: =-ROUND(+Details!$U$74/$W$2,0) -> 0 | AV23: 0 | AW23: =-ROUND(+Details!$U$102/$W$2,0) -> 22 | AX23: =-ROUND(+Details!$U$99/$W$2,0) -> 0 | AY23: =-ROUND(+Details!$U$103/$W$2,0) -> 0 | AZ23: =-ROUND(+Details!$U$75/$W$2,0) -> 0 | BA23: 0 | BB23: =-ROUND(+Details!$U$110/$W$2,0) -> 0 | BC23: =-ROUND(+Details!$U$113/$W$2,0) -> 4 | BD23: =-ROUND(+Details!$U$116/$W$2,0) -> 0 | BE23: 4 | BF23: =-ROUND(+Details!$U$111/$W$2,0) -> 7 | BG23: =-ROUND(+Details!$U$114/$W$2,0) -> 0 | BH23: =-ROUND(+Details!$U$117/$W$2,0) -> 0 | BI23: 0 | BJ23: =-ROUND(+Details!$U$123/$W$2,0) -> 0 | BK23: =-ROUND(+Details!$U$126/$W$2,0) -> 0 | BL23: =-ROUND(+Details!$U$76/$W$2,0) -> 0 | BM23: =-ROUND(+Details!$U$127/$W$2,0) -> 0 | BN23: 0 | BO23: =-ROUND(+Details!$U$124/$W$2,0) -> 0 | BP23: =-ROUND(+Details!$U$134/$W$2,0) -> 0 | BQ23: =-ROUND(+Details!$U$135/$W$2,0) -> 0 | BR23: 0 | BS23: 20 | BT23: 72 | BV23: =ROUND(+Details!$U$262/$W$2,0) -> 294 | BW23: =ROUND(+Details!$U$265/$W$2,0) -> 970 | BX23: =ROUND(+Details!$U$268/$W$2,0) -> 83 | BY23: =ROUND(+Details!$U$271/$W$2,0) -> 217 | BZ23: =ROUND(+Details!$U$272/$W$2,0) -> 0 | CA23: 1564
B24: 17 | C24: =+Details!V$4 -> 78 | D24: =+Details!V$5 -> 77 | E24: =+Details!$V$7 -> 2040 | F24: =ROUND(+Details!$V$8/$W$2,0) -> 294 | G24: =ROUND(+Details!$V$11/$W$2,0) -> 970 | H24: =ROUND(+Details!$V$14/$W$2,0) -> 83 | I24: =ROUND(+Details!$V$17/$W$2,0) -> 217 | J24: =ROUND(+Details!$V$18/$W$2,0) -> 0 | K24: 1564 | M24: =ROUND(+Details!$V$28/$W$2,0) -> 15 | N24: =ROUND(+Details!$V$31/$W$2,0) -> 59 | O24: =ROUND(+Details!$V$34/$W$2,0) -> 5 | P24: =ROUND(+Details!$V$37/$W$2,0) -> 13 | Q24: =ROUND(+Details!$V$38/$W$2,0) -> 0 | R24: =ROUND(+Details!$V$49/$W$2,0) -> 41 | S24: =ROUND(+Details!$V$60/$W$2,0) -> 21 | T24: =ROUND(+Details!$V$65/$W$2,0) -> 9 | U24: =ROUND((Details!$V$66+Details!$V$67)/$W$2,0) -> 15 | V24: =ROUND((Details!$V$68+Details!$V$69)/$W$2,0) -> 0 | W24: 178 | Y24: =ROUND(Details!$V$144/$W$2,0) -> 96 | Z24: =ROUND(Details!$V$145/$W$2,0) -> 8 | AA24: =ROUND(-Details!$V$248/$W$2,0) -> 0 | AB24: =ROUND(-Details!$V$250/$W$2,0) -> 0 | AC24: =ROUND(-Details!$V$251/$W$2,0) -> 0 | AD24: =ROUND(-Details!$V$252/$W$2,0) -> 0 | AE24: =ROUND(-Details!$V$96/$W$2,0) -> 0 | AF24: =ROUND(-Details!$V$107/$W$2,0) -> 0 | AG24: =ROUND(-Details!$V$127/$W$2,0) -> 0 | AH24: =-ROUND(-Details!$V$137/$W$2,0) -> -20 | AJ24: =-ROUND(Details!$V$254/$W$2,0) -> 20 | AK24: 124 | AL24: =-ROUND(-Details!$V$286/$W$2,0) -> 0 | AN24: 1618 | AP24: =-ROUND(+Details!$V$94/$W$2,0) -> 20 | AQ24: =ROUND(+Details!$V$133/$W$2,0) -> 0 | AR24: =-ROUND(+Details!$V$91/$W$2,0) -> 0 | AS24: =-ROUND(+Details!$V$95/$W$2,0) -> 0 | AT24: =-ROUND(+Details!$V$96/$W$2,0) -> 0 | AU24: =-ROUND(+Details!$V$74/$W$2,0) -> 0 | AV24: 0 | AW24: =-ROUND(+Details!$V$102/$W$2,0) -> 23 | AX24: =-ROUND(+Details!$V$99/$W$2,0) -> 0 | AY24: =-ROUND(+Details!$V$103/$W$2,0) -> 0 | AZ24: =-ROUND(+Details!$V$75/$W$2,0) -> 0 | BA24: 0 | BB24: =-ROUND(+Details!$V$110/$W$2,0) -> 3 | BC24: =-ROUND(+Details!$V$113/$W$2,0) -> 4 | BD24: =-ROUND(+Details!$V$116/$W$2,0) -> 0 | BE24: 4 | BF24: =-ROUND(+Details!$V$111/$W$2,0) -> 8 | BG24: =-ROUND(+Details!$V$114/$W$2,0) -> 1 | BH24: =-ROUND(+Details!$V$117/$W$2,0) -> 0 | BI24: 1 | BJ24: =-ROUND(+Details!$V$123/$W$2,0) -> 0 | BK24: =-ROUND(+Details!$V$126/$W$2,0) -> 0 | BL24: =-ROUND(+Details!$V$76/$W$2,0) -> 0 | BM24: =-ROUND(+Details!$V$127/$W$2,0) -> 0 | BN24: 0 | BO24: =-ROUND(+Details!$V$124/$W$2,0) -> 0 | BP24: =-ROUND(+Details!$V$134/$W$2,0) -> 0 | BQ24: =-ROUND(+Details!$V$135/$W$2,0) -> 0 | BR24: 0 | BS24: 20 | BT24: 79 | BV24: =ROUND(+Details!$V$262/$W$2,0) -> 330 | BW24: =ROUND(+Details!$V$265/$W$2,0) -> 985 | BX24: =ROUND(+Details!$V$268/$W$2,0) -> 71 | BY24: =ROUND(+Details!$V$271/$W$2,0) -> 230 | BZ24: =ROUND(+Details!$V$272/$W$2,0) -> 0 | CA24: 1616
B25: 18 | C25: =+Details!W$4 -> 79 | D25: =+Details!W$5 -> 78 | E25: =+Details!$W$7 -> 2041 | F25: =ROUND(+Details!$W$8/$W$2,0) -> 330 | G25: =ROUND(+Details!$W$11/$W$2,0) -> 985 | H25: =ROUND(+Details!$W$14/$W$2,0) -> 71 | I25: =ROUND(+Details!$W$17/$W$2,0) -> 230 | J25: =ROUND(+Details!$W$18/$W$2,0) -> 0 | K25: 1616 | M25: =ROUND(+Details!$W$28/$W$2,0) -> 18 | N25: =ROUND(+Details!$W$31/$W$2,0) -> 59 | O25: =ROUND(+Details!$W$34/$W$2,0) -> 4 | P25: =ROUND(+Details!$W$37/$W$2,0) -> 14 | Q25: =ROUND(+Details!$W$38/$W$2,0) -> 0 | R25: =ROUND(+Details!$W$49/$W$2,0) -> 42 | S25: =ROUND(+Details!$W$60/$W$2,0) -> 21 | T25: =ROUND(+Details!$W$65/$W$2,0) -> 9 | U25: =ROUND((Details!$W$66+Details!$W$67)/$W$2,0) -> 15 | V25: =ROUND((Details!$W$68+Details!$W$69)/$W$2,0) -> 0 | W25: 182 | Y25: =ROUND(Details!$W$144/$W$2,0) -> 98 | Z25: =ROUND(Details!$W$145/$W$2,0) -> 11 | AA25: =ROUND(-Details!$W$248/$W$2,0) -> 0 | AB25: =ROUND(-Details!$W$250/$W$2,0) -> 0 | AC25: =ROUND(-Details!$W$251/$W$2,0) -> 0 | AD25: =ROUND(-Details!$W$252/$W$2,0) -> 0 | AE25: =ROUND(-Details!$W$96/$W$2,0) -> 0 | AF25: =ROUND(-Details!$W$107/$W$2,0) -> 0 | AG25: =ROUND(-Details!$W$127/$W$2,0) -> 0 | AH25: =-ROUND(-Details!$W$137/$W$2,0) -> -5 | AJ25: =-ROUND(Details!$W$254/$W$2,0) -> 5 | AK25: 114 | AL25: =-ROUND(-Details!$W$286/$W$2,0) -> 0 | AN25: 1684 | AP25: =-ROUND(+Details!$W$94/$W$2,0) -> 22 | AQ25: =ROUND(+Details!$W$133/$W$2,0) -> 0 | AR25: =-ROUND(+Details!$W$91/$W$2,0) -> 0 | AS25: =-ROUND(+Details!$W$95/$W$2,0) -> 0 | AT25: =-ROUND(+Details!$W$96/$W$2,0) -> 0 | AU25: =-ROUND(+Details!$W$74/$W$2,0) -> 0 | AV25: 0 | AW25: =-ROUND(+Details!$W$102/$W$2,0) -> 24 | AX25: =-ROUND(+Details!$W$99/$W$2,0) -> 0 | AY25: =-ROUND(+Details!$W$103/$W$2,0) -> 0 | AZ25: =-ROUND(+Details!$W$75/$W$2,0) -> 0 | BA25: 0 | BB25: =-ROUND(+Details!$W$110/$W$2,0) -> 3 | BC25: =-ROUND(+Details!$W$113/$W$2,0) -> 4 | BD25: =-ROUND(+Details!$W$116/$W$2,0) -> 0 | BE25: 4 | BF25: =-ROUND(+Details!$W$111/$W$2,0) -> 8 | BG25: =-ROUND(+Details!$W$114/$W$2,0) -> 1 | BH25: =-ROUND(+Details!$W$117/$W$2,0) -> 0 | BI25: 1 | BJ25: =-ROUND(+Details!$W$123/$W$2,0) -> 0 | BK25: =-ROUND(+Details!$W$126/$W$2,0) -> 0 | BL25: =-ROUND(+Details!$W$76/$W$2,0) -> 0 | BM25: =-ROUND(+Details!$W$127/$W$2,0) -> 0 | BN25: 0 | BO25: =-ROUND(+Details!$W$124/$W$2,0) -> 0 | BP25: =-ROUND(+Details!$W$134/$W$2,0) -> 0 | BQ25: =-ROUND(+Details!$W$135/$W$2,0) -> 0 | BR25: 0 | BS25: 5 | BT25: 67 | BV25: =ROUND(+Details!$W$262/$W$2,0) -> 383 | BW25: =ROUND(+Details!$W$265/$W$2,0) -> 999 | BX25: =ROUND(+Details!$W$268/$W$2,0) -> 60 | BY25: =ROUND(+Details!$W$271/$W$2,0) -> 245 | BZ25: =ROUND(+Details!$W$272/$W$2,0) -> 0 | CA25: 1687
B26: 19 | C26: =+Details!X$4 -> 80 | D26: =+Details!X$5 -> 79 | E26: =+Details!$X$7 -> 2042 | F26: =ROUND(+Details!$X$8/$W$2,0) -> 383 | G26: =ROUND(+Details!$X$11/$W$2,0) -> 999 | H26: =ROUND(+Details!$X$14/$W$2,0) -> 60 | I26: =ROUND(+Details!$X$17/$W$2,0) -> 245 | J26: =ROUND(+Details!$X$18/$W$2,0) -> 0 | K26: 1687 | M26: =ROUND(+Details!$X$28/$W$2,0) -> 17 | N26: =ROUND(+Details!$X$31/$W$2,0) -> 53 | O26: =ROUND(+Details!$X$34/$W$2,0) -> 3 | P26: =ROUND(+Details!$X$37/$W$2,0) -> 12 | Q26: =ROUND(+Details!$X$38/$W$2,0) -> 0 | R26: =ROUND(+Details!$X$49/$W$2,0) -> 43 | S26: =ROUND(+Details!$X$60/$W$2,0) -> 22 | T26: =ROUND(+Details!$X$65/$W$2,0) -> 9 | U26: =ROUND((Details!$X$66+Details!$X$67)/$W$2,0) -> 16 | V26: =ROUND((Details!$X$68+Details!$X$69)/$W$2,0) -> 0 | W26: 175 | Y26: =ROUND(Details!$X$144/$W$2,0) -> 120 | Z26: =ROUND(Details!$X$145/$W$2,0) -> 12 | AA26: =ROUND(-Details!$X$248/$W$2,0) -> 0 | AB26: =ROUND(-Details!$X$250/$W$2,0) -> 0 | AC26: =ROUND(-Details!$X$251/$W$2,0) -> 0 | AD26: =ROUND(-Details!$X$252/$W$2,0) -> 0 | AE26: =ROUND(-Details!$X$96/$W$2,0) -> 0 | AF26: =ROUND(-Details!$X$107/$W$2,0) -> 0 | AG26: =ROUND(-Details!$X$127/$W$2,0) -> 0 | AH26: =-ROUND(-Details!$X$137/$W$2,0) -> 0 | AJ26: =-ROUND(Details!$X$254/$W$2,0) -> 0 | AK26: 132 | AL26: =-ROUND(-Details!$X$286/$W$2,0) -> 0 | AN26: 1730 | AP26: =-ROUND(+Details!$X$94/$W$2,0) -> 23 | AQ26: =ROUND(+Details!$X$133/$W$2,0) -> 0 | AR26: =-ROUND(+Details!$X$91/$W$2,0) -> 0 | AS26: =-ROUND(+Details!$X$95/$W$2,0) -> 0 | AT26: =-ROUND(+Details!$X$96/$W$2,0) -> 0 | AU26: =-ROUND(+Details!$X$74/$W$2,0) -> 0 | AV26: 0 | AW26: =-ROUND(+Details!$X$102/$W$2,0) -> 26 | AX26: =-ROUND(+Details!$X$99/$W$2,0) -> 0 | AY26: =-ROUND(+Details!$X$103/$W$2,0) -> 0 | AZ26: =-ROUND(+Details!$X$75/$W$2,0) -> 0 | BA26: 0 | BB26: =-ROUND(+Details!$X$110/$W$2,0) -> 3 | BC26: =-ROUND(+Details!$X$113/$W$2,0) -> 0 | BD26: =-ROUND(+Details!$X$116/$W$2,0) -> 0 | BE26: 0 | BF26: =-ROUND(+Details!$X$111/$W$2,0) -> 8 | BG26: =-ROUND(+Details!$X$114/$W$2,0) -> 1 | BH26: =-ROUND(+Details!$X$117/$W$2,0) -> 0 | BI26: 1 | BJ26: =-ROUND(+Details!$X$123/$W$2,0) -> 40 | BK26: =-ROUND(+Details!$X$126/$W$2,0) -> 0 | BL26: =-ROUND(+Details!$X$76/$W$2,0) -> 0 | BM26: =-ROUND(+Details!$X$127/$W$2,0) -> 0 | BN26: 40 | BO26: =-ROUND(+Details!$X$124/$W$2,0) -> 0 | BP26: =-ROUND(+Details!$X$134/$W$2,0) -> 0 | BQ26: =-ROUND(+Details!$X$135/$W$2,0) -> 0 | BR26: 0 | BS26: 0 | BT26: 101 | BV26: =ROUND(+Details!$X$262/$W$2,0) -> 458 | BW26: =ROUND(+Details!$X$265/$W$2,0) -> 1003 | BX26: =ROUND(+Details!$X$268/$W$2,0) -> 51 | BY26: =ROUND(+Details!$X$271/$W$2,0) -> 216 | BZ26: =ROUND(+Details!$X$272/$W$2,0) -> 0 | CA26: 1728
B27: 20 | C27: =+Details!Y$4 -> 81 | D27: =+Details!Y$5 -> 80 | E27: =+Details!$Y$7 -> 2043 | F27: =ROUND(+Details!$Y$8/$W$2,0) -> 458 | G27: =ROUND(+Details!$Y$11/$W$2,0) -> 1003 | H27: =ROUND(+Details!$Y$14/$W$2,0) -> 51 | I27: =ROUND(+Details!$Y$17/$W$2,0) -> 216 | J27: =ROUND(+Details!$Y$18/$W$2,0) -> 0 | K27: 1728 | M27: =ROUND(+Details!$Y$28/$W$2,0) -> 20 | N27: =ROUND(+Details!$Y$31/$W$2,0) -> 53 | O27: =ROUND(+Details!$Y$34/$W$2,0) -> 2 | P27: =ROUND(+Details!$Y$37/$W$2,0) -> 10 | Q27: =ROUND(+Details!$Y$38/$W$2,0) -> 0 | R27: =ROUND(+Details!$Y$49/$W$2,0) -> 44 | S27: =ROUND(+Details!$Y$60/$W$2,0) -> 22 | T27: =ROUND(+Details!$Y$65/$W$2,0) -> 9 | U27: =ROUND((Details!$Y$66+Details!$Y$67)/$W$2,0) -> 16 | V27: =ROUND((Details!$Y$68+Details!$Y$69)/$W$2,0) -> 0 | W27: 176 | Y27: =ROUND(Details!$Y$144/$W$2,0) -> 122 | Z27: =ROUND(Details!$Y$145/$W$2,0) -> 12 | AA27: =ROUND(-Details!$Y$248/$W$2,0) -> 0 | AB27: =ROUND(-Details!$Y$250/$W$2,0) -> 0 | AC27: =ROUND(-Details!$Y$251/$W$2,0) -> 0 | AD27: =ROUND(-Details!$Y$252/$W$2,0) -> 0 | AE27: =ROUND(-Details!$Y$96/$W$2,0) -> 0 | AF27: =ROUND(-Details!$Y$107/$W$2,0) -> 0 | AG27: =ROUND(-Details!$Y$127/$W$2,0) -> 0 | AH27: =-ROUND(-Details!$Y$137/$W$2,0) -> 0 | AJ27: =-ROUND(Details!$Y$254/$W$2,0) -> 0 | AK27: 134 | AL27: =-ROUND(-Details!$Y$286/$W$2,0) -> 0 | AN27: 1770 | AP27: =-ROUND(+Details!$Y$94/$W$2,0) -> 24 | AQ27: =ROUND(+Details!$Y$133/$W$2,0) -> 0 | AR27: =-ROUND(+Details!$Y$91/$W$2,0) -> 0 | AS27: =-ROUND(+Details!$Y$95/$W$2,0) -> 0 | AT27: =-ROUND(+Details!$Y$96/$W$2,0) -> 0 | AU27: =-ROUND(+Details!$Y$74/$W$2,0) -> 0 | AV27: 0 | AW27: =-ROUND(+Details!$Y$102/$W$2,0) -> 27 | AX27: =-ROUND(+Details!$Y$99/$W$2,0) -> 0 | AY27: =-ROUND(+Details!$Y$103/$W$2,0) -> 0 | AZ27: =-ROUND(+Details!$Y$75/$W$2,0) -> 0 | BA27: 0 | BB27: =-ROUND(+Details!$Y$110/$W$2,0) -> 3 | BC27: =-ROUND(+Details!$Y$113/$W$2,0) -> 0 | BD27: =-ROUND(+Details!$Y$116/$W$2,0) -> 0 | BE27: 0 | BF27: =-ROUND(+Details!$Y$111/$W$2,0) -> 8 | BG27: =-ROUND(+Details!$Y$114/$W$2,0) -> 0 | BH27: =-ROUND(+Details!$Y$117/$W$2,0) -> 0 | BI27: 0 | BJ27: =-ROUND(+Details!$Y$123/$W$2,0) -> 40 | BK27: =-ROUND(+Details!$Y$126/$W$2,0) -> 0 | BL27: =-ROUND(+Details!$Y$76/$W$2,0) -> 0 | BM27: =-ROUND(+Details!$Y$127/$W$2,0) -> 0 | BN27: 40 | BO27: =-ROUND(+Details!$Y$124/$W$2,0) -> 0 | BP27: =-ROUND(+Details!$Y$134/$W$2,0) -> 0 | BQ27: =-ROUND(+Details!$Y$135/$W$2,0) -> 0 | BR27: 0 | BS27: 0 | BT27: 102 | BV27: =ROUND(+Details!$Y$262/$W$2,0) -> 536 | BW27: =ROUND(+Details!$Y$265/$W$2,0) -> 1006 | BX27: =ROUND(+Details!$Y$268/$W$2,0) -> 42 | BY27: =ROUND(+Details!$Y$271/$W$2,0) -> 187 | BZ27: =ROUND(+Details!$Y$272/$W$2,0) -> 0 | CA27: 1771
B28: 21 | C28: =+Details!Z$4 -> 82 | D28: =+Details!Z$5 -> 81 | E28: =+Details!$Z$7 -> 2044 | F28: =ROUND(+Details!$Z$8/$W$2,0) -> 536 | G28: =ROUND(+Details!$Z$11/$W$2,0) -> 1006 | H28: =ROUND(+Details!$Z$14/$W$2,0) -> 42 | I28: =ROUND(+Details!$Z$17/$W$2,0) -> 187 | J28: =ROUND(+Details!$Z$18/$W$2,0) -> 0 | K28: 1771 | M28: =ROUND(+Details!$Z$28/$W$2,0) -> 24 | N28: =ROUND(+Details!$Z$31/$W$2,0) -> 53 | O28: =ROUND(+Details!$Z$34/$W$2,0) -> 2 | P28: =ROUND(+Details!$Z$37/$W$2,0) -> 9 | Q28: =ROUND(+Details!$Z$38/$W$2,0) -> 0 | R28: =ROUND(+Details!$Z$49/$W$2,0) -> 45 | S28: =ROUND(+Details!$Z$60/$W$2,0) -> 23 | T28: =ROUND(+Details!$Z$65/$W$2,0) -> 9 | U28: =ROUND((Details!$Z$66+Details!$Z$67)/$W$2,0) -> 17 | V28: =ROUND((Details!$Z$68+Details!$Z$69)/$W$2,0) -> 0 | W28: 182 | Y28: =ROUND(Details!$Z$144/$W$2,0) -> 125 | Z28: =ROUND(Details!$Z$145/$W$2,0) -> 13 | AA28: =ROUND(-Details!$Z$248/$W$2,0) -> 0 | AB28: =ROUND(-Details!$Z$250/$W$2,0) -> 0 | AC28: =ROUND(-Details!$Z$251/$W$2,0) -> 0 | AD28: =ROUND(-Details!$Z$252/$W$2,0) -> 0 | AE28: =ROUND(-Details!$Z$96/$W$2,0) -> 0 | AF28: =ROUND(-Details!$Z$107/$W$2,0) -> 0 | AG28: =ROUND(-Details!$Z$127/$W$2,0) -> 0 | AH28: =-ROUND(-Details!$Z$137/$W$2,0) -> 0 | AJ28: =-ROUND(Details!$Z$254/$W$2,0) -> 0 | AK28: 138 | AL28: =-ROUND(-Details!$Z$286/$W$2,0) -> 0 | AN28: 1815 | AP28: =-ROUND(+Details!$Z$94/$W$2,0) -> 25 | AQ28: =ROUND(+Details!$Z$133/$W$2,0) -> 0 | AR28: =-ROUND(+Details!$Z$91/$W$2,0) -> 0 | AS28: =-ROUND(+Details!$Z$95/$W$2,0) -> 0 | AT28: =-ROUND(+Details!$Z$96/$W$2,0) -> 0 | AU28: =-ROUND(+Details!$Z$74/$W$2,0) -> 0 | AV28: 0 | AW28: =-ROUND(+Details!$Z$102/$W$2,0) -> 28 | AX28: =-ROUND(+Details!$Z$99/$W$2,0) -> 0 | AY28: =-ROUND(+Details!$Z$103/$W$2,0) -> 0 | AZ28: =-ROUND(+Details!$Z$75/$W$2,0) -> 0 | BA28: 0 | BB28: =-ROUND(+Details!$Z$110/$W$2,0) -> 3 | BC28: =-ROUND(+Details!$Z$113/$W$2,0) -> 0 | BD28: =-ROUND(+Details!$Z$116/$W$2,0) -> 0 | BE28: 0 | BF28: =-ROUND(+Details!$Z$111/$W$2,0) -> 9 | BG28: =-ROUND(+Details!$Z$114/$W$2,0) -> 0 | BH28: =-ROUND(+Details!$Z$117/$W$2,0) -> 0 | BI28: 0 | BJ28: =-ROUND(+Details!$Z$123/$W$2,0) -> 40 | BK28: =-ROUND(+Details!$Z$126/$W$2,0) -> 0 | BL28: =-ROUND(+Details!$Z$76/$W$2,0) -> 0 | BM28: =-ROUND(+Details!$Z$127/$W$2,0) -> 0 | BN28: 40 | BO28: =-ROUND(+Details!$Z$124/$W$2,0) -> 0 | BP28: =-ROUND(+Details!$Z$134/$W$2,0) -> 0 | BQ28: =-ROUND(+Details!$Z$135/$W$2,0) -> 0 | BR28: 0 | BS28: 0 | BT28: 105 | BV28: =ROUND(+Details!$Z$262/$W$2,0) -> 619 | BW28: =ROUND(+Details!$Z$265/$W$2,0) -> 1006 | BX28: =ROUND(+Details!$Z$268/$W$2,0) -> 32 | BY28: =ROUND(+Details!$Z$271/$W$2,0) -> 156 | BZ28: =ROUND(+Details!$Z$272/$W$2,0) -> 0 | CA28: 1813
B29: 22 | C29: =+Details!AA$4 -> 83 | D29: =+Details!AA$5 -> 82 | E29: =+Details!$AA$7 -> 2045 | F29: =ROUND(+Details!$AA$8/$W$2,0) -> 619 | G29: =ROUND(+Details!$AA$11/$W$2,0) -> 1006 | H29: =ROUND(+Details!$AA$14/$W$2,0) -> 32 | I29: =ROUND(+Details!$AA$17/$W$2,0) -> 156 | J29: =ROUND(+Details!$AA$18/$W$2,0) -> 0 | K29: 1813 | M29: =ROUND(+Details!$AA$28/$W$2,0) -> 27 | N29: =ROUND(+Details!$AA$31/$W$2,0) -> 53 | O29: =ROUND(+Details!$AA$34/$W$2,0) -> 1 | P29: =ROUND(+Details!$AA$37/$W$2,0) -> 7 | Q29: =ROUND(+Details!$AA$38/$W$2,0) -> 0 | R29: =ROUND(+Details!$AA$49/$W$2,0) -> 46 | S29: =ROUND(+Details!$AA$60/$W$2,0) -> 23 | T29: =ROUND(+Details!$AA$65/$W$2,0) -> 9 | U29: =ROUND((Details!$AA$66+Details!$AA$67)/$W$2,0) -> 17 | V29: =ROUND((Details!$AA$68+Details!$AA$69)/$W$2,0) -> 0 | W29: 183 | Y29: =ROUND(Details!$AA$144/$W$2,0) -> 127 | Z29: =ROUND(Details!$AA$145/$W$2,0) -> 14 | AA29: =ROUND(-Details!$AA$248/$W$2,0) -> 0 | AB29: =ROUND(-Details!$AA$250/$W$2,0) -> 0 | AC29: =ROUND(-Details!$AA$251/$W$2,0) -> 0 | AD29: =ROUND(-Details!$AA$252/$W$2,0) -> 0 | AE29: =ROUND(-Details!$AA$96/$W$2,0) -> 0 | AF29: =ROUND(-Details!$AA$107/$W$2,0) -> 0 | AG29: =ROUND(-Details!$AA$127/$W$2,0) -> 0 | AH29: =-ROUND(-Details!$AA$137/$W$2,0) -> 0 | AJ29: =-ROUND(Details!$AA$254/$W$2,0) -> 0 | AK29: 141 | AL29: =-ROUND(-Details!$AA$286/$W$2,0) -> 0 | AN29: 1855 | AP29: =-ROUND(+Details!$AA$94/$W$2,0) -> 26 | AQ29: =ROUND(+Details!$AA$133/$W$2,0) -> 0 | AR29: =-ROUND(+Details!$AA$91/$W$2,0) -> 0 | AS29: =-ROUND(+Details!$AA$95/$W$2,0) -> 0 | AT29: =-ROUND(+Details!$AA$96/$W$2,0) -> 0 | AU29: =-ROUND(+Details!$AA$74/$W$2,0) -> 0 | AV29: 0 | AW29: =-ROUND(+Details!$AA$102/$W$2,0) -> 29 | AX29: =-ROUND(+Details!$AA$99/$W$2,0) -> 0 | AY29: =-ROUND(+Details!$AA$103/$W$2,0) -> 0 | AZ29: =-ROUND(+Details!$AA$75/$W$2,0) -> 0 | BA29: 0 | BB29: =-ROUND(+Details!$AA$110/$W$2,0) -> 3 | BC29: =-ROUND(+Details!$AA$113/$W$2,0) -> 0 | BD29: =-ROUND(+Details!$AA$116/$W$2,0) -> 0 | BE29: 0 | BF29: =-ROUND(+Details!$AA$111/$W$2,0) -> 10 | BG29: =-ROUND(+Details!$AA$114/$W$2,0) -> 0 | BH29: =-ROUND(+Details!$AA$117/$W$2,0) -> 0 | BI29: 0 | BJ29: =-ROUND(+Details!$AA$123/$W$2,0) -> 40 | BK29: =-ROUND(+Details!$AA$126/$W$2,0) -> 0 | BL29: =-ROUND(+Details!$AA$76/$W$2,0) -> 0 | BM29: =-ROUND(+Details!$AA$127/$W$2,0) -> 0 | BN29: 40 | BO29: =-ROUND(+Details!$AA$124/$W$2,0) -> 0 | BP29: =-ROUND(+Details!$AA$134/$W$2,0) -> 0 | BQ29: =-ROUND(+Details!$AA$135/$W$2,0) -> 0 | BR29: 0 | BS29: 0 | BT29: 108 | BV29: =ROUND(+Details!$AA$262/$W$2,0) -> 708 | BW29: =ROUND(+Details!$AA$265/$W$2,0) -> 1004 | BX29: =ROUND(+Details!$AA$268/$W$2,0) -> 21 | BY29: =ROUND(+Details!$AA$271/$W$2,0) -> 123 | BZ29: =ROUND(+Details!$AA$272/$W$2,0) -> 0 | CA29: 1856
B30: 23 | C30: =+Details!AB$4 -> 84 | D30: =+Details!AB$5 -> 83 | E30: =+Details!$AB$7 -> 2046 | F30: =ROUND(+Details!$AB$8/$W$2,0) -> 708 | G30: =ROUND(+Details!$AB$11/$W$2,0) -> 1004 | H30: =ROUND(+Details!$AB$14/$W$2,0) -> 21 | I30: =ROUND(+Details!$AB$17/$W$2,0) -> 123 | J30: =ROUND(+Details!$AB$18/$W$2,0) -> 0 | K30: 1856 | M30: =ROUND(+Details!$AB$28/$W$2,0) -> 39 | N30: =ROUND(+Details!$AB$31/$W$2,0) -> 53 | O30: =ROUND(+Details!$AB$34/$W$2,0) -> 1 | P30: =ROUND(+Details!$AB$37/$W$2,0) -> 5 | Q30: =ROUND(+Details!$AB$38/$W$2,0) -> 0 | R30: =ROUND(+Details!$AB$49/$W$2,0) -> 47 | S30: =ROUND(+Details!$AB$60/$W$2,0) -> 24 | T30: =ROUND(+Details!$AB$65/$W$2,0) -> 9 | U30: =ROUND((Details!$AB$66+Details!$AB$67)/$W$2,0) -> 17 | V30: =ROUND((Details!$AB$68+Details!$AB$69)/$W$2,0) -> 0 | W30: 195 | Y30: =ROUND(Details!$AB$144/$W$2,0) -> 130 | Z30: =ROUND(Details!$AB$145/$W$2,0) -> 17 | AA30: =ROUND(-Details!$AB$248/$W$2,0) -> 0 | AB30: =ROUND(-Details!$AB$250/$W$2,0) -> -400 | AC30: =ROUND(-Details!$AB$251/$W$2,0) -> 0 | AD30: =ROUND(-Details!$AB$252/$W$2,0) -> 0 | AE30: =ROUND(-Details!$AB$96/$W$2,0) -> 0 | AF30: =ROUND(-Details!$AB$107/$W$2,0) -> 0 | AG30: =ROUND(-Details!$AB$127/$W$2,0) -> 0 | AH30: =-ROUND(-Details!$AB$137/$W$2,0) -> 0 | AJ30: =-ROUND(Details!$AB$254/$W$2,0) -> -400 | AK30: -253 | AL30: =-ROUND(-Details!$AB$286/$W$2,0) -> 0 | AN30: 2304 | AP30: =-ROUND(+Details!$AB$94/$W$2,0) -> 28 | AQ30: =ROUND(+Details!$AB$133/$W$2,0) -> 0 | AR30: =-ROUND(+Details!$AB$91/$W$2,0) -> 0 | AS30: =-ROUND(+Details!$AB$95/$W$2,0) -> 0 | AT30: =-ROUND(+Details!$AB$96/$W$2,0) -> 0 | AU30: =-ROUND(+Details!$AB$74/$W$2,0) -> 0 | AV30: 0 | AW30: =-ROUND(+Details!$AB$102/$W$2,0) -> 31 | AX30: =-ROUND(+Details!$AB$99/$W$2,0) -> 0 | AY30: =-ROUND(+Details!$AB$103/$W$2,0) -> 0 | AZ30: =-ROUND(+Details!$AB$75/$W$2,0) -> 0 | BA30: 0 | BB30: =-ROUND(+Details!$AB$110/$W$2,0) -> 3 | BC30: =-ROUND(+Details!$AB$113/$W$2,0) -> 0 | BD30: =-ROUND(+Details!$AB$116/$W$2,0) -> 0 | BE30: 0 | BF30: =-ROUND(+Details!$AB$111/$W$2,0) -> 0 | BG30: =-ROUND(+Details!$AB$114/$W$2,0) -> 0 | BH30: =-ROUND(+Details!$AB$117/$W$2,0) -> 0 | BI30: 0 | BJ30: =-ROUND(+Details!$AB$123/$W$2,0) -> 40 | BK30: =-ROUND(+Details!$AB$126/$W$2,0) -> 0 | BL30: =-ROUND(+Details!$AB$76/$W$2,0) -> 0 | BM30: =-ROUND(+Details!$AB$127/$W$2,0) -> 0 | BN30: 40 | BO30: =-ROUND(+Details!$AB$124/$W$2,0) -> 0 | BP30: =-ROUND(+Details!$AB$134/$W$2,0) -> 0 | BQ30: =-ROUND(+Details!$AB$135/$W$2,0) -> 0 | BR30: 0 | BS30: 0 | BT30: 102 | BV30: =ROUND(+Details!$AB$262/$W$2,0) -> 1198 | BW30: =ROUND(+Details!$AB$265/$W$2,0) -> 999 | BX30: =ROUND(+Details!$AB$268/$W$2,0) -> 19 | BY30: =ROUND(+Details!$AB$271/$W$2,0) -> 88 | BZ30: =ROUND(+Details!$AB$272/$W$2,0) -> 0 | CA30: 2304
B31: 24 | C31: =+Details!AC$4 -> 85 | D31: =+Details!AC$5 -> 84 | E31: =+Details!$AC$7 -> 2047 | F31: =ROUND(+Details!$AC$8/$W$2,0) -> 1198 | G31: =ROUND(+Details!$AC$11/$W$2,0) -> 999 | H31: =ROUND(+Details!$AC$14/$W$2,0) -> 19 | I31: =ROUND(+Details!$AC$17/$W$2,0) -> 88 | J31: =ROUND(+Details!$AC$18/$W$2,0) -> 0 | K31: 2304 | M31: =ROUND(+Details!$AC$28/$W$2,0) -> 51 | N31: =ROUND(+Details!$AC$31/$W$2,0) -> 53 | O31: =ROUND(+Details!$AC$34/$W$2,0) -> 1 | P31: =ROUND(+Details!$AC$37/$W$2,0) -> 4 | Q31: =ROUND(+Details!$AC$38/$W$2,0) -> 0 | R31: =ROUND(+Details!$AC$49/$W$2,0) -> 47 | S31: =ROUND(+Details!$AC$60/$W$2,0) -> 24 | T31: =ROUND(+Details!$AC$65/$W$2,0) -> 9 | U31: =ROUND((Details!$AC$66+Details!$AC$67)/$W$2,0) -> 18 | V31: =ROUND((Details!$AC$68+Details!$AC$69)/$W$2,0) -> 0 | W31: 207 | Y31: =ROUND(Details!$AC$144/$W$2,0) -> 132 | Z31: =ROUND(Details!$AC$145/$W$2,0) -> 18 | AA31: =ROUND(-Details!$AC$248/$W$2,0) -> 0 | AB31: =ROUND(-Details!$AC$250/$W$2,0) -> 0 | AC31: =ROUND(-Details!$AC$251/$W$2,0) -> 0 | AD31: =ROUND(-Details!$AC$252/$W$2,0) -> 0 | AE31: =ROUND(-Details!$AC$96/$W$2,0) -> 0 | AF31: =ROUND(-Details!$AC$107/$W$2,0) -> 0 | AG31: =ROUND(-Details!$AC$127/$W$2,0) -> 0 | AH31: =-ROUND(-Details!$AC$137/$W$2,0) -> 0 | AJ31: =-ROUND(Details!$AC$254/$W$2,0) -> 0 | AK31: 150 | AL31: =-ROUND(-Details!$AC$286/$W$2,0) -> 0 | AN31: 2361 | AP31: =-ROUND(+Details!$AC$94/$W$2,0) -> 29 | AQ31: =ROUND(+Details!$AC$133/$W$2,0) -> 0 | AR31: =-ROUND(+Details!$AC$91/$W$2,0) -> 0 | AS31: =-ROUND(+Details!$AC$95/$W$2,0) -> 0 | AT31: =-ROUND(+Details!$AC$96/$W$2,0) -> 0 | AU31: =-ROUND(+Details!$AC$74/$W$2,0) -> 0 | AV31: 0 | AW31: =-ROUND(+Details!$AC$102/$W$2,0) -> 32 | AX31: =-ROUND(+Details!$AC$99/$W$2,0) -> 0 | AY31: =-ROUND(+Details!$AC$103/$W$2,0) -> 0 | AZ31: =-ROUND(+Details!$AC$75/$W$2,0) -> 0 | BA31: 0 | BB31: =-ROUND(+Details!$AC$110/$W$2,0) -> 3 | BC31: =-ROUND(+Details!$AC$113/$W$2,0) -> 0 | BD31: =-ROUND(+Details!$AC$116/$W$2,0) -> 0 | BE31: 0 | BF31: =-ROUND(+Details!$AC$111/$W$2,0) -> 0 | BG31: =-ROUND(+Details!$AC$114/$W$2,0) -> 0 | BH31: =-ROUND(+Details!$AC$117/$W$2,0) -> 0 | BI31: 0 | BJ31: =-ROUND(+Details!$AC$123/$W$2,0) -> 40 | BK31: =-ROUND(+Details!$AC$126/$W$2,0) -> 0 | BL31: =-ROUND(+Details!$AC$76/$W$2,0) -> 0 | BM31: =-ROUND(+Details!$AC$127/$W$2,0) -> 0 | BN31: 40 | BO31: =-ROUND(+Details!$AC$124/$W$2,0) -> 0 | BP31: =-ROUND(+Details!$AC$134/$W$2,0) -> 0 | BQ31: =-ROUND(+Details!$AC$135/$W$2,0) -> 0 | BR31: 0 | BS31: 0 | BT31: 104 | BV31: =ROUND(+Details!$AC$262/$W$2,0) -> 1300 | BW31: =ROUND(+Details!$AC$265/$W$2,0) -> 991 | BX31: =ROUND(+Details!$AC$268/$W$2,0) -> 16 | BY31: =ROUND(+Details!$AC$271/$W$2,0) -> 52 | BZ31: =ROUND(+Details!$AC$272/$W$2,0) -> 0 | CA31: 2359
B32: 25 | C32: =+Details!AD$4 -> 86 | D32: =+Details!AD$5 -> 85 | E32: =+Details!$AD$7 -> 2048 | F32: =ROUND(+Details!$AD$8/$W$2,0) -> 1300 | G32: =ROUND(+Details!$AD$11/$W$2,0) -> 991 | H32: =ROUND(+Details!$AD$14/$W$2,0) -> 16 | I32: =ROUND(+Details!$AD$17/$W$2,0) -> 52 | J32: =ROUND(+Details!$AD$18/$W$2,0) -> 0 | K32: 2359 | M32: =ROUND(+Details!$AD$28/$W$2,0) -> 56 | N32: =ROUND(+Details!$AD$31/$W$2,0) -> 52 | O32: =ROUND(+Details!$AD$34/$W$2,0) -> 1 | P32: =ROUND(+Details!$AD$37/$W$2,0) -> 1 | Q32: =ROUND(+Details!$AD$38/$W$2,0) -> 0 | R32: =ROUND(+Details!$AD$49/$W$2,0) -> 48 | S32: =ROUND(+Details!$AD$60/$W$2,0) -> 0 | T32: =ROUND(+Details!$AD$65/$W$2,0) -> 9 | U32: =ROUND((Details!$AD$66+Details!$AD$67)/$W$2,0) -> 16 | V32: =ROUND((Details!$AD$68+Details!$AD$69)/$W$2,0) -> 0 | W32: 183 | Y32: =ROUND(Details!$AD$144/$W$2,0) -> 135 | Z32: =ROUND(Details!$AD$145/$W$2,0) -> 22 | AA32: =ROUND(-Details!$AD$248/$W$2,0) -> 0 | AB32: =ROUND(-Details!$AD$250/$W$2,0) -> -100 | AC32: =ROUND(-Details!$AD$251/$W$2,0) -> 0 | AD32: =ROUND(-Details!$AD$252/$W$2,0) -> 0 | AE32: =ROUND(-Details!$AD$96/$W$2,0) -> 0 | AF32: =ROUND(-Details!$AD$107/$W$2,0) -> 0 | AG32: =ROUND(-Details!$AD$127/$W$2,0) -> 0 | AH32: =-ROUND(-Details!$AD$137/$W$2,0) -> 0 | AJ32: =-ROUND(Details!$AD$254/$W$2,0) -> -100 | AK32: 57 | AL32: =-ROUND(-Details!$AD$286/$W$2,0) -> 0 | AN32: 2485 | AP32: =-ROUND(+Details!$AD$94/$W$2,0) -> 30 | AQ32: =ROUND(+Details!$AD$133/$W$2,0) -> 0 | AR32: =-ROUND(+Details!$AD$91/$W$2,0) -> 0 | AS32: =-ROUND(+Details!$AD$95/$W$2,0) -> 0 | AT32: =-ROUND(+Details!$AD$96/$W$2,0) -> 0 | AU32: =-ROUND(+Details!$AD$74/$W$2,0) -> 0 | AV32: 0 | AW32: =-ROUND(+Details!$AD$102/$W$2,0) -> 33 | AX32: =-ROUND(+Details!$AD$99/$W$2,0) -> 0 | AY32: =-ROUND(+Details!$AD$103/$W$2,0) -> 0 | AZ32: =-ROUND(+Details!$AD$75/$W$2,0) -> 0 | BA32: 0 | BB32: =-ROUND(+Details!$AD$110/$W$2,0) -> 4 | BC32: =-ROUND(+Details!$AD$113/$W$2,0) -> 0 | BD32: =-ROUND(+Details!$AD$116/$W$2,0) -> 0 | BE32: 0 | BF32: =-ROUND(+Details!$AD$111/$W$2,0) -> 0 | BG32: =-ROUND(+Details!$AD$114/$W$2,0) -> 0 | BH32: =-ROUND(+Details!$AD$117/$W$2,0) -> 0 | BI32: 0 | BJ32: =-ROUND(+Details!$AD$123/$W$2,0) -> 37 | BK32: =-ROUND(+Details!$AD$126/$W$2,0) -> 0 | BL32: =-ROUND(+Details!$AD$76/$W$2,0) -> 0 | BM32: =-ROUND(+Details!$AD$127/$W$2,0) -> 0 | BN32: 37 | BO32: =-ROUND(+Details!$AD$124/$W$2,0) -> 0 | BP32: =-ROUND(+Details!$AD$134/$W$2,0) -> 0 | BQ32: =-ROUND(+Details!$AD$135/$W$2,0) -> 0 | BR32: 0 | BS32: 0 | BT32: 104 | BV32: =ROUND(+Details!$AD$262/$W$2,0) -> 1477 | BW32: =ROUND(+Details!$AD$265/$W$2,0) -> 979 | BX32: =ROUND(+Details!$AD$268/$W$2,0) -> 14 | BY32: =ROUND(+Details!$AD$271/$W$2,0) -> 16 | BZ32: =ROUND(+Details!$AD$272/$W$2,0) -> 0 | CA32: 2486
B33: 26 | C33: =+Details!AE$4 -> 87 | D33: =+Details!AE$5 -> 86 | E33: =+Details!$AE$7 -> 2049 | F33: =ROUND(+Details!$AE$8/$W$2,0) -> 1477 | G33: =ROUND(+Details!$AE$11/$W$2,0) -> 979 | H33: =ROUND(+Details!$AE$14/$W$2,0) -> 14 | I33: =ROUND(+Details!$AE$17/$W$2,0) -> 16 | J33: =ROUND(+Details!$AE$18/$W$2,0) -> 0 | K33: 2486 | M33: =ROUND(+Details!$AE$28/$W$2,0) -> 61 | N33: =ROUND(+Details!$AE$31/$W$2,0) -> 52 | O33: =ROUND(+Details!$AE$34/$W$2,0) -> 1 | P33: =ROUND(+Details!$AE$37/$W$2,0) -> 1 | Q33: =ROUND(+Details!$AE$38/$W$2,0) -> 0 | R33: =ROUND(+Details!$AE$49/$W$2,0) -> 49 | S33: =ROUND(+Details!$AE$60/$W$2,0) -> 0 | T33: =ROUND(+Details!$AE$65/$W$2,0) -> 9 | U33: =ROUND((Details!$AE$66+Details!$AE$67)/$W$2,0) -> 17 | V33: =ROUND((Details!$AE$68+Details!$AE$69)/$W$2,0) -> 0 | W33: 190 | Y33: =ROUND(Details!$AE$144/$W$2,0) -> 138 | Z33: =ROUND(Details!$AE$145/$W$2,0) -> 23 | AA33: =ROUND(-Details!$AE$248/$W$2,0) -> 0 | AB33: =ROUND(-Details!$AE$250/$W$2,0) -> 0 | AC33: =ROUND(-Details!$AE$251/$W$2,0) -> 0 | AD33: =ROUND(-Details!$AE$252/$W$2,0) -> 0 | AE33: =ROUND(-Details!$AE$96/$W$2,0) -> 0 | AF33: =ROUND(-Details!$AE$107/$W$2,0) -> 0 | AG33: =ROUND(-Details!$AE$127/$W$2,0) -> 0 | AH33: =-ROUND(-Details!$AE$137/$W$2,0) -> 0 | AJ33: =-ROUND(Details!$AE$254/$W$2,0) -> 0 | AK33: 161 | AL33: =-ROUND(-Details!$AE$286/$W$2,0) -> 0 | AN33: 2515 | AP33: =-ROUND(+Details!$AE$94/$W$2,0) -> 31 | AQ33: =ROUND(+Details!$AE$133/$W$2,0) -> 0 | AR33: =-ROUND(+Details!$AE$91/$W$2,0) -> 0 | AS33: =-ROUND(+Details!$AE$95/$W$2,0) -> 0 | AT33: =-ROUND(+Details!$AE$96/$W$2,0) -> 0 | AU33: =-ROUND(+Details!$AE$74/$W$2,0) -> 0 | AV33: 0 | AW33: =-ROUND(+Details!$AE$102/$W$2,0) -> 35 | AX33: =-ROUND(+Details!$AE$99/$W$2,0) -> 0 | AY33: =-ROUND(+Details!$AE$103/$W$2,0) -> 0 | AZ33: =-ROUND(+Details!$AE$75/$W$2,0) -> 0 | BA33: 0 | BB33: =-ROUND(+Details!$AE$110/$W$2,0) -> 4 | BC33: =-ROUND(+Details!$AE$113/$W$2,0) -> 0 | BD33: =-ROUND(+Details!$AE$116/$W$2,0) -> 0 | BE33: 0 | BF33: =-ROUND(+Details!$AE$111/$W$2,0) -> 0 | BG33: =-ROUND(+Details!$AE$114/$W$2,0) -> 0 | BH33: =-ROUND(+Details!$AE$117/$W$2,0) -> 0 | BI33: 0 | BJ33: =-ROUND(+Details!$AE$123/$W$2,0) -> 0 | BK33: =-ROUND(+Details!$AE$126/$W$2,0) -> 0 | BL33: =-ROUND(+Details!$AE$76/$W$2,0) -> 0 | BM33: =-ROUND(+Details!$AE$127/$W$2,0) -> 0 | BN33: 0 | BO33: =-ROUND(+Details!$AE$124/$W$2,0) -> 0 | BP33: =-ROUND(+Details!$AE$134/$W$2,0) -> 0 | BQ33: =-ROUND(+Details!$AE$135/$W$2,0) -> 0 | BR33: 0 | BS33: 0 | BT33: 70 | BV33: =ROUND(+Details!$AE$262/$W$2,0) -> 1522 | BW33: =ROUND(+Details!$AE$265/$W$2,0) -> 965 | BX33: =ROUND(+Details!$AE$268/$W$2,0) -> 11 | BY33: =ROUND(+Details!$AE$271/$W$2,0) -> 17 | BZ33: =ROUND(+Details!$AE$272/$W$2,0) -> 0 | CA33: 2515
B34: 27 | C34: =+Details!AF$4 -> 88 | D34: =+Details!AF$5 -> 87 | E34: =+Details!$AF$7 -> 2050 | F34: =ROUND(+Details!$AF$8/$W$2,0) -> 1522 | G34: =ROUND(+Details!$AF$11/$W$2,0) -> 965 | H34: =ROUND(+Details!$AF$14/$W$2,0) -> 11 | I34: =ROUND(+Details!$AF$17/$W$2,0) -> 17 | J34: =ROUND(+Details!$AF$18/$W$2,0) -> 0 | K34: 2515 | M34: =ROUND(+Details!$AF$28/$W$2,0) -> 63 | N34: =ROUND(+Details!$AF$31/$W$2,0) -> 51 | O34: =ROUND(+Details!$AF$34/$W$2,0) -> 1 | P34: =ROUND(+Details!$AF$37/$W$2,0) -> 1 | Q34: =ROUND(+Details!$AF$38/$W$2,0) -> 0 | R34: =ROUND(+Details!$AF$49/$W$2,0) -> 50 | S34: =ROUND(+Details!$AF$60/$W$2,0) -> 0 | T34: =ROUND(+Details!$AF$65/$W$2,0) -> 9 | U34: =ROUND((Details!$AF$66+Details!$AF$67)/$W$2,0) -> 17 | V34: =ROUND((Details!$AF$68+Details!$AF$69)/$W$2,0) -> 0 | W34: 192 | Y34: =ROUND(Details!$AF$144/$W$2,0) -> 140 | Z34: =ROUND(Details!$AF$145/$W$2,0) -> 24 | AA34: =ROUND(-Details!$AF$248/$W$2,0) -> 0 | AB34: =ROUND(-Details!$AF$250/$W$2,0) -> 0 | AC34: =ROUND(-Details!$AF$251/$W$2,0) -> 0 | AD34: =ROUND(-Details!$AF$252/$W$2,0) -> 0 | AE34: =ROUND(-Details!$AF$96/$W$2,0) -> 0 | AF34: =ROUND(-Details!$AF$107/$W$2,0) -> 0 | AG34: =ROUND(-Details!$AF$127/$W$2,0) -> 0 | AH34: =-ROUND(-Details!$AF$137/$W$2,0) -> 0 | AJ34: =-ROUND(Details!$AF$254/$W$2,0) -> 0 | AK34: 164 | AL34: =-ROUND(-Details!$AF$286/$W$2,0) -> 0 | AN34: 2543 | AP34: =-ROUND(+Details!$AF$94/$W$2,0) -> 32 | AQ34: =ROUND(+Details!$AF$133/$W$2,0) -> 0 | AR34: =-ROUND(+Details!$AF$91/$W$2,0) -> 0 | AS34: =-ROUND(+Details!$AF$95/$W$2,0) -> 0 | AT34: =-ROUND(+Details!$AF$96/$W$2,0) -> 0 | AU34: =-ROUND(+Details!$AF$74/$W$2,0) -> 0 | AV34: 0 | AW34: =-ROUND(+Details!$AF$102/$W$2,0) -> 36 | AX34: =-ROUND(+Details!$AF$99/$W$2,0) -> 0 | AY34: =-ROUND(+Details!$AF$103/$W$2,0) -> 0 | AZ34: =-ROUND(+Details!$AF$75/$W$2,0) -> 0 | BA34: 0 | BB34: =-ROUND(+Details!$AF$110/$W$2,0) -> 4 | BC34: =-ROUND(+Details!$AF$113/$W$2,0) -> 0 | BD34: =-ROUND(+Details!$AF$116/$W$2,0) -> 0 | BE34: 0 | BF34: =-ROUND(+Details!$AF$111/$W$2,0) -> 0 | BG34: =-ROUND(+Details!$AF$114/$W$2,0) -> 0 | BH34: =-ROUND(+Details!$AF$117/$W$2,0) -> 0 | BI34: 0 | BJ34: =-ROUND(+Details!$AF$123/$W$2,0) -> 0 | BK34: =-ROUND(+Details!$AF$126/$W$2,0) -> 0 | BL34: =-ROUND(+Details!$AF$76/$W$2,0) -> 0 | BM34: =-ROUND(+Details!$AF$127/$W$2,0) -> 0 | BN34: 0 | BO34: =-ROUND(+Details!$AF$124/$W$2,0) -> 0 | BP34: =-ROUND(+Details!$AF$134/$W$2,0) -> 0 | BQ34: =-ROUND(+Details!$AF$135/$W$2,0) -> 0 | BR34: 0 | BS34: 0 | BT34: 72 | BV34: =ROUND(+Details!$AF$262/$W$2,0) -> 1569 | BW34: =ROUND(+Details!$AF$265/$W$2,0) -> 947 | BX34: =ROUND(+Details!$AF$268/$W$2,0) -> 7 | BY34: =ROUND(+Details!$AF$271/$W$2,0) -> 18 | BZ34: =ROUND(+Details!$AF$272/$W$2,0) -> 0 | CA34: 2541
B35: 28 | C35: =+Details!AG$4 -> 89 | D35: =+Details!AG$5 -> 88 | E35: =+Details!$AG$7 -> 2051 | F35: =ROUND(+Details!$AG$8/$W$2,0) -> 1569 | G35: =ROUND(+Details!$AG$11/$W$2,0) -> 947 | H35: =ROUND(+Details!$AG$14/$W$2,0) -> 7 | I35: =ROUND(+Details!$AG$17/$W$2,0) -> 18 | J35: =ROUND(+Details!$AG$18/$W$2,0) -> 0 | K35: 2541 | M35: =ROUND(+Details!$AG$28/$W$2,0) -> 65 | N35: =ROUND(+Details!$AG$31/$W$2,0) -> 50 | O35: =ROUND(+Details!$AG$34/$W$2,0) -> 0 | P35: =ROUND(+Details!$AG$37/$W$2,0) -> 1 | Q35: =ROUND(+Details!$AG$38/$W$2,0) -> 0 | R35: =ROUND(+Details!$AG$49/$W$2,0) -> 51 | S35: =ROUND(+Details!$AG$60/$W$2,0) -> 0 | T35: =ROUND(+Details!$AG$65/$W$2,0) -> 9 | U35: =ROUND((Details!$AG$66+Details!$AG$67)/$W$2,0) -> 18 | V35: =ROUND((Details!$AG$68+Details!$AG$69)/$W$2,0) -> 0 | W35: 194 | Y35: =ROUND(Details!$AG$144/$W$2,0) -> 143 | Z35: =ROUND(Details!$AG$145/$W$2,0) -> 25 | AA35: =ROUND(-Details!$AG$248/$W$2,0) -> 0 | AB35: =ROUND(-Details!$AG$250/$W$2,0) -> 0 | AC35: =ROUND(-Details!$AG$251/$W$2,0) -> 0 | AD35: =ROUND(-Details!$AG$252/$W$2,0) -> 0 | AE35: =ROUND(-Details!$AG$96/$W$2,0) -> 0 | AF35: =ROUND(-Details!$AG$107/$W$2,0) -> 0 | AG35: =ROUND(-Details!$AG$127/$W$2,0) -> 0 | AH35: =-ROUND(-Details!$AG$137/$W$2,0) -> 0 | AJ35: =-ROUND(Details!$AG$254/$W$2,0) -> 0 | AK35: 168 | AL35: =-ROUND(-Details!$AG$286/$W$2,0) -> 0 | AN35: 2567 | AP35: =-ROUND(+Details!$AG$94/$W$2,0) -> 34 | AQ35: =ROUND(+Details!$AG$133/$W$2,0) -> 0 | AR35: =-ROUND(+Details!$AG$91/$W$2,0) -> 0 | AS35: =-ROUND(+Details!$AG$95/$W$2,0) -> 0 | AT35: =-ROUND(+Details!$AG$96/$W$2,0) -> 0 | AU35: =-ROUND(+Details!$AG$74/$W$2,0) -> 0 | AV35: 0 | AW35: =-ROUND(+Details!$AG$102/$W$2,0) -> 37 | AX35: =-ROUND(+Details!$AG$99/$W$2,0) -> 0 | AY35: =-ROUND(+Details!$AG$103/$W$2,0) -> 0 | AZ35: =-ROUND(+Details!$AG$75/$W$2,0) -> 0 | BA35: 0 | BB35: =-ROUND(+Details!$AG$110/$W$2,0) -> 4 | BC35: =-ROUND(+Details!$AG$113/$W$2,0) -> 0 | BD35: =-ROUND(+Details!$AG$116/$W$2,0) -> 0 | BE35: 0 | BF35: =-ROUND(+Details!$AG$111/$W$2,0) -> 0 | BG35: =-ROUND(+Details!$AG$114/$W$2,0) -> 0 | BH35: =-ROUND(+Details!$AG$117/$W$2,0) -> 0 | BI35: 0 | BJ35: =-ROUND(+Details!$AG$123/$W$2,0) -> 0 | BK35: =-ROUND(+Details!$AG$126/$W$2,0) -> 0 | BL35: =-ROUND(+Details!$AG$76/$W$2,0) -> 0 | BM35: =-ROUND(+Details!$AG$127/$W$2,0) -> 0 | BN35: 0 | BO35: =-ROUND(+Details!$AG$124/$W$2,0) -> 0 | BP35: =-ROUND(+Details!$AG$134/$W$2,0) -> 0 | BQ35: =-ROUND(+Details!$AG$135/$W$2,0) -> 0 | BR35: 0 | BS35: 0 | BT35: 75 | BV35: =ROUND(+Details!$AG$262/$W$2,0) -> 1619 | BW35: =ROUND(+Details!$AG$265/$W$2,0) -> 925 | BX35: =ROUND(+Details!$AG$268/$W$2,0) -> 3 | BY35: =ROUND(+Details!$AG$271/$W$2,0) -> 19 | BZ35: =ROUND(+Details!$AG$272/$W$2,0) -> 0 | CA35: 2566
B36: 29 | C36: =+Details!AH$4 -> 90 | D36: =+Details!AH$5 -> 89 | E36: =+Details!$AH$7 -> 2052 | F36: =ROUND(+Details!$AH$8/$W$2,0) -> 1619 | G36: =ROUND(+Details!$AH$11/$W$2,0) -> 925 | H36: =ROUND(+Details!$AH$14/$W$2,0) -> 3 | I36: =ROUND(+Details!$AH$17/$W$2,0) -> 19 | J36: =ROUND(+Details!$AH$18/$W$2,0) -> 0 | K36: 2566 | M36: =ROUND(+Details!$AH$28/$W$2,0) -> 67 | N36: =ROUND(+Details!$AH$31/$W$2,0) -> 48 | O36: =ROUND(+Details!$AH$34/$W$2,0) -> 0 | P36: =ROUND(+Details!$AH$37/$W$2,0) -> 1 | Q36: =ROUND(+Details!$AH$38/$W$2,0) -> 0 | R36: =ROUND(+Details!$AH$49/$W$2,0) -> 52 | S36: =ROUND(+Details!$AH$60/$W$2,0) -> 0 | T36: =ROUND(+Details!$AH$65/$W$2,0) -> 9 | U36: =ROUND((Details!$AH$66+Details!$AH$67)/$W$2,0) -> 18 | V36: =ROUND((Details!$AH$68+Details!$AH$69)/$W$2,0) -> 0 | W36: 195 | Y36: =ROUND(Details!$AH$144/$W$2,0) -> 146 | Z36: =ROUND(Details!$AH$145/$W$2,0) -> 25 | AA36: =ROUND(-Details!$AH$248/$W$2,0) -> 0 | AB36: =ROUND(-Details!$AH$250/$W$2,0) -> 0 | AC36: =ROUND(-Details!$AH$251/$W$2,0) -> 0 | AD36: =ROUND(-Details!$AH$252/$W$2,0) -> 0 | AE36: =ROUND(-Details!$AH$96/$W$2,0) -> 0 | AF36: =ROUND(-Details!$AH$107/$W$2,0) -> 0 | AG36: =ROUND(-Details!$AH$127/$W$2,0) -> 0 | AH36: =-ROUND(-Details!$AH$137/$W$2,0) -> 0 | AJ36: =-ROUND(Details!$AH$254/$W$2,0) -> 0 | AK36: 171 | AL36: =-ROUND(-Details!$AH$286/$W$2,0) -> 0 | AN36: 2590 | AP36: =-ROUND(+Details!$AH$94/$W$2,0) -> 35 | AQ36: =ROUND(+Details!$AH$133/$W$2,0) -> 0 | AR36: =-ROUND(+Details!$AH$91/$W$2,0) -> 0 | AS36: =-ROUND(+Details!$AH$95/$W$2,0) -> 0 | AT36: =-ROUND(+Details!$AH$96/$W$2,0) -> 0 | AU36: =-ROUND(+Details!$AH$74/$W$2,0) -> 0 | AV36: 0 | AW36: =-ROUND(+Details!$AH$102/$W$2,0) -> 39 | AX36: =-ROUND(+Details!$AH$99/$W$2,0) -> 0 | AY36: =-ROUND(+Details!$AH$103/$W$2,0) -> 0 | AZ36: =-ROUND(+Details!$AH$75/$W$2,0) -> 0 | BA36: 0 | BB36: =-ROUND(+Details!$AH$110/$W$2,0) -> 3 | BC36: =-ROUND(+Details!$AH$113/$W$2,0) -> 0 | BD36: =-ROUND(+Details!$AH$116/$W$2,0) -> 0 | BE36: 0 | BF36: =-ROUND(+Details!$AH$111/$W$2,0) -> 0 | BG36: =-ROUND(+Details!$AH$114/$W$2,0) -> 0 | BH36: =-ROUND(+Details!$AH$117/$W$2,0) -> 0 | BI36: 0 | BJ36: =-ROUND(+Details!$AH$123/$W$2,0) -> 0 | BK36: =-ROUND(+Details!$AH$126/$W$2,0) -> 0 | BL36: =-ROUND(+Details!$AH$76/$W$2,0) -> 0 | BM36: =-ROUND(+Details!$AH$127/$W$2,0) -> 0 | BN36: 0 | BO36: =-ROUND(+Details!$AH$124/$W$2,0) -> 0 | BP36: =-ROUND(+Details!$AH$134/$W$2,0) -> 0 | BQ36: =-ROUND(+Details!$AH$135/$W$2,0) -> 0 | BR36: 0 | BS36: 0 | BT36: 77 | BV36: =ROUND(+Details!$AH$262/$W$2,0) -> 1670 | BW36: =ROUND(+Details!$AH$265/$W$2,0) -> 900 | BX36: =ROUND(+Details!$AH$268/$W$2,0) -> 0 | BY36: =ROUND(+Details!$AH$271/$W$2,0) -> 20 | BZ36: =ROUND(+Details!$AH$272/$W$2,0) -> 0 | CA36: 2590
B37: 30 | C37: =+Details!AI$4 -> 91 | D37: =+Details!AI$5 -> 90 | E37: =+Details!$AI$7 -> 2053 | F37: =ROUND(+Details!$AI$8/$W$2,0) -> 1670 | G37: =ROUND(+Details!$AI$11/$W$2,0) -> 900 | H37: =ROUND(+Details!$AI$14/$W$2,0) -> 0 | I37: =ROUND(+Details!$AI$17/$W$2,0) -> 20 | J37: =ROUND(+Details!$AI$18/$W$2,0) -> 0 | K37: 2590 | M37: =ROUND(+Details!$AI$28/$W$2,0) -> 69 | N37: =ROUND(+Details!$AI$31/$W$2,0) -> 47 | O37: =ROUND(+Details!$AI$34/$W$2,0) -> 0 | P37: =ROUND(+Details!$AI$37/$W$2,0) -> 1 | Q37: =ROUND(+Details!$AI$38/$W$2,0) -> 0 | R37: =ROUND(+Details!$AI$49/$W$2,0) -> 53 | S37: =ROUND(+Details!$AI$60/$W$2,0) -> 0 | T37: =ROUND(+Details!$AI$65/$W$2,0) -> 9 | U37: =ROUND((Details!$AI$66+Details!$AI$67)/$W$2,0) -> 19 | V37: =ROUND((Details!$AI$68+Details!$AI$69)/$W$2,0) -> 0 | W37: 198 | Y37: =ROUND(Details!$AI$144/$W$2,0) -> 149 | Z37: =ROUND(Details!$AI$145/$W$2,0) -> 25 | AA37: =ROUND(-Details!$AI$248/$W$2,0) -> 0 | AB37: =ROUND(-Details!$AI$250/$W$2,0) -> 0 | AC37: =ROUND(-Details!$AI$251/$W$2,0) -> 0 | AD37: =ROUND(-Details!$AI$252/$W$2,0) -> 0 | AE37: =ROUND(-Details!$AI$96/$W$2,0) -> 0 | AF37: =ROUND(-Details!$AI$107/$W$2,0) -> 0 | AG37: =ROUND(-Details!$AI$127/$W$2,0) -> 0 | AH37: =-ROUND(-Details!$AI$137/$W$2,0) -> 0 | AJ37: =-ROUND(Details!$AI$254/$W$2,0) -> 0 | AK37: 174 | AL37: =-ROUND(-Details!$AI$286/$W$2,0) -> 0 | AN37: 2614 | AP37: =-ROUND(+Details!$AI$94/$W$2,0) -> 36 | AQ37: =ROUND(+Details!$AI$133/$W$2,0) -> 0 | AR37: =-ROUND(+Details!$AI$91/$W$2,0) -> 0 | AS37: =-ROUND(+Details!$AI$95/$W$2,0) -> 0 | AT37: =-ROUND(+Details!$AI$96/$W$2,0) -> 0 | AU37: =-ROUND(+Details!$AI$74/$W$2,0) -> 0 | AV37: 0 | AW37: =-ROUND(+Details!$AI$102/$W$2,0) -> 40 | AX37: =-ROUND(+Details!$AI$99/$W$2,0) -> 0 | AY37: =-ROUND(+Details!$AI$103/$W$2,0) -> 0 | AZ37: =-ROUND(+Details!$AI$75/$W$2,0) -> 0 | BA37: 0 | BB37: =-ROUND(+Details!$AI$110/$W$2,0) -> 0 | BC37: =-ROUND(+Details!$AI$113/$W$2,0) -> 0 | BD37: =-ROUND(+Details!$AI$116/$W$2,0) -> 0 | BE37: 0 | BF37: =-ROUND(+Details!$AI$111/$W$2,0) -> 0 | BG37: =-ROUND(+Details!$AI$114/$W$2,0) -> 0 | BH37: =-ROUND(+Details!$AI$117/$W$2,0) -> 0 | BI37: 0 | BJ37: =-ROUND(+Details!$AI$123/$W$2,0) -> 0 | BK37: =-ROUND(+Details!$AI$126/$W$2,0) -> 0 | BL37: =-ROUND(+Details!$AI$76/$W$2,0) -> 0 | BM37: =-ROUND(+Details!$AI$127/$W$2,0) -> 0 | BN37: 0 | BO37: =-ROUND(+Details!$AI$124/$W$2,0) -> 0 | BP37: =-ROUND(+Details!$AI$134/$W$2,0) -> 0 | BQ37: =-ROUND(+Details!$AI$135/$W$2,0) -> 0 | BR37: 0 | BS37: 0 | BT37: 76 | BV37: =ROUND(+Details!$AI$262/$W$2,0) -> 1722 | BW37: =ROUND(+Details!$AI$265/$W$2,0) -> 871 | BX37: =ROUND(+Details!$AI$268/$W$2,0) -> 0 | BY37: =ROUND(+Details!$AI$271/$W$2,0) -> 21 | BZ37: =ROUND(+Details!$AI$272/$W$2,0) -> 0 | CA37: 2614
B38: 31 | C38: =+Details!AJ$4 -> 92 | D38: =+Details!AJ$5 -> 91 | E38: =+Details!$AJ$7 -> 2054 | F38: =ROUND(+Details!$AJ$8/$W$2,0) -> 0 | G38: =ROUND(+Details!$AJ$11/$W$2,0) -> 0 | H38: =ROUND(+Details!$AJ$14/$W$2,0) -> 0 | I38: =ROUND(+Details!$AJ$17/$W$2,0) -> 0 | J38: =ROUND(+Details!$AJ$18/$W$2,0) -> 0 | K38: 0 | M38: =ROUND(+Details!$AJ$28/$W$2,0) -> 0 | N38: =ROUND(+Details!$AJ$31/$W$2,0) -> 0 | O38: =ROUND(+Details!$AJ$34/$W$2,0) -> 0 | P38: =ROUND(+Details!$AJ$37/$W$2,0) -> 0 | Q38: =ROUND(+Details!$AJ$38/$W$2,0) -> 0 | R38: =ROUND(+Details!$AJ$49/$W$2,0) -> 0 | S38: =ROUND(+Details!$AJ$60/$W$2,0) -> 0 | T38: =ROUND(+Details!$AJ$65/$W$2,0) -> 0 | U38: =ROUND((Details!$AJ$66+Details!$AJ$67)/$W$2,0) -> 0 | V38: =ROUND((Details!$AJ$68+Details!$AJ$69)/$W$2,0) -> 0 | W38: 0 | Y38: =ROUND(Details!$AJ$144/$W$2,0) -> 0 | Z38: =ROUND(Details!$AJ$145/$W$2,0) -> 0 | AA38: =ROUND(-Details!$AJ$248/$W$2,0) -> 0 | AB38: =ROUND(-Details!$AJ$250/$W$2,0) -> 0 | AC38: =ROUND(-Details!$AJ$251/$W$2,0) -> 0 | AD38: =ROUND(-Details!$AJ$252/$W$2,0) -> 0 | AE38: =ROUND(-Details!$AJ$96/$W$2,0) -> 0 | AF38: =ROUND(-Details!$AJ$107/$W$2,0) -> 0 | AG38: =ROUND(-Details!$AJ$127/$W$2,0) -> 0 | AH38: =-ROUND(-Details!$AJ$137/$W$2,0) -> 0 | AJ38: =-ROUND(Details!$AJ$254/$W$2,0) -> 0 | AK38: 0 | AL38: =-ROUND(-Details!$AJ$286/$W$2,0) -> 0 | AN38: 0 | AP38: =-ROUND(+Details!$AJ$94/$W$2,0) -> 0 | AQ38: =ROUND(+Details!$AJ$133/$W$2,0) -> 0 | AR38: =-ROUND(+Details!$AJ$91/$W$2,0) -> 0 | AS38: =-ROUND(+Details!$AJ$95/$W$2,0) -> 0 | AT38: =-ROUND(+Details!$AJ$96/$W$2,0) -> 0 | AU38: =-ROUND(+Details!$AJ$74/$W$2,0) -> 0 | AV38: 0 | AW38: =-ROUND(+Details!$AJ$102/$W$2,0) -> 0 | AX38: =-ROUND(+Details!$AJ$99/$W$2,0) -> 0 | AY38: =-ROUND(+Details!$AJ$103/$W$2,0) -> 0 | AZ38: =-ROUND(+Details!$AJ$75/$W$2,0) -> 0 | BA38: 0 | BB38: =-ROUND(+Details!$AJ$110/$W$2,0) -> 0 | BC38: =-ROUND(+Details!$AJ$113/$W$2,0) -> 0 | BD38: =-ROUND(+Details!$AJ$116/$W$2,0) -> 0 | BE38: 0 | BF38: =-ROUND(+Details!$AJ$111/$W$2,0) -> 0 | BG38: =-ROUND(+Details!$AJ$114/$W$2,0) -> 0 | BH38: =-ROUND(+Details!$AJ$117/$W$2,0) -> 0 | BI38: 0 | BJ38: =-ROUND(+Details!$AJ$123/$W$2,0) -> 0 | BK38: =-ROUND(+Details!$AJ$126/$W$2,0) -> 0 | BL38: =-ROUND(+Details!$AJ$76/$W$2,0) -> 0 | BM38: =-ROUND(+Details!$AJ$127/$W$2,0) -> 0 | BN38: 0 | BO38: =-ROUND(+Details!$AJ$124/$W$2,0) -> 0 | BP38: =-ROUND(+Details!$AJ$134/$W$2,0) -> 0 | BQ38: =-ROUND(+Details!$AJ$135/$W$2,0) -> 0 | BR38: 0 | BS38: 0 | BT38: 0 | BV38: =ROUND(+Details!$AJ$262/$W$2,0) -> 0 | BW38: =ROUND(+Details!$AJ$265/$W$2,0) -> 0 | BX38: =ROUND(+Details!$AJ$268/$W$2,0) -> 0 | BY38: =ROUND(+Details!$AJ$271/$W$2,0) -> 0 | BZ38: =ROUND(+Details!$AJ$272/$W$2,0) -> 0 | CA38: 0
B39: 32 | C39: =+Details!AK$4 -> 93 | D39: =+Details!AK$5 -> 92 | E39: =+Details!$AK$7 -> 2055 | F39: =ROUND(+Details!$AK$8/$W$2,0) -> 0 | G39: =ROUND(+Details!$AK$11/$W$2,0) -> 0 | H39: =ROUND(+Details!$AK$14/$W$2,0) -> 0 | I39: =ROUND(+Details!$AK$17/$W$2,0) -> 0 | J39: =ROUND(+Details!$AK$18/$W$2,0) -> 0 | K39: 0 | M39: =ROUND(+Details!$AK$28/$W$2,0) -> 0 | N39: =ROUND(+Details!$AK$31/$W$2,0) -> 0 | O39: =ROUND(+Details!$AK$34/$W$2,0) -> 0 | P39: =ROUND(+Details!$AK$37/$W$2,0) -> 0 | Q39: =ROUND(+Details!$AK$38/$W$2,0) -> 0 | R39: =ROUND(+Details!$AK$49/$W$2,0) -> 0 | S39: =ROUND(+Details!$AK$60/$W$2,0) -> 0 | T39: =ROUND(+Details!$AK$65/$W$2,0) -> 0 | U39: =ROUND((Details!$AK$66+Details!$AK$67)/$W$2,0) -> 0 | V39: =ROUND((Details!$AK$68+Details!$AK$69)/$W$2,0) -> 0 | W39: 0 | Y39: =ROUND(Details!$AK$144/$W$2,0) -> 0 | Z39: =ROUND(Details!$AK$145/$W$2,0) -> 0 | AA39: =ROUND(-Details!$AK$248/$W$2,0) -> 0 | AB39: =ROUND(-Details!$AK$250/$W$2,0) -> 0 | AC39: =ROUND(-Details!$AK$251/$W$2,0) -> 0 | AD39: =ROUND(-Details!$AK$252/$W$2,0) -> 0 | AE39: =ROUND(-Details!$AK$96/$W$2,0) -> 0 | AF39: =ROUND(-Details!$AK$107/$W$2,0) -> 0 | AG39: =ROUND(-Details!$AK$127/$W$2,0) -> 0 | AH39: =-ROUND(-Details!$AK$137/$W$2,0) -> 0 | AJ39: =-ROUND(Details!$AK$254/$W$2,0) -> 0 | AK39: 0 | AL39: =-ROUND(-Details!$AK$286/$W$2,0) -> 0 | AN39: 0 | AP39: =-ROUND(+Details!$AK$94/$W$2,0) -> 0 | AQ39: =ROUND(+Details!$AK$133/$W$2,0) -> 0 | AR39: =-ROUND(+Details!$AK$91/$W$2,0) -> 0 | AS39: =-ROUND(+Details!$AK$95/$W$2,0) -> 0 | AT39: =-ROUND(+Details!$AK$96/$W$2,0) -> 0 | AU39: =-ROUND(+Details!$AK$74/$W$2,0) -> 0 | AV39: 0 | AW39: =-ROUND(+Details!$AK$102/$W$2,0) -> 0 | AX39: =-ROUND(+Details!$AK$99/$W$2,0) -> 0 | AY39: =-ROUND(+Details!$AK$103/$W$2,0) -> 0 | AZ39: =-ROUND(+Details!$AK$75/$W$2,0) -> 0 | BA39: 0 | BB39: =-ROUND(+Details!$AK$110/$W$2,0) -> 0 | BC39: =-ROUND(+Details!$AK$113/$W$2,0) -> 0 | BD39: =-ROUND(+Details!$AK$116/$W$2,0) -> 0 | BE39: 0 | BF39: =-ROUND(+Details!$AK$111/$W$2,0) -> 0 | BG39: =-ROUND(+Details!$AK$114/$W$2,0) -> 0 | BH39: =-ROUND(+Details!$AK$117/$W$2,0) -> 0 | BI39: 0 | BJ39: =-ROUND(+Details!$AK$123/$W$2,0) -> 0 | BK39: =-ROUND(+Details!$AK$126/$W$2,0) -> 0 | BL39: =-ROUND(+Details!$AK$76/$W$2,0) -> 0 | BM39: =-ROUND(+Details!$AK$127/$W$2,0) -> 0 | BN39: 0 | BO39: =-ROUND(+Details!$AK$124/$W$2,0) -> 0 | BP39: =-ROUND(+Details!$AK$134/$W$2,0) -> 0 | BQ39: =-ROUND(+Details!$AK$135/$W$2,0) -> 0 | BR39: 0 | BS39: 0 | BT39: 0 | BV39: =ROUND(+Details!$AK$262/$W$2,0) -> 0 | BW39: =ROUND(+Details!$AK$265/$W$2,0) -> 0 | BX39: =ROUND(+Details!$AK$268/$W$2,0) -> 0 | BY39: =ROUND(+Details!$AK$271/$W$2,0) -> 0 | BZ39: =ROUND(+Details!$AK$272/$W$2,0) -> 0 | CA39: 0
B40: 33 | C40: =+Details!AL$4 -> 94 | D40: =+Details!AL$5 -> 93 | E40: =+Details!$AL$7 -> 2056 | F40: =ROUND(+Details!$AL$8/$W$2,0) -> 0 | G40: =ROUND(+Details!$AL$11/$W$2,0) -> 0 | H40: =ROUND(+Details!$AL$14/$W$2,0) -> 0 | I40: =ROUND(+Details!$AL$17/$W$2,0) -> 0 | J40: =ROUND(+Details!$AL$18/$W$2,0) -> 0 | K40: 0 | M40: =ROUND(+Details!$AL$28/$W$2,0) -> 0 | N40: =ROUND(+Details!$AL$31/$W$2,0) -> 0 | O40: =ROUND(+Details!$AL$34/$W$2,0) -> 0 | P40: =ROUND(+Details!$AL$37/$W$2,0) -> 0 | Q40: =ROUND(+Details!$AL$38/$W$2,0) -> 0 | R40: =ROUND(+Details!$AL$49/$W$2,0) -> 0 | S40: =ROUND(+Details!$AL$60/$W$2,0) -> 0 | T40: =ROUND(+Details!$AL$65/$W$2,0) -> 0 | U40: =ROUND((Details!$AL$66+Details!$AL$67)/$W$2,0) -> 0 | V40: =ROUND((Details!$AL$68+Details!$AL$69)/$W$2,0) -> 0 | W40: 0 | Y40: =ROUND(Details!$AL$144/$W$2,0) -> 0 | Z40: =ROUND(Details!$AL$145/$W$2,0) -> 0 | AA40: =ROUND(-Details!$AL$248/$W$2,0) -> 0 | AB40: =ROUND(-Details!$AL$250/$W$2,0) -> 0 | AC40: =ROUND(-Details!$AL$251/$W$2,0) -> 0 | AD40: =ROUND(-Details!$AL$252/$W$2,0) -> 0 | AE40: =ROUND(-Details!$AL$96/$W$2,0) -> 0 | AF40: =ROUND(-Details!$AL$107/$W$2,0) -> 0 | AG40: =ROUND(-Details!$AL$127/$W$2,0) -> 0 | AH40: =-ROUND(-Details!$AL$137/$W$2,0) -> 0 | AJ40: =-ROUND(Details!$AL$254/$W$2,0) -> 0 | AK40: 0 | AL40: =-ROUND(-Details!$AL$286/$W$2,0) -> 0 | AN40: 0 | AP40: =-ROUND(+Details!$AL$94/$W$2,0) -> 0 | AQ40: =ROUND(+Details!$AL$133/$W$2,0) -> 0 | AR40: =-ROUND(+Details!$AL$91/$W$2,0) -> 0 | AS40: =-ROUND(+Details!$AL$95/$W$2,0) -> 0 | AT40: =-ROUND(+Details!$AL$96/$W$2,0) -> 0 | AU40: =-ROUND(+Details!$AL$74/$W$2,0) -> 0 | AV40: 0 | AW40: =-ROUND(+Details!$AL$102/$W$2,0) -> 0 | AX40: =-ROUND(+Details!$AL$99/$W$2,0) -> 0 | AY40: =-ROUND(+Details!$AL$103/$W$2,0) -> 0 | AZ40: =-ROUND(+Details!$AL$75/$W$2,0) -> 0 | BA40: 0 | BB40: =-ROUND(+Details!$AL$110/$W$2,0) -> 0 | BC40: =-ROUND(+Details!$AL$113/$W$2,0) -> 0 | BD40: =-ROUND(+Details!$AL$116/$W$2,0) -> 0 | BE40: 0 | BF40: =-ROUND(+Details!$AL$111/$W$2,0) -> 0 | BG40: =-ROUND(+Details!$AL$114/$W$2,0) -> 0 | BH40: =-ROUND(+Details!$AL$117/$W$2,0) -> 0 | BI40: 0 | BJ40: =-ROUND(+Details!$AL$123/$W$2,0) -> 0 | BK40: =-ROUND(+Details!$AL$126/$W$2,0) -> 0 | BL40: =-ROUND(+Details!$AL$76/$W$2,0) -> 0 | BM40: =-ROUND(+Details!$AL$127/$W$2,0) -> 0 | BN40: 0 | BO40: =-ROUND(+Details!$AL$124/$W$2,0) -> 0 | BP40: =-ROUND(+Details!$AL$134/$W$2,0) -> 0 | BQ40: =-ROUND(+Details!$AL$135/$W$2,0) -> 0 | BR40: 0 | BS40: 0 | BT40: 0 | BV40: =ROUND(+Details!$AL$262/$W$2,0) -> 0 | BW40: =ROUND(+Details!$AL$265/$W$2,0) -> 0 | BX40: =ROUND(+Details!$AL$268/$W$2,0) -> 0 | BY40: =ROUND(+Details!$AL$271/$W$2,0) -> 0 | BZ40: =ROUND(+Details!$AL$272/$W$2,0) -> 0 | CA40: 0
B41: 34 | C41: =+Details!AM$4 -> 95 | D41: =+Details!AM$5 -> 94 | E41: =+Details!$AM$7 -> 2057 | F41: =ROUND(+Details!$AM$8/$W$2,0) -> 0 | G41: =ROUND(+Details!$AM$11/$W$2,0) -> 0 | H41: =ROUND(+Details!$AM$14/$W$2,0) -> 0 | I41: =ROUND(+Details!$AM$17/$W$2,0) -> 0 | J41: =ROUND(+Details!$AM$18/$W$2,0) -> 0 | K41: 0 | M41: =ROUND(+Details!$AM$28/$W$2,0) -> 0 | N41: =ROUND(+Details!$AM$31/$W$2,0) -> 0 | O41: =ROUND(+Details!$AM$34/$W$2,0) -> 0 | P41: =ROUND(+Details!$AM$37/$W$2,0) -> 0 | Q41: =ROUND(+Details!$AM$38/$W$2,0) -> 0 | R41: =ROUND(+Details!$AM$49/$W$2,0) -> 0 | S41: =ROUND(+Details!$AM$60/$W$2,0) -> 0 | T41: =ROUND(+Details!$AM$65/$W$2,0) -> 0 | U41: =ROUND((Details!$AM$66+Details!$AM$67)/$W$2,0) -> 0 | V41: =ROUND((Details!$AM$68+Details!$AM$69)/$W$2,0) -> 0 | W41: 0 | Y41: =ROUND(Details!$AM$144/$W$2,0) -> 0 | Z41: =ROUND(Details!$AM$145/$W$2,0) -> 0 | AA41: =ROUND(-Details!$AM$248/$W$2,0) -> 0 | AB41: =ROUND(-Details!$AM$250/$W$2,0) -> 0 | AC41: =ROUND(-Details!$AM$251/$W$2,0) -> 0 | AD41: =ROUND(-Details!$AM$252/$W$2,0) -> 0 | AE41: =ROUND(-Details!$AM$96/$W$2,0) -> 0 | AF41: =ROUND(-Details!$AM$107/$W$2,0) -> 0 | AG41: =ROUND(-Details!$AM$127/$W$2,0) -> 0 | AH41: =-ROUND(-Details!$AM$137/$W$2,0) -> 0 | AJ41: =-ROUND(Details!$AM$254/$W$2,0) -> 0 | AK41: 0 | AL41: =-ROUND(-Details!$AM$286/$W$2,0) -> 0 | AN41: 0 | AP41: =-ROUND(+Details!$AM$94/$W$2,0) -> 0 | AQ41: =ROUND(+Details!$AM$133/$W$2,0) -> 0 | AR41: =-ROUND(+Details!$AM$91/$W$2,0) -> 0 | AS41: =-ROUND(+Details!$AM$95/$W$2,0) -> 0 | AT41: =-ROUND(+Details!$AM$96/$W$2,0) -> 0 | AU41: =-ROUND(+Details!$AM$74/$W$2,0) -> 0 | AV41: 0 | AW41: =-ROUND(+Details!$AM$102/$W$2,0) -> 0 | AX41: =-ROUND(+Details!$AM$99/$W$2,0) -> 0 | AY41: =-ROUND(+Details!$AM$103/$W$2,0) -> 0 | AZ41: =-ROUND(+Details!$AM$75/$W$2,0) -> 0 | BA41: 0 | BB41: =-ROUND(+Details!$AM$110/$W$2,0) -> 0 | BC41: =-ROUND(+Details!$AM$113/$W$2,0) -> 0 | BD41: =-ROUND(+Details!$AM$116/$W$2,0) -> 0 | BE41: 0 | BF41: =-ROUND(+Details!$AM$111/$W$2,0) -> 0 | BG41: =-ROUND(+Details!$AM$114/$W$2,0) -> 0 | BH41: =-ROUND(+Details!$AM$117/$W$2,0) -> 0 | BI41: 0 | BJ41: =-ROUND(+Details!$AM$123/$W$2,0) -> 0 | BK41: =-ROUND(+Details!$AM$126/$W$2,0) -> 0 | BL41: =-ROUND(+Details!$AM$76/$W$2,0) -> 0 | BM41: =-ROUND(+Details!$AM$127/$W$2,0) -> 0 | BN41: 0 | BO41: =-ROUND(+Details!$AM$124/$W$2,0) -> 0 | BP41: =-ROUND(+Details!$AM$134/$W$2,0) -> 0 | BQ41: =-ROUND(+Details!$AM$135/$W$2,0) -> 0 | BR41: 0 | BS41: 0 | BT41: 0 | BV41: =ROUND(+Details!$AM$262/$W$2,0) -> 0 | BW41: =ROUND(+Details!$AM$265/$W$2,0) -> 0 | BX41: =ROUND(+Details!$AM$268/$W$2,0) -> 0 | BY41: =ROUND(+Details!$AM$271/$W$2,0) -> 0 | BZ41: =ROUND(+Details!$AM$272/$W$2,0) -> 0 | CA41: 0
B42: 35 | C42: =+Details!AN$4 -> 96 | D42: =+Details!AN$5 -> 95 | E42: =+Details!$AN$7 -> 2058 | F42: =ROUND(+Details!$AN$8/$W$2,0) -> 0 | G42: =ROUND(+Details!$AN$11/$W$2,0) -> 0 | H42: =ROUND(+Details!$AN$14/$W$2,0) -> 0 | I42: =ROUND(+Details!$AN$17/$W$2,0) -> 0 | J42: =ROUND(+Details!$AN$18/$W$2,0) -> 0 | K42: 0 | M42: =ROUND(+Details!$AN$28/$W$2,0) -> 0 | N42: =ROUND(+Details!$AN$31/$W$2,0) -> 0 | O42: =ROUND(+Details!$AN$34/$W$2,0) -> 0 | P42: =ROUND(+Details!$AN$37/$W$2,0) -> 0 | Q42: =ROUND(+Details!$AN$38/$W$2,0) -> 0 | R42: =ROUND(+Details!$AN$49/$W$2,0) -> 0 | S42: =ROUND(+Details!$AN$60/$W$2,0) -> 0 | T42: =ROUND(+Details!$AN$65/$W$2,0) -> 0 | U42: =ROUND((Details!$AN$66+Details!$AN$67)/$W$2,0) -> 0 | V42: =ROUND((Details!$AN$68+Details!$AN$69)/$W$2,0) -> 0 | W42: 0 | Y42: =ROUND(Details!$AN$144/$W$2,0) -> 0 | Z42: =ROUND(Details!$AN$145/$W$2,0) -> 0 | AA42: =ROUND(-Details!$AN$248/$W$2,0) -> 0 | AB42: =ROUND(-Details!$AN$250/$W$2,0) -> 0 | AC42: =ROUND(-Details!$AN$251/$W$2,0) -> 0 | AD42: =ROUND(-Details!$AN$252/$W$2,0) -> 0 | AE42: =ROUND(-Details!$AN$96/$W$2,0) -> 0 | AF42: =ROUND(-Details!$AN$107/$W$2,0) -> 0 | AG42: =ROUND(-Details!$AN$127/$W$2,0) -> 0 | AH42: =-ROUND(-Details!$AN$137/$W$2,0) -> 0 | AJ42: =-ROUND(Details!$AN$254/$W$2,0) -> 0 | AK42: 0 | AL42: =-ROUND(-Details!$AN$286/$W$2,0) -> 0 | AN42: 0 | AP42: =-ROUND(+Details!$AN$94/$W$2,0) -> 0 | AQ42: =ROUND(+Details!$AN$133/$W$2,0) -> 0 | AR42: =-ROUND(+Details!$AN$91/$W$2,0) -> 0 | AS42: =-ROUND(+Details!$AN$95/$W$2,0) -> 0 | AT42: =-ROUND(+Details!$AN$96/$W$2,0) -> 0 | AU42: =-ROUND(+Details!$AN$74/$W$2,0) -> 0 | AV42: 0 | AW42: =-ROUND(+Details!$AN$102/$W$2,0) -> 0 | AX42: =-ROUND(+Details!$AN$99/$W$2,0) -> 0 | AY42: =-ROUND(+Details!$AN$103/$W$2,0) -> 0 | AZ42: =-ROUND(+Details!$AN$75/$W$2,0) -> 0 | BA42: 0 | BB42: =-ROUND(+Details!$AN$110/$W$2,0) -> 0 | BC42: =-ROUND(+Details!$AN$113/$W$2,0) -> 0 | BD42: =-ROUND(+Details!$AN$116/$W$2,0) -> 0 | BE42: 0 | BF42: =-ROUND(+Details!$AN$111/$W$2,0) -> 0 | BG42: =-ROUND(+Details!$AN$114/$W$2,0) -> 0 | BH42: =-ROUND(+Details!$AN$117/$W$2,0) -> 0 | BI42: 0 | BJ42: =-ROUND(+Details!$AN$123/$W$2,0) -> 0 | BK42: =-ROUND(+Details!$AN$126/$W$2,0) -> 0 | BL42: =-ROUND(+Details!$AN$76/$W$2,0) -> 0 | BM42: =-ROUND(+Details!$AN$127/$W$2,0) -> 0 | BN42: 0 | BO42: =-ROUND(+Details!$AN$124/$W$2,0) -> 0 | BP42: =-ROUND(+Details!$AN$134/$W$2,0) -> 0 | BQ42: =-ROUND(+Details!$AN$135/$W$2,0) -> 0 | BR42: 0 | BS42: 0 | BT42: 0 | BV42: =ROUND(+Details!$AN$262/$W$2,0) -> 0 | BW42: =ROUND(+Details!$AN$265/$W$2,0) -> 0 | BX42: =ROUND(+Details!$AN$268/$W$2,0) -> 0 | BY42: =ROUND(+Details!$AN$271/$W$2,0) -> 0 | BZ42: =ROUND(+Details!$AN$272/$W$2,0) -> 0 | CA42: 0
B43: 36 | C43: =+Details!AO$4 -> 97 | D43: =+Details!AO$5 -> 96 | E43: =+Details!$AO$7 -> 2059 | F43: =ROUND(+Details!$AO$8/$W$2,0) -> 0 | G43: =ROUND(+Details!$AO$11/$W$2,0) -> 0 | H43: =ROUND(+Details!$AO$14/$W$2,0) -> 0 | I43: =ROUND(+Details!$AO$17/$W$2,0) -> 0 | J43: =ROUND(+Details!$AO$18/$W$2,0) -> 0 | K43: 0 | M43: =ROUND(+Details!$AO$28/$W$2,0) -> 0 | N43: =ROUND(+Details!$AO$31/$W$2,0) -> 0 | O43: =ROUND(+Details!$AO$34/$W$2,0) -> 0 | P43: =ROUND(+Details!$AO$37/$W$2,0) -> 0 | Q43: =ROUND(+Details!$AO$38/$W$2,0) -> 0 | R43: =ROUND(+Details!$AO$49/$W$2,0) -> 0 | S43: =ROUND(+Details!$AO$60/$W$2,0) -> 0 | T43: =ROUND(+Details!$AO$65/$W$2,0) -> 0 | U43: =ROUND((Details!$AO$66+Details!$AO$67)/$W$2,0) -> 0 | V43: =ROUND((Details!$AO$68+Details!$AO$69)/$W$2,0) -> 0 | W43: 0 | Y43: =ROUND(Details!$AO$144/$W$2,0) -> 0 | Z43: =ROUND(Details!$AO$145/$W$2,0) -> 0 | AA43: =ROUND(-Details!$AO$248/$W$2,0) -> 0 | AB43: =ROUND(-Details!$AO$250/$W$2,0) -> 0 | AC43: =ROUND(-Details!$AO$251/$W$2,0) -> 0 | AD43: =ROUND(-Details!$AO$252/$W$2,0) -> 0 | AE43: =ROUND(-Details!$AO$96/$W$2,0) -> 0 | AF43: =ROUND(-Details!$AO$107/$W$2,0) -> 0 | AG43: =ROUND(-Details!$AO$127/$W$2,0) -> 0 | AH43: =-ROUND(-Details!$AO$137/$W$2,0) -> 0 | AJ43: =-ROUND(Details!$AO$254/$W$2,0) -> 0 | AK43: 0 | AL43: =-ROUND(-Details!$AO$286/$W$2,0) -> 0 | AN43: 0 | AP43: =-ROUND(+Details!$AO$94/$W$2,0) -> 0 | AQ43: =ROUND(+Details!$AO$133/$W$2,0) -> 0 | AR43: =-ROUND(+Details!$AO$91/$W$2,0) -> 0 | AS43: =-ROUND(+Details!$AO$95/$W$2,0) -> 0 | AT43: =-ROUND(+Details!$AO$96/$W$2,0) -> 0 | AU43: =-ROUND(+Details!$AO$74/$W$2,0) -> 0 | AV43: 0 | AW43: =-ROUND(+Details!$AO$102/$W$2,0) -> 0 | AX43: =-ROUND(+Details!$AO$99/$W$2,0) -> 0 | AY43: =-ROUND(+Details!$AO$103/$W$2,0) -> 0 | AZ43: =-ROUND(+Details!$AO$75/$W$2,0) -> 0 | BA43: 0 | BB43: =-ROUND(+Details!$AO$110/$W$2,0) -> 0 | BC43: =-ROUND(+Details!$AO$113/$W$2,0) -> 0 | BD43: =-ROUND(+Details!$AO$116/$W$2,0) -> 0 | BE43: 0 | BF43: =-ROUND(+Details!$AO$111/$W$2,0) -> 0 | BG43: =-ROUND(+Details!$AO$114/$W$2,0) -> 0 | BH43: =-ROUND(+Details!$AO$117/$W$2,0) -> 0 | BI43: 0 | BJ43: =-ROUND(+Details!$AO$123/$W$2,0) -> 0 | BK43: =-ROUND(+Details!$AO$126/$W$2,0) -> 0 | BL43: =-ROUND(+Details!$AO$76/$W$2,0) -> 0 | BM43: =-ROUND(+Details!$AO$127/$W$2,0) -> 0 | BN43: 0 | BO43: =-ROUND(+Details!$AO$124/$W$2,0) -> 0 | BP43: =-ROUND(+Details!$AO$134/$W$2,0) -> 0 | BQ43: =-ROUND(+Details!$AO$135/$W$2,0) -> 0 | BR43: 0 | BS43: 0 | BT43: 0 | BV43: =ROUND(+Details!$AO$262/$W$2,0) -> 0 | BW43: =ROUND(+Details!$AO$265/$W$2,0) -> 0 | BX43: =ROUND(+Details!$AO$268/$W$2,0) -> 0 | BY43: =ROUND(+Details!$AO$271/$W$2,0) -> 0 | BZ43: =ROUND(+Details!$AO$272/$W$2,0) -> 0 | CA43: 0
B44: 37 | C44: =+Details!AP$4 -> 98 | D44: =+Details!AP$5 -> 97 | E44: =+Details!$AP$7 -> 2060 | F44: =ROUND(+Details!$AP$8/$W$2,0) -> 0 | G44: =ROUND(+Details!$AP$11/$W$2,0) -> 0 | H44: =ROUND(+Details!$AP$14/$W$2,0) -> 0 | I44: =ROUND(+Details!$AP$17/$W$2,0) -> 0 | J44: =ROUND(+Details!$AP$18/$W$2,0) -> 0 | K44: 0 | M44: =ROUND(+Details!$AP$28/$W$2,0) -> 0 | N44: =ROUND(+Details!$AP$31/$W$2,0) -> 0 | O44: =ROUND(+Details!$AP$34/$W$2,0) -> 0 | P44: =ROUND(+Details!$AP$37/$W$2,0) -> 0 | Q44: =ROUND(+Details!$AP$38/$W$2,0) -> 0 | R44: =ROUND(+Details!$AP$49/$W$2,0) -> 0 | S44: =ROUND(+Details!$AP$60/$W$2,0) -> 0 | T44: =ROUND(+Details!$AP$65/$W$2,0) -> 0 | U44: =ROUND((Details!$AP$66+Details!$AP$67)/$W$2,0) -> 0 | V44: =ROUND((Details!$AP$68+Details!$AP$69)/$W$2,0) -> 0 | W44: 0 | Y44: =ROUND(Details!$AP$144/$W$2,0) -> 0 | Z44: =ROUND(Details!$AP$145/$W$2,0) -> 0 | AA44: =ROUND(-Details!$AP$248/$W$2,0) -> 0 | AB44: =ROUND(-Details!$AP$250/$W$2,0) -> 0 | AC44: =ROUND(-Details!$AP$251/$W$2,0) -> 0 | AD44: =ROUND(-Details!$AP$252/$W$2,0) -> 0 | AE44: =ROUND(-Details!$AP$96/$W$2,0) -> 0 | AF44: =ROUND(-Details!$AP$107/$W$2,0) -> 0 | AG44: =ROUND(-Details!$AP$127/$W$2,0) -> 0 | AH44: =-ROUND(-Details!$AP$137/$W$2,0) -> 0 | AJ44: =-ROUND(Details!$AP$254/$W$2,0) -> 0 | AK44: 0 | AL44: =-ROUND(-Details!$AP$286/$W$2,0) -> 0 | AN44: 0 | AP44: =-ROUND(+Details!$AP$94/$W$2,0) -> 0 | AQ44: =ROUND(+Details!$AP$133/$W$2,0) -> 0 | AR44: =-ROUND(+Details!$AP$91/$W$2,0) -> 0 | AS44: =-ROUND(+Details!$AP$95/$W$2,0) -> 0 | AT44: =-ROUND(+Details!$AP$96/$W$2,0) -> 0 | AU44: =-ROUND(+Details!$AP$74/$W$2,0) -> 0 | AV44: 0 | AW44: =-ROUND(+Details!$AP$102/$W$2,0) -> 0 | AX44: =-ROUND(+Details!$AP$99/$W$2,0) -> 0 | AY44: =-ROUND(+Details!$AP$103/$W$2,0) -> 0 | AZ44: =-ROUND(+Details!$AP$75/$W$2,0) -> 0 | BA44: 0 | BB44: =-ROUND(+Details!$AP$110/$W$2,0) -> 0 | BC44: =-ROUND(+Details!$AP$113/$W$2,0) -> 0 | BD44: =-ROUND(+Details!$AP$116/$W$2,0) -> 0 | BE44: 0 | BF44: =-ROUND(+Details!$AP$111/$W$2,0) -> 0 | BG44: =-ROUND(+Details!$AP$114/$W$2,0) -> 0 | BH44: =-ROUND(+Details!$AP$117/$W$2,0) -> 0 | BI44: 0 | BJ44: =-ROUND(+Details!$AP$123/$W$2,0) -> 0 | BK44: =-ROUND(+Details!$AP$126/$W$2,0) -> 0 | BL44: =-ROUND(+Details!$AP$76/$W$2,0) -> 0 | BM44: =-ROUND(+Details!$AP$127/$W$2,0) -> 0 | BN44: 0 | BO44: =-ROUND(+Details!$AP$124/$W$2,0) -> 0 | BP44: =-ROUND(+Details!$AP$134/$W$2,0) -> 0 | BQ44: =-ROUND(+Details!$AP$135/$W$2,0) -> 0 | BR44: 0 | BS44: 0 | BT44: 0 | BV44: =ROUND(+Details!$AP$262/$W$2,0) -> 0 | BW44: =ROUND(+Details!$AP$265/$W$2,0) -> 0 | BX44: =ROUND(+Details!$AP$268/$W$2,0) -> 0 | BY44: =ROUND(+Details!$AP$271/$W$2,0) -> 0 | BZ44: =ROUND(+Details!$AP$272/$W$2,0) -> 0 | CA44: 0
B45: 38 | C45: =+Details!AQ$4 -> 99 | D45: =+Details!AQ$5 -> 98 | E45: =+Details!$AQ$7 -> 2061 | F45: =ROUND(+Details!$AQ$8/$W$2,0) -> 0 | G45: =ROUND(+Details!$AQ$11/$W$2,0) -> 0 | H45: =ROUND(+Details!$AQ$14/$W$2,0) -> 0 | I45: =ROUND(+Details!$AQ$17/$W$2,0) -> 0 | J45: =ROUND(+Details!$AQ$18/$W$2,0) -> 0 | K45: 0 | M45: =ROUND(+Details!$AQ$28/$W$2,0) -> 0 | N45: =ROUND(+Details!$AQ$31/$W$2,0) -> 0 | O45: =ROUND(+Details!$AQ$34/$W$2,0) -> 0 | P45: =ROUND(+Details!$AQ$37/$W$2,0) -> 0 | Q45: =ROUND(+Details!$AQ$38/$W$2,0) -> 0 | R45: =ROUND(+Details!$AQ$49/$W$2,0) -> 0 | S45: =ROUND(+Details!$AQ$60/$W$2,0) -> 0 | T45: =ROUND(+Details!$AQ$65/$W$2,0) -> 0 | U45: =ROUND((Details!$AQ$66+Details!$AQ$67)/$W$2,0) -> 0 | V45: =ROUND((Details!$AQ$68+Details!$AQ$69)/$W$2,0) -> 0 | W45: 0 | Y45: =ROUND(Details!$AQ$144/$W$2,0) -> 0 | Z45: =ROUND(Details!$AQ$145/$W$2,0) -> 0 | AA45: =ROUND(-Details!$AQ$248/$W$2,0) -> 0 | AB45: =ROUND(-Details!$AQ$250/$W$2,0) -> 0 | AC45: =ROUND(-Details!$AQ$251/$W$2,0) -> 0 | AD45: =ROUND(-Details!$AQ$252/$W$2,0) -> 0 | AE45: =ROUND(-Details!$AQ$96/$W$2,0) -> 0 | AF45: =ROUND(-Details!$AQ$107/$W$2,0) -> 0 | AG45: =ROUND(-Details!$AQ$127/$W$2,0) -> 0 | AH45: =-ROUND(-Details!$AQ$137/$W$2,0) -> 0 | AJ45: =-ROUND(Details!$AQ$254/$W$2,0) -> 0 | AK45: 0 | AL45: =-ROUND(-Details!$AQ$286/$W$2,0) -> 0 | AN45: 0 | AP45: =-ROUND(+Details!$AQ$94/$W$2,0) -> 0 | AQ45: =ROUND(+Details!$AQ$133/$W$2,0) -> 0 | AR45: =-ROUND(+Details!$AQ$91/$W$2,0) -> 0 | AS45: =-ROUND(+Details!$AQ$95/$W$2,0) -> 0 | AT45: =-ROUND(+Details!$AQ$96/$W$2,0) -> 0 | AU45: =-ROUND(+Details!$AQ$74/$W$2,0) -> 0 | AV45: 0 | AW45: =-ROUND(+Details!$AQ$102/$W$2,0) -> 0 | AX45: =-ROUND(+Details!$AQ$99/$W$2,0) -> 0 | AY45: =-ROUND(+Details!$AQ$103/$W$2,0) -> 0 | AZ45: =-ROUND(+Details!$AQ$75/$W$2,0) -> 0 | BA45: 0 | BB45: =-ROUND(+Details!$AQ$110/$W$2,0) -> 0 | BC45: =-ROUND(+Details!$AQ$113/$W$2,0) -> 0 | BD45: =-ROUND(+Details!$AQ$116/$W$2,0) -> 0 | BE45: 0 | BF45: =-ROUND(+Details!$AQ$111/$W$2,0) -> 0 | BG45: =-ROUND(+Details!$AQ$114/$W$2,0) -> 0 | BH45: =-ROUND(+Details!$AQ$117/$W$2,0) -> 0 | BI45: 0 | BJ45: =-ROUND(+Details!$AQ$123/$W$2,0) -> 0 | BK45: =-ROUND(+Details!$AQ$126/$W$2,0) -> 0 | BL45: =-ROUND(+Details!$AQ$76/$W$2,0) -> 0 | BM45: =-ROUND(+Details!$AQ$127/$W$2,0) -> 0 | BN45: 0 | BO45: =-ROUND(+Details!$AQ$124/$W$2,0) -> 0 | BP45: =-ROUND(+Details!$AQ$134/$W$2,0) -> 0 | BQ45: =-ROUND(+Details!$AQ$135/$W$2,0) -> 0 | BR45: 0 | BS45: 0 | BT45: 0 | BV45: =ROUND(+Details!$AQ$262/$W$2,0) -> 0 | BW45: =ROUND(+Details!$AQ$265/$W$2,0) -> 0 | BX45: =ROUND(+Details!$AQ$268/$W$2,0) -> 0 | BY45: =ROUND(+Details!$AQ$271/$W$2,0) -> 0 | BZ45: =ROUND(+Details!$AQ$272/$W$2,0) -> 0 | CA45: 0
B46: 39 | C46: =+Details!AR$4 -> 100 | D46: =+Details!AR$5 -> 99 | E46: =+Details!$AR$7 -> 2062 | F46: =ROUND(+Details!$AR$8/$W$2,0) -> 0 | G46: =ROUND(+Details!$AR$11/$W$2,0) -> 0 | H46: =ROUND(+Details!$AR$14/$W$2,0) -> 0 | I46: =ROUND(+Details!$AR$17/$W$2,0) -> 0 | J46: =ROUND(+Details!$AR$18/$W$2,0) -> 0 | K46: 0 | M46: =ROUND(+Details!$AR$28/$W$2,0) -> 0 | N46: =ROUND(+Details!$AR$31/$W$2,0) -> 0 | O46: =ROUND(+Details!$AR$34/$W$2,0) -> 0 | P46: =ROUND(+Details!$AR$37/$W$2,0) -> 0 | Q46: =ROUND(+Details!$AR$38/$W$2,0) -> 0 | R46: =ROUND(+Details!$AR$49/$W$2,0) -> 0 | S46: =ROUND(+Details!$AR$60/$W$2,0) -> 0 | T46: =ROUND(+Details!$AR$65/$W$2,0) -> 0 | U46: =ROUND((Details!$AR$66+Details!$AR$67)/$W$2,0) -> 0 | V46: =ROUND((Details!$AR$68+Details!$AR$69)/$W$2,0) -> 0 | W46: 0 | Y46: =ROUND(Details!$AR$144/$W$2,0) -> 0 | Z46: =ROUND(Details!$AR$145/$W$2,0) -> 0 | AA46: =ROUND(-Details!$AR$248/$W$2,0) -> 0 | AB46: =ROUND(-Details!$AR$250/$W$2,0) -> 0 | AC46: =ROUND(-Details!$AR$251/$W$2,0) -> 0 | AD46: =ROUND(-Details!$AR$252/$W$2,0) -> 0 | AE46: =ROUND(-Details!$AR$96/$W$2,0) -> 0 | AF46: =ROUND(-Details!$AR$107/$W$2,0) -> 0 | AG46: =ROUND(-Details!$AR$127/$W$2,0) -> 0 | AH46: =-ROUND(-Details!$AR$137/$W$2,0) -> 0 | AJ46: =-ROUND(Details!$AR$254/$W$2,0) -> 0 | AK46: 0 | AL46: =-ROUND(-Details!$AR$286/$W$2,0) -> 0 | AN46: 0 | AP46: =-ROUND(+Details!$AR$94/$W$2,0) -> 0 | AQ46: =ROUND(+Details!$AR$133/$W$2,0) -> 0 | AR46: =-ROUND(+Details!$AR$91/$W$2,0) -> 0 | AS46: =-ROUND(+Details!$AR$95/$W$2,0) -> 0 | AT46: =-ROUND(+Details!$AR$96/$W$2,0) -> 0 | AU46: =-ROUND(+Details!$AR$74/$W$2,0) -> 0 | AV46: 0 | AW46: =-ROUND(+Details!$AR$102/$W$2,0) -> 0 | AX46: =-ROUND(+Details!$AR$99/$W$2,0) -> 0 | AY46: =-ROUND(+Details!$AR$103/$W$2,0) -> 0 | AZ46: =-ROUND(+Details!$AR$75/$W$2,0) -> 0 | BA46: 0 | BB46: =-ROUND(+Details!$AR$110/$W$2,0) -> 0 | BC46: =-ROUND(+Details!$AR$113/$W$2,0) -> 0 | BD46: =-ROUND(+Details!$AR$116/$W$2,0) -> 0 | BE46: 0 | BF46: =-ROUND(+Details!$AR$111/$W$2,0) -> 0 | BG46: =-ROUND(+Details!$AR$114/$W$2,0) -> 0 | BH46: =-ROUND(+Details!$AR$117/$W$2,0) -> 0 | BI46: 0 | BJ46: =-ROUND(+Details!$AR$123/$W$2,0) -> 0 | BK46: =-ROUND(+Details!$AR$126/$W$2,0) -> 0 | BL46: =-ROUND(+Details!$AR$76/$W$2,0) -> 0 | BM46: =-ROUND(+Details!$AR$127/$W$2,0) -> 0 | BN46: 0 | BO46: =-ROUND(+Details!$AR$124/$W$2,0) -> 0 | BP46: =-ROUND(+Details!$AR$134/$W$2,0) -> 0 | BQ46: =-ROUND(+Details!$AR$135/$W$2,0) -> 0 | BR46: 0 | BS46: 0 | BT46: 0 | BV46: =ROUND(+Details!$AR$262/$W$2,0) -> 0 | BW46: =ROUND(+Details!$AR$265/$W$2,0) -> 0 | BX46: =ROUND(+Details!$AR$268/$W$2,0) -> 0 | BY46: =ROUND(+Details!$AR$271/$W$2,0) -> 0 | BZ46: =ROUND(+Details!$AR$272/$W$2,0) -> 0 | CA46: 0
B47: 40 | C47: =+Details!AS$4 -> 101 | D47: =+Details!AS$5 -> 100 | E47: =+Details!$AS$7 -> 2063 | F47: =ROUND(+Details!$AS$8/$W$2,0) -> 0 | G47: =ROUND(+Details!$AS$11/$W$2,0) -> 0 | H47: =ROUND(+Details!$AS$14/$W$2,0) -> 0 | I47: =ROUND(+Details!$AS$17/$W$2,0) -> 0 | J47: =ROUND(+Details!$AS$18/$W$2,0) -> 0 | K47: 0 | M47: =ROUND(+Details!$AS$28/$W$2,0) -> 0 | N47: =ROUND(+Details!$AS$31/$W$2,0) -> 0 | O47: =ROUND(+Details!$AS$34/$W$2,0) -> 0 | P47: =ROUND(+Details!$AS$37/$W$2,0) -> 0 | Q47: =ROUND(+Details!$AS$38/$W$2,0) -> 0 | R47: =ROUND(+Details!$AS$49/$W$2,0) -> 0 | S47: =ROUND(+Details!$AS$60/$W$2,0) -> 0 | T47: =ROUND(+Details!$AS$65/$W$2,0) -> 0 | U47: =ROUND((Details!$AS$66+Details!$AS$67)/$W$2,0) -> 0 | V47: =ROUND((Details!$AS$68+Details!$AS$69)/$W$2,0) -> 0 | W47: 0 | Y47: =ROUND(Details!$AS$144/$W$2,0) -> 0 | Z47: =ROUND(Details!$AS$145/$W$2,0) -> 0 | AA47: =ROUND(-Details!$AS$248/$W$2,0) -> 0 | AB47: =ROUND(-Details!$AS$250/$W$2,0) -> 0 | AC47: =ROUND(-Details!$AS$251/$W$2,0) -> 0 | AD47: =ROUND(-Details!$AS$252/$W$2,0) -> 0 | AE47: =ROUND(-Details!$AS$96/$W$2,0) -> 0 | AF47: =ROUND(-Details!$AS$107/$W$2,0) -> 0 | AG47: =ROUND(-Details!$AS$127/$W$2,0) -> 0 | AH47: =-ROUND(-Details!$AS$137/$W$2,0) -> 0 | AJ47: =-ROUND(Details!$AS$254/$W$2,0) -> 0 | AK47: 0 | AL47: =-ROUND(-Details!$AS$286/$W$2,0) -> 0 | AN47: 0 | AP47: =-ROUND(+Details!$AS$94/$W$2,0) -> 0 | AQ47: =ROUND(+Details!$AS$133/$W$2,0) -> 0 | AR47: =-ROUND(+Details!$AS$91/$W$2,0) -> 0 | AS47: =-ROUND(+Details!$AS$95/$W$2,0) -> 0 | AT47: =-ROUND(+Details!$AS$96/$W$2,0) -> 0 | AU47: =-ROUND(+Details!$AS$74/$W$2,0) -> 0 | AV47: 0 | AW47: =-ROUND(+Details!$AS$102/$W$2,0) -> 0 | AX47: =-ROUND(+Details!$AS$99/$W$2,0) -> 0 | AY47: =-ROUND(+Details!$AS$103/$W$2,0) -> 0 | AZ47: =-ROUND(+Details!$AS$75/$W$2,0) -> 0 | BA47: 0 | BB47: =-ROUND(+Details!$AS$110/$W$2,0) -> 0 | BC47: =-ROUND(+Details!$AS$113/$W$2,0) -> 0 | BD47: =-ROUND(+Details!$AS$116/$W$2,0) -> 0 | BE47: 0 | BF47: =-ROUND(+Details!$AS$111/$W$2,0) -> 0 | BG47: =-ROUND(+Details!$AS$114/$W$2,0) -> 0 | BH47: =-ROUND(+Details!$AS$117/$W$2,0) -> 0 | BI47: 0 | BJ47: =-ROUND(+Details!$AS$123/$W$2,0) -> 0 | BK47: =-ROUND(+Details!$AS$126/$W$2,0) -> 0 | BL47: =-ROUND(+Details!$AS$76/$W$2,0) -> 0 | BM47: =-ROUND(+Details!$AS$127/$W$2,0) -> 0 | BN47: 0 | BO47: =-ROUND(+Details!$AS$124/$W$2,0) -> 0 | BP47: =-ROUND(+Details!$AS$134/$W$2,0) -> 0 | BQ47: =-ROUND(+Details!$AS$135/$W$2,0) -> 0 | BR47: 0 | BS47: 0 | BT47: 0 | BV47: =ROUND(+Details!$AS$262/$W$2,0) -> 0 | BW47: =ROUND(+Details!$AS$265/$W$2,0) -> 0 | BX47: =ROUND(+Details!$AS$268/$W$2,0) -> 0 | BY47: =ROUND(+Details!$AS$271/$W$2,0) -> 0 | BZ47: =ROUND(+Details!$AS$272/$W$2,0) -> 0 | CA47: =SUM(BV47:BZ47) -> 0
B48: Ending balance or total | F48: =ROUND(+Details!$E262/$W$2,0) -> 1722 | G48: =ROUND(+Details!$E11/$W$2,0) -> 871 | H48: =ROUND(+Details!$E14/$W$2,0) -> 0 | I48: =ROUND(+Details!$E17/$W$2,0) -> 21 | J48: =ROUND(+Details!$E18/$W$2,0) -> 0 | K48: =SUM(F48:J48) -> 2614 | M48: =SUM(M8:M47) -> 734 | N48: =SUM(N8:N47) -> 1519 | O48: 34 | P48: 233 | Q48: 0 | R48: 1030 | S48: 439 | T48: 144 | U48: 430 | V48: 121 | W48: 4684 | Y48: 3130 | Z48: 330 | AA48: -100 | AB48: =SUM(AB8:AB47) -> -500 | AC48: 100 | AD48: 100 | AE48: 0 | AF48: -100 | AG48: 0 | AH48: =SUM(AH8:AH47) -> -100 | AJ48: -400 | AK48: 3060 | AL48: =SUM(AL8:AL47) -> 0 | AP48: =SUM(AP8:AP47) -> 482 | AQ48: 0 | AR48: 402 | AS48: 0 | AT48: 0 | AU48: =SUM(AU8:AU47) -> 0 | AV48: 402 | AW48: 521 | AX48: 0 | AY48: 0 | AZ48: 63 | BA48: 0 | BB48: 43 | BC48: 12 | BD48: 0 | BE48: 12 | BF48: 77 | BG48: 3 | BH48: 0 | BI48: 3 | BJ48: 277 | BK48: 0 | BL48: 4 | BM48: 0 | BN48: 277 | BO48: 39 | BP48: 0 | BQ48: 0 | BR48: 0 | BS48: 100 | BT48: 1893
B49: Case check total | E49: =+K48-K49 -> 0 | K49: =ROUND(Details!E$19/$W$2,0) -> 2614
B51: Base results (excludes Roth conv and/or SS alternative)
AN52: Acct
F53: Account Balances - Start of Year | M53: Earnings and Income | Y53: Expenditures and Receipts | AL53: memo | AN53: Bal | AP53: Withdrawals and Contributions | BV53: Account Balances - End of Year
C54: Ages | H54: Inherit | J54: Roth | O54: Inherit | Q54: Roth | R54: SS Benefits | AA54: Inherit | AB54: Spec | AC54: Spec | AD54: SPIA | AE54: SPIA | AF54: Inhrt | AG54: SPIA | AL54: IRMMA | AN54: End of | AP54: IRA 1 | AW54: IRA 2 | BB54: Inhrtd IRA 1 | BF54: Inhrtd IRA 2 | BJ54: Roth IRA 1 | BM54: Roth 1 | BO54: Roth 2 | BP54: Roth Conver | BR54: Convr | BT54: To | BX54: Inherit | BZ54: Roth
C55: You | D55: Sp | E55: Year | F55: Taxable | G55: IRA | H55: IRA | I55: Roth | J55: Convr | K55: Total | M55: Taxable | N55: IRA | O55: IRA | P55: Roth | Q55: Convr | R55: You | S55: Spouse | T55: SPIA | U55: Pension | V55: Other | W55: Total | Y55: Living | Z55: Taxes | AA55: Taxbl | AB55: Sale | AC55: Expend | AD55: Taxbl | AE55: IRA | AF55: IRA | AG55: Roth | AH55: QCD | AJ55: Other | AK55: Total | AL55: =IF(IRMAA_Incl="y","Incl'f","Excl") -> Excl | AN55: Year | AP55: RMD | AQ55: Convr | AR55: Withdr | AS55: With-A | AT55: SPIA | AU55: Contrb | AV55: Withdr | AW55: RMD | AX55: Withdr | AY55: With-A | AZ55: Contrb | BA55: Withdr | BB55: RMD | BC55: Withdr | BD55: With-A | BE55: Withdr | BF55: RMD | BG55: Withdr | BH55: With-A | BI55: Withdr | BJ55: Withdr | BK55: With-A | BL55: Contrb | BM55: SPIA | BN55: Withdr | BO55: Withdr | BP55: Withdr | BQ55: With-A | BR55: Withdr | BS55: QCD | BT55: Taxbl | BV55: Taxable | BW55: IRAs | BX55: IRAs | BY55: Roths | BZ55: Convr | CA55: Total
B56: 1 | C56: =+Base!F$4 -> 62 | D56: =+Base!F$5 -> 61 | E56: =+Base!F$7 -> 2024 | F56: =ROUND(+Base!$F$8/$W$2,1) -> 200 | G56: =ROUND(+Base!$F$11/$W$2,0) -> 700 | H56: =ROUND(+Base!$F$14/$W$2,0) -> 0 | I56: =ROUND(+Base!$F$17/$W$2,0) -> 100 | J56: =ROUND(+Base!$F$18/$W$2,0) -> 0 | K56: =SUM(F56:J56) -> 1000 | M56: =ROUND(+Base!$F$28/$W$2,0) -> 9 | N56: =ROUND(+Base!$F$31/$W$2,0) -> 43 | O56: =ROUND(+Base!$F$34/$W$2,0) -> 0 | P56: =ROUND(+Base!$F$37/$W$2,0) -> 6 | Q56: =ROUND(+Base!$F$38/$W$2,0) -> 0 | R56: =ROUND(+Base!$F$49/$W$2,0) -> 0 | S56: =ROUND(+Base!$F$60/$W$2,0) -> 0 | T56: =ROUND(+Base!$F$65/$W$2,0) -> 0 | U56: =ROUND((Base!$F$66+Base!$F$67)/$W$2,0) -> 10 | V56: =ROUND((Base!$F$68+Base!$F$69)/$W$2,0) -> 10 | W56: =SUM(M56:V56) -> 78 | Y56: =ROUND(+Base!$F$144/$W$2,0) -> 75 | Z56: =ROUND(+Base!$F$145/$W$2,0) -> 5 | AA56: =ROUND(-Base!$F$248/$W$2,0) -> 0 | AB56: =ROUND(-Base!$F$250/$W$2,0) -> 0 | AC56: =ROUND(-Base!$F$251/$W$2,0) -> 0 | AD56: =ROUND(-Base!$F$252/$W$2,0) -> 0 | AE56: =ROUND(-Base!$F$96/$W$2,0) -> 0 | AF56: =ROUND(-Base!$F$107/$W$2,0) -> 0 | AG56: =ROUND(-Base!$F$127/$W$2,0) -> 0 | AH56: =-ROUND(-Base!$F$137/$W$2,0) -> 0 | AJ56: =-ROUND(+Base!$F$254/$W$2,0) -> 0 | AK56: =+Y56+Z56+AJ56 -> 80 | AL56: =-ROUND(-Base!$F$286/$W$2,0) -> 0 | AN56: =+K56+W56-AK56 -> 998 | AP56: =-ROUND(+Base!$F$94/$W$2,0) -> 0 | AQ56: =ROUND(+Base!$F$133/$W$2,0) -> 0 | AR56: =-ROUND(+Base!$F$91/$W$2,0) -> 40 | AS56: =-ROUND(+Base!$F$95/$W$2,0) -> 0 | AT56: =-ROUND(+Base!$F$96/$W$2,0) -> 0 | AU56: =-ROUND(+Base!$F$74/$W$2,0) -> 0 | AV56: =+AR56+AS56 -> 40 | AW56: =-ROUND(+Base!$F$102/$W$2,0) -> 0 | AX56: =-ROUND(+Base!$F$99/$W$2,0) -> 0 | AY56: =-ROUND(+Base!$F$103/$W$2,0) -> 0 | AZ56: =-ROUND(+Base!$F$75/$W$2,0) -> 7 | BA56: =+AX56+AY56 -> 0 | BB56: =-ROUND(+Base!$F$110/$W$2,0) -> 0 | BC56: =-ROUND(+Base!$F$113/$W$2,0) -> 0 | BD56: =-ROUND(+Base!$F$116/$W$2,0) -> 0 | BE56: =+BC56+BD56 -> 0 | BF56: =-ROUND(+Base!$F$111/$W$2,0) -> 0 | BG56: =-ROUND(+Base!$F$114/$W$2,0) -> 0 | BH56: =-ROUND(+Base!$F$117/$W$2,0) -> 0 | BI56: =+BG56+BH56 -> 0 | BJ56: =-ROUND(+Base!$F$123/$W$2,0) -> 0 | BK56: =-ROUND(+Base!$F$126/$W$2,0) -> 0 | BL56: =-ROUND(+Base!$F$76/$W$2,0) -> 1 | BM56: =-ROUND(+Base!$F$127/$W$2,0) -> 0 | BN56: =+BJ56+BK56 -> 0 | BO56: =-ROUND(+Base!$F$124/$W$2,0) -> 0 | BP56: =-ROUND(+Base!$F$134/$W$2,0) -> 0 | BQ56: =-ROUND(+Base!$F$135/$W$2,0) -> 0 | BR56: =+BP56+BQ56 -> 0 | BS56: =-AH56 -> 0 | BT56: =+AP56+AT56+AV56+AW56+BA56+BB56+BE56+BF56+BI56+BM56+BN56+BO56+BR56+BS56 -> 40 | BV56: =ROUND(+Base!$F$262/$W$2,1) -> 182.1 | BW56: =ROUND(+Base!$F$265/$W$2,1) -> 709.7 | BX56: =ROUND(+Base!$F$268/$W$2,1) -> 0 | BY56: =ROUND(+Base!$F$271/$W$2,1) -> 107.1 | BZ56: =ROUND(+Base!$F$272/$W$2,1) -> 0 | CA56: =SUM(BV56:BZ56) -> 998.9
B57: =+B56+1 -> 2 | C57: =+Base!G$4 -> 63 | D57: =+Base!G$5 -> 62 | E57: =+Base!G$7 -> 2025 | F57: =ROUND(+Base!$G$8/$W$2,0) -> 182 | G57: =ROUND(+Base!$G$11/$W$2,0) -> 710 | H57: =ROUND(+Base!$G$14/$W$2,0) -> 0 | I57: =ROUND(+Base!$G$17/$W$2,0) -> 107 | J57: =ROUND(+Base!$G$18/$W$2,0) -> 0 | K57: =SUM(F57:J57) -> 999 | M57: =ROUND(+Base!$G$28/$W$2,0) -> 9 | N57: =ROUND(+Base!$G$31/$W$2,0) -> 44 | O57: =ROUND(+Base!$G$34/$W$2,0) -> 0 | P57: =ROUND(+Base!$G$37/$W$2,0) -> 7 | Q57: =ROUND(+Base!$G$38/$W$2,0) -> 0 | R57: =ROUND(+Base!$G$49/$W$2,0) -> 0 | S57: =ROUND(+Base!$G$60/$W$2,0) -> 0 | T57: =ROUND(+Base!$G$65/$W$2,0) -> 0 | U57: =ROUND((Base!$G$66+Base!$G$67)/$W$2,0) -> 10 | V57: =ROUND((Base!$G$68+Base!$G$69)/$W$2,0) -> 25 | W57: =SUM(M57:V57) -> 95 | Y57: =ROUND(+Base!$G$144/$W$2,0) -> 76 | Z57: =ROUND(+Base!$G$145/$W$2,0) -> 7 | AA57: =ROUND(-Base!$G$248/$W$2,0) -> 0 | AB57: =ROUND(-Base!$G$250/$W$2,0) -> 0 | AC57: =ROUND(-Base!$G$251/$W$2,0) -> 0 | AD57: =ROUND(-Base!$G$252/$W$2,0) -> 0 | AE57: =ROUND(-Base!$G$96/$W$2,0) -> 0 | AF57: =ROUND(-Base!$G$107/$W$2,0) -> 0 | AG57: =ROUND(-Base!$G$127/$W$2,0) -> 0 | AH57: =-ROUND(-Base!$G$137/$W$2,0) -> 0 | AJ57: =-ROUND(+Base!$G$254/$W$2,0) -> 0 | AK57: 83 | AL57: =-ROUND(-Base!$G$286/$W$2,0) -> 0 | AN57: 1011 | AP57: =-ROUND(+Base!$G$94/$W$2,0) -> 0 | AQ57: =ROUND(+Base!$G$133/$W$2,0) -> 0 | AR57: =-ROUND(+Base!$G$91/$W$2,0) -> 41 | AS57: =-ROUND(+Base!$G$95/$W$2,0) -> 0 | AT57: =-ROUND(+Base!$G$96/$W$2,0) -> 0 | AU57: =-ROUND(+Base!$G$74/$W$2,0) -> 0 | AV57: 41 | AW57: =-ROUND(+Base!$G$102/$W$2,0) -> 0 | AX57: =-ROUND(+Base!$G$99/$W$2,0) -> 0 | AY57: =-ROUND(+Base!$G$103/$W$2,0) -> 0 | AZ57: =-ROUND(+Base!$G$75/$W$2,0) -> 7 | BA57: =+AX57+AY57 -> 0 | BB57: =-ROUND(+Base!$G$110/$W$2,0) -> 0 | BC57: =-ROUND(+Base!$G$113/$W$2,0) -> 0 | BD57: =-ROUND(+Base!$G$116/$W$2,0) -> 0 | BE57: =+BC57+BD57 -> 0 | BF57: =-ROUND(+Base!$G$111/$W$2,0) -> 0 | BG57: =-ROUND(+Base!$G$114/$W$2,0) -> 0 | BH57: =-ROUND(+Base!$G$117/$W$2,0) -> 0 | BI57: =+BG57+BH57 -> 0 | BJ57: =-ROUND(+Base!$G$123/$W$2,0) -> 0 | BK57: =-ROUND(+Base!$G$126/$W$2,0) -> 0 | BL57: =-ROUND(+Base!$G$76/$W$2,0) -> 1 | BM57: =-ROUND(+Base!$G$127/$W$2,0) -> 0 | BN57: 0 | BO57: =-ROUND(+Base!$G$124/$W$2,0) -> 0 | BP57: =-ROUND(+Base!$G$134/$W$2,0) -> 0 | BQ57: =-ROUND(+Base!$G$135/$W$2,0) -> 0 | BR57: =+BP57+BQ57 -> 0 | BS57: 0 | BT57: 41 | BV57: =ROUND(+Base!$G$262/$W$2,0) -> 177 | BW57: =ROUND(+Base!$G$265/$W$2,0) -> 719 | BX57: =ROUND(+Base!$G$268/$W$2,0) -> 0 | BY57: =ROUND(+Base!$G$271/$W$2,0) -> 115 | BZ57: =ROUND(+Base!$G$272/$W$2,0) -> 0 | CA57: 1011
B58: =+B57+1 -> 3 | C58: =+Base!H$4 -> 64 | D58: =+Base!H$5 -> 63 | E58: =+Base!H$7 -> 2026 | F58: =ROUND(+Base!$H$8/$W$2,0) -> 177 | G58: =ROUND(+Base!$H$11/$W$2,0) -> 719 | H58: =ROUND(+Base!$H$14/$W$2,0) -> 0 | I58: =ROUND(+Base!$H$17/$W$2,0) -> 115 | J58: =ROUND(+Base!$H$18/$W$2,0) -> 0 | K58: 1011 | M58: =ROUND(+Base!$H$28/$W$2,0) -> 8 | N58: =ROUND(+Base!$H$31/$W$2,0) -> 44 | O58: =ROUND(+Base!$H$34/$W$2,0) -> 0 | P58: =ROUND(+Base!$H$37/$W$2,0) -> 7 | Q58: =ROUND(+Base!$H$38/$W$2,0) -> 0 | R58: =ROUND(+Base!$H$49/$W$2,0) -> 0 | S58: =ROUND(+Base!$H$60/$W$2,0) -> 0 | T58: =ROUND(+Base!$H$65/$W$2,0) -> 0 | U58: =ROUND((Base!$H$66+Base!$H$67)/$W$2,0) -> 10 | V58: =ROUND((Base!$H$68+Base!$H$69)/$W$2,0) -> 11 | W58: =SUM(M58:V58) -> 80 | Y58: =ROUND(+Base!$H$144/$W$2,0) -> 78 | Z58: =ROUND(+Base!$H$145/$W$2,0) -> 5 | AA58: =ROUND(-Base!$H$248/$W$2,0) -> 0 | AB58: =ROUND(-Base!$H$250/$W$2,0) -> 0 | AC58: =ROUND(-Base!$H$251/$W$2,0) -> 0 | AD58: =ROUND(-Base!$H$252/$W$2,0) -> 0 | AE58: =ROUND(-Base!$H$96/$W$2,0) -> 0 | AF58: =ROUND(-Base!$H$107/$W$2,0) -> 0 | AG58: =ROUND(-Base!$H$127/$W$2,0) -> 0 | AH58: =-ROUND(-Base!$H$137/$W$2,0) -> 0 | AJ58: =-ROUND(+Base!$H$254/$W$2,0) -> 0 | AK58: 83 | AL58: =-ROUND(-Base!$H$286/$W$2,0) -> 0 | AN58: 1008 | AP58: =-ROUND(+Base!$H$94/$W$2,0) -> 0 | AQ58: =ROUND(+Base!$H$133/$W$2,0) -> 0 | AR58: =-ROUND(+Base!$H$91/$W$2,0) -> 42 | AS58: =-ROUND(+Base!$H$95/$W$2,0) -> 0 | AT58: =-ROUND(+Base!$H$96/$W$2,0) -> 0 | AU58: =-ROUND(+Base!$H$74/$W$2,0) -> 0 | AV58: 42 | AW58: =-ROUND(+Base!$H$102/$W$2,0) -> 0 | AX58: =-ROUND(+Base!$H$99/$W$2,0) -> 0 | AY58: =-ROUND(+Base!$H$103/$W$2,0) -> 0 | AZ58: =-ROUND(+Base!$H$75/$W$2,0) -> 7 | BA58: 0 | BB58: =-ROUND(+Base!$H$110/$W$2,0) -> 0 | BC58: =-ROUND(+Base!$H$113/$W$2,0) -> 0 | BD58: =-ROUND(+Base!$H$116/$W$2,0) -> 0 | BE58: 0 | BF58: =-ROUND(+Base!$H$111/$W$2,0) -> 0 | BG58: =-ROUND(+Base!$H$114/$W$2,0) -> 0 | BH58: =-ROUND(+Base!$H$117/$W$2,0) -> 0 | BI58: 0 | BJ58: =-ROUND(+Base!$H$123/$W$2,0) -> 0 | BK58: =-ROUND(+Base!$H$126/$W$2,0) -> 0 | BL58: =-ROUND(+Base!$H$76/$W$2,0) -> 1 | BM58: =-ROUND(+Base!$H$127/$W$2,0) -> 0 | BN58: 0 | BO58: =-ROUND(+Base!$H$124/$W$2,0) -> 0 | BP58: =-ROUND(+Base!$H$134/$W$2,0) -> 0 | BQ58: =-ROUND(+Base!$H$135/$W$2,0) -> 0 | BR58: 0 | BS58: 0 | BT58: 42 | BV58: =ROUND(+Base!$H$262/$W$2,0) -> 158 | BW58: =ROUND(+Base!$H$265/$W$2,0) -> 727 | BX58: =ROUND(+Base!$H$268/$W$2,0) -> 0 | BY58: =ROUND(+Base!$H$271/$W$2,0) -> 123 | BZ58: =ROUND(+Base!$H$272/$W$2,0) -> 0 | CA58: 1008
B59: 4 | C59: =+Base!I$4 -> 65 | D59: =+Base!I$5 -> 64 | E59: =+Base!I$7 -> 2027 | F59: =ROUND(+Base!$I$8/$W$2,0) -> 158 | G59: =ROUND(+Base!$I$11/$W$2,0) -> 727 | H59: =ROUND(+Base!$I$14/$W$2,0) -> 0 | I59: =ROUND(+Base!$I$17/$W$2,0) -> 123 | J59: =ROUND(+Base!$I$18/$W$2,0) -> 0 | K59: 1008 | M59: =ROUND(+Base!$I$28/$W$2,0) -> 7 | N59: =ROUND(+Base!$I$31/$W$2,0) -> 45 | O59: =ROUND(+Base!$I$34/$W$2,0) -> 0 | P59: =ROUND(+Base!$I$37/$W$2,0) -> 8 | Q59: =ROUND(+Base!$I$38/$W$2,0) -> 0 | R59: =ROUND(+Base!$I$49/$W$2,0) -> 0 | S59: =ROUND(+Base!$I$60/$W$2,0) -> 0 | T59: =ROUND(+Base!$I$65/$W$2,0) -> 0 | U59: =ROUND((Base!$I$66+Base!$I$67)/$W$2,0) -> 11 | V59: =ROUND((Base!$I$68+Base!$I$69)/$W$2,0) -> 11 | W59: =SUM(M59:V59) -> 82 | Y59: =ROUND(+Base!$I$144/$W$2,0) -> 79 | Z59: =ROUND(+Base!$I$145/$W$2,0) -> 5 | AA59: =ROUND(-Base!$I$248/$W$2,0) -> 0 | AB59: =ROUND(-Base!$I$250/$W$2,0) -> 0 | AC59: =ROUND(-Base!$I$251/$W$2,0) -> 0 | AD59: =ROUND(-Base!$I$252/$W$2,0) -> 0 | AE59: =ROUND(-Base!$I$96/$W$2,0) -> 0 | AF59: =ROUND(-Base!$I$107/$W$2,0) -> 0 | AG59: =ROUND(-Base!$I$127/$W$2,0) -> 0 | AH59: =-ROUND(-Base!$I$137/$W$2,0) -> 0 | AJ59: =-ROUND(+Base!$I$254/$W$2,0) -> 0 | AK59: 84 | AL59: =-ROUND(-Base!$I$286/$W$2,0) -> 0 | AN59: 1006 | AP59: =-ROUND(+Base!$I$94/$W$2,0) -> 0 | AQ59: =ROUND(+Base!$I$133/$W$2,0) -> 0 | AR59: =-ROUND(+Base!$I$91/$W$2,0) -> 44 | AS59: =-ROUND(+Base!$I$95/$W$2,0) -> 0 | AT59: =-ROUND(+Base!$I$96/$W$2,0) -> 0 | AU59: =-ROUND(+Base!$I$74/$W$2,0) -> 0 | AV59: 44 | AW59: =-ROUND(+Base!$I$102/$W$2,0) -> 0 | AX59: =-ROUND(+Base!$I$99/$W$2,0) -> 0 | AY59: =-ROUND(+Base!$I$103/$W$2,0) -> 0 | AZ59: =-ROUND(+Base!$I$75/$W$2,0) -> 7 | BA59: 0 | BB59: =-ROUND(+Base!$I$110/$W$2,0) -> 0 | BC59: =-ROUND(+Base!$I$113/$W$2,0) -> 0 | BD59: =-ROUND(+Base!$I$116/$W$2,0) -> 0 | BE59: 0 | BF59: =-ROUND(+Base!$I$111/$W$2,0) -> 0 | BG59: =-ROUND(+Base!$I$114/$W$2,0) -> 0 | BH59: =-ROUND(+Base!$I$117/$W$2,0) -> 0 | BI59: 0 | BJ59: =-ROUND(+Base!$I$123/$W$2,0) -> 0 | BK59: =-ROUND(+Base!$I$126/$W$2,0) -> 0 | BL59: =-ROUND(+Base!$I$76/$W$2,0) -> 1 | BM59: =-ROUND(+Base!$I$127/$W$2,0) -> 0 | BN59: 0 | BO59: =-ROUND(+Base!$I$124/$W$2,0) -> 0 | BP59: =-ROUND(+Base!$I$134/$W$2,0) -> 0 | BQ59: =-ROUND(+Base!$I$135/$W$2,0) -> 0 | BR59: 0 | BS59: 0 | BT59: 44 | BV59: =ROUND(+Base!$I$262/$W$2,0) -> 139 | BW59: =ROUND(+Base!$I$265/$W$2,0) -> 734 | BX59: =ROUND(+Base!$I$268/$W$2,0) -> 0 | BY59: =ROUND(+Base!$I$271/$W$2,0) -> 132 | BZ59: =ROUND(+Base!$I$272/$W$2,0) -> 0 | CA59: 1005
B60: 5 | C60: =+Base!J$4 -> 66 | D60: =+Base!J$5 -> 65 | E60: =+Base!J$7 -> 2028 | F60: =ROUND(+Base!$J$8/$W$2,0) -> 139 | G60: =ROUND(+Base!$J$11/$W$2,0) -> 734 | H60: =ROUND(+Base!$J$14/$W$2,0) -> 0 | I60: =ROUND(+Base!$J$17/$W$2,0) -> 132 | J60: =ROUND(+Base!$J$18/$W$2,0) -> 0 | K60: 1005 | M60: =ROUND(+Base!$J$28/$W$2,0) -> 7 | N60: =ROUND(+Base!$J$31/$W$2,0) -> 45 | O60: =ROUND(+Base!$J$34/$W$2,0) -> 0 | P60: =ROUND(+Base!$J$37/$W$2,0) -> 8 | Q60: =ROUND(+Base!$J$38/$W$2,0) -> 0 | R60: =ROUND(+Base!$J$49/$W$2,0) -> 0 | S60: =ROUND(+Base!$J$60/$W$2,0) -> 0 | T60: =ROUND(+Base!$J$65/$W$2,0) -> 0 | U60: =ROUND((Base!$J$66+Base!$J$67)/$W$2,0) -> 11 | V60: =ROUND((Base!$J$68+Base!$J$69)/$W$2,0) -> 12 | W60: 83 | Y60: =ROUND(+Base!$J$144/$W$2,0) -> 81 | Z60: =ROUND(+Base!$J$145/$W$2,0) -> 5 | AA60: =ROUND(-Base!$J$248/$W$2,0) -> 0 | AB60: =ROUND(-Base!$J$250/$W$2,0) -> 0 | AC60: =ROUND(-Base!$J$251/$W$2,0) -> 0 | AD60: =ROUND(-Base!$J$252/$W$2,0) -> 0 | AE60: =ROUND(-Base!$J$96/$W$2,0) -> 0 | AF60: =ROUND(-Base!$J$107/$W$2,0) -> 0 | AG60: =ROUND(-Base!$J$127/$W$2,0) -> 0 | AH60: =-ROUND(-Base!$J$137/$W$2,0) -> 0 | AJ60: =-ROUND(+Base!$J$254/$W$2,0) -> 0 | AK60: 86 | AL60: =-ROUND(-Base!$J$286/$W$2,0) -> 0 | AN60: 1002 | AP60: =-ROUND(+Base!$J$94/$W$2,0) -> 0 | AQ60: =ROUND(+Base!$J$133/$W$2,0) -> 0 | AR60: =-ROUND(+Base!$J$91/$W$2,0) -> 45 | AS60: =-ROUND(+Base!$J$95/$W$2,0) -> 0 | AT60: =-ROUND(+Base!$J$96/$W$2,0) -> 0 | AU60: =-ROUND(+Base!$J$74/$W$2,0) -> 0 | AV60: 45 | AW60: =-ROUND(+Base!$J$102/$W$2,0) -> 0 | AX60: =-ROUND(+Base!$J$99/$W$2,0) -> 0 | AY60: =-ROUND(+Base!$J$103/$W$2,0) -> 0 | AZ60: =-ROUND(+Base!$J$75/$W$2,0) -> 7 | BA60: 0 | BB60: =-ROUND(+Base!$J$110/$W$2,0) -> 0 | BC60: =-ROUND(+Base!$J$113/$W$2,0) -> 0 | BD60: =-ROUND(+Base!$J$116/$W$2,0) -> 0 | BE60: 0 | BF60: =-ROUND(+Base!$J$111/$W$2,0) -> 0 | BG60: =-ROUND(+Base!$J$114/$W$2,0) -> 0 | BH60: =-ROUND(+Base!$J$117/$W$2,0) -> 0 | BI60: 0 | BJ60: =-ROUND(+Base!$J$123/$W$2,0) -> 0 | BK60: =-ROUND(+Base!$J$126/$W$2,0) -> 0 | BL60: =-ROUND(+Base!$J$76/$W$2,0) -> 0 | BM60: =-ROUND(+Base!$J$127/$W$2,0) -> 0 | BN60: 0 | BO60: =-ROUND(+Base!$J$124/$W$2,0) -> 0 | BP60: =-ROUND(+Base!$J$134/$W$2,0) -> 0 | BQ60: =-ROUND(+Base!$J$135/$W$2,0) -> 0 | BR60: 0 | BS60: 0 | BT60: 45 | BV60: =ROUND(+Base!$J$262/$W$2,0) -> 121 | BW60: =ROUND(+Base!$J$265/$W$2,0) -> 741 | BX60: =ROUND(+Base!$J$268/$W$2,0) -> 0 | BY60: =ROUND(+Base!$J$271/$W$2,0) -> 140 | BZ60: =ROUND(+Base!$J$272/$W$2,0) -> 0 | CA60: 1002
B61: 6 | C61: =+Base!K$4 -> 67 | D61: =+Base!K$5 -> 66 | E61: =+Base!K$7 -> 2029 | F61: =ROUND(+Base!$K$8/$W$2,0) -> 121 | G61: =ROUND(+Base!$K$11/$W$2,0) -> 741 | H61: =ROUND(+Base!$K$14/$W$2,0) -> 0 | I61: =ROUND(+Base!$K$17/$W$2,0) -> 140 | J61: =ROUND(+Base!$K$18/$W$2,0) -> 0 | K61: 1002 | M61: =ROUND(+Base!$K$28/$W$2,0) -> 6 | N61: =ROUND(+Base!$K$31/$W$2,0) -> 45 | O61: =ROUND(+Base!$K$34/$W$2,0) -> 0 | P61: =ROUND(+Base!$K$37/$W$2,0) -> 9 | Q61: =ROUND(+Base!$K$38/$W$2,0) -> 0 | R61: =ROUND(+Base!$K$49/$W$2,0) -> 0 | S61: =ROUND(+Base!$K$60/$W$2,0) -> 22 | T61: =ROUND(+Base!$K$65/$W$2,0) -> 0 | U61: =ROUND((Base!$K$66+Base!$K$67)/$W$2,0) -> 11 | V61: =ROUND((Base!$K$68+Base!$K$69)/$W$2,0) -> 12 | W61: 105 | Y61: =ROUND(+Base!$K$144/$W$2,0) -> 77 | Z61: =ROUND(+Base!$K$145/$W$2,0) -> 7 | AA61: =ROUND(-Base!$K$248/$W$2,0) -> 0 | AB61: =ROUND(-Base!$K$250/$W$2,0) -> 0 | AC61: =ROUND(-Base!$K$251/$W$2,0) -> 0 | AD61: =ROUND(-Base!$K$252/$W$2,0) -> 0 | AE61: =ROUND(-Base!$K$96/$W$2,0) -> 0 | AF61: =ROUND(-Base!$K$107/$W$2,0) -> 0 | AG61: =ROUND(-Base!$K$127/$W$2,0) -> 0 | AH61: =-ROUND(-Base!$K$137/$W$2,0) -> 0 | AJ61: =-ROUND(+Base!$K$254/$W$2,0) -> 0 | AK61: 84 | AL61: =-ROUND(-Base!$K$286/$W$2,0) -> 0 | AN61: 1023 | AP61: =-ROUND(+Base!$K$94/$W$2,0) -> 0 | AQ61: =ROUND(+Base!$K$133/$W$2,0) -> 0 | AR61: =-ROUND(+Base!$K$91/$W$2,0) -> 46 | AS61: =-ROUND(+Base!$K$95/$W$2,0) -> 0 | AT61: =-ROUND(+Base!$K$96/$W$2,0) -> 0 | AU61: =-ROUND(+Base!$K$74/$W$2,0) -> 0 | AV61: 46 | AW61: =-ROUND(+Base!$K$102/$W$2,0) -> 0 | AX61: =-ROUND(+Base!$K$99/$W$2,0) -> 0 | AY61: =-ROUND(+Base!$K$103/$W$2,0) -> 0 | AZ61: =-ROUND(+Base!$K$75/$W$2,0) -> 7 | BA61: 0 | BB61: =-ROUND(+Base!$K$110/$W$2,0) -> 0 | BC61: =-ROUND(+Base!$K$113/$W$2,0) -> 0 | BD61: =-ROUND(+Base!$K$116/$W$2,0) -> 0 | BE61: 0 | BF61: =-ROUND(+Base!$K$111/$W$2,0) -> 0 | BG61: =-ROUND(+Base!$K$114/$W$2,0) -> 0 | BH61: =-ROUND(+Base!$K$117/$W$2,0) -> 0 | BI61: 0 | BJ61: =-ROUND(+Base!$K$123/$W$2,0) -> 0 | BK61: =-ROUND(+Base!$K$126/$W$2,0) -> 0 | BL61: =-ROUND(+Base!$K$76/$W$2,0) -> 0 | BM61: =-ROUND(+Base!$K$127/$W$2,0) -> 0 | BN61: 0 | BO61: =-ROUND(+Base!$K$124/$W$2,0) -> 0 | BP61: =-ROUND(+Base!$K$134/$W$2,0) -> 0 | BQ61: =-ROUND(+Base!$K$135/$W$2,0) -> 0 | BR61: 0 | BS61: 0 | BT61: 46 | BV61: =ROUND(+Base!$K$262/$W$2,0) -> 128 | BW61: =ROUND(+Base!$K$265/$W$2,0) -> 746 | BX61: =ROUND(+Base!$K$268/$W$2,0) -> 0 | BY61: =ROUND(+Base!$K$271/$W$2,0) -> 148 | BZ61: =ROUND(+Base!$K$272/$W$2,0) -> 0 | CA61: 1022
B62: 7 | C62: =+Base!L$4 -> 68 | D62: =+Base!L$5 -> 67 | E62: =+Base!L$7 -> 2030 | F62: =ROUND(+Base!$L$8/$W$2,0) -> 128 | G62: =ROUND(+Base!$L$11/$W$2,0) -> 746 | H62: =ROUND(+Base!$L$14/$W$2,0) -> 0 | I62: =ROUND(+Base!$L$17/$W$2,0) -> 148 | J62: =ROUND(+Base!$L$18/$W$2,0) -> 0 | K62: 1022 | M62: =ROUND(+Base!$L$28/$W$2,0) -> 7 | N62: =ROUND(+Base!$L$31/$W$2,0) -> 45 | O62: =ROUND(+Base!$L$34/$W$2,0) -> 0 | P62: =ROUND(+Base!$L$37/$W$2,0) -> 9 | Q62: =ROUND(+Base!$L$38/$W$2,0) -> 0 | R62: =ROUND(+Base!$L$49/$W$2,0) -> 0 | S62: =ROUND(+Base!$L$60/$W$2,0) -> 23 | T62: =ROUND(+Base!$L$65/$W$2,0) -> 0 | U62: =ROUND((Base!$L$66+Base!$L$67)/$W$2,0) -> 12 | V62: =ROUND((Base!$L$68+Base!$L$69)/$W$2,0) -> 13 | W62: 109 | Y62: =ROUND(+Base!$L$144/$W$2,0) -> 79 | Z62: =ROUND(+Base!$L$145/$W$2,0) -> 7 | AA62: =ROUND(-Base!$L$248/$W$2,0) -> 0 | AB62: =ROUND(-Base!$L$250/$W$2,0) -> 0 | AC62: =ROUND(-Base!$L$251/$W$2,0) -> 0 | AD62: =ROUND(-Base!$L$252/$W$2,0) -> 0 | AE62: =ROUND(-Base!$L$96/$W$2,0) -> 0 | AF62: =ROUND(-Base!$L$107/$W$2,0) -> 0 | AG62: =ROUND(-Base!$L$127/$W$2,0) -> 0 | AH62: =-ROUND(-Base!$L$137/$W$2,0) -> 0 | AJ62: =-ROUND(+Base!$L$254/$W$2,0) -> 0 | AK62: 86 | AL62: =-ROUND(-Base!$L$286/$W$2,0) -> 0 | AN62: 1045 | AP62: =-ROUND(+Base!$L$94/$W$2,0) -> 0 | AQ62: =ROUND(+Base!$L$133/$W$2,0) -> 0 | AR62: =-ROUND(+Base!$L$91/$W$2,0) -> 48 | AS62: =-ROUND(+Base!$L$95/$W$2,0) -> 0 | AT62: =-ROUND(+Base!$L$96/$W$2,0) -> 0 | AU62: =-ROUND(+Base!$L$74/$W$2,0) -> 0 | AV62: 48 | AW62: =-ROUND(+Base!$L$102/$W$2,0) -> 0 | AX62: =-ROUND(+Base!$L$99/$W$2,0) -> 0 | AY62: =-ROUND(+Base!$L$103/$W$2,0) -> 0 | AZ62: =-ROUND(+Base!$L$75/$W$2,0) -> 7 | BA62: 0 | BB62: =-ROUND(+Base!$L$110/$W$2,0) -> 0 | BC62: =-ROUND(+Base!$L$113/$W$2,0) -> 0 | BD62: =-ROUND(+Base!$L$116/$W$2,0) -> 0 | BE62: 0 | BF62: =-ROUND(+Base!$L$111/$W$2,0) -> 0 | BG62: =-ROUND(+Base!$L$114/$W$2,0) -> 0 | BH62: =-ROUND(+Base!$L$117/$W$2,0) -> 0 | BI62: 0 | BJ62: =-ROUND(+Base!$L$123/$W$2,0) -> 0 | BK62: =-ROUND(+Base!$L$126/$W$2,0) -> 0 | BL62: =-ROUND(+Base!$L$76/$W$2,0) -> 0 | BM62: =-ROUND(+Base!$L$127/$W$2,0) -> 0 | BN62: 0 | BO62: =-ROUND(+Base!$L$124/$W$2,0) -> 0 | BP62: =-ROUND(+Base!$L$134/$W$2,0) -> 0 | BQ62: =-ROUND(+Base!$L$135/$W$2,0) -> 0 | BR62: 0 | BS62: 0 | BT62: 48 | BV62: =ROUND(+Base!$L$262/$W$2,0) -> 136 | BW62: =ROUND(+Base!$L$265/$W$2,0) -> 749 | BX62: =ROUND(+Base!$L$268/$W$2,0) -> 0 | BY62: =ROUND(+Base!$L$271/$W$2,0) -> 157 | BZ62: =ROUND(+Base!$L$272/$W$2,0) -> 0 | CA62: 1042
B63: 8 | C63: =+Base!M$4 -> 69 | D63: =+Base!M$5 -> 68 | E63: =+Base!M$7 -> 2031 | F63: =ROUND(+Base!$M$8/$W$2,0) -> 136 | G63: =ROUND(+Base!$M$11/$W$2,0) -> 749 | H63: =ROUND(+Base!$M$14/$W$2,0) -> 0 | I63: =ROUND(+Base!$M$17/$W$2,0) -> 157 | J63: =ROUND(+Base!$M$18/$W$2,0) -> 0 | K63: 1042 | M63: =ROUND(+Base!$M$28/$W$2,0) -> 7 | N63: =ROUND(+Base!$M$31/$W$2,0) -> 45 | O63: =ROUND(+Base!$M$34/$W$2,0) -> 0 | P63: =ROUND(+Base!$M$37/$W$2,0) -> 10 | Q63: =ROUND(+Base!$M$38/$W$2,0) -> 0 | R63: =ROUND(+Base!$M$49/$W$2,0) -> 0 | S63: =ROUND(+Base!$M$60/$W$2,0) -> 23 | T63: =ROUND(+Base!$M$65/$W$2,0) -> 0 | U63: =ROUND((Base!$M$66+Base!$M$67)/$W$2,0) -> 12 | V63: =ROUND((Base!$M$68+Base!$M$69)/$W$2,0) -> 13 | W63: 110 | Y63: =ROUND(+Base!$M$144/$W$2,0) -> 80 | Z63: =ROUND(+Base!$M$145/$W$2,0) -> 8 | AA63: =ROUND(-Base!$M$248/$W$2,0) -> 0 | AB63: =ROUND(-Base!$M$250/$W$2,0) -> 0 | AC63: =ROUND(-Base!$M$251/$W$2,0) -> 0 | AD63: =ROUND(-Base!$M$252/$W$2,0) -> 0 | AE63: =ROUND(-Base!$M$96/$W$2,0) -> 0 | AF63: =ROUND(-Base!$M$107/$W$2,0) -> 0 | AG63: =ROUND(-Base!$M$127/$W$2,0) -> 0 | AH63: =-ROUND(-Base!$M$137/$W$2,0) -> 0 | AJ63: =-ROUND(+Base!$M$254/$W$2,0) -> 0 | AK63: 88 | AL63: =-ROUND(-Base!$M$286/$W$2,0) -> 0 | AN63: 1064 | AP63: =-ROUND(+Base!$M$94/$W$2,0) -> 0 | AQ63: =ROUND(+Base!$M$133/$W$2,0) -> 0 | AR63: =-ROUND(+Base!$M$91/$W$2,0) -> 49 | AS63: =-ROUND(+Base!$M$95/$W$2,0) -> 0 | AT63: =-ROUND(+Base!$M$96/$W$2,0) -> 0 | AU63: =-ROUND(+Base!$M$74/$W$2,0) -> 0 | AV63: 49 | AW63: =-ROUND(+Base!$M$102/$W$2,0) -> 0 | AX63: =-ROUND(+Base!$M$99/$W$2,0) -> 0 | AY63: =-ROUND(+Base!$M$103/$W$2,0) -> 0 | AZ63: =-ROUND(+Base!$M$75/$W$2,0) -> 7 | BA63: 0 | BB63: =-ROUND(+Base!$M$110/$W$2,0) -> 0 | BC63: =-ROUND(+Base!$M$113/$W$2,0) -> 0 | BD63: =-ROUND(+Base!$M$116/$W$2,0) -> 0 | BE63: 0 | BF63: =-ROUND(+Base!$M$111/$W$2,0) -> 0 | BG63: =-ROUND(+Base!$M$114/$W$2,0) -> 0 | BH63: =-ROUND(+Base!$M$117/$W$2,0) -> 0 | BI63: 0 | BJ63: =-ROUND(+Base!$M$123/$W$2,0) -> 0 | BK63: =-ROUND(+Base!$M$126/$W$2,0) -> 0 | BL63: =-ROUND(+Base!$M$76/$W$2,0) -> 0 | BM63: =-ROUND(+Base!$M$127/$W$2,0) -> 0 | BN63: 0 | BO63: =-ROUND(+Base!$M$124/$W$2,0) -> 0 | BP63: =-ROUND(+Base!$M$134/$W$2,0) -> 0 | BQ63: =-ROUND(+Base!$M$135/$W$2,0) -> 0 | BR63: 0 | BS63: 0 | BT63: 49 | BV63: =ROUND(+Base!$M$262/$W$2,0) -> 145 | BW63: =ROUND(+Base!$M$265/$W$2,0) -> 752 | BX63: =ROUND(+Base!$M$268/$W$2,0) -> 0 | BY63: =ROUND(+Base!$M$271/$W$2,0) -> 167 | BZ63: =ROUND(+Base!$M$272/$W$2,0) -> 0 | CA63: 1064
B64: 9 | C64: =+Base!N$4 -> 70 | D64: =+Base!N$5 -> 69 | E64: =+Base!N$7 -> 2032 | F64: =ROUND(+Base!$N$8/$W$2,0) -> 145 | G64: =ROUND(+Base!$N$11/$W$2,0) -> 752 | H64: =ROUND(+Base!$N$14/$W$2,0) -> 0 | I64: =ROUND(+Base!$N$17/$W$2,0) -> 167 | J64: =ROUND(+Base!$N$18/$W$2,0) -> 0 | K64: 1064 | M64: =ROUND(+Base!$N$28/$W$2,0) -> 8 | N64: =ROUND(+Base!$N$31/$W$2,0) -> 47 | O64: =ROUND(+Base!$N$34/$W$2,0) -> 0 | P64: =ROUND(+Base!$N$37/$W$2,0) -> 10 | Q64: =ROUND(+Base!$N$38/$W$2,0) -> 0 | R64: =ROUND(+Base!$N$49/$W$2,0) -> 46 | S64: =ROUND(+Base!$N$60/$W$2,0) -> 24 | T64: =ROUND(+Base!$N$65/$W$2,0) -> 0 | U64: =ROUND((Base!$N$66+Base!$N$67)/$W$2,0) -> 12 | V64: =ROUND((Base!$N$68+Base!$N$69)/$W$2,0) -> 14 | W64: 161 | Y64: =ROUND(+Base!$N$144/$W$2,0) -> 82 | Z64: =ROUND(+Base!$N$145/$W$2,0) -> 4 | AA64: =ROUND(-Base!$N$248/$W$2,0) -> 0 | AB64: =ROUND(-Base!$N$250/$W$2,0) -> 0 | AC64: =ROUND(-Base!$N$251/$W$2,0) -> 0 | AD64: =ROUND(-Base!$N$252/$W$2,0) -> 0 | AE64: =ROUND(-Base!$N$96/$W$2,0) -> 0 | AF64: =ROUND(-Base!$N$107/$W$2,0) -> 0 | AG64: =ROUND(-Base!$N$127/$W$2,0) -> 0 | AH64: =-ROUND(-Base!$N$137/$W$2,0) -> 0 | AJ64: =-ROUND(+Base!$N$254/$W$2,0) -> 0 | AK64: 86 | AL64: =-ROUND(-Base!$N$286/$W$2,0) -> 0 | AN64: 1139 | AP64: =-ROUND(+Base!$N$94/$W$2,0) -> 0 | AQ64: =ROUND(+Base!$N$133/$W$2,0) -> 0 | AR64: =-ROUND(+Base!$N$91/$W$2,0) -> 10 | AS64: =-ROUND(+Base!$N$95/$W$2,0) -> 0 | AT64: =-ROUND(+Base!$N$96/$W$2,0) -> 0 | AU64: =-ROUND(+Base!$N$74/$W$2,0) -> 0 | AV64: 10 | AW64: =-ROUND(+Base!$N$102/$W$2,0) -> 0 | AX64: =-ROUND(+Base!$N$99/$W$2,0) -> 0 | AY64: =-ROUND(+Base!$N$103/$W$2,0) -> 0 | AZ64: =-ROUND(+Base!$N$75/$W$2,0) -> 7 | BA64: 0 | BB64: =-ROUND(+Base!$N$110/$W$2,0) -> 0 | BC64: =-ROUND(+Base!$N$113/$W$2,0) -> 0 | BD64: =-ROUND(+Base!$N$116/$W$2,0) -> 0 | BE64: 0 | BF64: =-ROUND(+Base!$N$111/$W$2,0) -> 0 | BG64: =-ROUND(+Base!$N$114/$W$2,0) -> 0 | BH64: =-ROUND(+Base!$N$117/$W$2,0) -> 0 | BI64: 0 | BJ64: =-ROUND(+Base!$N$123/$W$2,0) -> 0 | BK64: =-ROUND(+Base!$N$126/$W$2,0) -> 0 | BL64: =-ROUND(+Base!$N$76/$W$2,0) -> 0 | BM64: =-ROUND(+Base!$N$127/$W$2,0) -> 0 | BN64: 0 | BO64: =-ROUND(+Base!$N$124/$W$2,0) -> 5 | BP64: =-ROUND(+Base!$N$134/$W$2,0) -> 0 | BQ64: =-ROUND(+Base!$N$135/$W$2,0) -> 0 | BR64: 0 | BS64: 0 | BT64: 15 | BV64: =ROUND(+Base!$N$262/$W$2,0) -> 172 | BW64: =ROUND(+Base!$N$265/$W$2,0) -> 795 | BX64: =ROUND(+Base!$N$268/$W$2,0) -> 0 | BY64: =ROUND(+Base!$N$271/$W$2,0) -> 172 | BZ64: =ROUND(+Base!$N$272/$W$2,0) -> 0 | CA64: 1139
B65: 10 | C65: =+Base!O$4 -> 71 | D65: =+Base!O$5 -> 70 | E65: =+Base!O$7 -> 2033 | F65: =ROUND(+Base!$O$8/$W$2,0) -> 172 | G65: =ROUND(+Base!$O$11/$W$2,0) -> 795 | H65: =ROUND(+Base!$O$14/$W$2,0) -> 0 | I65: =ROUND(+Base!$O$17/$W$2,0) -> 172 | J65: =ROUND(+Base!$O$18/$W$2,0) -> 0 | K65: 1139 | M65: =ROUND(+Base!$O$28/$W$2,0) -> 9 | N65: =ROUND(+Base!$O$31/$W$2,0) -> 49 | O65: =ROUND(+Base!$O$34/$W$2,0) -> 0 | P65: =ROUND(+Base!$O$37/$W$2,0) -> 10 | Q65: =ROUND(+Base!$O$38/$W$2,0) -> 0 | R65: =ROUND(+Base!$O$49/$W$2,0) -> 47 | S65: =ROUND(+Base!$O$60/$W$2,0) -> 24 | T65: =ROUND(+Base!$O$65/$W$2,0) -> 0 | U65: =ROUND((Base!$O$66+Base!$O$67)/$W$2,0) -> 13 | V65: =ROUND((Base!$O$68+Base!$O$69)/$W$2,0) -> 0 | W65: 152 | Y65: =ROUND(+Base!$O$144/$W$2,0) -> 84 | Z65: =ROUND(+Base!$O$145/$W$2,0) -> 1 | AA65: =ROUND(-Base!$O$248/$W$2,0) -> 0 | AB65: =ROUND(-Base!$O$250/$W$2,0) -> 0 | AC65: =ROUND(-Base!$O$251/$W$2,0) -> 0 | AD65: =ROUND(-Base!$O$252/$W$2,0) -> 0 | AE65: =ROUND(-Base!$O$96/$W$2,0) -> 0 | AF65: =ROUND(-Base!$O$107/$W$2,0) -> 0 | AG65: =ROUND(-Base!$O$127/$W$2,0) -> 0 | AH65: =-ROUND(-Base!$O$137/$W$2,0) -> 0 | AJ65: =-ROUND(+Base!$O$254/$W$2,0) -> 0 | AK65: 85 | AL65: =-ROUND(-Base!$O$286/$W$2,0) -> 0 | AN65: 1206 | AP65: =-ROUND(+Base!$O$94/$W$2,0) -> 0 | AQ65: =ROUND(+Base!$O$133/$W$2,0) -> 0 | AR65: =-ROUND(+Base!$O$91/$W$2,0) -> 9 | AS65: =-ROUND(+Base!$O$95/$W$2,0) -> 0 | AT65: =-ROUND(+Base!$O$96/$W$2,0) -> 0 | AU65: =-ROUND(+Base!$O$74/$W$2,0) -> 0 | AV65: 9 | AW65: =-ROUND(+Base!$O$102/$W$2,0) -> 0 | AX65: =-ROUND(+Base!$O$99/$W$2,0) -> 0 | AY65: =-ROUND(+Base!$O$103/$W$2,0) -> 0 | AZ65: =-ROUND(+Base!$O$75/$W$2,0) -> 0 | BA65: 0 | BB65: =-ROUND(+Base!$O$110/$W$2,0) -> 0 | BC65: =-ROUND(+Base!$O$113/$W$2,0) -> 0 | BD65: =-ROUND(+Base!$O$116/$W$2,0) -> 0 | BE65: 0 | BF65: =-ROUND(+Base!$O$111/$W$2,0) -> 0 | BG65: =-ROUND(+Base!$O$114/$W$2,0) -> 0 | BH65: =-ROUND(+Base!$O$117/$W$2,0) -> 0 | BI65: 0 | BJ65: =-ROUND(+Base!$O$123/$W$2,0) -> 0 | BK65: =-ROUND(+Base!$O$126/$W$2,0) -> 0 | BL65: =-ROUND(+Base!$O$76/$W$2,0) -> 0 | BM65: =-ROUND(+Base!$O$127/$W$2,0) -> 0 | BN65: 0 | BO65: =-ROUND(+Base!$O$124/$W$2,0) -> 6 | BP65: =-ROUND(+Base!$O$134/$W$2,0) -> 0 | BQ65: =-ROUND(+Base!$O$135/$W$2,0) -> 0 | BR65: 0 | BS65: 0 | BT65: 15 | BV65: =ROUND(+Base!$O$262/$W$2,0) -> 195 | BW65: =ROUND(+Base!$O$265/$W$2,0) -> 835 | BX65: =ROUND(+Base!$O$268/$W$2,0) -> 0 | BY65: =ROUND(+Base!$O$271/$W$2,0) -> 177 | BZ65: =ROUND(+Base!$O$272/$W$2,0) -> 0 | CA65: 1207
B66: 11 | C66: =+Base!P$4 -> 72 | D66: =+Base!P$5 -> 71 | E66: =+Base!P$7 -> 2034 | F66: =ROUND(+Base!$P$8/$W$2,0) -> 195 | G66: =ROUND(+Base!$P$11/$W$2,0) -> 835 | H66: =ROUND(+Base!$P$14/$W$2,0) -> 0 | I66: =ROUND(+Base!$P$17/$W$2,0) -> 177 | J66: =ROUND(+Base!$P$18/$W$2,0) -> 0 | K66: 1207 | M66: =ROUND(+Base!$P$28/$W$2,0) -> 8 | N66: =ROUND(+Base!$P$31/$W$2,0) -> 51 | O66: =ROUND(+Base!$P$34/$W$2,0) -> 0 | P66: =ROUND(+Base!$P$37/$W$2,0) -> 11 | Q66: =ROUND(+Base!$P$38/$W$2,0) -> 0 | R66: =ROUND(+Base!$P$49/$W$2,0) -> 48 | S66: =ROUND(+Base!$P$60/$W$2,0) -> 25 | T66: =ROUND(+Base!$P$65/$W$2,0) -> 0 | U66: =ROUND((Base!$P$66+Base!$P$67)/$W$2,0) -> 13 | V66: =ROUND((Base!$P$68+Base!$P$69)/$W$2,0) -> 0 | W66: 156 | Y66: =ROUND(+Base!$P$144/$W$2,0) -> 85 | Z66: =ROUND(+Base!$P$145/$W$2,0) -> 1 | AA66: =ROUND(-Base!$P$248/$W$2,0) -> 0 | AB66: =ROUND(-Base!$P$250/$W$2,0) -> 0 | AC66: =ROUND(-Base!$P$251/$W$2,0) -> 80 | AD66: =ROUND(-Base!$P$252/$W$2,0) -> 0 | AE66: =ROUND(-Base!$P$96/$W$2,0) -> 0 | AF66: =ROUND(-Base!$P$107/$W$2,0) -> 0 | AG66: =ROUND(-Base!$P$127/$W$2,0) -> 0 | AH66: =-ROUND(-Base!$P$137/$W$2,0) -> 0 | AJ66: =-ROUND(+Base!$P$254/$W$2,0) -> 80 | AK66: 166 | AL66: =-ROUND(-Base!$P$286/$W$2,0) -> 0 | AN66: 1197 | AP66: =-ROUND(+Base!$P$94/$W$2,0) -> 0 | AQ66: =ROUND(+Base!$P$133/$W$2,0) -> 0 | AR66: =-ROUND(+Base!$P$91/$W$2,0) -> 8 | AS66: =-ROUND(+Base!$P$95/$W$2,0) -> 0 | AT66: =-ROUND(+Base!$P$96/$W$2,0) -> 0 | AU66: =-ROUND(+Base!$P$74/$W$2,0) -> 0 | AV66: 8 | AW66: =-ROUND(+Base!$P$102/$W$2,0) -> 0 | AX66: =-ROUND(+Base!$P$99/$W$2,0) -> 0 | AY66: =-ROUND(+Base!$P$103/$W$2,0) -> 0 | AZ66: =-ROUND(+Base!$P$75/$W$2,0) -> 0 | BA66: 0 | BB66: =-ROUND(+Base!$P$110/$W$2,0) -> 0 | BC66: =-ROUND(+Base!$P$113/$W$2,0) -> 0 | BD66: =-ROUND(+Base!$P$116/$W$2,0) -> 0 | BE66: 0 | BF66: =-ROUND(+Base!$P$111/$W$2,0) -> 0 | BG66: =-ROUND(+Base!$P$114/$W$2,0) -> 0 | BH66: =-ROUND(+Base!$P$117/$W$2,0) -> 0 | BI66: 0 | BJ66: =-ROUND(+Base!$P$123/$W$2,0) -> 0 | BK66: =-ROUND(+Base!$P$126/$W$2,0) -> 0 | BL66: =-ROUND(+Base!$P$76/$W$2,0) -> 0 | BM66: =-ROUND(+Base!$P$127/$W$2,0) -> 0 | BN66: 0 | BO66: =-ROUND(+Base!$P$124/$W$2,0) -> 6 | BP66: =-ROUND(+Base!$P$134/$W$2,0) -> 0 | BQ66: =-ROUND(+Base!$P$135/$W$2,0) -> 0 | BR66: 0 | BS66: 0 | BT66: 14 | BV66: =ROUND(+Base!$P$262/$W$2,0) -> 137 | BW66: =ROUND(+Base!$P$265/$W$2,0) -> 878 | BX66: =ROUND(+Base!$P$268/$W$2,0) -> 0 | BY66: =ROUND(+Base!$P$271/$W$2,0) -> 181 | BZ66: =ROUND(+Base!$P$272/$W$2,0) -> 0 | CA66: 1196
B67: 12 | C67: =+Base!Q$4 -> 73 | D67: =+Base!Q$5 -> 72 | E67: =+Base!Q$7 -> 2035 | F67: =ROUND(+Base!$Q$8/$W$2,0) -> 137 | G67: =ROUND(+Base!$Q$11/$W$2,0) -> 878 | H67: =ROUND(+Base!$Q$14/$W$2,0) -> 0 | I67: =ROUND(+Base!$Q$17/$W$2,0) -> 181 | J67: =ROUND(+Base!$Q$18/$W$2,0) -> 0 | K67: 1196 | M67: =ROUND(+Base!$Q$28/$W$2,0) -> 9 | N67: =ROUND(+Base!$Q$31/$W$2,0) -> 54 | O67: =ROUND(+Base!$Q$34/$W$2,0) -> 0 | P67: =ROUND(+Base!$Q$37/$W$2,0) -> 11 | Q67: =ROUND(+Base!$Q$38/$W$2,0) -> 0 | R67: =ROUND(+Base!$Q$49/$W$2,0) -> 49 | S67: =ROUND(+Base!$Q$60/$W$2,0) -> 25 | T67: =ROUND(+Base!$Q$65/$W$2,0) -> 0 | U67: =ROUND((Base!$Q$66+Base!$Q$67)/$W$2,0) -> 13 | V67: =ROUND((Base!$Q$68+Base!$Q$69)/$W$2,0) -> 0 | W67: 161 | Y67: =ROUND(+Base!$Q$144/$W$2,0) -> 87 | Z67: =ROUND(+Base!$Q$145/$W$2,0) -> 4 | AA67: =ROUND(-Base!$Q$248/$W$2,0) -> -40 | AB67: =ROUND(-Base!$Q$250/$W$2,0) -> 0 | AC67: =ROUND(-Base!$Q$251/$W$2,0) -> 0 | AD67: =ROUND(-Base!$Q$252/$W$2,0) -> 0 | AE67: =ROUND(-Base!$Q$96/$W$2,0) -> 0 | AF67: =ROUND(-Base!$Q$107/$W$2,0) -> -60 | AG67: =ROUND(-Base!$Q$127/$W$2,0) -> 0 | AH67: =-ROUND(-Base!$Q$137/$W$2,0) -> 0 | AJ67: =-ROUND(+Base!$Q$254/$W$2,0) -> -100 | AK67: -9 | AL67: =-ROUND(-Base!$Q$286/$W$2,0) -> 0 | AN67: 1366 | AP67: =-ROUND(+Base!$Q$94/$W$2,0) -> 16 | AQ67: =ROUND(+Base!$Q$133/$W$2,0) -> 0 | AR67: =-ROUND(+Base!$Q$91/$W$2,0) -> 7 | AS67: =-ROUND(+Base!$Q$95/$W$2,0) -> 0 | AT67: =-ROUND(+Base!$Q$96/$W$2,0) -> 0 | AU67: =-ROUND(+Base!$Q$74/$W$2,0) -> 0 | AV67: 7 | AW67: =-ROUND(+Base!$Q$102/$W$2,0) -> 0 | AX67: =-ROUND(+Base!$Q$99/$W$2,0) -> 0 | AY67: =-ROUND(+Base!$Q$103/$W$2,0) -> 0 | AZ67: =-ROUND(+Base!$Q$75/$W$2,0) -> 0 | BA67: 0 | BB67: =-ROUND(+Base!$Q$110/$W$2,0) -> 0 | BC67: =-ROUND(+Base!$Q$113/$W$2,0) -> 0 | BD67: =-ROUND(+Base!$Q$116/$W$2,0) -> 0 | BE67: 0 | BF67: =-ROUND(+Base!$Q$111/$W$2,0) -> 0 | BG67: =-ROUND(+Base!$Q$114/$W$2,0) -> 0 | BH67: =-ROUND(+Base!$Q$117/$W$2,0) -> 0 | BI67: 0 | BJ67: =-ROUND(+Base!$Q$123/$W$2,0) -> 0 | BK67: =-ROUND(+Base!$Q$126/$W$2,0) -> 0 | BL67: =-ROUND(+Base!$Q$76/$W$2,0) -> 0 | BM67: =-ROUND(+Base!$Q$127/$W$2,0) -> 0 | BN67: 0 | BO67: =-ROUND(+Base!$Q$124/$W$2,0) -> 7 | BP67: =-ROUND(+Base!$Q$134/$W$2,0) -> 0 | BQ67: =-ROUND(+Base!$Q$135/$W$2,0) -> 0 | BR67: 0 | BS67: 0 | BT67: 30 | BV67: =ROUND(+Base!$Q$262/$W$2,0) -> 212 | BW67: =ROUND(+Base!$Q$265/$W$2,0) -> 909 | BX67: =ROUND(+Base!$Q$268/$W$2,0) -> 60 | BY67: =ROUND(+Base!$Q$271/$W$2,0) -> 185 | BZ67: =ROUND(+Base!$Q$272/$W$2,0) -> 0 | CA67: 1366
B68: 13 | C68: =+Base!R$4 -> 74 | D68: =+Base!R$5 -> 73 | E68: =+Base!R$7 -> 2036 | F68: =ROUND(+Base!$R$8/$W$2,0) -> 212 | G68: =ROUND(+Base!$R$11/$W$2,0) -> 909 | H68: =ROUND(+Base!$R$14/$W$2,0) -> 60 | I68: =ROUND(+Base!$R$17/$W$2,0) -> 185 | J68: =ROUND(+Base!$R$18/$W$2,0) -> 0 | K68: 1366 | M68: =ROUND(+Base!$R$28/$W$2,0) -> 11 | N68: =ROUND(+Base!$R$31/$W$2,0) -> 55 | O68: =ROUND(+Base!$R$34/$W$2,0) -> 3 | P68: =ROUND(+Base!$R$37/$W$2,0) -> 11 | Q68: =ROUND(+Base!$R$38/$W$2,0) -> 0 | R68: =ROUND(+Base!$R$49/$W$2,0) -> 50 | S68: =ROUND(+Base!$R$60/$W$2,0) -> 26 | T68: =ROUND(+Base!$R$65/$W$2,0) -> 0 | U68: =ROUND((Base!$R$66+Base!$R$67)/$W$2,0) -> 13 | V68: =ROUND((Base!$R$68+Base!$R$69)/$W$2,0) -> 0 | W68: 169 | Y68: =ROUND(+Base!$R$144/$W$2,0) -> 89 | Z68: =ROUND(+Base!$R$145/$W$2,0) -> 6 | AA68: =ROUND(-Base!$R$248/$W$2,0) -> 0 | AB68: =ROUND(-Base!$R$250/$W$2,0) -> 0 | AC68: =ROUND(-Base!$R$251/$W$2,0) -> 20 | AD68: =ROUND(-Base!$R$252/$W$2,0) -> 0 | AE68: =ROUND(-Base!$R$96/$W$2,0) -> 0 | AF68: =ROUND(-Base!$R$107/$W$2,0) -> 0 | AG68: =ROUND(-Base!$R$127/$W$2,0) -> 0 | AH68: =-ROUND(-Base!$R$137/$W$2,0) -> -15 | AJ68: =-ROUND(+Base!$R$254/$W$2,0) -> 35 | AK68: 130 | AL68: =-ROUND(-Base!$R$286/$W$2,0) -> 0 | AN68: 1405 | AP68: =-ROUND(+Base!$R$94/$W$2,0) -> 17 | AQ68: =ROUND(+Base!$R$133/$W$2,0) -> 0 | AR68: =-ROUND(+Base!$R$91/$W$2,0) -> 7 | AS68: =-ROUND(+Base!$R$95/$W$2,0) -> 0 | AT68: =-ROUND(+Base!$R$96/$W$2,0) -> 0 | AU68: =-ROUND(+Base!$R$74/$W$2,0) -> 0 | AV68: 7 | AW68: =-ROUND(+Base!$R$102/$W$2,0) -> 18 | AX68: =-ROUND(+Base!$R$99/$W$2,0) -> 0 | AY68: =-ROUND(+Base!$R$103/$W$2,0) -> 0 | AZ68: =-ROUND(+Base!$R$75/$W$2,0) -> 0 | BA68: 0 | BB68: =-ROUND(+Base!$R$110/$W$2,0) -> 0 | BC68: =-ROUND(+Base!$R$113/$W$2,0) -> 0 | BD68: =-ROUND(+Base!$R$116/$W$2,0) -> 0 | BE68: 0 | BF68: =-ROUND(+Base!$R$111/$W$2,0) -> 6 | BG68: =-ROUND(+Base!$R$114/$W$2,0) -> 0 | BH68: =-ROUND(+Base!$R$117/$W$2,0) -> 0 | BI68: 0 | BJ68: =-ROUND(+Base!$R$123/$W$2,0) -> 0 | BK68: =-ROUND(+Base!$R$126/$W$2,0) -> 0 | BL68: =-ROUND(+Base!$R$76/$W$2,0) -> 0 | BM68: =-ROUND(+Base!$R$127/$W$2,0) -> 0 | BN68: 0 | BO68: =-ROUND(+Base!$R$124/$W$2,0) -> 7 | BP68: =-ROUND(+Base!$R$134/$W$2,0) -> 0 | BQ68: =-ROUND(+Base!$R$135/$W$2,0) -> 0 | BR68: 0 | BS68: 15 | BT68: 70 | BV68: =ROUND(+Base!$R$262/$W$2,0) -> 237 | BW68: =ROUND(+Base!$R$265/$W$2,0) -> 922 | BX68: =ROUND(+Base!$R$268/$W$2,0) -> 57 | BY68: =ROUND(+Base!$R$271/$W$2,0) -> 189 | BZ68: =ROUND(+Base!$R$272/$W$2,0) -> 0 | CA68: 1405
B69: 14 | C69: =+Base!S$4 -> 75 | D69: =+Base!S$5 -> 74 | E69: =+Base!S$7 -> 2037 | F69: =ROUND(+Base!$S$8/$W$2,0) -> 237 | G69: =ROUND(+Base!$S$11/$W$2,0) -> 922 | H69: =ROUND(+Base!$S$14/$W$2,0) -> 57 | I69: =ROUND(+Base!$S$17/$W$2,0) -> 189 | J69: =ROUND(+Base!$S$18/$W$2,0) -> 0 | K69: 1405 | M69: =ROUND(+Base!$S$28/$W$2,0) -> 13 | N69: =ROUND(+Base!$S$31/$W$2,0) -> 56 | O69: =ROUND(+Base!$S$34/$W$2,0) -> 3 | P69: =ROUND(+Base!$S$37/$W$2,0) -> 11 | Q69: =ROUND(+Base!$S$38/$W$2,0) -> 0 | R69: =ROUND(+Base!$S$49/$W$2,0) -> 51 | S69: =ROUND(+Base!$S$60/$W$2,0) -> 26 | T69: =ROUND(+Base!$S$65/$W$2,0) -> 0 | U69: =ROUND((Base!$S$66+Base!$S$67)/$W$2,0) -> 14 | V69: =ROUND((Base!$S$68+Base!$S$69)/$W$2,0) -> 0 | W69: 174 | Y69: =ROUND(+Base!$S$144/$W$2,0) -> 91 | Z69: =ROUND(+Base!$S$145/$W$2,0) -> 6 | AA69: =ROUND(-Base!$S$248/$W$2,0) -> 0 | AB69: =ROUND(-Base!$S$250/$W$2,0) -> 0 | AC69: =ROUND(-Base!$S$251/$W$2,0) -> 0 | AD69: =ROUND(-Base!$S$252/$W$2,0) -> 0 | AE69: =ROUND(-Base!$S$96/$W$2,0) -> 0 | AF69: =ROUND(-Base!$S$107/$W$2,0) -> 0 | AG69: =ROUND(-Base!$S$127/$W$2,0) -> 0 | AH69: =-ROUND(-Base!$S$137/$W$2,0) -> -20 | AJ69: =-ROUND(+Base!$S$254/$W$2,0) -> 20 | AK69: 117 | AL69: =-ROUND(-Base!$S$286/$W$2,0) -> 0 | AN69: 1462 | AP69: =-ROUND(+Base!$S$94/$W$2,0) -> 17 | AQ69: =ROUND(+Base!$S$133/$W$2,0) -> 0 | AR69: =-ROUND(+Base!$S$91/$W$2,0) -> 6 | AS69: =-ROUND(+Base!$S$95/$W$2,0) -> 0 | AT69: =-ROUND(+Base!$S$96/$W$2,0) -> 0 | AU69: =-ROUND(+Base!$S$74/$W$2,0) -> 0 | AV69: 6 | AW69: =-ROUND(+Base!$S$102/$W$2,0) -> 20 | AX69: =-ROUND(+Base!$S$99/$W$2,0) -> 0 | AY69: =-ROUND(+Base!$S$103/$W$2,0) -> 0 | AZ69: =-ROUND(+Base!$S$75/$W$2,0) -> 0 | BA69: 0 | BB69: =-ROUND(+Base!$S$110/$W$2,0) -> 0 | BC69: =-ROUND(+Base!$S$113/$W$2,0) -> 0 | BD69: =-ROUND(+Base!$S$116/$W$2,0) -> 0 | BE69: 0 | BF69: =-ROUND(+Base!$S$111/$W$2,0) -> 6 | BG69: =-ROUND(+Base!$S$114/$W$2,0) -> 0 | BH69: =-ROUND(+Base!$S$117/$W$2,0) -> 0 | BI69: 0 | BJ69: =-ROUND(+Base!$S$123/$W$2,0) -> 0 | BK69: =-ROUND(+Base!$S$126/$W$2,0) -> 0 | BL69: =-ROUND(+Base!$S$76/$W$2,0) -> 0 | BM69: =-ROUND(+Base!$S$127/$W$2,0) -> 0 | BN69: 0 | BO69: =-ROUND(+Base!$S$124/$W$2,0) -> 8 | BP69: =-ROUND(+Base!$S$134/$W$2,0) -> 0 | BQ69: =-ROUND(+Base!$S$135/$W$2,0) -> 0 | BR69: 0 | BS69: 20 | BT69: 77 | BV69: =ROUND(+Base!$S$262/$W$2,0) -> 281 | BW69: =ROUND(+Base!$S$265/$W$2,0) -> 935 | BX69: =ROUND(+Base!$S$268/$W$2,0) -> 54 | BY69: =ROUND(+Base!$S$271/$W$2,0) -> 192 | BZ69: =ROUND(+Base!$S$272/$W$2,0) -> 0 | CA69: 1462
B70: 15 | C70: =+Base!T$4 -> 76 | D70: =+Base!T$5 -> 75 | E70: =+Base!T$7 -> 2038 | F70: =ROUND(+Base!$T$8/$W$2,0) -> 281 | G70: =ROUND(+Base!$T$11/$W$2,0) -> 935 | H70: =ROUND(+Base!$T$14/$W$2,0) -> 54 | I70: =ROUND(+Base!$T$17/$W$2,0) -> 192 | J70: =ROUND(+Base!$T$18/$W$2,0) -> 0 | K70: 1462 | M70: =ROUND(+Base!$T$28/$W$2,0) -> 12 | N70: =ROUND(+Base!$T$31/$W$2,0) -> 57 | O70: =ROUND(+Base!$T$34/$W$2,0) -> 3 | P70: =ROUND(+Base!$T$37/$W$2,0) -> 12 | Q70: =ROUND(+Base!$T$38/$W$2,0) -> 0 | R70: =ROUND(+Base!$T$49/$W$2,0) -> 40 | S70: =ROUND(+Base!$T$60/$W$2,0) -> 20 | T70: =ROUND(+Base!$T$65/$W$2,0) -> 9 | U70: =ROUND((Base!$T$66+Base!$T$67)/$W$2,0) -> 14 | V70: =ROUND((Base!$T$68+Base!$T$69)/$W$2,0) -> 0 | W70: 167 | Y70: =ROUND(+Base!$T$144/$W$2,0) -> 92 | Z70: =ROUND(+Base!$T$145/$W$2,0) -> 4 | AA70: =ROUND(-Base!$T$248/$W$2,0) -> 0 | AB70: =ROUND(-Base!$T$250/$W$2,0) -> 0 | AC70: =ROUND(-Base!$T$251/$W$2,0) -> 0 | AD70: =ROUND(-Base!$T$252/$W$2,0) -> 100 | AE70: =ROUND(-Base!$T$96/$W$2,0) -> 0 | AF70: =ROUND(-Base!$T$107/$W$2,0) -> 0 | AG70: =ROUND(-Base!$T$127/$W$2,0) -> 0 | AH70: =-ROUND(-Base!$T$137/$W$2,0) -> -20 | AJ70: =-ROUND(+Base!$T$254/$W$2,0) -> 120 | AK70: 216 | AL70: =-ROUND(-Base!$T$286/$W$2,0) -> 0 | AN70: 1413 | AP70: =-ROUND(+Base!$T$94/$W$2,0) -> 18 | AQ70: =ROUND(+Base!$T$133/$W$2,0) -> 0 | AR70: =-ROUND(+Base!$T$91/$W$2,0) -> 0 | AS70: =-ROUND(+Base!$T$95/$W$2,0) -> 0 | AT70: =-ROUND(+Base!$T$96/$W$2,0) -> 0 | AU70: =-ROUND(+Base!$T$74/$W$2,0) -> 0 | AV70: 0 | AW70: =-ROUND(+Base!$T$102/$W$2,0) -> 21 | AX70: =-ROUND(+Base!$T$99/$W$2,0) -> 0 | AY70: =-ROUND(+Base!$T$103/$W$2,0) -> 0 | AZ70: =-ROUND(+Base!$T$75/$W$2,0) -> 0 | BA70: 0 | BB70: =-ROUND(+Base!$T$110/$W$2,0) -> 0 | BC70: =-ROUND(+Base!$T$113/$W$2,0) -> 0 | BD70: =-ROUND(+Base!$T$116/$W$2,0) -> 0 | BE70: 0 | BF70: =-ROUND(+Base!$T$111/$W$2,0) -> 7 | BG70: =-ROUND(+Base!$T$114/$W$2,0) -> 0 | BH70: =-ROUND(+Base!$T$117/$W$2,0) -> 0 | BI70: 0 | BJ70: =-ROUND(+Base!$T$123/$W$2,0) -> 0 | BK70: =-ROUND(+Base!$T$126/$W$2,0) -> 0 | BL70: =-ROUND(+Base!$T$76/$W$2,0) -> 0 | BM70: =-ROUND(+Base!$T$127/$W$2,0) -> 0 | BN70: 0 | BO70: =-ROUND(+Base!$T$124/$W$2,0) -> 0 | BP70: =-ROUND(+Base!$T$134/$W$2,0) -> 0 | BQ70: =-ROUND(+Base!$T$135/$W$2,0) -> 0 | BR70: 0 | BS70: 20 | BT70: 66 | BV70: =ROUND(+Base!$T$262/$W$2,0) -> 205 | BW70: =ROUND(+Base!$T$265/$W$2,0) -> 953 | BX70: =ROUND(+Base!$T$268/$W$2,0) -> 51 | BY70: =ROUND(+Base!$T$271/$W$2,0) -> 204 | BZ70: =ROUND(+Base!$T$272/$W$2,0) -> 0 | CA70: 1413
B71: 16 | C71: =+Base!U$4 -> 77 | D71: =+Base!U$5 -> 76 | E71: =+Base!U$7 -> 2039 | F71: =ROUND(+Base!$U$8/$W$2,0) -> 205 | G71: =ROUND(+Base!$U$11/$W$2,0) -> 953 | H71: =ROUND(+Base!$U$14/$W$2,0) -> 51 | I71: =ROUND(+Base!$U$17/$W$2,0) -> 204 | J71: =ROUND(+Base!$U$18/$W$2,0) -> 0 | K71: 1413 | M71: =ROUND(+Base!$U$28/$W$2,0) -> 12 | N71: =ROUND(+Base!$U$31/$W$2,0) -> 58 | O71: =ROUND(+Base!$U$34/$W$2,0) -> 3 | P71: =ROUND(+Base!$U$37/$W$2,0) -> 13 | Q71: =ROUND(+Base!$U$38/$W$2,0) -> 0 | R71: =ROUND(+Base!$U$49/$W$2,0) -> 41 | S71: =ROUND(+Base!$U$60/$W$2,0) -> 21 | T71: =ROUND(+Base!$U$65/$W$2,0) -> 9 | U71: =ROUND((Base!$U$66+Base!$U$67)/$W$2,0) -> 15 | V71: =ROUND((Base!$U$68+Base!$U$69)/$W$2,0) -> 0 | W71: 172 | Y71: =ROUND(+Base!$U$144/$W$2,0) -> 94 | Z71: =ROUND(+Base!$U$145/$W$2,0) -> 6 | AA71: =ROUND(-Base!$U$248/$W$2,0) -> -60 | AB71: =ROUND(-Base!$U$250/$W$2,0) -> 0 | AC71: =ROUND(-Base!$U$251/$W$2,0) -> 0 | AD71: =ROUND(-Base!$U$252/$W$2,0) -> 0 | AE71: =ROUND(-Base!$U$96/$W$2,0) -> 0 | AF71: =ROUND(-Base!$U$107/$W$2,0) -> -40 | AG71: =ROUND(-Base!$U$127/$W$2,0) -> 0 | AH71: =-ROUND(-Base!$U$137/$W$2,0) -> -20 | AJ71: =-ROUND(+Base!$U$254/$W$2,0) -> -80 | AK71: 20 | AL71: =-ROUND(-Base!$U$286/$W$2,0) -> 0 | AN71: 1565 | AP71: =-ROUND(+Base!$U$94/$W$2,0) -> 19 | AQ71: =ROUND(+Base!$U$133/$W$2,0) -> 0 | AR71: =-ROUND(+Base!$U$91/$W$2,0) -> 0 | AS71: =-ROUND(+Base!$U$95/$W$2,0) -> 0 | AT71: =-ROUND(+Base!$U$96/$W$2,0) -> 0 | AU71: =-ROUND(+Base!$U$74/$W$2,0) -> 0 | AV71: 0 | AW71: =-ROUND(+Base!$U$102/$W$2,0) -> 22 | AX71: =-ROUND(+Base!$U$99/$W$2,0) -> 0 | AY71: =-ROUND(+Base!$U$103/$W$2,0) -> 0 | AZ71: =-ROUND(+Base!$U$75/$W$2,0) -> 0 | BA71: 0 | BB71: =-ROUND(+Base!$U$110/$W$2,0) -> 0 | BC71: =-ROUND(+Base!$U$113/$W$2,0) -> 4 | BD71: =-ROUND(+Base!$U$116/$W$2,0) -> 0 | BE71: 4 | BF71: =-ROUND(+Base!$U$111/$W$2,0) -> 7 | BG71: =-ROUND(+Base!$U$114/$W$2,0) -> 0 | BH71: =-ROUND(+Base!$U$117/$W$2,0) -> 0 | BI71: 0 | BJ71: =-ROUND(+Base!$U$123/$W$2,0) -> 0 | BK71: =-ROUND(+Base!$U$126/$W$2,0) -> 0 | BL71: =-ROUND(+Base!$U$76/$W$2,0) -> 0 | BM71: =-ROUND(+Base!$U$127/$W$2,0) -> 0 | BN71: 0 | BO71: =-ROUND(+Base!$U$124/$W$2,0) -> 0 | BP71: =-ROUND(+Base!$U$134/$W$2,0) -> 0 | BQ71: =-ROUND(+Base!$U$135/$W$2,0) -> 0 | BR71: 0 | BS71: 20 | BT71: 72 | BV71: =ROUND(+Base!$U$262/$W$2,0) -> 294 | BW71: =ROUND(+Base!$U$265/$W$2,0) -> 970 | BX71: =ROUND(+Base!$U$268/$W$2,0) -> 83 | BY71: =ROUND(+Base!$U$271/$W$2,0) -> 217 | BZ71: =ROUND(+Base!$U$272/$W$2,0) -> 0 | CA71: 1564
B72: 17 | C72: =+Base!V$4 -> 78 | D72: =+Base!V$5 -> 77 | E72: =+Base!V$7 -> 2040 | F72: =ROUND(+Base!$V$8/$W$2,0) -> 294 | G72: =ROUND(+Base!$V$11/$W$2,0) -> 970 | H72: =ROUND(+Base!$V$14/$W$2,0) -> 83 | I72: =ROUND(+Base!$V$17/$W$2,0) -> 217 | J72: =ROUND(+Base!$V$18/$W$2,0) -> 0 | K72: 1564 | M72: =ROUND(+Base!$V$28/$W$2,0) -> 15 | N72: =ROUND(+Base!$V$31/$W$2,0) -> 59 | O72: =ROUND(+Base!$V$34/$W$2,0) -> 5 | P72: =ROUND(+Base!$V$37/$W$2,0) -> 13 | Q72: =ROUND(+Base!$V$38/$W$2,0) -> 0 | R72: =ROUND(+Base!$V$49/$W$2,0) -> 41 | S72: =ROUND(+Base!$V$60/$W$2,0) -> 21 | T72: =ROUND(+Base!$V$65/$W$2,0) -> 9 | U72: =ROUND((Base!$V$66+Base!$V$67)/$W$2,0) -> 15 | V72: =ROUND((Base!$V$68+Base!$V$69)/$W$2,0) -> 0 | W72: 178 | Y72: =ROUND(+Base!$V$144/$W$2,0) -> 96 | Z72: =ROUND(+Base!$V$145/$W$2,0) -> 8 | AA72: =ROUND(-Base!$V$248/$W$2,0) -> 0 | AB72: =ROUND(-Base!$V$250/$W$2,0) -> 0 | AC72: =ROUND(-Base!$V$251/$W$2,0) -> 0 | AD72: =ROUND(-Base!$V$252/$W$2,0) -> 0 | AE72: =ROUND(-Base!$V$96/$W$2,0) -> 0 | AF72: =ROUND(-Base!$V$107/$W$2,0) -> 0 | AG72: =ROUND(-Base!$V$127/$W$2,0) -> 0 | AH72: =-ROUND(-Base!$V$137/$W$2,0) -> -20 | AJ72: =-ROUND(+Base!$V$254/$W$2,0) -> 20 | AK72: 124 | AL72: =-ROUND(-Base!$V$286/$W$2,0) -> 0 | AN72: 1618 | AP72: =-ROUND(+Base!$V$94/$W$2,0) -> 20 | AQ72: =ROUND(+Base!$V$133/$W$2,0) -> 0 | AR72: =-ROUND(+Base!$V$91/$W$2,0) -> 0 | AS72: =-ROUND(+Base!$V$95/$W$2,0) -> 0 | AT72: =-ROUND(+Base!$V$96/$W$2,0) -> 0 | AU72: =-ROUND(+Base!$V$74/$W$2,0) -> 0 | AV72: 0 | AW72: =-ROUND(+Base!$V$102/$W$2,0) -> 23 | AX72: =-ROUND(+Base!$V$99/$W$2,0) -> 0 | AY72: =-ROUND(+Base!$V$103/$W$2,0) -> 0 | AZ72: =-ROUND(+Base!$V$75/$W$2,0) -> 0 | BA72: 0 | BB72: =-ROUND(+Base!$V$110/$W$2,0) -> 3 | BC72: =-ROUND(+Base!$V$113/$W$2,0) -> 4 | BD72: =-ROUND(+Base!$V$116/$W$2,0) -> 0 | BE72: 4 | BF72: =-ROUND(+Base!$V$111/$W$2,0) -> 8 | BG72: =-ROUND(+Base!$V$114/$W$2,0) -> 1 | BH72: =-ROUND(+Base!$V$117/$W$2,0) -> 0 | BI72: 1 | BJ72: =-ROUND(+Base!$V$123/$W$2,0) -> 0 | BK72: =-ROUND(+Base!$V$126/$W$2,0) -> 0 | BL72: =-ROUND(+Base!$V$76/$W$2,0) -> 0 | BM72: =-ROUND(+Base!$V$127/$W$2,0) -> 0 | BN72: 0 | BO72: =-ROUND(+Base!$V$124/$W$2,0) -> 0 | BP72: =-ROUND(+Base!$V$134/$W$2,0) -> 0 | BQ72: =-ROUND(+Base!$V$135/$W$2,0) -> 0 | BR72: 0 | BS72: 20 | BT72: 79 | BV72: =ROUND(+Base!$V$262/$W$2,0) -> 330 | BW72: =ROUND(+Base!$V$265/$W$2,0) -> 985 | BX72: =ROUND(+Base!$V$268/$W$2,0) -> 71 | BY72: =ROUND(+Base!$V$271/$W$2,0) -> 230 | BZ72: =ROUND(+Base!$V$272/$W$2,0) -> 0 | CA72: 1616
B73: 18 | C73: =+Base!W$4 -> 79 | D73: =+Base!W$5 -> 78 | E73: =+Base!W$7 -> 2041 | F73: =ROUND(+Base!$W$8/$W$2,0) -> 330 | G73: =ROUND(+Base!$W$11/$W$2,0) -> 985 | H73: =ROUND(+Base!$W$14/$W$2,0) -> 71 | I73: =ROUND(+Base!$W$17/$W$2,0) -> 230 | J73: =ROUND(+Base!$W$18/$W$2,0) -> 0 | K73: 1616 | M73: =ROUND(+Base!$W$28/$W$2,0) -> 18 | N73: =ROUND(+Base!$W$31/$W$2,0) -> 59 | O73: =ROUND(+Base!$W$34/$W$2,0) -> 4 | P73: =ROUND(+Base!$W$37/$W$2,0) -> 14 | Q73: =ROUND(+Base!$W$38/$W$2,0) -> 0 | R73: =ROUND(+Base!$W$49/$W$2,0) -> 42 | S73: =ROUND(+Base!$W$60/$W$2,0) -> 21 | T73: =ROUND(+Base!$W$65/$W$2,0) -> 9 | U73: =ROUND((Base!$W$66+Base!$W$67)/$W$2,0) -> 15 | V73: =ROUND((Base!$W$68+Base!$W$69)/$W$2,0) -> 0 | W73: 182 | Y73: =ROUND(+Base!$W$144/$W$2,0) -> 98 | Z73: =ROUND(+Base!$W$145/$W$2,0) -> 11 | AA73: =ROUND(-Base!$W$248/$W$2,0) -> 0 | AB73: =ROUND(-Base!$W$250/$W$2,0) -> 0 | AC73: =ROUND(-Base!$W$251/$W$2,0) -> 0 | AD73: =ROUND(-Base!$W$252/$W$2,0) -> 0 | AE73: =ROUND(-Base!$W$96/$W$2,0) -> 0 | AF73: =ROUND(-Base!$W$107/$W$2,0) -> 0 | AG73: =ROUND(-Base!$W$127/$W$2,0) -> 0 | AH73: =-ROUND(-Base!$W$137/$W$2,0) -> -5 | AJ73: =-ROUND(+Base!$W$254/$W$2,0) -> 5 | AK73: 114 | AL73: =-ROUND(-Base!$W$286/$W$2,0) -> 0 | AN73: 1684 | AP73: =-ROUND(+Base!$W$94/$W$2,0) -> 22 | AQ73: =ROUND(+Base!$W$133/$W$2,0) -> 0 | AR73: =-ROUND(+Base!$W$91/$W$2,0) -> 0 | AS73: =-ROUND(+Base!$W$95/$W$2,0) -> 0 | AT73: =-ROUND(+Base!$W$96/$W$2,0) -> 0 | AU73: =-ROUND(+Base!$W$74/$W$2,0) -> 0 | AV73: 0 | AW73: =-ROUND(+Base!$W$102/$W$2,0) -> 24 | AX73: =-ROUND(+Base!$W$99/$W$2,0) -> 0 | AY73: =-ROUND(+Base!$W$103/$W$2,0) -> 0 | AZ73: =-ROUND(+Base!$W$75/$W$2,0) -> 0 | BA73: 0 | BB73: =-ROUND(+Base!$W$110/$W$2,0) -> 3 | BC73: =-ROUND(+Base!$W$113/$W$2,0) -> 4 | BD73: =-ROUND(+Base!$W$116/$W$2,0) -> 0 | BE73: 4 | BF73: =-ROUND(+Base!$W$111/$W$2,0) -> 8 | BG73: =-ROUND(+Base!$W$114/$W$2,0) -> 1 | BH73: =-ROUND(+Base!$W$117/$W$2,0) -> 0 | BI73: 1 | BJ73: =-ROUND(+Base!$W$123/$W$2,0) -> 0 | BK73: =-ROUND(+Base!$W$126/$W$2,0) -> 0 | BL73: =-ROUND(+Base!$W$76/$W$2,0) -> 0 | BM73: =-ROUND(+Base!$W$127/$W$2,0) -> 0 | BN73: 0 | BO73: =-ROUND(+Base!$W$124/$W$2,0) -> 0 | BP73: =-ROUND(+Base!$W$134/$W$2,0) -> 0 | BQ73: =-ROUND(+Base!$W$135/$W$2,0) -> 0 | BR73: 0 | BS73: 5 | BT73: 67 | BV73: =ROUND(+Base!$W$262/$W$2,0) -> 383 | BW73: =ROUND(+Base!$W$265/$W$2,0) -> 999 | BX73: =ROUND(+Base!$W$268/$W$2,0) -> 60 | BY73: =ROUND(+Base!$W$271/$W$2,0) -> 245 | BZ73: =ROUND(+Base!$W$272/$W$2,0) -> 0 | CA73: 1687
B74: 19 | C74: =+Base!X$4 -> 80 | D74: =+Base!X$5 -> 79 | E74: =+Base!X$7 -> 2042 | F74: =ROUND(+Base!$X$8/$W$2,0) -> 383 | G74: =ROUND(+Base!$X$11/$W$2,0) -> 999 | H74: =ROUND(+Base!$X$14/$W$2,0) -> 60 | I74: =ROUND(+Base!$X$17/$W$2,0) -> 245 | J74: =ROUND(+Base!$X$18/$W$2,0) -> 0 | K74: 1687 | M74: =ROUND(+Base!$X$28/$W$2,0) -> 17 | N74: =ROUND(+Base!$X$31/$W$2,0) -> 53 | O74: =ROUND(+Base!$X$34/$W$2,0) -> 3 | P74: =ROUND(+Base!$X$37/$W$2,0) -> 12 | Q74: =ROUND(+Base!$X$38/$W$2,0) -> 0 | R74: =ROUND(+Base!$X$49/$W$2,0) -> 43 | S74: =ROUND(+Base!$X$60/$W$2,0) -> 22 | T74: =ROUND(+Base!$X$65/$W$2,0) -> 9 | U74: =ROUND((Base!$X$66+Base!$X$67)/$W$2,0) -> 16 | V74: =ROUND((Base!$X$68+Base!$X$69)/$W$2,0) -> 0 | W74: 175 | Y74: =ROUND(+Base!$X$144/$W$2,0) -> 120 | Z74: =ROUND(+Base!$X$145/$W$2,0) -> 12 | AA74: =ROUND(-Base!$X$248/$W$2,0) -> 0 | AB74: =ROUND(-Base!$X$250/$W$2,0) -> 0 | AC74: =ROUND(-Base!$X$251/$W$2,0) -> 0 | AD74: =ROUND(-Base!$X$252/$W$2,0) -> 0 | AE74: =ROUND(-Base!$X$96/$W$2,0) -> 0 | AF74: =ROUND(-Base!$X$107/$W$2,0) -> 0 | AG74: =ROUND(-Base!$X$127/$W$2,0) -> 0 | AH74: =-ROUND(-Base!$X$137/$W$2,0) -> 0 | AJ74: =-ROUND(+Base!$X$254/$W$2,0) -> 0 | AK74: 132 | AL74: =-ROUND(-Base!$X$286/$W$2,0) -> 0 | AN74: 1730 | AP74: =-ROUND(+Base!$X$94/$W$2,0) -> 23 | AQ74: =ROUND(+Base!$X$133/$W$2,0) -> 0 | AR74: =-ROUND(+Base!$X$91/$W$2,0) -> 0 | AS74: =-ROUND(+Base!$X$95/$W$2,0) -> 0 | AT74: =-ROUND(+Base!$X$96/$W$2,0) -> 0 | AU74: =-ROUND(+Base!$X$74/$W$2,0) -> 0 | AV74: 0 | AW74: =-ROUND(+Base!$X$102/$W$2,0) -> 26 | AX74: =-ROUND(+Base!$X$99/$W$2,0) -> 0 | AY74: =-ROUND(+Base!$X$103/$W$2,0) -> 0 | AZ74: =-ROUND(+Base!$X$75/$W$2,0) -> 0 | BA74: 0 | BB74: =-ROUND(+Base!$X$110/$W$2,0) -> 3 | BC74: =-ROUND(+Base!$X$113/$W$2,0) -> 0 | BD74: =-ROUND(+Base!$X$116/$W$2,0) -> 0 | BE74: 0 | BF74: =-ROUND(+Base!$X$111/$W$2,0) -> 8 | BG74: =-ROUND(+Base!$X$114/$W$2,0) -> 1 | BH74: =-ROUND(+Base!$X$117/$W$2,0) -> 0 | BI74: 1 | BJ74: =-ROUND(+Base!$X$123/$W$2,0) -> 40 | BK74: =-ROUND(+Base!$X$126/$W$2,0) -> 0 | BL74: =-ROUND(+Base!$X$76/$W$2,0) -> 0 | BM74: =-ROUND(+Base!$X$127/$W$2,0) -> 0 | BN74: 40 | BO74: =-ROUND(+Base!$X$124/$W$2,0) -> 0 | BP74: =-ROUND(+Base!$X$134/$W$2,0) -> 0 | BQ74: =-ROUND(+Base!$X$135/$W$2,0) -> 0 | BR74: 0 | BS74: 0 | BT74: 101 | BV74: =ROUND(+Base!$X$262/$W$2,0) -> 458 | BW74: =ROUND(+Base!$X$265/$W$2,0) -> 1003 | BX74: =ROUND(+Base!$X$268/$W$2,0) -> 51 | BY74: =ROUND(+Base!$X$271/$W$2,0) -> 216 | BZ74: =ROUND(+Base!$X$272/$W$2,0) -> 0 | CA74: 1728
B75: 20 | C75: =+Base!Y$4 -> 81 | D75: =+Base!Y$5 -> 80 | E75: =+Base!Y$7 -> 2043 | F75: =ROUND(+Base!$Y$8/$W$2,0) -> 458 | G75: =ROUND(+Base!$Y$11/$W$2,0) -> 1003 | H75: =ROUND(+Base!$Y$14/$W$2,0) -> 51 | I75: =ROUND(+Base!$Y$17/$W$2,0) -> 216 | J75: =ROUND(+Base!$Y$18/$W$2,0) -> 0 | K75: 1728 | M75: =ROUND(+Base!$Y$28/$W$2,0) -> 20 | N75: =ROUND(+Base!$Y$31/$W$2,0) -> 53 | O75: =ROUND(+Base!$Y$34/$W$2,0) -> 2 | P75: =ROUND(+Base!$Y$37/$W$2,0) -> 10 | Q75: =ROUND(+Base!$Y$38/$W$2,0) -> 0 | R75: =ROUND(+Base!$Y$49/$W$2,0) -> 44 | S75: =ROUND(+Base!$Y$60/$W$2,0) -> 22 | T75: =ROUND(+Base!$Y$65/$W$2,0) -> 9 | U75: =ROUND((Base!$Y$66+Base!$Y$67)/$W$2,0) -> 16 | V75: =ROUND((Base!$Y$68+Base!$Y$69)/$W$2,0) -> 0 | W75: 176 | Y75: =ROUND(+Base!$Y$144/$W$2,0) -> 122 | Z75: =ROUND(+Base!$Y$145/$W$2,0) -> 12 | AA75: =ROUND(-Base!$Y$248/$W$2,0) -> 0 | AB75: =ROUND(-Base!$Y$250/$W$2,0) -> 0 | AC75: =ROUND(-Base!$Y$251/$W$2,0) -> 0 | AD75: =ROUND(-Base!$Y$252/$W$2,0) -> 0 | AE75: =ROUND(-Base!$Y$96/$W$2,0) -> 0 | AF75: =ROUND(-Base!$Y$107/$W$2,0) -> 0 | AG75: =ROUND(-Base!$Y$127/$W$2,0) -> 0 | AH75: =-ROUND(-Base!$Y$137/$W$2,0) -> 0 | AJ75: =-ROUND(+Base!$Y$254/$W$2,0) -> 0 | AK75: 134 | AL75: =-ROUND(-Base!$Y$286/$W$2,0) -> 0 | AN75: 1770 | AP75: =-ROUND(+Base!$Y$94/$W$2,0) -> 24 | AQ75: =ROUND(+Base!$Y$133/$W$2,0) -> 0 | AR75: =-ROUND(+Base!$Y$91/$W$2,0) -> 0 | AS75: =-ROUND(+Base!$Y$95/$W$2,0) -> 0 | AT75: =-ROUND(+Base!$Y$96/$W$2,0) -> 0 | AU75: =-ROUND(+Base!$Y$74/$W$2,0) -> 0 | AV75: 0 | AW75: =-ROUND(+Base!$Y$102/$W$2,0) -> 27 | AX75: =-ROUND(+Base!$Y$99/$W$2,0) -> 0 | AY75: =-ROUND(+Base!$Y$103/$W$2,0) -> 0 | AZ75: =-ROUND(+Base!$Y$75/$W$2,0) -> 0 | BA75: 0 | BB75: =-ROUND(+Base!$Y$110/$W$2,0) -> 3 | BC75: =-ROUND(+Base!$Y$113/$W$2,0) -> 0 | BD75: =-ROUND(+Base!$Y$116/$W$2,0) -> 0 | BE75: 0 | BF75: =-ROUND(+Base!$Y$111/$W$2,0) -> 8 | BG75: =-ROUND(+Base!$Y$114/$W$2,0) -> 0 | BH75: =-ROUND(+Base!$Y$117/$W$2,0) -> 0 | BI75: 0 | BJ75: =-ROUND(+Base!$Y$123/$W$2,0) -> 40 | BK75: =-ROUND(+Base!$Y$126/$W$2,0) -> 0 | BL75: =-ROUND(+Base!$Y$76/$W$2,0) -> 0 | BM75: =-ROUND(+Base!$Y$127/$W$2,0) -> 0 | BN75: 40 | BO75: =-ROUND(+Base!$Y$124/$W$2,0) -> 0 | BP75: =-ROUND(+Base!$Y$134/$W$2,0) -> 0 | BQ75: =-ROUND(+Base!$Y$135/$W$2,0) -> 0 | BR75: 0 | BS75: 0 | BT75: 102 | BV75: =ROUND(+Base!$Y$262/$W$2,0) -> 536 | BW75: =ROUND(+Base!$Y$265/$W$2,0) -> 1006 | BX75: =ROUND(+Base!$Y$268/$W$2,0) -> 42 | BY75: =ROUND(+Base!$Y$271/$W$2,0) -> 187 | BZ75: =ROUND(+Base!$Y$272/$W$2,0) -> 0 | CA75: 1771
B76: 21 | C76: =+Base!Z$4 -> 82 | D76: =+Base!Z$5 -> 81 | E76: =+Base!Z$7 -> 2044 | F76: =ROUND(+Base!$Z$8/$W$2,0) -> 536 | G76: =ROUND(+Base!$Z$11/$W$2,0) -> 1006 | H76: =ROUND(+Base!$Z$14/$W$2,0) -> 42 | I76: =ROUND(+Base!$Z$17/$W$2,0) -> 187 | J76: =ROUND(+Base!$Z$18/$W$2,0) -> 0 | K76: 1771 | M76: =ROUND(+Base!$Z$28/$W$2,0) -> 24 | N76: =ROUND(+Base!$Z$31/$W$2,0) -> 53 | O76: =ROUND(+Base!$Z$34/$W$2,0) -> 2 | P76: =ROUND(+Base!$Z$37/$W$2,0) -> 9 | Q76: =ROUND(+Base!$Z$38/$W$2,0) -> 0 | R76: =ROUND(+Base!$Z$49/$W$2,0) -> 45 | S76: =ROUND(+Base!$Z$60/$W$2,0) -> 23 | T76: =ROUND(+Base!$Z$65/$W$2,0) -> 9 | U76: =ROUND((Base!$Z$66+Base!$Z$67)/$W$2,0) -> 17 | V76: =ROUND((Base!$Z$68+Base!$Z$69)/$W$2,0) -> 0 | W76: 182 | Y76: =ROUND(+Base!$Z$144/$W$2,0) -> 125 | Z76: =ROUND(+Base!$Z$145/$W$2,0) -> 13 | AA76: =ROUND(-Base!$Z$248/$W$2,0) -> 0 | AB76: =ROUND(-Base!$Z$250/$W$2,0) -> 0 | AC76: =ROUND(-Base!$Z$251/$W$2,0) -> 0 | AD76: =ROUND(-Base!$Z$252/$W$2,0) -> 0 | AE76: =ROUND(-Base!$Z$96/$W$2,0) -> 0 | AF76: =ROUND(-Base!$Z$107/$W$2,0) -> 0 | AG76: =ROUND(-Base!$Z$127/$W$2,0) -> 0 | AH76: =-ROUND(-Base!$Z$137/$W$2,0) -> 0 | AJ76: =-ROUND(+Base!$Z$254/$W$2,0) -> 0 | AK76: 138 | AL76: =-ROUND(-Base!$Z$286/$W$2,0) -> 0 | AN76: 1815 | AP76: =-ROUND(+Base!$Z$94/$W$2,0) -> 25 | AQ76: =ROUND(+Base!$Z$133/$W$2,0) -> 0 | AR76: =-ROUND(+Base!$Z$91/$W$2,0) -> 0 | AS76: =-ROUND(+Base!$Z$95/$W$2,0) -> 0 | AT76: =-ROUND(+Base!$Z$96/$W$2,0) -> 0 | AU76: =-ROUND(+Base!$Z$74/$W$2,0) -> 0 | AV76: 0 | AW76: =-ROUND(+Base!$Z$102/$W$2,0) -> 28 | AX76: =-ROUND(+Base!$Z$99/$W$2,0) -> 0 | AY76: =-ROUND(+Base!$Z$103/$W$2,0) -> 0 | AZ76: =-ROUND(+Base!$Z$75/$W$2,0) -> 0 | BA76: 0 | BB76: =-ROUND(+Base!$Z$110/$W$2,0) -> 3 | BC76: =-ROUND(+Base!$Z$113/$W$2,0) -> 0 | BD76: =-ROUND(+Base!$Z$116/$W$2,0) -> 0 | BE76: 0 | BF76: =-ROUND(+Base!$Z$111/$W$2,0) -> 9 | BG76: =-ROUND(+Base!$Z$114/$W$2,0) -> 0 | BH76: =-ROUND(+Base!$Z$117/$W$2,0) -> 0 | BI76: 0 | BJ76: =-ROUND(+Base!$Z$123/$W$2,0) -> 40 | BK76: =-ROUND(+Base!$Z$126/$W$2,0) -> 0 | BL76: =-ROUND(+Base!$Z$76/$W$2,0) -> 0 | BM76: =-ROUND(+Base!$Z$127/$W$2,0) -> 0 | BN76: 40 | BO76: =-ROUND(+Base!$Z$124/$W$2,0) -> 0 | BP76: =-ROUND(+Base!$Z$134/$W$2,0) -> 0 | BQ76: =-ROUND(+Base!$Z$135/$W$2,0) -> 0 | BR76: 0 | BS76: 0 | BT76: 105 | BV76: =ROUND(+Base!$Z$262/$W$2,0) -> 619 | BW76: =ROUND(+Base!$Z$265/$W$2,0) -> 1006 | BX76: =ROUND(+Base!$Z$268/$W$2,0) -> 32 | BY76: =ROUND(+Base!$Z$271/$W$2,0) -> 156 | BZ76: =ROUND(+Base!$Z$272/$W$2,0) -> 0 | CA76: 1813
B77: 22 | C77: =+Base!AA$4 -> 83 | D77: =+Base!AA$5 -> 82 | E77: =+Base!AA$7 -> 2045 | F77: =ROUND(+Base!$AA$8/$W$2,0) -> 619 | G77: =ROUND(+Base!$AA$11/$W$2,0) -> 1006 | H77: =ROUND(+Base!$AA$14/$W$2,0) -> 32 | I77: =ROUND(+Base!$AA$17/$W$2,0) -> 156 | J77: =ROUND(+Base!$AA$18/$W$2,0) -> 0 | K77: 1813 | M77: =ROUND(+Base!$AA$28/$W$2,0) -> 27 | N77: =ROUND(+Base!$AA$31/$W$2,0) -> 53 | O77: =ROUND(+Base!$AA$34/$W$2,0) -> 1 | P77: =ROUND(+Base!$AA$37/$W$2,0) -> 7 | Q77: =ROUND(+Base!$AA$38/$W$2,0) -> 0 | R77: =ROUND(+Base!$AA$49/$W$2,0) -> 46 | S77: =ROUND(+Base!$AA$60/$W$2,0) -> 23 | T77: =ROUND(+Base!$AA$65/$W$2,0) -> 9 | U77: =ROUND((Base!$AA$66+Base!$AA$67)/$W$2,0) -> 17 | V77: =ROUND((Base!$AA$68+Base!$AA$69)/$W$2,0) -> 0 | W77: 183 | Y77: =ROUND(+Base!$AA$144/$W$2,0) -> 127 | Z77: =ROUND(+Base!$AA$145/$W$2,0) -> 14 | AA77: =ROUND(-Base!$AA$248/$W$2,0) -> 0 | AB77: =ROUND(-Base!$AA$250/$W$2,0) -> 0 | AC77: =ROUND(-Base!$AA$251/$W$2,0) -> 0 | AD77: =ROUND(-Base!$AA$252/$W$2,0) -> 0 | AE77: =ROUND(-Base!$AA$96/$W$2,0) -> 0 | AF77: =ROUND(-Base!$AA$107/$W$2,0) -> 0 | AG77: =ROUND(-Base!$AA$127/$W$2,0) -> 0 | AH77: =-ROUND(-Base!$AA$137/$W$2,0) -> 0 | AJ77: =-ROUND(+Base!$AA$254/$W$2,0) -> 0 | AK77: 141 | AL77: =-ROUND(-Base!$AA$286/$W$2,0) -> 0 | AN77: 1855 | AP77: =-ROUND(+Base!$AA$94/$W$2,0) -> 26 | AQ77: =ROUND(+Base!$AA$133/$W$2,0) -> 0 | AR77: =-ROUND(+Base!$AA$91/$W$2,0) -> 0 | AS77: =-ROUND(+Base!$AA$95/$W$2,0) -> 0 | AT77: =-ROUND(+Base!$AA$96/$W$2,0) -> 0 | AU77: =-ROUND(+Base!$AA$74/$W$2,0) -> 0 | AV77: 0 | AW77: =-ROUND(+Base!$AA$102/$W$2,0) -> 29 | AX77: =-ROUND(+Base!$AA$99/$W$2,0) -> 0 | AY77: =-ROUND(+Base!$AA$103/$W$2,0) -> 0 | AZ77: =-ROUND(+Base!$AA$75/$W$2,0) -> 0 | BA77: 0 | BB77: =-ROUND(+Base!$AA$110/$W$2,0) -> 3 | BC77: =-ROUND(+Base!$AA$113/$W$2,0) -> 0 | BD77: =-ROUND(+Base!$AA$116/$W$2,0) -> 0 | BE77: 0 | BF77: =-ROUND(+Base!$AA$111/$W$2,0) -> 10 | BG77: =-ROUND(+Base!$AA$114/$W$2,0) -> 0 | BH77: =-ROUND(+Base!$AA$117/$W$2,0) -> 0 | BI77: 0 | BJ77: =-ROUND(+Base!$AA$123/$W$2,0) -> 40 | BK77: =-ROUND(+Base!$AA$126/$W$2,0) -> 0 | BL77: =-ROUND(+Base!$AA$76/$W$2,0) -> 0 | BM77: =-ROUND(+Base!$AA$127/$W$2,0) -> 0 | BN77: 40 | BO77: =-ROUND(+Base!$AA$124/$W$2,0) -> 0 | BP77: =-ROUND(+Base!$AA$134/$W$2,0) -> 0 | BQ77: =-ROUND(+Base!$AA$135/$W$2,0) -> 0 | BR77: 0 | BS77: 0 | BT77: 108 | BV77: =ROUND(+Base!$AA$262/$W$2,0) -> 708 | BW77: =ROUND(+Base!$AA$265/$W$2,0) -> 1004 | BX77: =ROUND(+Base!$AA$268/$W$2,0) -> 21 | BY77: =ROUND(+Base!$AA$271/$W$2,0) -> 123 | BZ77: =ROUND(+Base!$AA$272/$W$2,0) -> 0 | CA77: 1856
B78: 23 | C78: =+Base!AB$4 -> 84 | D78: =+Base!AB$5 -> 83 | E78: =+Base!AB$7 -> 2046 | F78: =ROUND(+Base!$AB$8/$W$2,0) -> 708 | G78: =ROUND(+Base!$AB$11/$W$2,0) -> 1004 | H78: =ROUND(+Base!$AB$14/$W$2,0) -> 21 | I78: =ROUND(+Base!$AB$17/$W$2,0) -> 123 | J78: =ROUND(+Base!$AB$18/$W$2,0) -> 0 | K78: 1856 | M78: =ROUND(+Base!$AB$28/$W$2,0) -> 39 | N78: =ROUND(+Base!$AB$31/$W$2,0) -> 53 | O78: =ROUND(+Base!$AB$34/$W$2,0) -> 1 | P78: =ROUND(+Base!$AB$37/$W$2,0) -> 5 | Q78: =ROUND(+Base!$AB$38/$W$2,0) -> 0 | R78: =ROUND(+Base!$AB$49/$W$2,0) -> 47 | S78: =ROUND(+Base!$AB$60/$W$2,0) -> 24 | T78: =ROUND(+Base!$AB$65/$W$2,0) -> 9 | U78: =ROUND((Base!$AB$66+Base!$AB$67)/$W$2,0) -> 17 | V78: =ROUND((Base!$AB$68+Base!$AB$69)/$W$2,0) -> 0 | W78: 195 | Y78: =ROUND(+Base!$AB$144/$W$2,0) -> 130 | Z78: =ROUND(+Base!$AB$145/$W$2,0) -> 17 | AA78: =ROUND(-Base!$AB$248/$W$2,0) -> 0 | AB78: =ROUND(-Base!$AB$250/$W$2,0) -> -400 | AC78: =ROUND(-Base!$AB$251/$W$2,0) -> 0 | AD78: =ROUND(-Base!$AB$252/$W$2,0) -> 0 | AE78: =ROUND(-Base!$AB$96/$W$2,0) -> 0 | AF78: =ROUND(-Base!$AB$107/$W$2,0) -> 0 | AG78: =ROUND(-Base!$AB$127/$W$2,0) -> 0 | AH78: =-ROUND(-Base!$AB$137/$W$2,0) -> 0 | AJ78: =-ROUND(+Base!$AB$254/$W$2,0) -> -400 | AK78: -253 | AL78: =-ROUND(-Base!$AB$286/$W$2,0) -> 0 | AN78: 2304 | AP78: =-ROUND(+Base!$AB$94/$W$2,0) -> 28 | AQ78: =ROUND(+Base!$AB$133/$W$2,0) -> 0 | AR78: =-ROUND(+Base!$AB$91/$W$2,0) -> 0 | AS78: =-ROUND(+Base!$AB$95/$W$2,0) -> 0 | AT78: =-ROUND(+Base!$AB$96/$W$2,0) -> 0 | AU78: =-ROUND(+Base!$AB$74/$W$2,0) -> 0 | AV78: 0 | AW78: =-ROUND(+Base!$AB$102/$W$2,0) -> 31 | AX78: =-ROUND(+Base!$AB$99/$W$2,0) -> 0 | AY78: =-ROUND(+Base!$AB$103/$W$2,0) -> 0 | AZ78: =-ROUND(+Base!$AB$75/$W$2,0) -> 0 | BA78: 0 | BB78: =-ROUND(+Base!$AB$110/$W$2,0) -> 3 | BC78: =-ROUND(+Base!$AB$113/$W$2,0) -> 0 | BD78: =-ROUND(+Base!$AB$116/$W$2,0) -> 0 | BE78: 0 | BF78: =-ROUND(+Base!$AB$111/$W$2,0) -> 0 | BG78: =-ROUND(+Base!$AB$114/$W$2,0) -> 0 | BH78: =-ROUND(+Base!$AB$117/$W$2,0) -> 0 | BI78: 0 | BJ78: =-ROUND(+Base!$AB$123/$W$2,0) -> 40 | BK78: =-ROUND(+Base!$AB$126/$W$2,0) -> 0 | BL78: =-ROUND(+Base!$AB$76/$W$2,0) -> 0 | BM78: =-ROUND(+Base!$AB$127/$W$2,0) -> 0 | BN78: 40 | BO78: =-ROUND(+Base!$AB$124/$W$2,0) -> 0 | BP78: =-ROUND(+Base!$AB$134/$W$2,0) -> 0 | BQ78: =-ROUND(+Base!$AB$135/$W$2,0) -> 0 | BR78: 0 | BS78: 0 | BT78: 102 | BV78: =ROUND(+Base!$AB$262/$W$2,0) -> 1198 | BW78: =ROUND(+Base!$AB$265/$W$2,0) -> 999 | BX78: =ROUND(+Base!$AB$268/$W$2,0) -> 19 | BY78: =ROUND(+Base!$AB$271/$W$2,0) -> 88 | BZ78: =ROUND(+Base!$AB$272/$W$2,0) -> 0 | CA78: 2304
B79: 24 | C79: =+Base!AC$4 -> 85 | D79: =+Base!AC$5 -> 84 | E79: =+Base!AC$7 -> 2047 | F79: =ROUND(+Base!$AC$8/$W$2,0) -> 1198 | G79: =ROUND(+Base!$AC$11/$W$2,0) -> 999 | H79: =ROUND(+Base!$AC$14/$W$2,0) -> 19 | I79: =ROUND(+Base!$AC$17/$W$2,0) -> 88 | J79: =ROUND(+Base!$AC$18/$W$2,0) -> 0 | K79: 2304 | M79: =ROUND(+Base!$AC$28/$W$2,0) -> 51 | N79: =ROUND(+Base!$AC$31/$W$2,0) -> 53 | O79: =ROUND(+Base!$AC$34/$W$2,0) -> 1 | P79: =ROUND(+Base!$AC$37/$W$2,0) -> 4 | Q79: =ROUND(+Base!$AC$38/$W$2,0) -> 0 | R79: =ROUND(+Base!$AC$49/$W$2,0) -> 47 | S79: =ROUND(+Base!$AC$60/$W$2,0) -> 24 | T79: =ROUND(+Base!$AC$65/$W$2,0) -> 9 | U79: =ROUND((Base!$AC$66+Base!$AC$67)/$W$2,0) -> 18 | V79: =ROUND((Base!$AC$68+Base!$AC$69)/$W$2,0) -> 0 | W79: 207 | Y79: =ROUND(+Base!$AC$144/$W$2,0) -> 132 | Z79: =ROUND(+Base!$AC$145/$W$2,0) -> 18 | AA79: =ROUND(-Base!$AC$248/$W$2,0) -> 0 | AB79: =ROUND(-Base!$AC$250/$W$2,0) -> 0 | AC79: =ROUND(-Base!$AC$251/$W$2,0) -> 0 | AD79: =ROUND(-Base!$AC$252/$W$2,0) -> 0 | AE79: =ROUND(-Base!$AC$96/$W$2,0) -> 0 | AF79: =ROUND(-Base!$AC$107/$W$2,0) -> 0 | AG79: =ROUND(-Base!$AC$127/$W$2,0) -> 0 | AH79: =-ROUND(-Base!$AC$137/$W$2,0) -> 0 | AJ79: =-ROUND(+Base!$AC$254/$W$2,0) -> 0 | AK79: 150 | AL79: =-ROUND(-Base!$AC$286/$W$2,0) -> 0 | AN79: 2361 | AP79: =-ROUND(+Base!$AC$94/$W$2,0) -> 29 | AQ79: =ROUND(+Base!$AC$133/$W$2,0) -> 0 | AR79: =-ROUND(+Base!$AC$91/$W$2,0) -> 0 | AS79: =-ROUND(+Base!$AC$95/$W$2,0) -> 0 | AT79: =-ROUND(+Base!$AC$96/$W$2,0) -> 0 | AU79: =-ROUND(+Base!$AC$74/$W$2,0) -> 0 | AV79: 0 | AW79: =-ROUND(+Base!$AC$102/$W$2,0) -> 32 | AX79: =-ROUND(+Base!$AC$99/$W$2,0) -> 0 | AY79: =-ROUND(+Base!$AC$103/$W$2,0) -> 0 | AZ79: =-ROUND(+Base!$AC$75/$W$2,0) -> 0 | BA79: 0 | BB79: =-ROUND(+Base!$AC$110/$W$2,0) -> 3 | BC79: =-ROUND(+Base!$AC$113/$W$2,0) -> 0 | BD79: =-ROUND(+Base!$AC$116/$W$2,0) -> 0 | BE79: 0 | BF79: =-ROUND(+Base!$AC$111/$W$2,0) -> 0 | BG79: =-ROUND(+Base!$AC$114/$W$2,0) -> 0 | BH79: =-ROUND(+Base!$AC$117/$W$2,0) -> 0 | BI79: 0 | BJ79: =-ROUND(+Base!$AC$123/$W$2,0) -> 40 | BK79: =-ROUND(+Base!$AC$126/$W$2,0) -> 0 | BL79: =-ROUND(+Base!$AC$76/$W$2,0) -> 0 | BM79: =-ROUND(+Base!$AC$127/$W$2,0) -> 0 | BN79: 40 | BO79: =-ROUND(+Base!$AC$124/$W$2,0) -> 0 | BP79: =-ROUND(+Base!$AC$134/$W$2,0) -> 0 | BQ79: =-ROUND(+Base!$AC$135/$W$2,0) -> 0 | BR79: 0 | BS79: 0 | BT79: 104 | BV79: =ROUND(+Base!$AC$262/$W$2,0) -> 1300 | BW79: =ROUND(+Base!$AC$265/$W$2,0) -> 991 | BX79: =ROUND(+Base!$AC$268/$W$2,0) -> 16 | BY79: =ROUND(+Base!$AC$271/$W$2,0) -> 52 | BZ79: =ROUND(+Base!$AC$272/$W$2,0) -> 0 | CA79: 2359
B80: 25 | C80: =+Base!AD$4 -> 86 | D80: =+Base!AD$5 -> 85 | E80: =+Base!AD$7 -> 2048 | F80: =ROUND(+Base!$AD$8/$W$2,0) -> 1300 | G80: =ROUND(+Base!$AD$11/$W$2,0) -> 991 | H80: =ROUND(+Base!$AD$14/$W$2,0) -> 16 | I80: =ROUND(+Base!$AD$17/$W$2,0) -> 52 | J80: =ROUND(+Base!$AD$18/$W$2,0) -> 0 | K80: 2359 | M80: =ROUND(+Base!$AD$28/$W$2,0) -> 56 | N80: =ROUND(+Base!$AD$31/$W$2,0) -> 52 | O80: =ROUND(+Base!$AD$34/$W$2,0) -> 1 | P80: =ROUND(+Base!$AD$37/$W$2,0) -> 1 | Q80: =ROUND(+Base!$AD$38/$W$2,0) -> 0 | R80: =ROUND(+Base!$AD$49/$W$2,0) -> 48 | S80: =ROUND(+Base!$AD$60/$W$2,0) -> 0 | T80: =ROUND(+Base!$AD$65/$W$2,0) -> 9 | U80: =ROUND((Base!$AD$66+Base!$AD$67)/$W$2,0) -> 16 | V80: =ROUND((Base!$AD$68+Base!$AD$69)/$W$2,0) -> 0 | W80: 183 | Y80: =ROUND(+Base!$AD$144/$W$2,0) -> 135 | Z80: =ROUND(+Base!$AD$145/$W$2,0) -> 22 | AA80: =ROUND(-Base!$AD$248/$W$2,0) -> 0 | AB80: =ROUND(-Base!$AD$250/$W$2,0) -> -100 | AC80: =ROUND(-Base!$AD$251/$W$2,0) -> 0 | AD80: =ROUND(-Base!$AD$252/$W$2,0) -> 0 | AE80: =ROUND(-Base!$AD$96/$W$2,0) -> 0 | AF80: =ROUND(-Base!$AD$107/$W$2,0) -> 0 | AG80: =ROUND(-Base!$AD$127/$W$2,0) -> 0 | AH80: =-ROUND(-Base!$AD$137/$W$2,0) -> 0 | AJ80: =-ROUND(+Base!$AD$254/$W$2,0) -> -100 | AK80: 57 | AL80: =-ROUND(-Base!$AD$286/$W$2,0) -> 0 | AN80: 2485 | AP80: =-ROUND(+Base!$AD$94/$W$2,0) -> 30 | AQ80: =ROUND(+Base!$AD$133/$W$2,0) -> 0 | AR80: =-ROUND(+Base!$AD$91/$W$2,0) -> 0 | AS80: =-ROUND(+Base!$AD$95/$W$2,0) -> 0 | AT80: =-ROUND(+Base!$AD$96/$W$2,0) -> 0 | AU80: =-ROUND(+Base!$AD$74/$W$2,0) -> 0 | AV80: 0 | AW80: =-ROUND(+Base!$AD$102/$W$2,0) -> 33 | AX80: =-ROUND(+Base!$AD$99/$W$2,0) -> 0 | AY80: =-ROUND(+Base!$AD$103/$W$2,0) -> 0 | AZ80: =-ROUND(+Base!$AD$75/$W$2,0) -> 0 | BA80: 0 | BB80: =-ROUND(+Base!$AD$110/$W$2,0) -> 4 | BC80: =-ROUND(+Base!$AD$113/$W$2,0) -> 0 | BD80: =-ROUND(+Base!$AD$116/$W$2,0) -> 0 | BE80: 0 | BF80: =-ROUND(+Base!$AD$111/$W$2,0) -> 0 | BG80: =-ROUND(+Base!$AD$114/$W$2,0) -> 0 | BH80: =-ROUND(+Base!$AD$117/$W$2,0) -> 0 | BI80: 0 | BJ80: =-ROUND(+Base!$AD$123/$W$2,0) -> 37 | BK80: =-ROUND(+Base!$AD$126/$W$2,0) -> 0 | BL80: =-ROUND(+Base!$AD$76/$W$2,0) -> 0 | BM80: =-ROUND(+Base!$AD$127/$W$2,0) -> 0 | BN80: 37 | BO80: =-ROUND(+Base!$AD$124/$W$2,0) -> 0 | BP80: =-ROUND(+Base!$AD$134/$W$2,0) -> 0 | BQ80: =-ROUND(+Base!$AD$135/$W$2,0) -> 0 | BR80: 0 | BS80: 0 | BT80: 104 | BV80: =ROUND(+Base!$AD$262/$W$2,0) -> 1477 | BW80: =ROUND(+Base!$AD$265/$W$2,0) -> 979 | BX80: =ROUND(+Base!$AD$268/$W$2,0) -> 14 | BY80: =ROUND(+Base!$AD$271/$W$2,0) -> 16 | BZ80: =ROUND(+Base!$AD$272/$W$2,0) -> 0 | CA80: 2486
B81: 26 | C81: =+Base!AE$4 -> 87 | D81: =+Base!AE$5 -> 86 | E81: =+Base!AE$7 -> 2049 | F81: =ROUND(+Base!$AE$8/$W$2,0) -> 1477 | G81: =ROUND(+Base!$AE$11/$W$2,0) -> 979 | H81: =ROUND(+Base!$AE$14/$W$2,0) -> 14 | I81: =ROUND(+Base!$AE$17/$W$2,0) -> 16 | J81: =ROUND(+Base!$AE$18/$W$2,0) -> 0 | K81: 2486 | M81: =ROUND(+Base!$AE$28/$W$2,0) -> 61 | N81: =ROUND(+Base!$AE$31/$W$2,0) -> 52 | O81: =ROUND(+Base!$AE$34/$W$2,0) -> 1 | P81: =ROUND(+Base!$AE$37/$W$2,0) -> 1 | Q81: =ROUND(+Base!$AE$38/$W$2,0) -> 0 | R81: =ROUND(+Base!$AE$49/$W$2,0) -> 49 | S81: =ROUND(+Base!$AE$60/$W$2,0) -> 0 | T81: =ROUND(+Base!$AE$65/$W$2,0) -> 9 | U81: =ROUND((Base!$AE$66+Base!$AE$67)/$W$2,0) -> 17 | V81: =ROUND((Base!$AE$68+Base!$AE$69)/$W$2,0) -> 0 | W81: 190 | Y81: =ROUND(+Base!$AE$144/$W$2,0) -> 138 | Z81: =ROUND(+Base!$AE$145/$W$2,0) -> 23 | AA81: =ROUND(-Base!$AE$248/$W$2,0) -> 0 | AB81: =ROUND(-Base!$AE$250/$W$2,0) -> 0 | AC81: =ROUND(-Base!$AE$251/$W$2,0) -> 0 | AD81: =ROUND(-Base!$AE$252/$W$2,0) -> 0 | AE81: =ROUND(-Base!$AE$96/$W$2,0) -> 0 | AF81: =ROUND(-Base!$AE$107/$W$2,0) -> 0 | AG81: =ROUND(-Base!$AE$127/$W$2,0) -> 0 | AH81: =-ROUND(-Base!$AE$137/$W$2,0) -> 0 | AJ81: =-ROUND(+Base!$AE$254/$W$2,0) -> 0 | AK81: 161 | AL81: =-ROUND(-Base!$AE$286/$W$2,0) -> 0 | AN81: 2515 | AP81: =-ROUND(+Base!$AE$94/$W$2,0) -> 31 | AQ81: =ROUND(+Base!$AE$133/$W$2,0) -> 0 | AR81: =-ROUND(+Base!$AE$91/$W$2,0) -> 0 | AS81: =-ROUND(+Base!$AE$95/$W$2,0) -> 0 | AT81: =-ROUND(+Base!$AE$96/$W$2,0) -> 0 | AU81: =-ROUND(+Base!$AE$74/$W$2,0) -> 0 | AV81: 0 | AW81: =-ROUND(+Base!$AE$102/$W$2,0) -> 35 | AX81: =-ROUND(+Base!$AE$99/$W$2,0) -> 0 | AY81: =-ROUND(+Base!$AE$103/$W$2,0) -> 0 | AZ81: =-ROUND(+Base!$AE$75/$W$2,0) -> 0 | BA81: 0 | BB81: =-ROUND(+Base!$AE$110/$W$2,0) -> 4 | BC81: =-ROUND(+Base!$AE$113/$W$2,0) -> 0 | BD81: =-ROUND(+Base!$AE$116/$W$2,0) -> 0 | BE81: 0 | BF81: =-ROUND(+Base!$AE$111/$W$2,0) -> 0 | BG81: =-ROUND(+Base!$AE$114/$W$2,0) -> 0 | BH81: =-ROUND(+Base!$AE$117/$W$2,0) -> 0 | BI81: 0 | BJ81: =-ROUND(+Base!$AE$123/$W$2,0) -> 0 | BK81: =-ROUND(+Base!$AE$126/$W$2,0) -> 0 | BL81: =-ROUND(+Base!$AE$76/$W$2,0) -> 0 | BM81: =-ROUND(+Base!$AE$127/$W$2,0) -> 0 | BN81: 0 | BO81: =-ROUND(+Base!$AE$124/$W$2,0) -> 0 | BP81: =-ROUND(+Base!$AE$134/$W$2,0) -> 0 | BQ81: =-ROUND(+Base!$AE$135/$W$2,0) -> 0 | BR81: 0 | BS81: 0 | BT81: 70 | BV81: =ROUND(+Base!$AE$262/$W$2,0) -> 1522 | BW81: =ROUND(+Base!$AE$265/$W$2,0) -> 965 | BX81: =ROUND(+Base!$AE$268/$W$2,0) -> 11 | BY81: =ROUND(+Base!$AE$271/$W$2,0) -> 17 | BZ81: =ROUND(+Base!$AE$272/$W$2,0) -> 0 | CA81: 2515
B82: 27 | C82: =+Base!AF$4 -> 88 | D82: =+Base!AF$5 -> 87 | E82: =+Base!AF$7 -> 2050 | F82: =ROUND(+Base!$AF$8/$W$2,0) -> 1522 | G82: =ROUND(+Base!$AF$11/$W$2,0) -> 965 | H82: =ROUND(+Base!$AF$14/$W$2,0) -> 11 | I82: =ROUND(+Base!$AF$17/$W$2,0) -> 17 | J82: =ROUND(+Base!$AF$18/$W$2,0) -> 0 | K82: 2515 | M82: =ROUND(+Base!$AF$28/$W$2,0) -> 63 | N82: =ROUND(+Base!$AF$31/$W$2,0) -> 51 | O82: =ROUND(+Base!$AF$34/$W$2,0) -> 1 | P82: =ROUND(+Base!$AF$37/$W$2,0) -> 1 | Q82: =ROUND(+Base!$AF$38/$W$2,0) -> 0 | R82: =ROUND(+Base!$AF$49/$W$2,0) -> 50 | S82: =ROUND(+Base!$AF$60/$W$2,0) -> 0 | T82: =ROUND(+Base!$AF$65/$W$2,0) -> 9 | U82: =ROUND((Base!$AF$66+Base!$AF$67)/$W$2,0) -> 17 | V82: =ROUND((Base!$AF$68+Base!$AF$69)/$W$2,0) -> 0 | W82: 192 | Y82: =ROUND(+Base!$AF$144/$W$2,0) -> 140 | Z82: =ROUND(+Base!$AF$145/$W$2,0) -> 24 | AA82: =ROUND(-Base!$AF$248/$W$2,0) -> 0 | AB82: =ROUND(-Base!$AF$250/$W$2,0) -> 0 | AC82: =ROUND(-Base!$AF$251/$W$2,0) -> 0 | AD82: =ROUND(-Base!$AF$252/$W$2,0) -> 0 | AE82: =ROUND(-Base!$AF$96/$W$2,0) -> 0 | AF82: =ROUND(-Base!$AF$107/$W$2,0) -> 0 | AG82: =ROUND(-Base!$AF$127/$W$2,0) -> 0 | AH82: =-ROUND(-Base!$AF$137/$W$2,0) -> 0 | AJ82: =-ROUND(+Base!$AF$254/$W$2,0) -> 0 | AK82: 164 | AL82: =-ROUND(-Base!$AF$286/$W$2,0) -> 0 | AN82: 2543 | AP82: =-ROUND(+Base!$AF$94/$W$2,0) -> 32 | AQ82: =ROUND(+Base!$AF$133/$W$2,0) -> 0 | AR82: =-ROUND(+Base!$AF$91/$W$2,0) -> 0 | AS82: =-ROUND(+Base!$AF$95/$W$2,0) -> 0 | AT82: =-ROUND(+Base!$AF$96/$W$2,0) -> 0 | AU82: =-ROUND(+Base!$AF$74/$W$2,0) -> 0 | AV82: 0 | AW82: =-ROUND(+Base!$AF$102/$W$2,0) -> 36 | AX82: =-ROUND(+Base!$AF$99/$W$2,0) -> 0 | AY82: =-ROUND(+Base!$AF$103/$W$2,0) -> 0 | AZ82: =-ROUND(+Base!$AF$75/$W$2,0) -> 0 | BA82: 0 | BB82: =-ROUND(+Base!$AF$110/$W$2,0) -> 4 | BC82: =-ROUND(+Base!$AF$113/$W$2,0) -> 0 | BD82: =-ROUND(+Base!$AF$116/$W$2,0) -> 0 | BE82: 0 | BF82: =-ROUND(+Base!$AF$111/$W$2,0) -> 0 | BG82: =-ROUND(+Base!$AF$114/$W$2,0) -> 0 | BH82: =-ROUND(+Base!$AF$117/$W$2,0) -> 0 | BI82: 0 | BJ82: =-ROUND(+Base!$AF$123/$W$2,0) -> 0 | BK82: =-ROUND(+Base!$AF$126/$W$2,0) -> 0 | BL82: =-ROUND(+Base!$AF$76/$W$2,0) -> 0 | BM82: =-ROUND(+Base!$AF$127/$W$2,0) -> 0 | BN82: 0 | BO82: =-ROUND(+Base!$AF$124/$W$2,0) -> 0 | BP82: =-ROUND(+Base!$AF$134/$W$2,0) -> 0 | BQ82: =-ROUND(+Base!$AF$135/$W$2,0) -> 0 | BR82: 0 | BS82: 0 | BT82: 72 | BV82: =ROUND(+Base!$AF$262/$W$2,0) -> 1569 | BW82: =ROUND(+Base!$AF$265/$W$2,0) -> 947 | BX82: =ROUND(+Base!$AF$268/$W$2,0) -> 7 | BY82: =ROUND(+Base!$AF$271/$W$2,0) -> 18 | BZ82: =ROUND(+Base!$AF$272/$W$2,0) -> 0 | CA82: 2541
